Workbook

Sheet HOME
A1: DĚVČATA
B9: DISCIPLÍNY

Sheet TVOJE
B1: 6.A | E1: 6.B | G1: 7.A | I1: 7.B | K1: 8.A | N1: 8.B | R1: 9.A | U1: 9.B

Sheet TVOJE2
D2: ='D60'!B209 -> VOTOČKOVÁ | E2: ='D60'!C209 -> Veronika | F2: ='D60'!D209 -> 9.B
D3: výkon | F3: místo | G3: body | I3: 20 - 21 | J3: 19 - 20 | K3: 18 - 19
C4: 60 m | D4: ='D60'!E209 -> 12.62 | F4: ='D60'!G209 -> Jilemnice 14.09.22 | G4: ='D60'!H209 -> 587.2804808 | I4: ='D60'!J209 -> 13.34 | J4: ='D60'!K209 -> 12.55 | K4: ='D60'!L209 -> 13.86
C6: 300 m | D6: ='D300'!E209 -> 00:00:00 | F6: ='D300'!G209 -> 00:00:00 | G6: ='D300'!H209 -> 00:00:00 | I6: ='D300'!J209 -> 00:00:00 | J6: ='D300'!K209 -> 00:00:00 | K6: ='D300'!L209 -> 00:01:36.510
D7: ='D300'!E209 -> 0 | F7: ='D300'!G209 -> 0 | G7: ='D300'!H209 -> 0 | I7: ='D300'!J209 -> 0 | J7: ='D300'!K209 -> 0 | K7: ='D300'!L209 -> 0.001117013889
C8: 800 m | D8: ='D800'!E209 -> 00:00:00 | F8: ='D800'!G209 -> 00:00:00 | G8: ='D800'!H209 -> 00:00:00 | I8: ='D800'!J209 -> 00:05:08.500 | J8: ='D800'!K209 -> 00:00:00 | K8: ='D800'!L209 -> 00:00:00
C10: dálka | D10: =Ddál!E209 -> 0 | F10: =Ddál!G209 -> 0 | G10: =Ddál!H209 -> 0 | I10: =Ddál!J209 -> 284 | J10: =Ddál!K209 -> 255 | K10: =Ddál!L209 -> 0
C12: výška | D12: =Dvýš!E209 -> 0 | F12: =Dvýš!G209 -> 0 | G12: =Dvýš!H209 -> 0 | I12: =Dvýš!J209 -> 0 | J12: =Dvýš!K209 -> 0 | K12: =Dvýš!L209 -> 0
C14: míček | D14: =Dmíč!E209 -> 14 | F14: =Dmíč!G209 -> Jilemnice 07.10.22 | G14: =Dmíč!H209 -> 257.8 | I14: =Dmíč!J209 -> 16 | J14: =Dmíč!K209 -> 0 | K14: =Dmíč!L209 -> 0
C16: koule | D16: =Dkou!E209 -> 5.4 | F16: =Dkou!G209 -> Jilemnice 16.09.22 | G16: =Dkou!H209 -> 502.2222222 | I16: =Dkou!J209 -> 0 | J16: =Dkou!K209 -> 0 | K16: =Dkou!L209 -> 0
C18: člunek | D18: =Dčlu!E209 -> 0 | F18: =Dčlu!G209 -> 0 | G18: =Dčlu!H209 -> 0 | I18: =Dčlu!J209 -> 0 | J18: =Dčlu!K209 -> 0 | K18: =Dčlu!L209 -> 0
C20: lehsed | D20: =Dls!E209 -> 0 | F20: =Dls!G209 -> 0 | G20: =Dls!H209 -> 0 | I20: =Dls!J209 -> 0 | J20: =Dls!K209 -> 0 | K20: =Dls!L209 -> 0
C22: odbíjení | D22: =Dodbíj!E209 -> 0 | F22: =Dodbíj!G209 -> 0 | G22: =Dodbíj!H209 -> 0 | I22: =Dodbíj!J209 -> 0 | J22: =Dodbíj!K209 -> 0 | K22: =Dodbíj!L209 -> 0
C24: plavání | D24: =Dplav!E209 -> 0 | F24: =Dplav!G209 -> 0 | G24: =Dplav!H209 -> 0 | I24: =Dplav!J209 -> 0 | J24: =Dplav!K209 -> 0 | K24: =Dplav!L209 -> 0
C26: šplh | D26: =Dšplh!E209 -> 0 | F26: =Dšplh!G209 -> 0 | G26: =Dšplh!H209 -> 0 | I26: =Dšplh!J209 -> 0 | J26: =Dšplh!K209 -> 0 | K26: =Dšplh!L209 -> 0
C28: švihadlo | D28: =Dšvih!E209 -> 0 | F28: =Dšvih!G209 -> 0 | G28: =Dšvih!H209 -> 0 | I28: =Dšvih!J209 -> 55 | J28: =Dšvih!K209 -> 80 | K28: =Dšvih!L209 -> 75
C30: z místa | D30: ='Dz mís'!E209 -> 0 | F30: ='Dz mís'!G209 -> 0 | G30: ='Dz mís'!H209 -> 0 | I30: ='Dz mís'!J209 -> 0 | J30: ='Dz mís'!K209 -> 0 | K30: ='Dz mís'!L209 -> 131

Sheet FOTO
B2: PRO ZOBRAZENÍ FOTOGRAFIÍ JE TŘEBA PŘÍSTUP K INTERNETU
E5: DALŠÍ SPORTOVNÍ AKCE
B8: 2022 | C8: VYHLÁŠENÍ SPORTOVCE ŠKOLY 16. ROČNÍK
E9: 10.12.2019 OF FLORBAL STARŠÍ ŽÁCI | F9: 13.11.2019 OF PLAVÁNÍ JILEMNICE
B10: 2021 | C10: VYHLÁŠENÍ PROBĚHLO POUZE V RÁMCI TŘÍD | E10: 19.12.2019 OF FLORBAL ML.ŽÁCI JIL. | F10: 25.9.2019 JILEMNICKÉ ŠTAFETY
E11: 24. 9.2019 OF ČTYŘBOJ TURNOV
B12: 2020 | C12: VYHLÁŠENÍ SE NEUSKUTEČNILO
E13: 6. 12. 2018 OF FLORBAL 6.-7. ROČ | F13: 14.11.2018 OF PLAVÁNÍ JILEMNICE
B14: 2019 | C14: VYHLÁŠENÍ SPORTOVCE ŠKOLY 13. ROČNÍK | E14: 26. 9.2018 OF ČTYŘBOJ TURNOV
B16: 2018 | C16: VYHLÁŠENÍ SPORTOVCE ŠKOLY 12. ROČNÍK
B18: 2017 | C18: VYHLÁŠENÍ SPORTOVCE ŠKOLY 11. ROČNÍK
E19: 11. 5. 2016 POHÁR ROZHLASU TURNOV
B20: 2016 | C20: VYHLÁŠENÍ SPORTOVCE ŠKOLY 10. ROČNÍK
C23: průběžně budu přídávat další

Sheet TOP15
C1: T O P 1 5
F3: 60 m | G3: 300m | H3: 800m | I3: dálka | J3: výška | K3: míček | L3: koule | M3: člunek | N3: lehsed | O3: odbíjení | P3: plavání | Q3: šplh | R3: švihadlo | S3: z místa | T3: REPRE | U3: CELKEM
A5: 1. | B5: =B35 -> FARSKÁ | C5: Anna | D5: 6.A | F5: 758.213978 | G5: 622.2499762 | H5: 477.9526677 | I5: 735.597 | J5: 642 | K5: 357.9 | L5: 484.4444444 | M5: 551.0325142 | N5: 514.15 | O5: 30 | P5: 0 | Q5: 493.3599777 | R5: 655.75 | S5: 755.3116147 | T5: 125 | U5: 7202.962173
A6: 2. | B6: FARSKÁ | C6: Eliška | D6: 6.A | F6: 804.0415309 | G6: 521.3562489 | H6: 608.1507247 | I6: 794.723 | J6: 642 | K6: 367 | L6: 436.4444444 | M6: 592.4416663 | N6: 361.36 | O6: 27 | P6: 0 | Q6: 537.8620018 | R6: 687 | S6: 783.5382436 | T6: 75 | U6: 7237.917861
A7: 3. | B7: FEDORKOVÁ | C7: Denisa | D7: 6.A | F7: 661.4884793 | G7: 391.6822289 | H7: 0 | I7: 565.175 | J7: 609.5 | K7: 276 | L7: 353.7777778 | M7: 547.4046632 | N7: 236.35 | O7: 27 | P7: 0 | Q7: 0 | R7: 680.75 | S7: 553.0207743 | T7: 0 | U7: 4902.148924
A8: 4. | B8: HAUZEROVÁ | C8: Tereza | D8: 6.A | F8: 759.854769 | G8: 547.7220354 | H8: 515.4708949 | I8: 711.251 | J8: 642 | K8: 257.8 | L8: 319.1111111 | M8: 555.6288402 | N8: 291.91 | O8: 21 | P8: 0 | Q8: 0 | R8: 587 | S8: 680.0406043 | T8: 0 | U8: 5888.789255
A9: 5. | B9: JOSKOVÁ | C9: Ellen | D9: 6.A | F9: 808.6316451 | G9: 691.8310546 | H9: 607.4443911 | I9: 620.823 | J9: 609.5 | K9: 294.2 | L9: 450.6666667 | M9: 592.4416663 | N9: 389.14 | O9: 9 | P9: 0 | Q9: 0 | R9: 587 | S9: 670.631728 | T9: 75 | U9: 6406.310152
A10: 6. | B10: KUŽELOVÁ | C10: Amálie | D10: 6.A | F10: 607.8863977 | G10: 387.7156773 | H10: 0 | I10: 476.486 | J10: 0 | K10: 0 | L10: 0 | M10: 459.8530448 | N10: 361.36 | O10: 60 | P10: 0 | Q10: 0 | R10: 443.25 | S10: 0 | T10: 0 | U10: 2796.55112
A11: 7. | B11: RYŠAVÁ | C11: Amálie | D11: 6.A | F11: 701.0997715 | G11: 415.9521818 | H11: 556.587187 | I11: 620.823 | J11: 0 | K11: 348.8 | L11: 440 | M11: 549.6669938 | N11: 97.45 | O11: 75 | P11: 0 | Q11: 0 | R11: 918.25 | S11: 0 | T11: 0 | U11: 4723.629134
A12: 8. | B12: BANGOVÁ | C12: Zuzana | D12: 6.B | F12: 677.0925605 | G12: 346.0970787 | H12: 438.2973788 | I12: 568.653 | J12: 609.5 | K12: 312.4 | L12: 330.6666667 | M12: 0 | N12: 0 | O12: 0 | P12: 0 | Q12: 0 | R12: 574.5 | S12: 501.2719547 | T12: 0 | U12: 4358.478639
A13: 9. | B13: HOLUBOVÁ | C13: Denisa | D13: 6.B | F13: 620.6664691 | G13: 397.8011511 | H13: 449.7033541 | I13: 563.436 | J13: 642 | K13: 330.6 | L13: 488.8888889 | M13: 570.3282168 | N13: 278.02 | O13: 0 | P13: 0 | Q13: 0 | R13: 580.75 | S13: 505.9763928 | T13: 0 | U13: 5428.170473
A14: 10. | B14: HURKALO | C14: Karolina | D14: 6.B | F14: 462.1733457 | G14: 259.3769651 | H14: 0 | I14: 0 | J14: 0 | K14: 185 | L14: 0 | M14: 0 | N14: 0 | O14: 0 | P14: 0 | Q14: 0 | R14: 418.25 | S14: 0 | T14: 0 | U14: 1324.800311
A15: 11. | B15: HUTNIK-MAMONOVA | C15: Nana | D15: 6.B | F15: 523.585554 | G15: 0 | H15: 0 | I15: 0 | J15: 0 | K15: 94 | L15: 0 | M15: 560.7654789 | N15: 0 | O15: 0 | P15: 0 | Q15: 0 | R15: 80.75 | S15: 0 | T15: 0 | U15: 1259.101033
A16: 12. | B16: MARINOVA | C16: Darja | D16: 6.B | F16: 620.6664691 | G16: 495.9952152 | H16: 0 | I16: 0 | J16: 0 | K16: 0 | L16: 0 | M16: 0 | N16: 430.81 | O16: 0 | P16: 0 | Q16: 0 | R16: 418.25 | S16: 0 | T16: 0 | U16: 1965.721684
A17: 13. | B17: NYKLÍČKOVÁ | C17: Klára | D17: 6.B | F17: 711.8748146 | G17: 600.9131975 | H17: 634.1330447 | I17: 568.653 | J17: 544.5 | K17: 357.9 | L17: 336 | M17: 651.4482226 | N17: 430.81 | O17: 24 | P17: 0 | Q17: 0 | R17: 980.75 | S17: 703.5627951 | T17: 0 | U17: 6544.545075
A18: 14. | B18: PANCHAYEVA | C18: Sofiia | D18: 6.B | F18: 620.6664691 | G18: 383.2646417 | H18: 480.2063702 | I18: 0 | J18: 0 | K18: =K48 -> 112.2 | L18: 0 | M18: 584.7304397 | N18: 375.25 | O18: 0 | P18: 0 | Q18: 0 | R18: 0 | S18: 0 | T18: 0 | U18: 2556.317921
A19: 15. | B19: =B49 -> PIČMANOVÁ | C19: Klára | D19: 6.B | F19: 673.1285076 | G19: 378.088352 | H19: 0 | I19: 565.175 | J19: 0 | K19: 0 | L19: 0 | M19: 530.3194903 | N19: 0 | O19: 0 | P19: 0 | Q19: 0 | R19: 0 | S19: 0 | T19: 0 | U19: 2146.71135
F34: 60 m | G34: 300m | H34: 800m | I34: dálka | J34: výška | K34: míček | L34: koule | M34: člunek | N34: lehsed | O34: odbíjení | P34: plavání | Q34: šplh | R34: švihadlo | S34: z místa | T34: REPRE | U34: CELKEM
B35: ='D60'!B111 -> FARSKÁ | C35: ='D60'!C111 -> Anna | D35: ='D60'!D111 -> 6.A | F35: ='D60'!H111 -> 758.213978 | G35: ='D300'!H111 -> 622.2499762 | H35: ='D800'!H111 -> 477.9526677 | I35: =Ddál!H111 -> 735.597 | J35: =Dvýš!H111 -> 642 | K35: =Dmíč!H111 -> 357.9 | L35: =Dkou!H111 -> 484.4444444 | M35: =Dčlu!H111 -> 551.0325142 | N35: =Dls!H111 -> 514.15 | O35: =Dodbíj!H111 -> 30 | P35: =Dplav!H111 -> 0 | Q35: =Dšplh!H111 -> 493.3599777 | R35: =Dšvih!H111 -> 655.75 | S35: ='Dz mís'!H111 -> 755.3116147 | T35: =Drepre!E4 -> 125 | U35: =SUM(F35:T35) -> 7202.962173
B36: ='D60'!B112 -> FARSKÁ | C36: ='D60'!C112 -> Eliška | D36: ='D60'!D112 -> 6.A | F36: ='D60'!H112 -> 804.0415309 | G36: ='D300'!H112 -> 521.3562489 | H36: ='D800'!H112 -> 608.1507247 | I36: =Ddál!H112 -> 794.723 | J36: =Dvýš!H112 -> 642 | K36: =Dmíč!H112 -> 367 | L36: =Dkou!H112 -> 436.4444444 | M36: =Dčlu!H112 -> 592.4416663 | N36: =Dls!H112 -> 361.36 | O36: =Dodbíj!H112 -> 27 | P36: =Dplav!H112 -> 0 | Q36: =Dšplh!H112 -> 537.8620018 | R36: =Dšvih!H112 -> 687 | S36: ='Dz mís'!H112 -> 783.5382436 | T36: =Drepre!E5 -> 75 | U36: 7237.917861
B37: ='D60'!B113 -> FEDORKOVÁ | C37: ='D60'!C113 -> Denisa | D37: ='D60'!D113 -> 6.A | F37: ='D60'!H113 -> 661.4884793 | G37: ='D300'!H113 -> 391.6822289 | H37: ='D800'!H113 -> 0 | I37: =Ddál!H113 -> 565.175 | J37: =Dvýš!H113 -> 609.5 | K37: =Dmíč!H113 -> 276 | L37: =Dkou!H113 -> 353.7777778 | M37: =Dčlu!H113 -> 547.4046632 | N37: =Dls!H113 -> 236.35 | O37: =Dodbíj!H113 -> 27 | P37: =Dplav!H113 -> 0 | Q37: =Dšplh!H113 -> 0 | R37: =Dšvih!H113 -> 680.75 | S37: ='Dz mís'!H113 -> 553.0207743 | T37: =Drepre!E6 -> 0 | U37: 4902.148924
B38: ='D60'!B114 -> HAUZEROVÁ | C38: ='D60'!C114 -> Tereza | D38: ='D60'!D114 -> 6.A | F38: ='D60'!H114 -> 759.854769 | G38: ='D300'!H114 -> 547.7220354 | H38: ='D800'!H114 -> 515.4708949 | I38: =Ddál!H114 -> 711.251 | J38: =Dvýš!H114 -> 642 | K38: =Dmíč!H114 -> 257.8 | L38: =Dkou!H114 -> 319.1111111 | M38: =Dčlu!H114 -> 555.6288402 | N38: =Dls!H114 -> 291.91 | O38: =Dodbíj!H114 -> 21 | P38: =Dplav!H114 -> 0 | Q38: =Dšplh!H114 -> 0 | R38: =Dšvih!H114 -> 587 | S38: ='Dz mís'!H114 -> 680.0406043 | T38: =Drepre!E7 -> 0 | U38: 5888.789255
B39: ='D60'!B115 -> JOSKOVÁ | C39: ='D60'!C115 -> Ellen | D39: ='D60'!D115 -> 6.A | F39: ='D60'!H115 -> 808.6316451 | G39: ='D300'!H115 -> 691.8310546 | H39: ='D800'!H115 -> 607.4443911 | I39: =Ddál!H115 -> 620.823 | J39: =Dvýš!H115 -> 609.5 | K39: =Dmíč!H115 -> 294.2 | L39: =Dkou!H115 -> 450.6666667 | M39: =Dčlu!H115 -> 592.4416663 | N39: =Dls!H115 -> 389.14 | O39: =Dodbíj!H115 -> 9 | P39: =Dplav!H115 -> 0 | Q39: =Dšplh!H115 -> 0 | R39: =Dšvih!H115 -> 587 | S39: ='Dz mís'!H115 -> 670.631728 | T39: =Drepre!E8 -> 75 | U39: 6406.310152
B40: ='D60'!B116 -> KUŽELOVÁ | C40: ='D60'!C116 -> Amálie | D40: ='D60'!D116 -> 6.A | F40: ='D60'!H116 -> 607.8863977 | G40: ='D300'!H116 -> 387.7156773 | H40: ='D800'!H116 -> 0 | I40: =Ddál!H116 -> 476.486 | J40: =Dvýš!H116 -> 0 | K40: =Dmíč!H116 -> 0 | L40: =Dkou!H116 -> 0 | M40: =Dčlu!H116 -> 459.8530448 | N40: =Dls!H116 -> 361.36 | O40: =Dodbíj!H116 -> 60 | P40: =Dplav!H116 -> 0 | Q40: =Dšplh!H116 -> 0 | R40: =Dšvih!H116 -> 443.25 | S40: ='Dz mís'!H116 -> 0 | T40: =Drepre!E9 -> 0 | U40: 2796.55112
B41: ='D60'!B117 -> RYŠAVÁ | C41: ='D60'!C117 -> Amálie | D41: ='D60'!D117 -> 6.A | F41: ='D60'!H117 -> 701.0997715 | G41: ='D300'!H117 -> 415.9521818 | H41: ='D800'!H117 -> 556.587187 | I41: =Ddál!H117 -> 620.823 | J41: =Dvýš!H117 -> 0 | K41: =Dmíč!H117 -> 348.8 | L41: =Dkou!H117 -> 440 | M41: =Dčlu!H117 -> 549.6669938 | N41: =Dls!H117 -> 97.45 | O41: =Dodbíj!H117 -> 75 | P41: =Dplav!H117 -> 0 | Q41: =Dšplh!H117 -> 0 | R41: =Dšvih!H117 -> 918.25 | S41: ='Dz mís'!H117 -> 0 | T41: =Drepre!E10 -> 0 | U41: 4723.629134
B42: ='D60'!B118 -> BANGOVÁ | C42: ='D60'!C118 -> Zuzana | D42: ='D60'!D118 -> 6.B | F42: ='D60'!H118 -> 677.0925605 | G42: ='D300'!H118 -> 346.0970787 | H42: ='D800'!H118 -> 438.2973788 | I42: =Ddál!H118 -> 568.653 | J42: =Dvýš!H118 -> 609.5 | K42: =Dmíč!H118 -> 312.4 | L42: =Dkou!H118 -> 330.6666667 | M42: =Dčlu!H118 -> 0 | N42: =Dls!H118 -> 0 | O42: =Dodbíj!H118 -> 0 | P42: =Dplav!H118 -> 0 | Q42: =Dšplh!H118 -> 0 | R42: =Dšvih!H118 -> 574.5 | S42: ='Dz mís'!H118 -> 501.2719547 | T42: =Drepre!E11 -> 0 | U42: 4358.478639
B43: ='D60'!B119 -> HOLUBOVÁ | C43: ='D60'!C119 -> Denisa | D43: ='D60'!D119 -> 6.B | F43: ='D60'!H119 -> 620.6664691 | G43: ='D300'!H119 -> 397.8011511 | H43: ='D800'!H119 -> 449.7033541 | I43: =Ddál!H119 -> 563.436 | J43: =Dvýš!H119 -> 642 | K43: =Dmíč!H119 -> 330.6 | L43: =Dkou!H119 -> 488.8888889 | M43: =Dčlu!H119 -> 570.3282168 | N43: =Dls!H119 -> 278.02 | O43: =Dodbíj!H119 -> 0 | P43: =Dplav!H119 -> 0 | Q43: =Dšplh!H119 -> 0 | R43: =Dšvih!H119 -> 580.75 | S43: ='Dz mís'!H119 -> 505.9763928 | T43: =Drepre!E12 -> 0 | U43: 5428.170473
B44: ='D60'!B120 -> HURKALO | C44: ='D60'!C120 -> Karolina | D44: ='D60'!D120 -> 6.B | F44: ='D60'!H120 -> 462.1733457 | G44: ='D300'!H120 -> 259.3769651 | H44: ='D800'!H120 -> 0 | I44: =Ddál!H120 -> 0 | J44: =Dvýš!H120 -> 0 | K44: =Dmíč!H120 -> 185 | L44: =Dkou!H120 -> 0 | M44: =Dčlu!H120 -> 0 | N44: =Dls!H120 -> 0 | O44: =Dodbíj!H120 -> 0 | P44: =Dplav!H120 -> 0 | Q44: =Dšplh!H120 -> 0 | R44: =Dšvih!H120 -> 418.25 | S44: ='Dz mís'!H120 -> 0 | T44: =Drepre!E13 -> 0 | U44: 1324.800311
B45: ='D60'!B121 -> HUTNIK-MAMONOVA | C45: ='D60'!C121 -> Nana | D45: ='D60'!D121 -> 6.B | F45: ='D60'!H121 -> 523.585554 | G45: ='D300'!H121 -> 0 | H45: ='D800'!H121 -> 0 | I45: =Ddál!H121 -> 0 | J45: =Dvýš!H121 -> 0 | K45: =Dmíč!H121 -> 94 | L45: =Dkou!H121 -> 0 | M45: =Dčlu!H121 -> 560.7654789 | N45: =Dls!H121 -> 0 | O45: =Dodbíj!H121 -> 0 | P45: =Dplav!H121 -> 0 | Q45: =Dšplh!H121 -> 0 | R45: =Dšvih!H121 -> 80.75 | S45: ='Dz mís'!H121 -> 0 | T45: =Drepre!E14 -> 0 | U45: 1259.101033
B46: ='D60'!B122 -> MARINOVA | C46: ='D60'!C122 -> Darja | D46: ='D60'!D122 -> 6.B | F46: ='D60'!H122 -> 620.6664691 | G46: ='D300'!H122 -> 495.9952152 | H46: ='D800'!H122 -> 0 | I46: =Ddál!H122 -> 0 | J46: =Dvýš!H122 -> 0 | K46: =Dmíč!H122 -> 0 | L46: =Dkou!H122 -> 0 | M46: =Dčlu!H122 -> 0 | N46: =Dls!H122 -> 430.81 | O46: =Dodbíj!H122 -> 0 | P46: =Dplav!H122 -> 0 | Q46: =Dšplh!H122 -> 0 | R46: =Dšvih!H122 -> 418.25 | S46: ='Dz mís'!H122 -> 0 | T46: =Drepre!E15 -> 0 | U46: 1965.721684
B47: ='D60'!B123 -> NYKLÍČKOVÁ | C47: ='D60'!C123 -> Klára | D47: ='D60'!D123 -> 6.B | F47: ='D60'!H123 -> 711.8748146 | G47: ='D300'!H123 -> 600.9131975 | H47: ='D800'!H123 -> 634.1330447 | I47: =Ddál!H123 -> 568.653 | J47: =Dvýš!H123 -> 544.5 | K47: =Dmíč!H123 -> 357.9 | L47: =Dkou!H123 -> 336 | M47: =Dčlu!H123 -> 651.4482226 | N47: =Dls!H123 -> 430.81 | O47: =Dodbíj!H123 -> 24 | P47: =Dplav!H123 -> 0 | Q47: =Dšplh!H123 -> 0 | R47: =Dšvih!H123 -> 980.75 | S47: ='Dz mís'!H123 -> 703.5627951 | T47: =Drepre!E16 -> 0 | U47: 6544.545075
B48: ='D60'!B124 -> PANCHAYEVA | C48: ='D60'!C124 -> Sofiia | D48: ='D60'!D124 -> 6.B | F48: ='D60'!H124 -> 620.6664691 | G48: ='D300'!H124 -> 383.2646417 | H48: ='D800'!H124 -> 480.2063702 | I48: =Ddál!H124 -> 0 | J48: =Dvýš!H124 -> 0 | K48: =Dmíč!H124 -> 112.2 | L48: =Dkou!H124 -> 0 | M48: =Dčlu!H124 -> 584.7304397 | N48: =Dls!H124 -> 375.25 | O48: =Dodbíj!H124 -> 0 | P48: =Dplav!H124 -> 0 | Q48: =Dšplh!H124 -> 0 | R48: =Dšvih!H124 -> 0 | S48: ='Dz mís'!H124 -> 0 | T48: =Drepre!E17 -> 0 | U48: 2556.317921
B49: ='D60'!B125 -> PIČMANOVÁ | C49: ='D60'!C125 -> Klára | D49: ='D60'!D125 -> 6.B | F49: ='D60'!H125 -> 673.1285076 | G49: ='D300'!H125 -> 378.088352 | H49: ='D800'!H125 -> 0 | I49: =Ddál!H125 -> 565.175 | J49: =Dvýš!H125 -> 0 | K49: =Dmíč!H125 -> 0 | L49: =Dkou!H125 -> 0 | M49: =Dčlu!H125 -> 530.3194903 | N49: =Dls!H125 -> 0 | O49: =Dodbíj!H125 -> 0 | P49: =Dplav!H125 -> 0 | Q49: =Dšplh!H125 -> 0 | R49: =Dšvih!H125 -> 0 | S49: ='Dz mís'!H125 -> 0 | T49: =Drepre!E18 -> 0 | U49: 2146.71135
B50: ='D60'!B126 -> ŠIMŮNKOVÁ | C50: ='D60'!C126 -> Anežka | D50: ='D60'!D126 -> 6.B | F50: ='D60'!H126 -> 728.2426182 | G50: ='D300'!H126 -> 443.9458945 | H50: ='D800'!H126 -> 446.059527 | I50: =Ddál!H126 -> 636.474 | J50: =Dvýš!H126 -> 642 | K50: =Dmíč!H126 -> 0 | L50: =Dkou!H126 -> 369.7777778 | M50: =Dčlu!H126 -> 536.7755103 | N50: =Dls!H126 -> 430.81 | O50: =Dodbíj!H126 -> 15 | P50: =Dplav!H126 -> 0 | Q50: =Dšplh!H126 -> 0 | R50: =Dšvih!H126 -> 712 | S50: ='Dz mís'!H126 -> 632.9962229 | T50: =Drepre!E19 -> 0 | U50: 5594.081551
B51: ='D60'!B127 -> TRPIŠOVSKÁ | C51: ='D60'!C127 -> Nela | D51: ='D60'!D127 -> 6.B | F51: ='D60'!H127 -> 742.1606595 | G51: ='D300'!H127 -> 469.9456121 | H51: ='D800'!H127 -> 461.3702127 | I51: =Ddál!H127 -> 638.213 | J51: =Dvýš!H127 -> 642 | K51: =Dmíč!H127 -> 376.1 | L51: =Dkou!H127 -> 377.7777778 | M51: =Dčlu!H127 -> 631.0151961 | N51: =Dls!H127 -> 514.15 | O51: =Dodbíj!H127 -> 18 | P51: =Dplav!H127 -> 0 | Q51: =Dšplh!H127 -> 0 | R51: =Dšvih!H127 -> 830.75 | S51: ='Dz mís'!H127 -> 670.631728 | T51: =Drepre!E20 -> 25 | U51: 6397.114186
B52: ='D60'!B128 -> HEJRALOVÁ | C52: ='D60'!C128 -> Natálie | D52: ='D60'!D128 -> 7.A | F52: ='D60'!H128 -> 768.1585693 | G52: ='D300'!H128 -> 697.5577254 | H52: ='D800'!H128 -> 685.2026154 | I52: =Ddál!H128 -> 721.685 | J52: =Dvýš!H128 -> 739.5 | K52: =Dmíč!H128 -> 412.5 | L52: =Dkou!H128 -> 564.4444444 | M52: =Dčlu!H128 -> 671.1624509 | N52: =Dls!H128 -> 597.49 | O52: =Dodbíj!H128 -> 39 | P52: =Dplav!H128 -> 507.964804 | Q52: =Dšplh!H128 -> 0 | R52: =Dšvih!H128 -> 655.75 | S52: ='Dz mís'!H128 -> 675.3361662 | T52: =Drepre!E21 -> 75 | U52: 7810.751776
B53: ='D60'!B129 -> KERLE | C53: ='D60'!C129 -> Nikita | D53: ='D60'!D129 -> 7.A | F53: ='D60'!H129 -> 771.527443 | G53: ='D300'!H129 -> 720.8786948 | H53: ='D800'!H129 -> 736.1788084 | I53: =Ddál!H129 -> 824.286 | J53: =Dvýš!H129 -> 674.5 | K53: =Dmíč!H129 -> 458 | L53: =Dkou!H129 -> 486.2222222 | M53: =Dčlu!H129 -> 678.4234692 | N53: =Dls!H129 -> 722.5 | O53: =Dodbíj!H129 -> 42 | P53: =Dplav!H129 -> 0 | Q53: =Dšplh!H129 -> 490.173332 | R53: =Dšvih!H129 -> 674.5 | S53: ='Dz mís'!H129 -> 694.1539188 | T53: =Drepre!E22 -> 225 | U53: 8198.343888
B54: ='D60'!B130 -> MUNZAROVÁ | C54: ='D60'!C130 -> Aneta | D54: ='D60'!D130 -> 7.A | F54: ='D60'!H130 -> 0 | G54: ='D300'!H130 -> 0 | H54: ='D800'!H130 -> 0 | I54: =Ddál!H130 -> 0 | J54: =Dvýš!H130 -> 0 | K54: =Dmíč!H130 -> 221.4 | L54: =Dkou!H130 -> 0 | M54: =Dčlu!H130 -> 540.2769089 | N54: =Dls!H130 -> 458.59 | O54: =Dodbíj!H130 -> 15 | P54: =Dplav!H130 -> 0 | Q54: =Dšplh!H130 -> 0 | R54: =Dšvih!H130 -> 0 | S54: ='Dz mís'!H130 -> 501.2719547 | T54: =Drepre!E23 -> 0 | U54: 1736.538864
B55: ='D60'!B131 -> PACLÍKOVÁ | C55: ='D60'!C131 -> Markéta | D55: ='D60'!D131 -> 7.A | F55: ='D60'!H131 -> 808.6316451 | G55: ='D300'!H131 -> 713.8872825 | H55: ='D800'!H131 -> 712.5475324 | I55: =Ddál!H131 -> 747.77 | J55: =Dvýš!H131 -> 804.5 | K55: =Dmíč!H131 -> 594.136 | L55: =Dkou!H131 -> 520.8888889 | M55: =Dčlu!H131 -> 682.4452332 | N55: =Dls!H131 -> 708.61 | O55: =Dodbíj!H131 -> 360.8 | P55: =Dplav!H131 -> 521.6866883 | Q55: =Dšplh!H131 -> 460.3115901 | R55: =Dšvih!H131 -> 674.5 | S55: ='Dz mís'!H131 -> 778.8338055 | T55: =Drepre!E24 -> 175 | U55: 9264.548666
B56: ='D60'!B132 -> PLŮCHOVÁ | C56: ='D60'!C132 -> Michaela | D56: ='D60'!D132 -> 7.A | F56: ='D60'!H132 -> 808.6316451 | G56: ='D300'!H132 -> 733.6647619 | H56: ='D800'!H132 -> 713.008353 | I56: =Ddál!H132 -> 770.377 | J56: =Dvýš!H132 -> 804.5 | K56: =Dmíč!H132 -> 439.8 | L56: =Dkou!H132 -> 633.7777778 | M56: =Dčlu!H132 -> 644.7063505 | N56: =Dls!H132 -> 500.26 | O56: =Dodbíj!H132 -> 42 | P56: =Dplav!H132 -> 0 | Q56: =Dšplh!H132 -> 394.3513385 | R56: =Dšvih!H132 -> 674.5 | S56: ='Dz mís'!H132 -> 661.2228517 | T56: =Drepre!E25 -> 225 | U56: 8045.800079
B57: ='D60'!B133 -> ŠERCLOVÁ | C57: ='D60'!C133 -> Nikola | D57: ='D60'!D133 -> 7.A | F57: ='D60'!H133 -> 0 | G57: ='D300'!H133 -> 543.1794779 | H57: ='D800'!H133 -> 602.7276026 | I57: =Ddál!H133 -> 0 | J57: =Dvýš!H133 -> 609.5 | K57: =Dmíč!H133 -> 403.4 | L57: =Dkou!H133 -> 424 | M57: =Dčlu!H133 -> 580.190727 | N57: =Dls!H133 -> 444.7 | O57: =Dodbíj!H133 -> 30 | P57: =Dplav!H133 -> 0 | Q57: =Dšplh!H133 -> 0 | R57: =Dšvih!H133 -> 493.25 | S57: ='Dz mís'!H133 -> 670.631728 | T57: =Drepre!E26 -> 25 | U57: 4826.579536
B58: ='D60'!B134 -> VÁCLAVÍKOVÁ | C58: ='D60'!C134 -> Alena | D58: ='D60'!D134 -> 7.A | F58: ='D60'!H134 -> 753.3308272 | G58: ='D300'!H134 -> 697.4019997 | H58: ='D800'!H134 -> 645.031267 | I58: =Ddál!H134 -> 671.254 | J58: =Dvýš!H134 -> 609.5 | K58: =Dmíč!H134 -> 385.2 | L58: =Dkou!H134 -> 297.7777778 | M58: =Dčlu!H134 -> 675.7664479 | N58: =Dls!H134 -> 528.04 | O58: =Dodbíj!H134 -> 42 | P58: =Dplav!H134 -> 0 | Q58: =Dšplh!H134 -> 0 | R58: =Dšvih!H134 -> 0 | S58: ='Dz mís'!H134 -> 698.8583569 | T58: =Drepre!E27 -> 25 | U58: 6029.160676
B59: ='D60'!B135 -> DUCHÁČKOVÁ | C59: ='D60'!C135 -> Tereza | D59: ='D60'!D135 -> 7.B | F59: ='D60'!H135 -> 621.2332467 | G59: ='D300'!H135 -> 383.9348105 | H59: ='D800'!H135 -> 364.4468941 | I59: =Ddál!H135 -> 0 | J59: =Dvýš!H135 -> 577 | K59: =Dmíč!H135 -> 257.8 | L59: =Dkou!H135 -> 334.2222222 | M59: =Dčlu!H135 -> 549.6669938 | N59: =Dls!H135 -> 458.59 | O59: =Dodbíj!H135 -> 30 | P59: =Dplav!H135 -> 0 | Q59: =Dšplh!H135 -> 0 | R59: =Dšvih!H135 -> 255.75 | S59: ='Dz mís'!H135 -> 411.8876298 | T59: =Drepre!E28 -> 0 | U59: 4244.531797
B60: ='D60'!B136 -> FLAŠKOVÁ | C60: ='D60'!C136 -> Anna Sabriel | D60: ='D60'!D136 -> 7.B | F60: ='D60'!H136 -> 665.9708961 | G60: ='D300'!H136 -> 0 | H60: ='D800'!H136 -> 0 | I60: =Ddál!H136 -> 678.21 | J60: =Dvýš!H136 -> 609.5 | K60: =Dmíč!H136 -> 430.7 | L60: =Dkou!H136 -> 364.4444444 | M60: =Dčlu!H136 -> 543.8197136 | N60: =Dls!H136 -> 444.7 | O60: =Dodbíj!H136 -> 21 | P60: =Dplav!H136 -> 0 | Q60: =Dšplh!H136 -> 0 | R60: =Dšvih!H136 -> 255.75 | S60: ='Dz mís'!H136 -> 515.3852691 | T60: =Drepre!E29 -> 0 | U60: 4529.480323
B61: ='D60'!B137 -> HAASOVÁ | C61: ='D60'!C137 -> Julie | D61: ='D60'!D137 -> 7.B | F61: ='D60'!H137 -> 754.1406285 | G61: ='D300'!H137 -> 0 | H61: ='D800'!H137 -> 0 | I61: =Ddál!H137 -> 742.553 | J61: =Dvýš!H137 -> 0 | K61: =Dmíč!H137 -> 330.6 | L61: =Dkou!H137 -> 0 | M61: =Dčlu!H137 -> 0 | N61: =Dls!H137 -> 0 | O61: =Dodbíj!H137 -> 0 | P61: =Dplav!H137 -> 0 | Q61: =Dšplh!H137 -> 0 | R61: =Dšvih!H137 -> 0 | S61: ='Dz mís'!H137 -> 0 | T61: =Drepre!E30 -> 50 | U61: 1877.293629
B62: ='D60'!B138 -> HEGROVÁ | C62: ='D60'!C138 -> Štěpánka | D62: ='D60'!D138 -> 7.B | F62: ='D60'!H138 -> 706.8086895 | G62: ='D300'!H138 -> 570.698816 | H62: ='D800'!H138 -> 443.5650879 | I62: =Ddál!H138 -> 659.081 | J62: =Dvýš!H138 -> 0 | K62: =Dmíč!H138 -> 321.5 | L62: =Dkou!H138 -> 352 | M62: =Dčlu!H138 -> 0 | N62: =Dls!H138 -> 0 | O62: =Dodbíj!H138 -> 18 | P62: =Dplav!H138 -> 0 | Q62: =Dšplh!H138 -> 0 | R62: =Dšvih!H138 -> 249.5 | S62: ='Dz mís'!H138 -> 0 | T62: =Drepre!E31 -> 0 | U62: 3321.153593
B63: ='D60'!B139 -> HOBLOVÁ | C63: ='D60'!C139 -> Barbora | D63: ='D60'!D139 -> 7.B | F63: ='D60'!H139 -> 780.9349623 | G63: ='D300'!H139 -> 697.4019997 | H63: ='D800'!H139 -> 0 | I63: =Ddál!H139 -> 652.125 | J63: =Dvýš!H139 -> 609.5 | K63: =Dmíč!H139 -> 376.1 | L63: =Dkou!H139 -> 424.8888889 | M63: =Dčlu!H139 -> 578.1935687 | N63: =Dls!H139 -> 319.69 | O63: =Dodbíj!H139 -> 30 | P63: =Dplav!H139 -> 0 | Q63: =Dšplh!H139 -> 520.1728925 | R63: =Dšvih!H139 -> 562 | S63: ='Dz mís'!H139 -> 623.5873466 | T63: =Drepre!E32 -> 0 | U63: 6174.594659
B64: ='D60'!B140 -> HORÁČKOVÁ | C64: ='D60'!C140 -> Valérie | D64: ='D60'!D140 -> 7.B | F64: ='D60'!H140 -> 859.433044 | G64: ='D300'!H140 -> 754.6543323 | H64: ='D800'!H140 -> 722.9320855 | I64: =Ddál!H140 -> 754.726 | J64: =Dvýš!H140 -> 674.5 | K64: =Dmíč!H140 -> 367 | L64: =Dkou!H140 -> 466.6666667 | M64: =Dčlu!H140 -> 679.7592 | N64: =Dls!H140 -> 528.04 | O64: =Dodbíj!H140 -> 36 | P64: =Dplav!H140 -> 652.4509634 | Q64: =Dšplh!H140 -> 0 | R64: =Dšvih!H140 -> 387 | S64: ='Dz mís'!H140 -> 741.1983003 | T64: =Drepre!E33 -> 125 | U64: 7749.360592
B65: ='D60'!B141 -> JIRANOVÁ | C65: ='D60'!C141 -> Anežka | D65: ='D60'!D141 -> 7.B | F65: ='D60'!H141 -> 593.4838128 | G65: ='D300'!H141 -> 418.9445801 | H65: ='D800'!H141 -> 410.2646102 | I65: =Ddál!H141 -> 0 | J65: =Dvýš!H141 -> 0 | K65: =Dmíč!H141 -> 367 | L65: =Dkou!H141 -> 434.6666667 | M65: =Dčlu!H141 -> 547.8557827 | N65: =Dls!H141 -> 403.03 | O65: =Dodbíj!H141 -> 27 | P65: =Dplav!H141 -> 0 | Q65: =Dšplh!H141 -> 0 | R65: =Dšvih!H141 -> 243.25 | S65: ='Dz mís'!H141 -> 402.4787535 | T65: =Drepre!E34 -> 25 | U65: 3872.974206
B66: ='D60'!B142 -> KRČÍKOVÁ | C66: ='D60'!C142 -> Beatrix | D66: ='D60'!D142 -> 7.B | F66: ='D60'!H142 -> 813.2708514 | G66: ='D300'!H142 -> 671.9735498 | H66: ='D800'!H142 -> 663.4196264 | I66: =Ddál!H142 -> 792.984 | J66: =Dvýš!H142 -> 804.5 | K66: =Dmíč!H142 -> 582.488 | L66: =Dkou!H142 -> 614.2222222 | M66: =Dčlu!H142 -> 657.6902978 | N66: =Dls!H142 -> 708.61 | O66: =Dodbíj!H142 -> 42 | P66: =Dplav!H142 -> 0 | Q66: =Dšplh!H142 -> 487.3390749 | R66: =Dšvih!H142 -> 437 | S66: ='Dz mís'!H142 -> 741.1983003 | T66: =Drepre!E35 -> 225 | U66: 8241.695923
B67: ='D60'!B143 -> KUBÁTOVÁ | C67: ='D60'!C143 -> Veronika | D67: ='D60'!D143 -> 7.B | F67: ='D60'!H143 -> 626.3771111 | G67: ='D300'!H143 -> 406.6357892 | H67: ='D800'!H143 -> 382.998003 | I67: =Ddál!H143 -> 0 | J67: =Dvýš!H143 -> 0 | K67: =Dmíč!H143 -> 203.2 | L67: =Dkou!H143 -> 266.6666667 | M67: =Dčlu!H143 -> 572.7651965 | N67: =Dls!H143 -> 291.91 | O67: =Dodbíj!H143 -> 30 | P67: =Dplav!H143 -> 0 | Q67: =Dšplh!H143 -> 0 | R67: =Dšvih!H143 -> 130.75 | S67: ='Dz mís'!H143 -> 567.1340888 | T67: =Drepre!E36 -> 0 | U67: =SUM(F67:T67) -> 3478.436855
B68: ='D60'!B144 -> LENČEŠOVÁ | C68: ='D60'!C144 -> Silvie | D68: ='D60'!D144 -> 7.B | F68: ='D60'!H144 -> 652.6879227 | G68: ='D300'!H144 -> 623.6946342 | H68: ='D800'!H144 -> 627.5097845 | I68: =Ddál!H144 -> 652.125 | J68: =Dvýš!H144 -> 577 | K68: =Dmíč!H144 -> 458 | L68: =Dkou!H144 -> 337.7777778 | M68: =Dčlu!H144 -> 571.7881429 | N68: =Dls!H144 -> 389.14 | O68: =Dodbíj!H144 -> 42 | P68: =Dplav!H144 -> 0 | Q68: =Dšplh!H144 -> 0 | R68: =Dšvih!H144 -> 512 | S68: ='Dz mís'!H144 -> 576.5429651 | T68: =Drepre!E37 -> 0 | U68: 6020.266227
B69: ='D60'!B145 -> LUKEŠOVÁ | C69: ='D60'!C145 -> Lucie | D69: ='D60'!D145 -> 7.B | F69: ='D60'!H145 -> 665.9708961 | G69: ='D300'!H145 -> 597.9358831 | H69: ='D800'!H145 -> 513.3644745 | I69: =Ddál!H145 -> 619.084 | J69: =Dvýš!H145 -> 0 | K69: =Dmíč!H145 -> 348.8 | L69: =Dkou!H145 -> 324.4444444 | M69: =Dčlu!H145 -> 0 | N69: =Dls!H145 -> 0 | O69: =Dodbíj!H145 -> 30 | P69: =Dplav!H145 -> 0 | Q69: =Dšplh!H145 -> 0 | R69: =Dšvih!H145 -> 493.25 | S69: ='Dz mís'!H145 -> 0 | T69: =Drepre!E38 -> 0 | U69: 3592.849698
B70: ='D60'!B146 -> MATERNOVÁ | C70: ='D60'!C146 -> Lenka | D70: ='D60'!D146 -> 7.B | F70: ='D60'!H146 -> 806.7897522 | G70: ='D300'!H146 -> 737.7217531 | H70: ='D800'!H146 -> 702.9035172 | I70: =Ddál!H146 -> 0 | J70: =Dvýš!H146 -> 674.5 | K70: =Dmíč!H146 -> 266.9 | L70: =Dkou!H146 -> 328 | M70: =Dčlu!H146 -> 658.9519004 | N70: =Dls!H146 -> 583.6 | O70: =Dodbíj!H146 -> 42 | P70: =Dplav!H146 -> 0 | Q70: =Dšplh!H146 -> 796.7621573 | R70: =Dšvih!H146 -> 443.25 | S70: ='Dz mís'!H146 -> 694.1539188 | T70: =Drepre!E39 -> 50 | U70: 6785.532999
B71: ='D60'!B147 -> TÓTHOVÁ | C71: ='D60'!C147 -> Viktorie | D71: ='D60'!D147 -> 7.B | F71: ='D60'!H147 -> 720.7173548 | G71: ='D300'!H147 -> 636.1107654 | H71: ='D800'!H147 -> 640.9081979 | I71: =Ddál!H147 -> 0 | J71: =Dvýš!H147 -> 642 | K71: =Dmíč!H147 -> 403.4 | L71: =Dkou!H147 -> 467.5555556 | M71: =Dčlu!H147 -> 592.962323 | N71: =Dls!H147 -> 514.15 | O71: =Dodbíj!H147 -> 27 | P71: =Dplav!H147 -> 0 | Q71: =Dšplh!H147 -> 0 | R71: =Dšvih!H147 -> 368.25 | S71: ='Dz mís'!H147 -> 736.4938621 | T71: =Drepre!E40 -> 0 | U71: 5749.548059
B72: ='D60'!B148 -> DUONG | C72: ='D60'!C148 -> Ngoc Linh | D72: ='D60'!D148 -> 8.A | F72: ='D60'!H148 -> 762.3283482 | G72: ='D300'!H148 -> 0 | H72: ='D800'!H148 -> 0 | I72: =Ddál!H148 -> 758.204 | J72: =Dvýš!H148 -> 707 | K72: =Dmíč!H148 -> 630.9 | L72: =Dkou!H148 -> 718.2222222 | M72: =Dčlu!H148 -> 0 | N72: =Dls!H148 -> 0 | O72: =Dodbíj!H148 -> 0 | P72: =Dplav!H148 -> 0 | Q72: =Dšplh!H148 -> 0 | R72: =Dšvih!H148 -> 0 | S72: ='Dz mís'!H148 -> 0 | T72: =Drepre!E41 -> 125 | U72: 3701.65457
B73: ='D60'!B149 -> GINGALOVÁ | C73: ='D60'!C149 -> Linda | D73: ='D60'!D149 -> 8.A | F73: ='D60'!H149 -> 799.4997337 | G73: ='D300'!H149 -> 720.0603372 | H73: ='D800'!H149 -> 590.58243 | I73: =Ddál!H149 -> 759.943 | J73: =Dvýš!H149 -> 811 | K73: =Dmíč!H149 -> 558.1 | L73: =Dkou!H149 -> 538.6666667 | M73: =Dčlu!H149 -> 0 | N73: =Dls!H149 -> 514.15 | O73: =Dodbíj!H149 -> 60 | P73: =Dplav!H149 -> 0 | Q73: =Dšplh!H149 -> 0 | R73: =Dšvih!H149 -> 0 | S73: ='Dz mís'!H149 -> 778.8338055 | T73: =Drepre!E42 -> 75 | U73: 6205.835973
B74: ='D60'!B150 -> HOFMANOVÁ | C74: ='D60'!C150 -> Nicol | D74: ='D60'!D150 -> 8.A | F74: ='D60'!H150 -> 694.0822303 | G74: ='D300'!H150 -> 0 | H74: ='D800'!H150 -> 0 | I74: =Ddál!H150 -> 0 | J74: =Dvýš!H150 -> 0 | K74: =Dmíč!H150 -> 0 | L74: =Dkou!H150 -> 0 | M74: =Dčlu!H150 -> 0 | N74: =Dls!H150 -> 458.59 | O74: =Dodbíj!H150 -> 0 | P74: =Dplav!H150 -> 0 | Q74: =Dšplh!H150 -> 0 | R74: =Dšvih!H150 -> 468.25 | S74: ='Dz mís'!H150 -> 482.4542021 | T74: =Drepre!E43 -> 0 | U74: 2103.376432
B75: ='D60'!B151 -> HOLEŠOVSKÁ | C75: ='D60'!C151 -> Aneta | D75: ='D60'!D151 -> 8.A | F75: ='D60'!H151 -> 735.914573 | G75: ='D300'!H151 -> 538.0537913 | H75: ='D800'!H151 -> 0 | I75: =Ddál!H151 -> 0 | J75: =Dvýš!H151 -> 0 | K75: =Dmíč!H151 -> 439.8 | L75: =Dkou!H151 -> 0 | M75: =Dčlu!H151 -> 590.36733 | N75: =Dls!H151 -> 0 | O75: =Dodbíj!H151 -> 0 | P75: =Dplav!H151 -> 0 | Q75: =Dšplh!H151 -> 0 | R75: =Dšvih!H151 -> 612 | S75: ='Dz mís'!H151 -> 0 | T75: =Drepre!E44 -> 25 | U75: 2941.135694
B76: ='D60'!B152 -> HOLUBCOVÁ | C76: ='D60'!C152 -> Alena | D76: ='D60'!D152 -> 8.A | F76: ='D60'!H152 -> 839.2054454 | G76: ='D300'!H152 -> 792.0960564 | H76: ='D800'!H152 -> 656.5001622 | I76: =Ddál!H152 -> 765.16 | J76: =Dvýš!H152 -> 674.5 | K76: =Dmíč!H152 -> 685.5 | L76: =Dkou!H152 -> 754.6666667 | M76: =Dčlu!H152 -> 712.6040244 | N76: =Dls!H152 -> 778.06 | O76: =Dodbíj!H152 -> 93 | P76: =Dplav!H152 -> 456.3765283 | Q76: =Dšplh!H152 -> 0 | R76: =Dšvih!H152 -> 549.5 | S76: ='Dz mís'!H152 -> 811.7648725 | T76: =Drepre!E45 -> 200 | U76: 8768.933756
B77: ='D60'!B153 -> KOHOUTOVÁ | C77: ='D60'!C153 -> Anna | D77: ='D60'!D153 -> 8.A | F77: ='D60'!H153 -> 659.5843689 | G77: ='D300'!H153 -> 517.4223176 | H77: ='D800'!H153 -> 598.9472461 | I77: =Ddál!H153 -> 0 | J77: =Dvýš!H153 -> 609.5 | K77: =Dmíč!H153 -> 321.5 | L77: =Dkou!H153 -> 537.7777778 | M77: =Dčlu!H153 -> 509.7748798 | N77: =Dls!H153 -> 375.25 | O77: =Dodbíj!H153 -> 42 | P77: =Dplav!H153 -> 0 | Q77: =Dšplh!H153 -> 0 | R77: =Dšvih!H153 -> 618.25 | S77: ='Dz mís'!H153 -> 473.0453258 | T77: =Drepre!E46 -> 0 | U77: 5263.051916
B78: ='D60'!B154 -> KRAUSOVÁ | C78: ='D60'!C154 -> Anežka | D78: ='D60'!D154 -> 8.A | F78: ='D60'!H154 -> 728.2426182 | G78: ='D300'!H154 -> 583.0119281 | H78: ='D800'!H154 -> 537.4770283 | I78: =Ddál!H154 -> 0 | J78: =Dvýš!H154 -> 674.5 | K78: =Dmíč!H154 -> 494.4 | L78: =Dkou!H154 -> 568.8888889 | M78: =Dčlu!H154 -> 613.9380888 | N78: =Dls!H154 -> 569.71 | O78: =Dodbíj!H154 -> 27 | P78: =Dplav!H154 -> 0 | Q78: =Dšplh!H154 -> 0 | R78: =Dšvih!H154 -> 599.5 | S78: ='Dz mís'!H154 -> 661.2228517 | T78: =Drepre!E47 -> 25 | U78: 6082.891404
B79: ='D60'!B155 -> KUŽELOVÁ | C79: ='D60'!C155 -> Apoléna | D79: ='D60'!D155 -> 8.A | F79: ='D60'!H155 -> 725.2151469 | G79: ='D300'!H155 -> 0 | H79: ='D800'!H155 -> 398.8721691 | I79: =Ddál!H155 -> 0 | J79: =Dvýš!H155 -> 0 | K79: =Dmíč!H155 -> 421.6 | L79: =Dkou!H155 -> 0 | M79: =Dčlu!H155 -> 621.8009706 | N79: =Dls!H155 -> 458.59 | O79: =Dodbíj!H155 -> 24 | P79: =Dplav!H155 -> 0 | Q79: =Dšplh!H155 -> 0 | R79: =Dšvih!H155 -> 574.5 | S79: ='Dz mís'!H155 -> 0 | T79: =Drepre!E48 -> 0 | U79: 3224.578287
B80: ='D60'!B156 -> MORÁVKOVÁ | C80: ='D60'!C156 -> Lucie | D80: ='D60'!D156 -> 8.A | F80: ='D60'!H156 -> 633.357862 | G80: ='D300'!H156 -> 507.5247862 | H80: ='D800'!H156 -> 394.7147808 | I80: =Ddál!H156 -> 0 | J80: =Dvýš!H156 -> 0 | K80: =Dmíč!H156 -> 312.4 | L80: =Dkou!H156 -> 546.6666667 | M80: =Dčlu!H156 -> 575.7146056 | N80: =Dls!H156 -> 333.58 | O80: =Dodbíj!H156 -> 42 | P80: =Dplav!H156 -> 0 | Q80: =Dšplh!H156 -> 0 | R80: =Dšvih!H156 -> 430.75 | S80: ='Dz mís'!H156 -> 0 | T80: =Drepre!E49 -> 0 | U80: 3776.708701
B81: ='D60'!B157 -> SKLENÁROVÁ | C81: ='D60'!C157 -> Eliška | D81: ='D60'!D157 -> 8.A | F81: ='D60'!H157 -> 0 | G81: ='D300'!H157 -> 0 | H81: ='D800'!H157 -> 0 | I81: =Ddál!H157 -> 0 | J81: =Dvýš!H157 -> 707 | K81: =Dmíč!H157 -> 448.9 | L81: =Dkou!H157 -> 0 | M81: =Dčlu!H157 -> 0 | N81: =Dls!H157 -> 625.27 | O81: =Dodbíj!H157 -> 0 | P81: =Dplav!H157 -> 0 | Q81: =Dšplh!H157 -> 0 | R81: =Dšvih!H157 -> 499.5 | S81: ='Dz mís'!H157 -> 614.1784703 | T81: =Drepre!E50 -> 0 | U81: 2894.84847
B82: ='D60'!B158 -> ŠEJNOVÁ | C82: ='D60'!C158 -> Karolína | D82: ='D60'!D158 -> 8.A | F82: ='D60'!H158 -> 708.9717082 | G82: ='D300'!H158 -> 571.2765321 | H82: ='D800'!H158 -> 526.0102146 | I82: =Ddál!H158 -> 0 | J82: =Dvýš!H158 -> 0 | K82: =Dmíč!H158 -> 330.6 | L82: =Dkou!H158 -> 0 | M82: =Dčlu!H158 -> 577.6962279 | N82: =Dls!H158 -> 430.81 | O82: =Dodbíj!H158 -> 42 | P82: =Dplav!H158 -> 0 | Q82: =Dšplh!H158 -> 0 | R82: =Dšvih!H158 -> 230.75 | S82: ='Dz mís'!H158 -> 670.631728 | T82: =Drepre!E51 -> 0 | U82: 4088.746411
B83: ='D60'!B159 -> ŠTOLFOVÁ | C83: ='D60'!C159 -> Tereza | D83: ='D60'!D159 -> 8.A | F83: ='D60'!H159 -> 747.7070731 | G83: ='D300'!H159 -> 607.5659874 | H83: ='D800'!H159 -> 549.760404 | I83: =Ddál!H159 -> 0 | J83: =Dvýš!H159 -> 609.5 | K83: =Dmíč!H159 -> 0 | L83: =Dkou!H159 -> 0 | M83: =Dčlu!H159 -> 0 | N83: =Dls!H159 -> 569.71 | O83: =Dodbíj!H159 -> 0 | P83: =Dplav!H159 -> 0 | Q83: =Dšplh!H159 -> 0 | R83: =Dšvih!H159 -> 230.75 | S83: ='Dz mís'!H159 -> 538.9074599 | T83: =Drepre!E52 -> 0 | U83: 3853.900924
B84: ='D60'!B160 -> ŠUBÍKOVÁ | C84: ='D60'!C160 -> Klára | D84: ='D60'!D160 -> 8.A | F84: ='D60'!H160 -> 764.8169188 | G84: ='D300'!H160 -> 686.9359073 | H84: ='D800'!H160 -> 610.0839843 | I84: =Ddál!H160 -> 768.638 | J84: =Dvýš!H160 -> 739.5 | K84: =Dmíč!H160 -> 421.6 | L84: =Dkou!H160 -> 578.6666667 | M84: =Dčlu!H160 -> 676.4289063 | N84: =Dls!H160 -> 639.16 | O84: =Dodbíj!H160 -> 93 | P84: =Dplav!H160 -> 0 | Q84: =Dšplh!H160 -> 470.0063094 | R84: =Dšvih!H160 -> 705.75 | S84: ='Dz mís'!H160 -> 750.6071766 | T84: =Drepre!E53 -> 75 | U84: 7980.193869
B85: ='D60'!B161 -> ŠULKOVSKÁ | C85: ='D60'!C161 -> Klára | D85: ='D60'!D161 -> 8.A | F85: ='D60'!H161 -> 0 | G85: ='D300'!H161 -> 0 | H85: ='D800'!H161 -> 0 | I85: =Ddál!H161 -> 0 | J85: =Dvýš!H161 -> 0 | K85: =Dmíč!H161 -> 0 | L85: =Dkou!H161 -> 0 | M85: =Dčlu!H161 -> 0 | N85: =Dls!H161 -> 528.04 | O85: =Dodbíj!H161 -> 0 | P85: =Dplav!H161 -> 0 | Q85: =Dšplh!H161 -> 524.0113781 | R85: =Dšvih!H161 -> 274.5 | S85: ='Dz mís'!H161 -> 0 | T85: =Drepre!E54 -> 25 | U85: 1351.551378
B86: ='D60'!B162 -> TULÁČKOVÁ | C86: ='D60'!C162 -> Natálie | D86: ='D60'!D162 -> 8.A | F86: ='D60'!H162 -> 714.799956 | G86: ='D300'!H162 -> 620.4185028 | H86: ='D800'!H162 -> 549.7059011 | I86: =Ddál!H162 -> 791.245 | J86: =Dvýš!H162 -> 0 | K86: =Dmíč!H162 -> 430.7 | L86: =Dkou!H162 -> 448.8888889 | M86: =Dčlu!H162 -> 622.9392664 | N86: =Dls!H162 -> 0 | O86: =Dodbíj!H162 -> 0 | P86: =Dplav!H162 -> 0 | Q86: =Dšplh!H162 -> 0 | R86: =Dšvih!H162 -> 0 | S86: ='Dz mís'!H162 -> 0 | T86: =Drepre!E55 -> 0 | U86: 4178.697515
B87: ='D60'!B163 -> VOJTÍŠKOVÁ | C87: ='D60'!C163 -> Ella | D87: ='D60'!D163 -> 8.A | F87: ='D60'!H163 -> 816.0782681 | G87: ='D300'!H163 -> 767.4832099 | H87: ='D800'!H163 -> 745.8890321 | I87: =Ddál!H163 -> 759.943 | J87: =Dvýš!H163 -> 882.5 | K87: =Dmíč!H163 -> 676.4 | L87: =Dkou!H163 -> 682.6666667 | M87: =Dčlu!H163 -> 712.6040244 | N87: =Dls!H163 -> 583.6 | O87: =Dodbíj!H163 -> 165 | P87: =Dplav!H163 -> 0 | Q87: =Dšplh!H163 -> 408.6199884 | R87: =Dšvih!H163 -> 612 | S87: ='Dz mís'!H163 -> 774.1293673 | T87: =Drepre!E56 -> 75 | U87: 8661.913557
B88: ='D60'!B164 -> DRUGÁČOVÁ | C88: ='D60'!C164 -> Kristinka | D88: ='D60'!D164 -> 8.B | F88: ='D60'!H164 -> 0 | G88: ='D300'!H164 -> 0 | H88: ='D800'!H164 -> 0 | I88: =Ddál!H164 -> 0 | J88: =Dvýš!H164 -> 0 | K88: =Dmíč!H164 -> 0 | L88: =Dkou!H164 -> 0 | M88: =Dčlu!H164 -> 0 | N88: =Dls!H164 -> 0 | O88: =Dodbíj!H164 -> 0 | P88: =Dplav!H164 -> 0 | Q88: =Dšplh!H164 -> 0 | R88: =Dšvih!H164 -> 874.5 | S88: ='Dz mís'!H164 -> 0 | T88: =Drepre!E57 -> 0 | U88: 874.5
B89: ='D60'!B165 -> FAJSTAVROVÁ | C89: ='D60'!C165 -> Karolína | D89: ='D60'!D165 -> 8.B | F89: ='D60'!H165 -> 872.0129479 | G89: ='D300'!H165 -> 786.0621837 | H89: ='D800'!H165 -> 854.0153218 | I89: =Ddál!H165 -> 779.072 | J89: =Dvýš!H165 -> 642 | K89: =Dmíč!H165 -> 458 | L89: =Dkou!H165 -> 704 | M89: =Dčlu!H165 -> 693.3875973 | N89: =Dls!H165 -> 430.81 | O89: =Dodbíj!H165 -> 60 | P89: =Dplav!H165 -> 0 | Q89: =Dšplh!H165 -> 0 | R89: =Dšvih!H165 -> 537 | S89: ='Dz mís'!H165 -> 745.9027384 | T89: =Drepre!E58 -> 350 | U89: 7912.262789
B90: ='D60'!B166 -> FAJSTAVROVÁ | C90: ='D60'!C166 -> Magdaléna | D90: ='D60'!D166 -> 8.B | F90: ='D60'!H166 -> 842.1825903 | G90: ='D300'!H166 -> 856.2625472 | H90: ='D800'!H166 -> 914.0657673 | I90: =Ddál!H166 -> 730.38 | J90: =Dvýš!H166 -> 609.5 | K90: =Dmíč!H166 -> 630.9 | L90: =Dkou!H166 -> 511.1111111 | M90: =Dčlu!H166 -> 732.8279147 | N90: =Dls!H166 -> 541.93 | O90: =Dodbíj!H166 -> 27 | P90: =Dplav!H166 -> 0 | Q90: =Dšplh!H166 -> 412.3189779 | R90: =Dšvih!H166 -> 743.25 | S90: ='Dz mís'!H166 -> 788.2426818 | T90: =Drepre!E59 -> 250 | U90: 8589.97159
B91: ='D60'!B167 -> JINDROVÁ | C91: ='D60'!C167 -> Barbora | D91: ='D60'!D167 -> 8.B | F91: ='D60'!H167 -> 714.799956 | G91: ='D300'!H167 -> 0 | H91: ='D800'!H167 -> 604.8872609 | I91: =Ddál!H167 -> 740.814 | J91: =Dvýš!H167 -> 739.5 | K91: =Dmíč!H167 -> 303.3 | L91: =Dkou!H167 -> 342.2222222 | M91: =Dčlu!H167 -> 603.0153936 | N91: =Dls!H167 -> 444.7 | O91: =Dodbíj!H167 -> 30 | P91: =Dplav!H167 -> 0 | Q91: =Dšplh!H167 -> 451.697354 | R91: =Dšvih!H167 -> 543.25 | S91: ='Dz mís'!H167 -> 0 | T91: =Drepre!E60 -> 25 | U91: 5543.186187
B92: ='D60'!B168 -> MAŘASOVÁ | C92: ='D60'!C168 -> Vendula | D92: ='D60'!D168 -> 8.B | F92: ='D60'!H168 -> 722.2108745 | G92: ='D300'!H168 -> 657.2148561 | H92: ='D800'!H168 -> 526.2641377 | I92: =Ddál!H168 -> 620.823 | J92: =Dvýš!H168 -> 707 | K92: =Dmíč!H168 -> 367 | L92: =Dkou!H168 -> 484.4444444 | M92: =Dčlu!H168 -> 584.2228448 | N92: =Dls!H168 -> 472.48 | O92: =Dodbíj!H168 -> 51 | P92: =Dplav!H168 -> 0 | Q92: =Dšplh!H168 -> 0 | R92: =Dšvih!H168 -> 493.25 | S92: ='Dz mís'!H168 -> 0 | T92: =Drepre!E61 -> 25 | U92: 5710.910158
B93: ='D60'!B169 -> PETŘÍČKOVÁ | C93: ='D60'!C169 -> Natálie | D93: ='D60'!D169 -> 8.B | F93: ='D60'!H169 -> 839.2054454 | G93: ='D300'!H169 -> 709.2308286 | H93: ='D800'!H169 -> 611.4433024 | I93: =Ddál!H169 -> 808.635 | J93: =Dvýš!H169 -> 0 | K93: =Dmíč!H169 -> 485.3 | L93: =Dkou!H169 -> 502.2222222 | M93: =Dčlu!H169 -> 692.0021691 | N93: =Dls!H169 -> 0 | O93: =Dodbíj!H169 -> 0 | P93: =Dplav!H169 -> 0 | Q93: =Dšplh!H169 -> 0 | R93: =Dšvih!H169 -> 0 | S93: ='Dz mís'!H169 -> 821.1737488 | T93: =Drepre!E62 -> 75 | U93: 5544.212716
B94: ='D60'!B170 -> PETŘÍKOVÁ | C94: ='D60'!C170 -> Adéla | D94: ='D60'!D170 -> 8.B | F94: ='D60'!H170 -> 722.9597823 | G94: ='D300'!H170 -> 676.1127364 | H94: ='D800'!H170 -> 625.9898335 | I94: =Ddál!H170 -> 0 | J94: =Dvýš!H170 -> 577 | K94: =Dmíč!H170 -> 303.3 | L94: =Dkou!H170 -> 0 | M94: =Dčlu!H170 -> 549.2131781 | N94: =Dls!H170 -> 444.7 | O94: =Dodbíj!H170 -> 18 | P94: =Dplav!H170 -> 0 | Q94: =Dšplh!H170 -> 0 | R94: =Dšvih!H170 -> 262 | S94: ='Dz mís'!H170 -> 388.3654391 | T94: =Drepre!E63 -> 0 | U94: 4567.640969
B95: ='D60'!B171 -> REGÁLOVÁ | C95: ='D60'!C171 -> Karolína | D95: ='D60'!D171 -> 8.B | F95: ='D60'!H171 -> 746.9100306 | G95: ='D300'!H171 -> 517.4223176 | H95: ='D800'!H171 -> 501.8086081 | I95: =Ddál!H171 -> 0 | J95: =Dvýš!H171 -> 0 | K95: =Dmíč!H171 -> 530.8 | L95: =Dkou!H171 -> 475.5555556 | M95: =Dčlu!H171 -> 631.5993748 | N95: =Dls!H171 -> 541.93 | O95: =Dodbíj!H171 -> 93 | P95: =Dplav!H171 -> 0 | Q95: =Dšplh!H171 -> 0 | R95: =Dšvih!H171 -> 0 | S95: ='Dz mís'!H171 -> 0 | T95: =Drepre!E64 -> 25 | U95: 4064.025887
B96: ='D60'!B172 -> RIEGROVÁ | C96: ='D60'!C172 -> Magdaléna | D96: ='D60'!D172 -> 8.B | F96: ='D60'!H172 -> 718.4877534 | G96: ='D300'!H172 -> 0 | H96: ='D800'!H172 -> 547.7496001 | I96: =Ddál!H172 -> 0 | J96: =Dvýš!H172 -> 642 | K96: =Dmíč!H172 -> 321.5 | L96: =Dkou!H172 -> 0 | M96: =Dčlu!H172 -> 598.2150407 | N96: =Dls!H172 -> 0 | O96: =Dodbíj!H172 -> 18 | P96: =Dplav!H172 -> 0 | Q96: =Dšplh!H172 -> 504.7496346 | R96: =Dšvih!H172 -> 0 | S96: ='Dz mís'!H172 -> 604.769594 | T96: =Drepre!E65 -> 0 | U96: 3955.471623
B97: ='D60'!B173 -> RYBENSKÁ | C97: ='D60'!C173 -> Sabina | D97: ='D60'!D173 -> 8.B | F97: ='D60'!H173 -> 742.9483297 | G97: ='D300'!H173 -> 620.4185028 | H97: ='D800'!H173 -> 597.0716581 | I97: =Ddál!H173 -> 0 | J97: =Dvýš!H173 -> 0 | K97: =Dmíč!H173 -> 294.2 | L97: =Dkou!H173 -> 360 | M97: =Dčlu!H173 -> 658.3205443 | N97: =Dls!H173 -> 458.59 | O97: =Dodbíj!H173 -> 24 | P97: =Dplav!H173 -> 0 | Q97: =Dšplh!H173 -> 0 | R97: =Dšvih!H173 -> 374.5 | S97: ='Dz mís'!H173 -> 0 | T97: =Drepre!E66 -> 0 | U97: 4130.049035
B98: ='D60'!B174 -> STEINEROVÁ | C98: ='D60'!C174 -> Barbora | D98: ='D60'!D174 -> 8.B | F98: ='D60'!H174 -> 798.5971053 | G98: ='D300'!H174 -> 749.2333892 | H98: ='D800'!H174 -> 593.4110166 | I98: =Ddál!H174 -> 846.893 | J98: =Dvýš!H174 -> 772 | K98: =Dmíč!H174 -> 612.7 | L98: =Dkou!H174 -> 440 | M98: =Dčlu!H174 -> 693.3875973 | N98: =Dls!H174 -> 458.59 | O98: =Dodbíj!H174 -> 33 | P98: =Dplav!H174 -> 0 | Q98: =Dšplh!H174 -> 541.8736741 | R98: =Dšvih!H174 -> 530.75 | S98: ='Dz mís'!H174 -> 905.8536355 | T98: =Drepre!E67 -> 0 | U98: 7976.289418
B99: ='D60'!B175 -> ŠERCLOVÁ | C99: ='D60'!C175 -> Andrea | D99: ='D60'!D175 -> 8.B | F99: ='D60'!H175 -> 0 | G99: ='D300'!H175 -> 488.5111077 | H99: ='D800'!H175 -> 0 | I99: =Ddál!H175 -> 0 | J99: =Dvýš!H175 -> 0 | K99: =Dmíč!H175 -> 0 | L99: =Dkou!H175 -> 0 | M99: =Dčlu!H175 -> 0 | N99: =Dls!H175 -> 375.25 | O99: =Dodbíj!H175 -> 0 | P99: =Dplav!H175 -> 0 | Q99: =Dšplh!H175 -> 0 | R99: =Dšvih!H175 -> 187 | S99: ='Dz mís'!H175 -> 411.8876298 | T99: =Drepre!E68 -> 0 | U99: =SUM(F99:T99) -> 1462.648737
B100: ='D60'!B176 -> TOMEŠOVÁ | C100: ='D60'!C176 -> Martina | D100: ='D60'!D176 -> 8.B | F100: ='D60'!H176 -> 779.2086829 | G100: ='D300'!H176 -> 724.4965513 | H100: ='D800'!H176 -> 594.2763038 | I100: =Ddál!H176 -> 786.028 | J100: =Dvýš!H176 -> 0 | K100: =Dmíč!H176 -> 494.4 | L100: =Dkou!H176 -> 0 | M100: =Dčlu!H176 -> 679.0907302 | N100: =Dls!H176 -> 514.15 | O100: =Dodbíj!H176 -> 15 | P100: =Dplav!H176 -> 0 | Q100: =Dšplh!H176 -> 0 | R100: =Dšvih!H176 -> 387 | S100: ='Dz mís'!H176 -> 774.1293673 | T100: =Drepre!E69 -> 0 | U100: 5747.779636
B101: ='D60'!B177 -> VOHNOUTOVÁ | C101: ='D60'!C177 -> Aneta | D101: ='D60'!D177 -> 8.B | F101: ='D60'!H177 -> 853.2697355 | G101: ='D300'!H177 -> 752.8989932 | H101: ='D800'!H177 -> 711.4185606 | I101: =Ddál!H177 -> 812.113 | J101: =Dvýš!H177 -> 876 | K101: =Dmíč!H177 -> 626.896 | L101: =Dkou!H177 -> 676.4444444 | M101: =Dčlu!H177 -> 710.4205226 | N101: =Dls!H177 -> 597.49 | O101: =Dodbíj!H177 -> 123 | P101: =Dplav!H177 -> 622.1919106 | Q101: =Dšplh!H177 -> 494.7178551 | R101: =Dšvih!H177 -> 468.25 | S101: ='Dz mís'!H177 -> 830.5826251 | T101: =Drepre!E70 -> 100 | U101: 9255.693647
B102: ='D60'!B178 -> HAVLÍKOVÁ | C102: ='D60'!C178 -> Michaela | D102: ='D60'!D178 -> 9.A | F102: ='D60'!H178 -> 748.5056939 | G102: ='D300'!H178 -> 595.5942083 | H102: ='D800'!H178 -> 0 | I102: =Ddál!H178 -> 695.6 | J102: =Dvýš!H178 -> 609.5 | K102: =Dmíč!H178 -> 339.7 | L102: =Dkou!H178 -> 336 | M102: =Dčlu!H178 -> 650.2128345 | N102: =Dls!H178 -> 375.25 | O102: =Dodbíj!H178 -> 0 | P102: =Dplav!H178 -> 0 | Q102: =Dšplh!H178 -> 436.9049338 | R102: =Dšvih!H178 -> 455.75 | S102: ='Dz mís'!H178 -> 632.9962229 | T102: =Drepre!E71 -> 0 | U102: 5876.013893
B103: ='D60'!B179 -> HOLUBCOVÁ | C103: ='D60'!C179 -> Sára | D103: ='D60'!D179 -> 9.A | F103: ='D60'!H179 -> 824.6100166 | G103: ='D300'!H179 -> 0 | H103: ='D800'!H179 -> 0 | I103: =Ddál!H179 -> 0 | J103: =Dvýš!H179 -> 0 | K103: =Dmíč!H179 -> 0 | L103: =Dkou!H179 -> 0 | M103: =Dčlu!H179 -> 676.4289063 | N103: =Dls!H179 -> 541.93 | O103: =Dodbíj!H179 -> 129 | P103: =Dplav!H179 -> 0 | Q103: =Dšplh!H179 -> 475.6464195 | R103: =Dšvih!H179 -> 630.75 | S103: ='Dz mís'!H179 -> 722.3805477 | T103: =Drepre!E72 -> 200 | U103: 4200.74589
B104: ='D60'!B180 -> HONCŮ | C104: ='D60'!C180 -> Tereza | D104: ='D60'!D180 -> 9.A | F104: ='D60'!H180 -> 714.799956 | G104: ='D300'!H180 -> 0 | H104: ='D800'!H180 -> 0 | I104: =Ddál!H180 -> 0 | J104: =Dvýš!H180 -> 707 | K104: =Dmíč!H180 -> 458 | L104: =Dkou!H180 -> 0 | M104: =Dčlu!H180 -> 662.1254275 | N104: =Dls!H180 -> 583.6 | O104: =Dodbíj!H180 -> 51 | P104: =Dplav!H180 -> 0 | Q104: =Dšplh!H180 -> 0 | R104: =Dšvih!H180 -> 524.5 | S104: ='Dz mís'!H180 -> 0 | T104: =Drepre!E73 -> 0 | U104: 3701.025384
B105: ='D60'!B181 -> HORÁČKOVÁ | C105: ='D60'!C181 -> Kateřina | D105: ='D60'!D181 -> 9.A | F105: ='D60'!H181 -> 821.7476733 | G105: ='D300'!H181 -> 668.0184464 | H105: ='D800'!H181 -> 686.3015886 | I105: =Ddál!H181 -> 799.94 | J105: =Dvýš!H181 -> 804.5 | K105: =Dmíč!H181 -> 476.2 | L105: =Dkou!H181 -> 669.3333333 | M105: =Dčlu!H181 -> 696.8736378 | N105: =Dls!H181 -> 653.05 | O105: =Dodbíj!H181 -> 81 | P105: =Dplav!H181 -> 546.4438498 | Q105: =Dšplh!H181 -> 504.4496287 | R105: =Dšvih!H181 -> 562 | S105: ='Dz mís'!H181 -> 858.809254 | T105: =Drepre!E74 -> 225 | U105: 9053.667412
B106: ='D60'!B182 -> JOUDALOVÁ | C106: ='D60'!C182 -> Daniela | D106: ='D60'!D182 -> 9.A | F106: ='D60'!H182 -> 0 | G106: ='D300'!H182 -> 0 | H106: ='D800'!H182 -> 0 | I106: =Ddál!H182 -> 0 | J106: =Dvýš!H182 -> 0 | K106: =Dmíč!H182 -> 0 | L106: =Dkou!H182 -> 0 | M106: =Dčlu!H182 -> 0 | N106: =Dls!H182 -> 0 | O106: =Dodbíj!H182 -> 0 | P106: =Dplav!H182 -> 0 | Q106: =Dšplh!H182 -> 0 | R106: =Dšvih!H182 -> 0 | S106: ='Dz mís'!H182 -> 0 | T106: =Drepre!E75 -> 0 | U106: 0
B107: ='D60'!B183 -> KLÍMOVÁ | C107: ='D60'!C183 -> Anna | D107: ='D60'!D183 -> 9.A | F107: ='D60'!H183 -> 775.7773273 | G107: ='D300'!H183 -> 0 | H107: ='D800'!H183 -> 0 | I107: =Ddál!H183 -> 686.905 | J107: =Dvýš!H183 -> 674.5 | K107: =Dmíč!H183 -> 439.8 | L107: =Dkou!H183 -> 0 | M107: =Dčlu!H183 -> 0 | N107: =Dls!H183 -> 0 | O107: =Dodbíj!H183 -> 81 | P107: =Dplav!H183 -> 0 | Q107: =Dšplh!H183 -> 0 | R107: =Dšvih!H183 -> 0 | S107: ='Dz mís'!H183 -> 778.8338055 | T107: =Drepre!E76 -> 0 | U107: 3436.816133
B108: ='D60'!B184 -> KOHOUTOVÁ | C108: ='D60'!C184 -> Veronika | D108: ='D60'!D184 -> 9.A | F108: ='D60'!H184 -> 808.6316451 | G108: ='D300'!H184 -> 678.1968507 | H108: ='D800'!H184 -> 588.5363619 | I108: =Ddál!H184 -> 740.814 | J108: =Dvýš!H184 -> 674.5 | K108: =Dmíč!H184 -> 530.8 | L108: =Dkou!H184 -> 555.5555556 | M108: =Dčlu!H184 -> 657.6902978 | N108: =Dls!H184 -> 583.6 | O108: =Dodbíj!H184 -> 129 | P108: =Dplav!H184 -> 0 | Q108: =Dšplh!H184 -> 468.755716 | R108: =Dšvih!H184 -> 1087 | S108: ='Dz mís'!H184 -> 703.5627951 | T108: =Drepre!E77 -> 200 | U108: 8406.643222
B109: ='D60'!B185 -> KOVÁŘOVÁ | C109: ='D60'!C185 -> Viktorie | D109: ='D60'!D185 -> 9.A | F109: ='D60'!H185 -> 777.4894858 | G109: ='D300'!H185 -> 720.7149087 | H109: ='D800'!H185 -> 0 | I109: =Ddál!H185 -> 0 | J109: =Dvýš!H185 -> 0 | K109: =Dmíč!H185 -> 549 | L109: =Dkou!H185 -> 509.3333333 | M109: =Dčlu!H185 -> 669.2069266 | N109: =Dls!H185 -> 0 | O109: =Dodbíj!H185 -> 36 | P109: =Dplav!H185 -> 0 | Q109: =Dšplh!H185 -> 0 | R109: =Dšvih!H185 -> 0 | S109: ='Dz mís'!H185 -> 760.0160529 | T109: =Drepre!E78 -> 25 | U109: 4046.760707
B110: ='D60'!B186 -> KYNČLOVÁ | C110: ='D60'!C186 -> Anna | D110: ='D60'!D186 -> 9.A | F110: ='D60'!H186 -> 843.179363 | G110: ='D300'!H186 -> 791.906397 | H110: ='D800'!H186 -> 988.3762529 | I110: =Ddál!H186 -> 786.028 | J110: =Dvýš!H186 -> 915 | K110: =Dmíč!H186 -> 485.3 | L110: =Dkou!H186 -> 440 | M110: =Dčlu!H186 -> 722.2108745 | N110: =Dls!H186 -> 694.72 | O110: =Dodbíj!H186 -> 51 | P110: =Dplav!H186 -> 550.8558675 | Q110: =Dšplh!H186 -> 584.2101152 | R110: =Dšvih!H186 -> 668.25 | S110: ='Dz mís'!H186 -> 821.1737488 | T110: =Drepre!E79 -> 250 | U110: 9592.210619
B111: ='D60'!B187 -> MATOUŠOVÁ | C111: ='D60'!C187 -> Tereza | D111: ='D60'!D187 -> 9.A | F111: ='D60'!H187 -> 737.466945 | G111: ='D300'!H187 -> 0 | H111: ='D800'!H187 -> 0 | I111: =Ddál!H187 -> 0 | J111: =Dvýš!H187 -> 0 | K111: =Dmíč!H187 -> 458 | L111: =Dkou!H187 -> 0 | M111: =Dčlu!H187 -> 647.1430823 | N111: =Dls!H187 -> 625.27 | O111: =Dodbíj!H187 -> 0 | P111: =Dplav!H187 -> 0 | Q111: =Dšplh!H187 -> 0 | R111: =Dšvih!H187 -> 112 | S111: ='Dz mís'!H187 -> 0 | T111: =Drepre!E80 -> 25 | U111: 2604.880027
B112: ='D60'!B188 -> MAZÁNKOVÁ | C112: ='D60'!C188 -> Zuzana | D112: ='D60'!D188 -> 9.A | F112: ='D60'!H188 -> 748.5056939 | G112: ='D300'!H188 -> 623.5630957 | H112: ='D800'!H188 -> 0 | I112: =Ddál!H188 -> 0 | J112: =Dvýš!H188 -> 609.5 | K112: =Dmíč!H188 -> 294.2 | L112: =Dkou!H188 -> 466.6666667 | M112: =Dčlu!H188 -> 650.829991 | N112: =Dls!H188 -> 486.37 | O112: =Dodbíj!H188 -> 0 | P112: =Dplav!H188 -> 0 | Q112: =Dšplh!H188 -> 0 | R112: =Dšvih!H188 -> 149.5 | S112: ='Dz mís'!H188 -> 698.8583569 | T112: =Drepre!E81 -> 0 | U112: 4727.993804
B113: ='D60'!B189 -> MORKESOVÁ | C113: ='D60'!C189 -> Sabrina | D113: ='D60'!D189 -> 9.A | F113: ='D60'!H189 -> 832.3346938 | G113: ='D300'!H189 -> 663.5206783 | H113: ='D800'!H189 -> 700.6998528 | I113: =Ddál!H189 -> 827.764 | J113: =Dvýš!H189 -> 739.5 | K113: =Dmíč!H189 -> 834.012 | L113: =Dkou!H189 -> 684.4444444 | M113: =Dčlu!H189 -> 730.5286082 | N113: =Dls!H189 -> 639.16 | O113: =Dodbíj!H189 -> 138 | P113: =Dplav!H189 -> 0 | Q113: =Dšplh!H189 -> 485.0797469 | R113: =Dšvih!H189 -> 687 | S113: ='Dz mís'!H189 -> 811.7648725 | T113: =Drepre!E82 -> 250 | U113: 9023.808897
B114: ='D60'!B190 -> POHOŘALÁ | C114: ='D60'!C190 -> Alžběta | D114: ='D60'!D190 -> 9.A | F114: ='D60'!H190 -> 795.9005737 | G114: ='D300'!H190 -> 765.3215417 | H114: ='D800'!H190 -> 0 | I114: =Ddál!H190 -> 686.905 | J114: =Dvýš!H190 -> 0 | K114: =Dmíč!H190 -> 403.4 | L114: =Dkou!H190 -> 457.7777778 | M114: =Dčlu!H190 -> 0 | N114: =Dls!H190 -> 0 | O114: =Dodbíj!H190 -> 0 | P114: =Dplav!H190 -> 0 | Q114: =Dšplh!H190 -> 0 | R114: =Dšvih!H190 -> 0 | S114: ='Dz mís'!H190 -> 811.7648725 | T114: =Drepre!E83 -> 150 | U114: 4071.069766
B115: ='D60'!B191 -> SCHOLZOVÁ | C115: ='D60'!C191 -> Laura | D115: ='D60'!D191 -> 9.A | F115: ='D60'!H191 -> 0 | G115: ='D300'!H191 -> 0 | H115: ='D800'!H191 -> 0 | I115: =Ddál!H191 -> 0 | J115: =Dvýš!H191 -> 0 | K115: =Dmíč!H191 -> 0 | L115: =Dkou!H191 -> 0 | M115: =Dčlu!H191 -> 0 | N115: =Dls!H191 -> 0 | O115: =Dodbíj!H191 -> 36 | P115: =Dplav!H191 -> 0 | Q115: =Dšplh!H191 -> 0 | R115: =Dšvih!H191 -> 0 | S115: ='Dz mís'!H191 -> 0 | T115: =Drepre!E84 -> 0 | U115: 36
B116: ='D60'!B192 -> VÁCLAVÍKOVÁ | C116: ='D60'!C192 -> Valerie | D116: ='D60'!D192 -> 9.A | F116: ='D60'!H192 -> 783.5377564 | G116: ='D300'!H192 -> 734.675767 | H116: ='D800'!H192 -> 677.3611427 | I116: =Ddál!H192 -> 742.553 | J116: =Dvýš!H192 -> 0 | K116: =Dmíč!H192 -> 0 | L116: =Dkou!H192 -> 609.7777778 | M116: =Dčlu!H192 -> 668.5574111 | N116: =Dls!H192 -> 597.49 | O116: =Dodbíj!H192 -> 138 | P116: =Dplav!H192 -> 0 | Q116: =Dšplh!H192 -> 0 | R116: =Dšvih!H192 -> 712 | S116: ='Dz mís'!H192 -> 769.4249292 | T116: =Drepre!E85 -> 200 | U116: 6633.377784
B117: ='D60'!B193 -> ZAPADLOVÁ | C117: ='D60'!C193 -> Emma | D117: ='D60'!D193 -> 9.A | F117: ='D60'!H193 -> 843.179363 | G117: ='D300'!H193 -> 798.9717017 | H117: ='D800'!H193 -> 703.5587018 | I117: =Ddál!H193 -> 0 | J117: =Dvýš!H193 -> 804.5 | K117: =Dmíč!H193 -> 776.5 | L117: =Dkou!H193 -> 397.3333333 | M117: =Dčlu!H193 -> 689.2465651 | N117: =Dls!H193 -> 0 | O117: =Dodbíj!H193 -> 66 | P117: =Dplav!H193 -> 0 | Q117: =Dšplh!H193 -> 0 | R117: =Dšvih!H193 -> 0 | S117: ='Dz mís'!H193 -> 821.1737488 | T117: =Drepre!E86 -> 250 | U117: 6150.463414
B118: ='D60'!B194 -> ŽIŠKOVÁ | C118: ='D60'!C194 -> Mia | D118: ='D60'!D194 -> 9.A | F118: ='D60'!H194 -> 0 | G118: ='D300'!H194 -> 0 | H118: ='D800'!H194 -> 0 | I118: =Ddál!H194 -> 0 | J118: =Dvýš!H194 -> 0 | K118: =Dmíč!H194 -> 0 | L118: =Dkou!H194 -> 0 | M118: =Dčlu!H194 -> 0 | N118: =Dls!H194 -> 0 | O118: =Dodbíj!H194 -> 66 | P118: =Dplav!H194 -> 0 | Q118: =Dšplh!H194 -> 0 | R118: =Dšvih!H194 -> 0 | S118: ='Dz mís'!H194 -> 0 | T118: =Drepre!E87 -> 25 | U118: 91
B119: ='D60'!B195 -> FARSKÁ | C119: ='D60'!C195 -> Tereza | D119: ='D60'!D195 -> 9.B | F119: ='D60'!H195 -> 655.1803496 | G119: ='D300'!H195 -> 0 | H119: ='D800'!H195 -> 0 | I119: =Ddál!H195 -> 0 | J119: =Dvýš!H195 -> 0 | K119: =Dmíč!H195 -> 330.6 | L119: =Dkou!H195 -> 0 | M119: =Dčlu!H195 -> 0 | N119: =Dls!H195 -> 0 | O119: =Dodbíj!H195 -> 0 | P119: =Dplav!H195 -> 0 | Q119: =Dšplh!H195 -> 0 | R119: =Dšvih!H195 -> 0 | S119: ='Dz mís'!H195 -> 0 | T119: =Drepre!E88 -> 0 | U119: 985.7803496
B120: ='D60'!B196 -> FEIXOVÁ | C120: ='D60'!C196 -> Rozálie | D120: ='D60'!D196 -> 9.B | F120: ='D60'!H196 -> 0 | G120: ='D300'!H196 -> 0 | H120: ='D800'!H196 -> 0 | I120: =Ddál!H196 -> 0 | J120: =Dvýš!H196 -> 0 | K120: =Dmíč!H196 -> 276 | L120: =Dkou!H196 -> 0 | M120: =Dčlu!H196 -> 0 | N120: =Dls!H196 -> 0 | O120: =Dodbíj!H196 -> 0 | P120: =Dplav!H196 -> 0 | Q120: =Dšplh!H196 -> 0 | R120: =Dšvih!H196 -> 0 | S120: ='Dz mís'!H196 -> 0 | T120: =Drepre!E89 -> 0 | U120: 276
B121: ='D60'!B197 -> FIŠEROVÁ | C121: ='D60'!C197 -> Michaela | D121: ='D60'!D197 -> 9.B | F121: ='D60'!H197 -> 721.4634001 | G121: ='D300'!H197 -> 0 | H121: ='D800'!H197 -> 0 | I121: =Ddál!H197 -> 0 | J121: =Dvýš!H197 -> 0 | K121: =Dmíč!H197 -> 348.8 | L121: =Dkou!H197 -> 626.6666667 | M121: =Dčlu!H197 -> 0 | N121: =Dls!H197 -> 0 | O121: =Dodbíj!H197 -> 0 | P121: =Dplav!H197 -> 0 | Q121: =Dšplh!H197 -> 0 | R121: =Dšvih!H197 -> 0 | S121: ='Dz mís'!H197 -> 0 | T121: =Drepre!E90 -> 25 | U121: 1721.930067
B122: ='D60'!B198 -> HAVLÍČKOVÁ | C122: ='D60'!C198 -> Kristýna | D122: ='D60'!D198 -> 9.B | F122: ='D60'!H198 -> 0 | G122: ='D300'!H198 -> 0 | H122: ='D800'!H198 -> 0 | I122: =Ddál!H198 -> 0 | J122: =Dvýš!H198 -> 0 | K122: =Dmíč!H198 -> 303.3 | L122: =Dkou!H198 -> 600 | M122: =Dčlu!H198 -> 0 | N122: =Dls!H198 -> 0 | O122: =Dodbíj!H198 -> 0 | P122: =Dplav!H198 -> 0 | Q122: =Dšplh!H198 -> 0 | R122: =Dšvih!H198 -> 0 | S122: ='Dz mís'!H198 -> 0 | T122: =Drepre!E91 -> 0 | U122: 903.3
B123: ='D60'!B199 -> KADAVÁ | C123: ='D60'!C199 -> Nikola | D123: ='D60'!D199 -> 9.B | F123: ='D60'!H199 -> 610.6236158 | G123: ='D300'!H199 -> 0 | H123: ='D800'!H199 -> 0 | I123: =Ddál!H199 -> 0 | J123: =Dvýš!H199 -> 0 | K123: =Dmíč!H199 -> 257.8 | L123: =Dkou!H199 -> 457.7777778 | M123: =Dčlu!H199 -> 0 | N123: =Dls!H199 -> 0 | O123: =Dodbíj!H199 -> 0 | P123: =Dplav!H199 -> 0 | Q123: =Dšplh!H199 -> 0 | R123: =Dšvih!H199 -> 0 | S123: ='Dz mís'!H199 -> 0 | T123: =Drepre!E92 -> 0 | U123: 1326.201394
B124: ='D60'!B200 -> KŘIVINKOVÁ | C124: ='D60'!C200 -> Alžběta | D124: ='D60'!D200 -> 9.B | F124: ='D60'!H200 -> 756.5797502 | G124: ='D300'!H200 -> 0 | H124: ='D800'!H200 -> 0 | I124: =Ddál!H200 -> 0 | J124: =Dvýš!H200 -> 0 | K124: =Dmíč!H200 -> 458 | L124: =Dkou!H200 -> 635.5555556 | M124: =Dčlu!H200 -> 0 | N124: =Dls!H200 -> 0 | O124: =Dodbíj!H200 -> 0 | P124: =Dplav!H200 -> 0 | Q124: =Dšplh!H200 -> 0 | R124: =Dšvih!H200 -> 0 | S124: ='Dz mís'!H200 -> 0 | T124: =Drepre!E93 -> 0 | U124: 1850.135306
B125: ='D60'!B201 -> LEŠÁKOVÁ | C125: ='D60'!C201 -> Lenka | D125: ='D60'!D201 -> 9.B | F125: ='D60'!H201 -> 725.9698293 | G125: ='D300'!H201 -> 0 | H125: ='D800'!H201 -> 0 | I125: =Ddál!H201 -> 0 | J125: =Dvýš!H201 -> 0 | K125: =Dmíč!H201 -> 221.4 | L125: =Dkou!H201 -> 502.2222222 | M125: =Dčlu!H201 -> 0 | N125: =Dls!H201 -> 0 | O125: =Dodbíj!H201 -> 0 | P125: =Dplav!H201 -> 0 | Q125: =Dšplh!H201 -> 0 | R125: =Dšvih!H201 -> 0 | S125: ='Dz mís'!H201 -> 0 | T125: =Drepre!E94 -> 0 | U125: 1449.592052
B126: ='D60'!B202 -> NYKLÍČKOVÁ | C126: ='D60'!C202 -> Adéla | D126: ='D60'!D202 -> 9.B | F126: ='D60'!H202 -> 769.8395825 | G126: ='D300'!H202 -> 0 | H126: ='D800'!H202 -> 0 | I126: =Ddál!H202 -> 0 | J126: =Dvýš!H202 -> 0 | K126: =Dmíč!H202 -> 430.7 | L126: =Dkou!H202 -> 600 | M126: =Dčlu!H202 -> 0 | N126: =Dls!H202 -> 0 | O126: =Dodbíj!H202 -> 0 | P126: =Dplav!H202 -> 0 | Q126: =Dšplh!H202 -> 0 | R126: =Dšvih!H202 -> 0 | S126: ='Dz mís'!H202 -> 0 | T126: =Drepre!E95 -> 25 | U126: 1825.539583
B127: ='D60'!B203 -> PLŮCHOVÁ | C127: ='D60'!C203 -> Petra | D127: ='D60'!D203 -> 9.B | F127: ='D60'!H203 -> 726.7259659 | G127: ='D300'!H203 -> 0 | H127: ='D800'!H203 -> 0 | I127: =Ddál!H203 -> 0 | J127: =Dvýš!H203 -> 0 | K127: =Dmíč!H203 -> 439.8 | L127: =Dkou!H203 -> 626.6666667 | M127: =Dčlu!H203 -> 0 | N127: =Dls!H203 -> 0 | O127: =Dodbíj!H203 -> 0 | P127: =Dplav!H203 -> 0 | Q127: =Dšplh!H203 -> 0 | R127: =Dšvih!H203 -> 0 | S127: ='Dz mís'!H203 -> 0 | T127: =Drepre!E96 -> 25 | U127: 1818.192633
B128: ='D60'!B204 -> PODZIMKOVÁ | C128: ='D60'!C204 -> Eliška | D128: ='D60'!D204 -> 9.B | F128: ='D60'!H204 -> 644.7063505 | G128: ='D300'!H204 -> 0 | H128: ='D800'!H204 -> 0 | I128: =Ddál!H204 -> 0 | J128: =Dvýš!H204 -> 0 | K128: =Dmíč!H204 -> 494.4 | L128: =Dkou!H204 -> 484.4444444 | M128: =Dčlu!H204 -> 0 | N128: =Dls!H204 -> 0 | O128: =Dodbíj!H204 -> 0 | P128: =Dplav!H204 -> 0 | Q128: =Dšplh!H204 -> 0 | R128: =Dšvih!H204 -> 0 | S128: ='Dz mís'!H204 -> 0 | T128: =Drepre!E97 -> 0 | U128: 1623.550795
B129: ='D60'!B205 -> RUTKAYOVÁ | C129: ='D60'!C205 -> Klára | D129: ='D60'!D205 -> 9.B | F129: ='D60'!H205 -> 678.4234692 | G129: ='D300'!H205 -> 0 | H129: ='D800'!H205 -> 0 | I129: =Ddál!H205 -> 0 | J129: =Dvýš!H205 -> 0 | K129: =Dmíč!H205 -> 312.4 | L129: =Dkou!H205 -> 0 | M129: =Dčlu!H205 -> 0 | N129: =Dls!H205 -> 0 | O129: =Dodbíj!H205 -> 0 | P129: =Dplav!H205 -> 0 | Q129: =Dšplh!H205 -> 0 | R129: =Dšvih!H205 -> 0 | S129: ='Dz mís'!H205 -> 0 | T129: =Drepre!E98 -> 0 | U129: 990.8234692
B130: ='D60'!B206 -> SEIDLOVÁ | C130: ='D60'!C206 -> Zuzana | D130: ='D60'!D206 -> 9.B | F130: ='D60'!H206 -> 728.2426182 | G130: ='D300'!H206 -> 0 | H130: ='D800'!H206 -> 0 | I130: =Ddál!H206 -> 0 | J130: =Dvýš!H206 -> 0 | K130: =Dmíč!H206 -> 621.8 | L130: =Dkou!H206 -> 742.2222222 | M130: =Dčlu!H206 -> 0 | N130: =Dls!H206 -> 0 | O130: =Dodbíj!H206 -> 0 | P130: =Dplav!H206 -> 0 | Q130: =Dšplh!H206 -> 0 | R130: =Dšvih!H206 -> 0 | S130: ='Dz mís'!H206 -> 0 | T130: =Drepre!E99 -> 0 | U130: 2092.26484
B131: ='D60'!B207 -> TOMÁŠOVÁ | C131: ='D60'!C207 -> Sára | D131: ='D60'!D207 -> 9.B | F131: ='D60'!H207 -> 598.7449721 | G131: ='D300'!H207 -> 0 | H131: ='D800'!H207 -> 0 | I131: =Ddál!H207 -> 0 | J131: =Dvýš!H207 -> 0 | K131: =Dmíč!H207 -> 357.9 | L131: =Dkou!H207 -> 475.5555556 | M131: =Dčlu!H207 -> 0 | N131: =Dls!H207 -> 0 | O131: =Dodbíj!H207 -> 0 | P131: =Dplav!H207 -> 0 | Q131: =Dšplh!H207 -> 0 | R131: =Dšvih!H207 -> 0 | S131: ='Dz mís'!H207 -> 0 | T131: =Drepre!E100 -> 0 | U131: =SUM(F131:T131) -> 1432.200528
B132: ='D60'!B208 -> VANCLOVÁ | C132: ='D60'!C208 -> Barbora | D132: ='D60'!D208 -> 9.B | F132: ='D60'!H208 -> 734.3682412 | G132: ='D300'!H208 -> 0 | H132: ='D800'!H208 -> 0 | I132: =Ddál!H208 -> 0 | J132: =Dvýš!H208 -> 0 | K132: =Dmíč!H208 -> 439.8 | L132: =Dkou!H208 -> 502.2222222 | M132: =Dčlu!H208 -> 0 | N132: =Dls!H208 -> 0 | O132: =Dodbíj!H208 -> 0 | P132: =Dplav!H208 -> 746.3960642 | Q132: =Dšplh!H208 -> 0 | R132: =Dšvih!H208 -> 0 | S132: ='Dz mís'!H208 -> 0 | T132: =Drepre!E101 -> 0 | U132: 2422.786528
B133: ='D60'!B209 -> VOTOČKOVÁ | C133: ='D60'!C209 -> Veronika | D133: ='D60'!D209 -> 9.B | F133: ='D60'!H209 -> 587.2804808 | G133: ='D300'!H209 -> 0 | H133: ='D800'!H209 -> 0 | I133: =Ddál!H209 -> 0 | J133: =Dvýš!H209 -> 0 | K133: =Dmíč!H209 -> 257.8 | L133: =Dkou!H209 -> 502.2222222 | M133: =Dčlu!H209 -> 0 | N133: =Dls!H209 -> 0 | O133: =Dodbíj!H209 -> 0 | P133: =Dplav!H209 -> 0 | Q133: =Dšplh!H209 -> 0 | R133: =Dšvih!H209 -> 0 | S133: ='Dz mís'!H209 -> 0 | T133: =Drepre!E102 -> 0 | U133: 1347.302703

Sheet Droč
C1: CELKOVÉ VÝSLEDKY
B3: 6. ročník | F3: 60 m | G3: 300m | H3: 800m | I3: dálka | J3: výška | K3: míček | L3: koule | M3: člunek | N3: lehsed | O3: odbíjení | P3: plavání | Q3: šplh | R3: švihadlo | S3: z místa | T3: REPRE | U3: CELKEM
A5: 1. | B5: =B139 -> FARSKÁ | C5: =C139 -> Anna | D5: 6.A | E5: 9.98 | F5: 758.213978 | G5: 622.2499762 | H5: 477.9526677 | I5: 735.597 | J5: 642 | K5: 357.9 | L5: 484.4444444 | M5: 551.0325142 | N5: 514.15 | O5: 30 | P5: 0 | Q5: 493.3599777 | R5: 655.75 | S5: 755.3116147 | T5: =T139 -> 125 | U5: 7202.962173
A6: 2. | B6: FARSKÁ | C6: Eliška | D6: 6.A | E6: 9.45 | F6: 804.0415309 | G6: 521.3562489 | H6: 608.1507247 | I6: 794.723 | J6: 642 | K6: 367 | L6: 436.4444444 | M6: 592.4416663 | N6: 361.36 | O6: 27 | P6: 0 | Q6: 537.8620018 | R6: 687 | S6: 783.5382436 | T6: 75 | U6: 7237.917861
A7: 3. | B7: =B141 -> FEDORKOVÁ | C7: Denisa | D7: 6.A | E7: 11.32 | F7: 661.4884793 | G7: 391.6822289 | H7: 0 | I7: 565.175 | J7: 609.5 | K7: 276 | L7: 353.7777778 | M7: 547.4046632 | N7: 236.35 | O7: 27 | P7: 0 | Q7: 0 | R7: 680.75 | S7: 553.0207743 | T7: 0 | U7: 4902.148924
A8: 4. | B8: =B142 -> HAUZEROVÁ | C8: Tereza | D8: 6.A | E8: 9.96 | F8: 759.854769 | G8: 547.7220354 | H8: 515.4708949 | I8: 711.251 | J8: 642 | K8: 257.8 | L8: 319.1111111 | M8: 555.6288402 | N8: 291.91 | O8: 21 | P8: 0 | Q8: 0 | R8: 587 | S8: 680.0406043 | T8: 0 | U8: 5888.789255
A9: 5. | B9: =B143 -> JOSKOVÁ | C9: Ellen | D9: 6.A | E9: 9.4 | F9: 808.6316451 | G9: 691.8310546 | H9: 607.4443911 | I9: 620.823 | J9: 609.5 | K9: 294.2 | L9: 450.6666667 | M9: 592.4416663 | N9: 389.14 | O9: 9 | P9: 0 | Q9: 0 | R9: 587 | S9: 670.631728 | T9: 75 | U9: 6406.310152
A10: 6. | B10: =B144 -> KUŽELOVÁ | C10: Amálie | D10: 6.A | E10: 12.23 | F10: 607.8863977 | G10: 387.7156773 | H10: 0 | I10: 476.486 | J10: 0 | K10: 0 | L10: 0 | M10: 459.8530448 | N10: 361.36 | O10: 60 | P10: 0 | Q10: 0 | R10: 443.25 | S10: 0 | T10: 0 | U10: 2796.55112
A11: 7. | B11: =B145 -> RYŠAVÁ | C11: Amálie | D11: 6.A | E11: 10.73 | F11: 701.0997715 | G11: 415.9521818 | H11: 556.587187 | I11: 620.823 | J11: 0 | K11: 348.8 | L11: 440 | M11: 549.6669938 | N11: 97.45 | O11: 75 | P11: 0 | Q11: 0 | R11: 918.25 | S11: 0 | T11: 0 | U11: 4723.629134
A12: 8. | B12: =B146 -> BANGOVÁ | C12: Zuzana | D12: 6.B | E12: 11.08 | F12: 677.0925605 | G12: 346.0970787 | H12: 438.2973788 | I12: 568.653 | J12: 609.5 | K12: 312.4 | L12: 330.6666667 | M12: 0 | N12: 0 | O12: 0 | P12: 0 | Q12: 0 | R12: 574.5 | S12: 501.2719547 | T12: 0 | U12: 4358.478639
A13: 9. | B13: =B147 -> HOLUBOVÁ | C13: Denisa | D13: 6.B | E13: 12 | F13: 620.6664691 | G13: 397.8011511 | H13: 449.7033541 | I13: 563.436 | J13: 642 | K13: 330.6 | L13: 488.8888889 | M13: 570.3282168 | N13: 278.02 | O13: 0 | P13: 0 | Q13: 0 | R13: 580.75 | S13: 505.9763928 | T13: 0 | U13: 5428.170473
A14: 10. | B14: =B148 -> HURKALO | C14: Karolina | D14: 6.B | E14: 15.65 | F14: 462.1733457 | G14: 259.3769651 | H14: 0 | I14: 0 | J14: 0 | K14: 185 | L14: 0 | M14: 0 | N14: 0 | O14: 0 | P14: 0 | Q14: 0 | R14: 418.25 | S14: 0 | T14: 0 | U14: 1324.800311
A15: 11. | B15: =B149 -> HUTNIK-MAMONOVA | C15: Nana | D15: 6.B | E15: 14 | F15: 523.585554 | G15: 0 | H15: 0 | I15: 0 | J15: 0 | K15: 94 | L15: 0 | M15: 560.7654789 | N15: 0 | O15: 0 | P15: 0 | Q15: 0 | R15: 80.75 | S15: 0 | T15: 0 | U15: 1259.101033
A16: 12. | B16: =B150 -> MARINOVA | C16: Darja | D16: 6.B | E16: 12 | F16: 620.6664691 | G16: 495.9952152 | H16: 0 | I16: 0 | J16: 0 | K16: 0 | L16: 0 | M16: 0 | N16: 430.81 | O16: 0 | P16: 0 | Q16: 0 | R16: 418.25 | S16: 0 | T16: 0 | U16: 1965.721684
A17: 13. | B17: =B151 -> NYKLÍČKOVÁ | C17: Klára | D17: 6.B | E17: 10.58 | F17: 711.8748146 | G17: 600.9131975 | H17: 634.1330447 | I17: 568.653 | J17: 544.5 | K17: 357.9 | L17: 336 | M17: 651.4482226 | N17: 430.81 | O17: 24 | P17: 0 | Q17: 0 | R17: 980.75 | S17: 703.5627951 | T17: 0 | U17: 6544.545075
A18: 14. | B18: =B152 -> PANCHAYEVA | C18: Sofiia | D18: 6.B | E18: 12 | F18: 620.6664691 | G18: 383.2646417 | H18: 480.2063702 | I18: 0 | J18: 0 | K18: 112.2 | L18: 0 | M18: 584.7304397 | N18: 375.25 | O18: 0 | P18: 0 | Q18: 0 | R18: 0 | S18: 0 | T18: 0 | U18: 2556.317921
A19: 15. | B19: =B153 -> PIČMANOVÁ | C19: Klára | D19: 6.B | E19: 11.14 | F19: 673.1285076 | G19: 378.088352 | H19: 0 | I19: 565.175 | J19: 0 | K19: 0 | L19: 0 | M19: 530.3194903 | N19: 0 | O19: 0 | P19: 0 | Q19: 0 | R19: 0 | S19: 0 | T19: 0 | U19: 2146.71135
A20: 16. | B20: =B154 -> ŠIMŮNKOVÁ | C20: Anežka | D20: 6.B | E20: 10.36 | F20: 728.2426182 | G20: 443.9458945 | H20: 446.059527 | I20: 636.474 | J20: 642 | K20: 0 | L20: 369.7777778 | M20: 536.7755103 | N20: 430.81 | O20: 15 | P20: 0 | Q20: 0 | R20: 712 | S20: 632.9962229 | T20: 0 | U20: 5594.081551
A21: 17. | B21: =B155 -> TRPIŠOVSKÁ | C21: Nela | D21: 6.B | E21: 10.18 | F21: 742.1606595 | G21: 469.9456121 | H21: 461.3702127 | I21: 638.213 | J21: 642 | K21: 376.1 | L21: 377.7777778 | M21: 631.0151961 | N21: 514.15 | O21: 18 | P21: 0 | Q21: 0 | R21: 830.75 | S21: 670.631728 | T21: 25 | U21: 6397.114186
C32: CELKOVÉ VÝSLEDKY
B34: 7. ročník | F34: 60 m | G34: 300m | H34: 800m | I34: dálka | J34: výška | K34: míček | L34: koule | M34: člunek | N34: lehsed | O34: odbíjení | P34: plavání | Q34: šplh | R34: švihadlo | S34: z místa | T34: REPRE | U34: CELKEM
A36: 1. | B36: =B156 -> HEJRALOVÁ | C36: =C156 -> Natálie | D36: 7.A | E36: 9.86 | F36: 768.1585693 | G36: 697.5577254 | H36: 685.2026154 | I36: 721.685 | J36: 739.5 | K36: 412.5 | L36: 564.4444444 | M36: 671.1624509 | N36: 597.49 | O36: 39 | P36: 507.964804 | Q36: 0 | R36: 655.75 | S36: 675.3361662 | T36: 75 | U36: 7810.751776
A37: 2. | B37: =B157 -> KERLE | C37: Nikita | D37: 7.A | E37: 9.82 | F37: 771.527443 | G37: 720.8786948 | H37: 736.1788084 | I37: 824.286 | J37: 674.5 | K37: 458 | L37: 486.2222222 | M37: 678.4234692 | N37: 722.5 | O37: 42 | P37: 0 | Q37: 490.173332 | R37: 674.5 | S37: 694.1539188 | T37: 225 | U37: 8198.343888
A38: 3. | B38: =B158 -> MUNZAROVÁ | C38: Aneta | D38: 7.A | E38: 0 | F38: 0 | G38: 0 | H38: 0 | I38: 0 | J38: 0 | K38: 221.4 | L38: 0 | M38: 540.2769089 | N38: 458.59 | O38: 15 | P38: 0 | Q38: 0 | R38: 0 | S38: 501.2719547 | T38: 0 | U38: 1736.538864
A39: 4. | B39: =B159 -> PACLÍKOVÁ | C39: Markéta | D39: 7.A | E39: 9.4 | F39: 808.6316451 | G39: 713.8872825 | H39: 712.5475324 | I39: 747.77 | J39: 804.5 | K39: 594.136 | L39: 520.8888889 | M39: 682.4452332 | N39: 708.61 | O39: 360.8 | P39: 521.6866883 | Q39: 460.3115901 | R39: 674.5 | S39: 778.8338055 | T39: 175 | U39: 9264.548666
A40: 5. | B40: =B160 -> PLŮCHOVÁ | C40: Michaela | D40: 7.A | E40: 9.4 | F40: 808.6316451 | G40: 733.6647619 | H40: 713.008353 | I40: 770.377 | J40: 804.5 | K40: 439.8 | L40: 633.7777778 | M40: 644.7063505 | N40: 500.26 | O40: 42 | P40: 0 | Q40: 394.3513385 | R40: 674.5 | S40: 661.2228517 | T40: 225 | U40: 8045.800079
A41: 6. | B41: =B161 -> ŠERCLOVÁ | C41: Nikola | D41: 7.A | E41: 0 | F41: 0 | G41: 543.1794779 | H41: 602.7276026 | I41: 0 | J41: 609.5 | K41: 403.4 | L41: 424 | M41: 580.190727 | N41: 444.7 | O41: 30 | P41: 0 | Q41: 0 | R41: 493.25 | S41: 670.631728 | T41: 25 | U41: 4826.579536
A42: 7. | B42: =B162 -> VÁCLAVÍKOVÁ | C42: Alena | D42: 7.A | E42: 10.04 | F42: 753.3308272 | G42: 697.4019997 | H42: 645.031267 | I42: 671.254 | J42: 609.5 | K42: 385.2 | L42: 297.7777778 | M42: 675.7664479 | N42: 528.04 | O42: 42 | P42: 0 | Q42: 0 | R42: 0 | S42: 698.8583569 | T42: 25 | U42: 6029.160676
A43: 8. | B43: =B163 -> DUCHÁČKOVÁ | C43: Tereza | D43: 7.B | E43: 11.99 | F43: 621.2332467 | G43: 383.9348105 | H43: 364.4468941 | I43: 0 | J43: 577 | K43: 257.8 | L43: 334.2222222 | M43: 549.6669938 | N43: 458.59 | O43: 30 | P43: 0 | Q43: 0 | R43: 255.75 | S43: 411.8876298 | T43: 0 | U43: 4244.531797
A44: 9. | B44: =B164 -> FLAŠKOVÁ | C44: Anna Sabriel | D44: 7.B | E44: 11.25 | F44: 665.9708961 | G44: 0 | H44: 0 | I44: 678.21 | J44: 609.5 | K44: 430.7 | L44: 364.4444444 | M44: 543.8197136 | N44: 444.7 | O44: 21 | P44: 0 | Q44: 0 | R44: 255.75 | S44: 515.3852691 | T44: 0 | U44: 4529.480323
A45: 10. | B45: =B165 -> HAASOVÁ | C45: Julie | D45: 7.B | E45: 10.03 | F45: 754.1406285 | G45: 0 | H45: 0 | I45: 742.553 | J45: 0 | K45: 330.6 | L45: 0 | M45: 0 | N45: 0 | O45: 0 | P45: 0 | Q45: 0 | R45: 0 | S45: 0 | T45: 50 | U45: 1877.293629
A46: 11. | B46: =B166 -> HEGROVÁ | C46: Štěpánka | D46: 7.B | E46: 10.65 | F46: 706.8086895 | G46: 570.698816 | H46: 443.5650879 | I46: 659.081 | J46: 0 | K46: 321.5 | L46: 352 | M46: 0 | N46: 0 | O46: 18 | P46: 0 | Q46: 0 | R46: 249.5 | S46: 0 | T46: 0 | U46: 3321.153593
A47: 12. | B47: =B167 -> HOBLOVÁ | C47: Barbora | D47: 7.B | E47: 9.71 | F47: 780.9349623 | G47: 697.4019997 | H47: 0 | I47: 652.125 | J47: 609.5 | K47: 376.1 | L47: 424.8888889 | M47: 578.1935687 | N47: 319.69 | O47: 30 | P47: 0 | Q47: 520.1728925 | R47: 562 | S47: 623.5873466 | T47: 0 | U47: 6174.594659
A48: 13. | B48: =B168 -> HORÁČKOVÁ | C48: Valérie | D48: 7.B | E48: 8.88 | F48: 859.433044 | G48: 754.6543323 | H48: 722.9320855 | I48: 754.726 | J48: 674.5 | K48: 367 | L48: 466.6666667 | M48: 679.7592 | N48: 528.04 | O48: 36 | P48: 652.4509634 | Q48: 0 | R48: 387 | S48: 741.1983003 | T48: 125 | U48: 7749.360592
A49: 14. | B49: =B169 -> JIRANOVÁ | C49: Anežka | D49: 7.B | E49: 12.5 | F49: 593.4838128 | G49: 418.9445801 | H49: 410.2646102 | I49: 0 | J49: 0 | K49: 367 | L49: 434.6666667 | M49: 547.8557827 | N49: 403.03 | O49: 27 | P49: 0 | Q49: 0 | R49: 243.25 | S49: 402.4787535 | T49: 25 | U49: 3872.974206
A50: 15. | B50: =B170 -> KRČÍKOVÁ | C50: Beatrix | D50: 7.B | E50: 9.35 | F50: 813.2708514 | G50: 671.9735498 | H50: 663.4196264 | I50: 792.984 | J50: 804.5 | K50: 582.488 | L50: 614.2222222 | M50: 657.6902978 | N50: 708.61 | O50: 42 | P50: 0 | Q50: 487.3390749 | R50: 437 | S50: 741.1983003 | T50: 225 | U50: 8241.695923
A51: 16. | B51: =B171 -> KUBÁTOVÁ | C51: Veronika | D51: 7.B | E51: 11.9 | F51: 626.3771111 | G51: 406.6357892 | H51: 382.998003 | I51: 0 | J51: 0 | K51: 203.2 | L51: 266.6666667 | M51: 572.7651965 | N51: 291.91 | O51: 30 | P51: 0 | Q51: 0 | R51: 130.75 | S51: 567.1340888 | T51: 0 | U51: 3478.436855
A52: 17. | B52: =B172 -> LENČEŠOVÁ | C52: Silvie | D52: 7.B | E52: 11.46 | F52: 652.6879227 | G52: 623.6946342 | H52: 627.5097845 | I52: 652.125 | J52: 577 | K52: 458 | L52: 337.7777778 | M52: 571.7881429 | N52: 389.14 | O52: 42 | P52: 0 | Q52: 0 | R52: 512 | S52: 576.5429651 | T52: 0 | U52: 6020.266227
A53: 18. | B53: =B173 -> LUKEŠOVÁ | C53: Lucie | D53: 7.B | E53: 11.25 | F53: 665.9708961 | G53: 597.9358831 | H53: 513.3644745 | I53: 619.084 | J53: 0 | K53: 348.8 | L53: 324.4444444 | M53: 0 | N53: 0 | O53: 30 | P53: 0 | Q53: 0 | R53: 493.25 | S53: 0 | T53: 0 | U53: 3592.849698
A54: 19. | B54: =B174 -> MATERNOVÁ | C54: Lenka | D54: 7.B | E54: 9.42 | F54: 806.7897522 | G54: 737.7217531 | H54: 702.9035172 | I54: 0 | J54: 674.5 | K54: 266.9 | L54: 328 | M54: 658.9519004 | N54: 583.6 | O54: 42 | P54: 0 | Q54: 796.7621573 | R54: 443.25 | S54: 694.1539188 | T54: 50 | U54: 6785.532999
A55: 20. | B55: =B175 -> TÓTHOVÁ | C55: Viktorie | D55: 7.B | E55: 10.46 | F55: 720.7173548 | G55: 636.1107654 | H55: 640.9081979 | I55: 0 | J55: 642 | K55: 403.4 | L55: 467.5555556 | M55: 592.962323 | N55: 514.15 | O55: 27 | P55: 0 | Q55: 0 | R55: 368.25 | S55: 736.4938621 | T55: 0 | U55: 5749.548059
C58: CELKOVÉ VÝSLEDKY
B59: 8. ročník | F59: 60 m | G59: 300m | H59: 800m | I59: dálka | J59: výška | K59: míček | L59: koule | M59: člunek | N59: lehsed | O59: odbíjení | P59: plavání | Q59: šplh | R59: švihadlo | S59: z místa | T59: REPRE | U59: CELKEM
A61: 1. | B61: =B176 -> DUONG | C61: Ngoc Linh | D61: 8.A | E61: 9.93 | F61: 762.3283482 | G61: 0 | H61: 0 | I61: 758.204 | J61: 707 | K61: 630.9 | L61: 718.2222222 | M61: 0 | N61: 0 | O61: 0 | P61: 0 | Q61: 0 | R61: 0 | S61: 0 | T61: 125 | U61: 3701.65457
A62: 2. | B62: =B177 -> GINGALOVÁ | C62: Linda | D62: 8.A | E62: 9.5 | F62: 799.4997337 | G62: 720.0603372 | H62: 590.58243 | I62: 759.943 | J62: 811 | K62: 558.1 | L62: 538.6666667 | M62: 0 | N62: 514.15 | O62: 60 | P62: 0 | Q62: 0 | R62: 0 | S62: 778.8338055 | T62: 75 | U62: 6205.835973
A63: 3. | B63: =B178 -> HOFMANOVÁ | C63: Nicol | D63: 8.A | E63: 10.83 | F63: 694.0822303 | G63: 0 | H63: 0 | I63: 0 | J63: 0 | K63: 0 | L63: 0 | M63: 0 | N63: 458.59 | O63: 0 | P63: 0 | Q63: 0 | R63: 468.25 | S63: 482.4542021 | T63: 0 | U63: 2103.376432
A64: 4. | B64: =B179 -> HOLEŠOVSKÁ | C64: Aneta | D64: 8.A | E64: 10.26 | F64: 735.914573 | G64: 538.0537913 | H64: 0 | I64: 0 | J64: 0 | K64: 439.8 | L64: 0 | M64: 590.36733 | N64: 0 | O64: 0 | P64: 0 | Q64: 0 | R64: 612 | S64: 0 | T64: 25 | U64: 2941.135694
A65: 5. | B65: =B180 -> HOLUBCOVÁ | C65: Alena | D65: 8.A | E65: 9.08 | F65: 839.2054454 | G65: 792.0960564 | H65: 656.5001622 | I65: 765.16 | J65: 674.5 | K65: 685.5 | L65: 754.6666667 | M65: 712.6040244 | N65: 778.06 | O65: 93 | P65: 456.3765283 | Q65: 0 | R65: 549.5 | S65: 811.7648725 | T65: 200 | U65: 8768.933756
A66: 6. | B66: =B181 -> KOHOUTOVÁ | C66: Anna | D66: 8.A | E66: 11.35 | F66: 659.5843689 | G66: 517.4223176 | H66: 598.9472461 | I66: 0 | J66: 609.5 | K66: 321.5 | L66: 537.7777778 | M66: 509.7748798 | N66: 375.25 | O66: 42 | P66: 0 | Q66: 0 | R66: 618.25 | S66: 473.0453258 | T66: 0 | U66: 5263.051916
A67: 7. | B67: =B182 -> KRAUSOVÁ | C67: Anežka | D67: 8.A | E67: 10.36 | F67: 728.2426182 | G67: 583.0119281 | H67: 537.4770283 | I67: 0 | J67: 674.5 | K67: 494.4 | L67: 568.8888889 | M67: 613.9380888 | N67: 569.71 | O67: 27 | P67: 0 | Q67: 0 | R67: 599.5 | S67: 661.2228517 | T67: 25 | U67: 6082.891404
A68: 8. | B68: =B183 -> KUŽELOVÁ | C68: Apoléna | D68: 8.A | E68: 10.4 | F68: 725.2151469 | G68: 0 | H68: 398.8721691 | I68: 0 | J68: 0 | K68: 421.6 | L68: 0 | M68: 621.8009706 | N68: 458.59 | O68: 24 | P68: 0 | Q68: 0 | R68: 574.5 | S68: 0 | T68: 0 | U68: 3224.578287
A69: 9. | B69: =B184 -> MORÁVKOVÁ | C69: Lucie | D69: 8.A | E69: 11.78 | F69: 633.357862 | G69: 507.5247862 | H69: 394.7147808 | I69: 0 | J69: 0 | K69: 312.4 | L69: 546.6666667 | M69: 575.7146056 | N69: 333.58 | O69: 42 | P69: 0 | Q69: 0 | R69: 430.75 | S69: 0 | T69: 0 | U69: 3776.708701
A70: 10. | B70: =B185 -> SKLENÁROVÁ | C70: Eliška | D70: 8.A | E70: 0 | F70: 0 | G70: 0 | H70: 0 | I70: 0 | J70: 707 | K70: 448.9 | L70: 0 | M70: 0 | N70: 625.27 | O70: 0 | P70: 0 | Q70: 0 | R70: 499.5 | S70: 614.1784703 | T70: 0 | U70: 2894.84847
A71: 11. | B71: =B186 -> ŠEJNOVÁ | C71: Karolína | D71: 8.A | E71: 10.62 | F71: 708.9717082 | G71: 571.2765321 | H71: 526.0102146 | I71: 0 | J71: 0 | K71: 330.6 | L71: 0 | M71: 577.6962279 | N71: 430.81 | O71: 42 | P71: 0 | Q71: 0 | R71: 230.75 | S71: 670.631728 | T71: 0 | U71: 4088.746411
A72: 12. | B72: =B187 -> ŠTOLFOVÁ | C72: Tereza | D72: 8.A | E72: 10.11 | F72: 747.7070731 | G72: 607.5659874 | H72: 549.760404 | I72: 0 | J72: 609.5 | K72: 0 | L72: 0 | M72: 0 | N72: 569.71 | O72: 0 | P72: 0 | Q72: 0 | R72: 230.75 | S72: 538.9074599 | T72: 0 | U72: 3853.900924
A73: 13. | B73: =B188 -> ŠUBÍKOVÁ | C73: Klára | D73: 8.A | E73: 9.9 | F73: 764.8169188 | G73: 686.9359073 | H73: 610.0839843 | I73: 768.638 | J73: 739.5 | K73: 421.6 | L73: 578.6666667 | M73: 676.4289063 | N73: 639.16 | O73: 93 | P73: 0 | Q73: 470.0063094 | R73: 705.75 | S73: 750.6071766 | T73: 75 | U73: 7980.193869
A74: 14. | B74: =B189 -> ŠULKOVSKÁ | C74: Klára | D74: 8.A | E74: 0 | F74: 0 | G74: 0 | H74: 0 | I74: 0 | J74: 0 | K74: 0 | L74: 0 | M74: 0 | N74: 528.04 | O74: 0 | P74: 0 | Q74: 524.0113781 | R74: 274.5 | S74: 0 | T74: 25 | U74: 1351.551378
A75: 15. | B75: =B190 -> TULÁČKOVÁ | C75: Natálie | D75: 8.A | E75: 10.54 | F75: 714.799956 | G75: 620.4185028 | H75: 549.7059011 | I75: 791.245 | J75: 0 | K75: 430.7 | L75: 448.8888889 | M75: 622.9392664 | N75: 0 | O75: 0 | P75: 0 | Q75: 0 | R75: 0 | S75: 0 | T75: 0 | U75: 4178.697515
A76: 16. | B76: =B191 -> VOJTÍŠKOVÁ | C76: Ella | D76: 8.A | E76: 9.32 | F76: 816.0782681 | G76: 767.4832099 | H76: 745.8890321 | I76: 759.943 | J76: 882.5 | K76: 676.4 | L76: 682.6666667 | M76: 712.6040244 | N76: 583.6 | O76: 165 | P76: 0 | Q76: 408.6199884 | R76: 612 | S76: 774.1293673 | T76: 75 | U76: 8661.913557
A77: 17. | B77: =B192 -> DRUGÁČOVÁ | C77: Kristinka | D77: 8.B | E77: 0 | F77: 0 | G77: 0 | H77: 0 | I77: 0 | J77: 0 | K77: 0 | L77: 0 | M77: 0 | N77: 0 | O77: 0 | P77: 0 | Q77: 0 | R77: 874.5 | S77: 0 | T77: 0 | U77: 874.5
A78: 18. | B78: =B193 -> FAJSTAVROVÁ | C78: Karolína | D78: 8.B | E78: 8.76 | F78: 872.0129479 | G78: 786.0621837 | H78: 854.0153218 | I78: 779.072 | J78: 642 | K78: 458 | L78: 704 | M78: 693.3875973 | N78: 430.81 | O78: 60 | P78: 0 | Q78: 0 | R78: 537 | S78: 745.9027384 | T78: 350 | U78: 7912.262789
A79: 19. | B79: =B194 -> FAJSTAVROVÁ | C79: Magdaléna | D79: 8.B | E79: 9.05 | F79: 842.1825903 | G79: 856.2625472 | H79: 914.0657673 | I79: 730.38 | J79: 609.5 | K79: 630.9 | L79: 511.1111111 | M79: 732.8279147 | N79: 541.93 | O79: 27 | P79: 0 | Q79: 412.3189779 | R79: 743.25 | S79: 788.2426818 | T79: 250 | U79: 8589.97159
A80: 20. | B80: =B195 -> JINDROVÁ | C80: Barbora | D80: 8.B | E80: 10.54 | F80: 714.799956 | G80: 0 | H80: 604.8872609 | I80: 740.814 | J80: 739.5 | K80: 303.3 | L80: 342.2222222 | M80: 603.0153936 | N80: 444.7 | O80: 30 | P80: 0 | Q80: 451.697354 | R80: 543.25 | S80: 0 | T80: 25 | U80: 5543.186187
A81: 21. | B81: =B196 -> MAŘASOVÁ | C81: Vendula | D81: 8.B | E81: 10.44 | F81: 722.2108745 | G81: 657.2148561 | H81: 526.2641377 | I81: 620.823 | J81: 707 | K81: 367 | L81: 484.4444444 | M81: 584.2228448 | N81: 472.48 | O81: 51 | P81: 0 | Q81: 0 | R81: 493.25 | S81: 0 | T81: 25 | U81: 5710.910158
A82: 22. | B82: =B197 -> PETŘÍČKOVÁ | C82: Natálie | D82: 8.B | E82: 9.08 | F82: 839.2054454 | G82: 709.2308286 | H82: 611.4433024 | I82: 808.635 | J82: 0 | K82: 485.3 | L82: 502.2222222 | M82: 692.0021691 | N82: 0 | O82: 0 | P82: 0 | Q82: 0 | R82: 0 | S82: 821.1737488 | T82: 75 | U82: 5544.212716
A83: 23. | B83: =B198 -> PETŘÍKOVÁ | C83: Adéla | D83: 8.B | E83: 10.43 | F83: 722.9597823 | G83: 676.1127364 | H83: 625.9898335 | I83: 0 | J83: 577 | K83: 303.3 | L83: 0 | M83: 549.2131781 | N83: 444.7 | O83: 18 | P83: 0 | Q83: 0 | R83: 262 | S83: 388.3654391 | T83: 0 | U83: 4567.640969
A84: 24. | B84: =B199 -> REGÁLOVÁ | C84: Karolína | D84: 8.B | E84: 10.12 | F84: 746.9100306 | G84: 517.4223176 | H84: 501.8086081 | I84: 0 | J84: 0 | K84: 530.8 | L84: 475.5555556 | M84: 631.5993748 | N84: 541.93 | O84: 93 | P84: 0 | Q84: 0 | R84: 0 | S84: 0 | T84: 25 | U84: 4064.025887
A85: 25. | B85: =B200 -> RIEGROVÁ | C85: Magdaléna | D85: 8.B | E85: 10.49 | F85: 718.4877534 | G85: 0 | H85: 547.7496001 | I85: 0 | J85: 642 | K85: 321.5 | L85: 0 | M85: 598.2150407 | N85: 0 | O85: 18 | P85: 0 | Q85: 504.7496346 | R85: 0 | S85: 604.769594 | T85: 0 | U85: 3955.471623
A86: 26. | B86: =B201 -> RYBENSKÁ | C86: Sabina | D86: 8.B | E86: 10.17 | F86: 742.9483297 | G86: 620.4185028 | H86: 597.0716581 | I86: 0 | J86: 0 | K86: 294.2 | L86: 360 | M86: 658.3205443 | N86: 458.59 | O86: 24 | P86: 0 | Q86: 0 | R86: 374.5 | S86: 0 | T86: 0 | U86: 4130.049035
A87: 27. | B87: =B202 -> STEINEROVÁ | C87: Barbora | D87: 8.B | E87: 9.51 | F87: 798.5971053 | G87: 749.2333892 | H87: 593.4110166 | I87: 846.893 | J87: 772 | K87: 612.7 | L87: 440 | M87: 693.3875973 | N87: 458.59 | O87: 33 | P87: 0 | Q87: 541.8736741 | R87: 530.75 | S87: 905.8536355 | T87: 0 | U87: 7976.289418
A88: 28. | B88: =B203 -> ŠERCLOVÁ | C88: Andrea | D88: 8.B | E88: 0 | F88: 0 | G88: 488.5111077 | H88: 0 | I88: 0 | J88: 0 | K88: 0 | L88: 0 | M88: 0 | N88: 375.25 | O88: 0 | P88: 0 | Q88: 0 | R88: 187 | S88: 411.8876298 | T88: 0 | U88: 1462.648737
A89: 29. | B89: =B204 -> TOMEŠOVÁ | C89: Martina | D89: 8.B | E89: 9.73 | F89: 779.2086829 | G89: 724.4965513 | H89: 594.2763038 | I89: 786.028 | J89: 0 | K89: 494.4 | L89: 0 | M89: 679.0907302 | N89: 514.15 | O89: 15 | P89: 0 | Q89: 0 | R89: 387 | S89: 774.1293673 | T89: 0 | U89: 5747.779636
A90: 30. | B90: =B205 -> VOHNOUTOVÁ | C90: Aneta | D90: 8.B | E90: 8.94 | F90: =F205 -> 853.2697355 | G90: 752.8989932 | H90: 711.4185606 | I90: 812.113 | J90: 876 | K90: 626.896 | L90: 676.4444444 | M90: 710.4205226 | N90: 597.49 | O90: 123 | P90: 622.1919106 | Q90: 494.7178551 | R90: 468.25 | S90: 830.5826251 | T90: 100 | U90: 9255.693647
C93: CELKOVÉ VÝSLEDKY
B95: 9. ročník | F95: 60 m | G95: 300m | H95: 800m | I95: dálka | J95: výška | K95: míček | L95: koule | M95: člunek | N95: lehsed | O95: odbíjení | P95: plavání | Q95: šplh | R95: švihadlo | S95: z místa | T95: REPRE | U95: CELKEM
A97: 1. | B97: =B206 -> HAVLÍKOVÁ | C97: Michaela | D97: 9.A | E97: 10.1 | F97: =F206 -> 748.5056939 | G97: 595.5942083 | H97: 0 | I97: 695.6 | J97: 609.5 | K97: 339.7 | L97: 336 | M97: 650.2128345 | N97: 375.25 | O97: 0 | P97: 0 | Q97: 436.9049338 | R97: 455.75 | S97: 632.9962229 | T97: 0 | U97: 5876.013893
A98: 2. | B98: =B207 -> HOLUBCOVÁ | C98: Sára | D98: 9.A | E98: 9.23 | F98: 824.6100166 | G98: 0 | H98: 0 | I98: 0 | J98: 0 | K98: 0 | L98: 0 | M98: 676.4289063 | N98: 541.93 | O98: 129 | P98: 0 | Q98: 475.6464195 | R98: 630.75 | S98: 722.3805477 | T98: 200 | U98: 4200.74589
A99: 3. | B99: =B208 -> HONCŮ | C99: Tereza | D99: 9.A | E99: 10.54 | F99: 714.799956 | G99: 0 | H99: 0 | I99: 0 | J99: 707 | K99: 458 | L99: 0 | M99: 662.1254275 | N99: 583.6 | O99: 51 | P99: 0 | Q99: 0 | R99: 524.5 | S99: 0 | T99: 0 | U99: 3701.025384
A100: 4. | B100: =B209 -> HORÁČKOVÁ | C100: Kateřina | D100: 9.A | E100: 9.26 | F100: 821.7476733 | G100: 668.0184464 | H100: 686.3015886 | I100: 799.94 | J100: 804.5 | K100: 476.2 | L100: 669.3333333 | M100: 696.8736378 | N100: 653.05 | O100: 81 | P100: 546.4438498 | Q100: 504.4496287 | R100: 562 | S100: 858.809254 | T100: 225 | U100: 9053.667412
A101: 5. | B101: =B210 -> JOUDALOVÁ | C101: Daniela | D101: 9.A | E101: 0 | F101: 0 | G101: 0 | H101: 0 | I101: 0 | J101: 0 | K101: 0 | L101: 0 | M101: 0 | N101: 0 | O101: 0 | P101: 0 | Q101: 0 | R101: 0 | S101: 0 | T101: 0 | U101: 0
A102: 6. | B102: =B211 -> KLÍMOVÁ | C102: Anna | D102: 9.A | E102: 9.77 | F102: 775.7773273 | G102: 0 | H102: 0 | I102: 686.905 | J102: 674.5 | K102: 439.8 | L102: 0 | M102: 0 | N102: 0 | O102: 81 | P102: 0 | Q102: 0 | R102: 0 | S102: 778.8338055 | T102: 0 | U102: 3436.816133
A103: 7. | B103: =B212 -> KOHOUTOVÁ | C103: Veronika | D103: 9.A | E103: 9.4 | F103: 808.6316451 | G103: 678.1968507 | H103: 588.5363619 | I103: 740.814 | J103: 674.5 | K103: 530.8 | L103: 555.5555556 | M103: 657.6902978 | N103: 583.6 | O103: 129 | P103: 0 | Q103: 468.755716 | R103: 1087 | S103: 703.5627951 | T103: 200 | U103: 8406.643222
A104: 8. | B104: =B213 -> KOVÁŘOVÁ | C104: Viktorie | D104: 9.A | E104: 9.75 | F104: 777.4894858 | G104: 720.7149087 | H104: 0 | I104: 0 | J104: 0 | K104: 549 | L104: 509.3333333 | M104: 669.2069266 | N104: 0 | O104: 36 | P104: 0 | Q104: 0 | R104: 0 | S104: 760.0160529 | T104: 25 | U104: 4046.760707
A105: 9. | B105: =B214 -> KYNČLOVÁ | C105: Anna | D105: 9.A | E105: 9.04 | F105: 843.179363 | G105: 791.906397 | H105: 988.3762529 | I105: 786.028 | J105: 915 | K105: 485.3 | L105: 440 | M105: 722.2108745 | N105: 694.72 | O105: 51 | P105: 550.8558675 | Q105: 584.2101152 | R105: 668.25 | S105: 821.1737488 | T105: 250 | U105: 9592.210619
A106: 10. | B106: =B215 -> MATOUŠOVÁ | C106: Tereza | D106: 9.A | E106: 10.24 | F106: 737.466945 | G106: 0 | H106: 0 | I106: 0 | J106: 0 | K106: 458 | L106: 0 | M106: 647.1430823 | N106: 625.27 | O106: 0 | P106: 0 | Q106: 0 | R106: 112 | S106: 0 | T106: 25 | U106: 2604.880027
A107: 11. | B107: =B216 -> MAZÁNKOVÁ | C107: Zuzana | D107: 9.A | E107: 10.1 | F107: 748.5056939 | G107: 623.5630957 | H107: 0 | I107: 0 | J107: 609.5 | K107: 294.2 | L107: 466.6666667 | M107: 650.829991 | N107: 486.37 | O107: 0 | P107: 0 | Q107: 0 | R107: 149.5 | S107: 698.8583569 | T107: 0 | U107: 4727.993804
A108: 12. | B108: =B217 -> MORKESOVÁ | C108: Sabrina | D108: 9.A | E108: 9.15 | F108: 832.3346938 | G108: 663.5206783 | H108: 700.6998528 | I108: 827.764 | J108: 739.5 | K108: 834.012 | L108: 684.4444444 | M108: 730.5286082 | N108: 639.16 | O108: 138 | P108: 0 | Q108: 485.0797469 | R108: 687 | S108: 811.7648725 | T108: 250 | U108: 9023.808897
A109: 13. | B109: =B218 -> POHOŘALÁ | C109: Alžběta | D109: 9.A | E109: 9.54 | F109: 795.9005737 | G109: 765.3215417 | H109: 0 | I109: 686.905 | J109: 0 | K109: 403.4 | L109: 457.7777778 | M109: 0 | N109: 0 | O109: 0 | P109: 0 | Q109: 0 | R109: 0 | S109: 811.7648725 | T109: 150 | U109: 4071.069766
A110: 14. | B110: =B219 -> SCHOLZOVÁ | C110: Laura | D110: 9.A | E110: 0 | F110: 0 | G110: 0 | H110: 0 | I110: 0 | J110: 0 | K110: 0 | L110: 0 | M110: 0 | N110: 0 | O110: 36 | P110: 0 | Q110: 0 | R110: 0 | S110: 0 | T110: 0 | U110: 36
A111: 15. | B111: =B220 -> VÁCLAVÍKOVÁ | C111: Valerie | D111: 9.A | E111: 9.68 | F111: 783.5377564 | G111: 734.675767 | H111: 677.3611427 | I111: 742.553 | J111: 0 | K111: 0 | L111: 609.7777778 | M111: 668.5574111 | N111: 597.49 | O111: 138 | P111: 0 | Q111: 0 | R111: 712 | S111: 769.4249292 | T111: 200 | U111: 6633.377784
A112: 16. | B112: =B221 -> ZAPADLOVÁ | C112: Emma | D112: 9.A | E112: 9.04 | F112: 843.179363 | G112: 798.9717017 | H112: 703.5587018 | I112: 0 | J112: 804.5 | K112: 776.5 | L112: 397.3333333 | M112: 689.2465651 | N112: 0 | O112: 66 | P112: 0 | Q112: 0 | R112: 0 | S112: 821.1737488 | T112: 250 | U112: 6150.463414
A113: 17. | B113: =B222 -> ŽIŠKOVÁ | C113: Mia | D113: 9.A | E113: 0 | F113: 0 | G113: 0 | H113: 0 | I113: 0 | J113: 0 | K113: 0 | L113: 0 | M113: 0 | N113: 0 | O113: 66 | P113: 0 | Q113: 0 | R113: 0 | S113: 0 | T113: 25 | U113: 91
A114: 18. | B114: =B223 -> FARSKÁ | C114: Tereza | D114: 9.B | E114: 11.42 | F114: 655.1803496 | G114: 0 | H114: 0 | I114: 0 | J114: 0 | K114: 330.6 | L114: 0 | M114: 0 | N114: 0 | O114: 0 | P114: 0 | Q114: 0 | R114: 0 | S114: 0 | T114: 0 | U114: 985.7803496
A115: 19. | B115: =B224 -> FEIXOVÁ | C115: Rozálie | D115: 9.B | E115: 0 | F115: 0 | G115: 0 | H115: 0 | I115: 0 | J115: 0 | K115: 276 | L115: 0 | M115: 0 | N115: 0 | O115: 0 | P115: 0 | Q115: 0 | R115: 0 | S115: 0 | T115: 0 | U115: 276
A116: 20. | B116: =B225 -> FIŠEROVÁ | C116: Michaela | D116: 9.B | E116: 10.45 | F116: 721.4634001 | G116: 0 | H116: 0 | I116: 0 | J116: 0 | K116: 348.8 | L116: 626.6666667 | M116: 0 | N116: 0 | O116: 0 | P116: 0 | Q116: 0 | R116: 0 | S116: 0 | T116: 25 | U116: 1721.930067
A117: 21. | B117: =B226 -> HAVLÍČKOVÁ | C117: Kristýna | D117: 9.B | E117: 0 | F117: 0 | G117: 0 | H117: 0 | I117: 0 | J117: 0 | K117: 303.3 | L117: 600 | M117: 0 | N117: 0 | O117: 0 | P117: 0 | Q117: 0 | R117: 0 | S117: 0 | T117: 0 | U117: 903.3
A118: 22. | B118: =B227 -> KADAVÁ | C118: Nikola | D118: 9.B | E118: 12.18 | F118: 610.6236158 | G118: 0 | H118: 0 | I118: 0 | J118: 0 | K118: 257.8 | L118: 457.7777778 | M118: 0 | N118: 0 | O118: 0 | P118: 0 | Q118: 0 | R118: 0 | S118: 0 | T118: 0 | U118: 1326.201394
A119: 23. | B119: =B228 -> KŘIVINKOVÁ | C119: Alžběta | D119: 9.B | E119: 10 | F119: 756.5797502 | G119: 0 | H119: 0 | I119: 0 | J119: 0 | K119: 458 | L119: 635.5555556 | M119: 0 | N119: 0 | O119: 0 | P119: 0 | Q119: 0 | R119: 0 | S119: 0 | T119: 0 | U119: 1850.135306
A120: 24. | B120: =B229 -> LEŠÁKOVÁ | C120: Lenka | D120: 9.B | E120: 10.39 | F120: 725.9698293 | G120: 0 | H120: 0 | I120: 0 | J120: 0 | K120: 221.4 | L120: 502.2222222 | M120: 0 | N120: 0 | O120: 0 | P120: 0 | Q120: 0 | R120: 0 | S120: 0 | T120: 0 | U120: 1449.592052
A121: 25. | B121: =B230 -> NYKLÍČKOVÁ | C121: Adéla | D121: 9.B | E121: 9.84 | F121: 769.8395825 | G121: 0 | H121: 0 | I121: 0 | J121: 0 | K121: 430.7 | L121: 600 | M121: 0 | N121: 0 | O121: 0 | P121: 0 | Q121: 0 | R121: 0 | S121: 0 | T121: 25 | U121: 1825.539583
A122: 26. | B122: =B231 -> PLŮCHOVÁ | C122: Petra | D122: 9.B | E122: 10.38 | F122: 726.7259659 | G122: 0 | H122: 0 | I122: 0 | J122: 0 | K122: 439.8 | L122: 626.6666667 | M122: 0 | N122: 0 | O122: 0 | P122: 0 | Q122: 0 | R122: 0 | S122: 0 | T122: 25 | U122: 1818.192633
A123: 27. | B123: =B232 -> PODZIMKOVÁ | C123: Eliška | D123: 9.B | E123: 11.59 | F123: 644.7063505 | G123: 0 | H123: 0 | I123: 0 | J123: 0 | K123: 494.4 | L123: 484.4444444 | M123: 0 | N123: 0 | O123: 0 | P123: 0 | Q123: 0 | R123: 0 | S123: 0 | T123: 0 | U123: 1623.550795
A124: 28. | B124: =B233 -> RUTKAYOVÁ | C124: Klára | D124: 9.B | E124: 11.06 | F124: 678.4234692 | G124: 0 | H124: 0 | I124: 0 | J124: 0 | K124: 312.4 | L124: 0 | M124: 0 | N124: 0 | O124: 0 | P124: 0 | Q124: 0 | R124: 0 | S124: 0 | T124: 0 | U124: 990.8234692
A125: 29. | B125: =B234 -> SEIDLOVÁ | C125: Zuzana | D125: 9.B | E125: 10.36 | F125: 728.2426182 | G125: 0 | H125: 0 | I125: 0 | J125: 0 | K125: 621.8 | L125: 742.2222222 | M125: 0 | N125: 0 | O125: 0 | P125: 0 | Q125: 0 | R125: 0 | S125: 0 | T125: 0 | U125: 2092.26484
A126: 30. | B126: =B235 -> TOMÁŠOVÁ | C126: Sára | D126: 9.B | E126: 12.4 | F126: 598.7449721 | G126: 0 | H126: 0 | I126: 0 | J126: 0 | K126: 357.9 | L126: 475.5555556 | M126: 0 | N126: 0 | O126: 0 | P126: 0 | Q126: 0 | R126: 0 | S126: 0 | T126: 0 | U126: 1432.200528
A127: 31. | B127: =B236 -> VANCLOVÁ | C127: Barbora | D127: 9.B | E127: 10.28 | F127: 734.3682412 | G127: 0 | H127: 0 | I127: 0 | J127: 0 | K127: 439.8 | L127: 502.2222222 | M127: 0 | N127: 0 | O127: 0 | P127: 746.3960642 | Q127: 0 | R127: 0 | S127: 0 | T127: 0 | U127: 2422.786528
A128: 32. | B128: =B237 -> VOTOČKOVÁ | C128: Veronika | D128: 9.B | E128: 12.62 | F128: 587.2804808 | G128: 0 | H128: 0 | I128: 0 | J128: 0 | K128: 257.8 | L128: 502.2222222 | M128: 0 | N128: 0 | O128: 0 | P128: 0 | Q128: 0 | R128: 0 | S128: 0 | T128: 0 | U128: 1347.302703
B139: ='D60'!B111 -> FARSKÁ | C139: ='D60'!C111 -> Anna | D139: ='D60'!D111 -> 6.A | E139: ='D60'!E111 -> 9.98 | F139: ='D60'!H111 -> 758.213978 | G139: ='D300'!H111 -> 622.2499762 | H139: ='D800'!H111 -> 477.9526677 | I139: =Ddál!H111 -> 735.597 | J139: =Dvýš!H111 -> 642 | K139: =Dmíč!H111 -> 357.9 | L139: =Dkou!H111 -> 484.4444444 | M139: =Dčlu!H111 -> 551.0325142 | N139: =Dls!H111 -> 514.15 | O139: =Dodbíj!H111 -> 30 | P139: =Dplav!H111 -> 0 | Q139: =Dšplh!H111 -> 493.3599777 | R139: =Dšvih!H111 -> 655.75 | S139: ='Dz mís'!H111 -> 755.3116147 | T139: =Drepre!E4 -> 125 | U139: =SUM(F139:T139) -> 7202.962173 | W139: =FREQUENCY(F139:S139,0) -> 1
B140: ='D60'!B112 -> FARSKÁ | C140: ='D60'!C112 -> Eliška | D140: ='D60'!D112 -> 6.A | E140: ='D60'!E112 -> 9.45 | F140: ='D60'!H112 -> 804.0415309 | G140: ='D300'!H112 -> 521.3562489 | H140: ='D800'!H112 -> 608.1507247 | I140: =Ddál!H112 -> 794.723 | J140: =Dvýš!H112 -> 642 | K140: =Dmíč!H112 -> 367 | L140: =Dkou!H112 -> 436.4444444 | M140: =Dčlu!H112 -> 592.4416663 | N140: =Dls!H112 -> 361.36 | O140: =Dodbíj!H112 -> 27 | P140: =Dplav!H112 -> 0 | Q140: =Dšplh!H112 -> 537.8620018 | R140: =Dšvih!H112 -> 687 | S140: ='Dz mís'!H112 -> 783.5382436 | T140: =Drepre!E5 -> 75 | U140: 7237.917861 | W140: 1
B141: ='D60'!B113 -> FEDORKOVÁ | C141: ='D60'!C113 -> Denisa | D141: ='D60'!D113 -> 6.A | E141: ='D60'!E113 -> 11.32 | F141: ='D60'!H113 -> 661.4884793 | G141: ='D300'!H113 -> 391.6822289 | H141: ='D800'!H113 -> 0 | I141: =Ddál!H113 -> 565.175 | J141: =Dvýš!H113 -> 609.5 | K141: =Dmíč!H113 -> 276 | L141: =Dkou!H113 -> 353.7777778 | M141: =Dčlu!H113 -> 547.4046632 | N141: =Dls!H113 -> 236.35 | O141: =Dodbíj!H113 -> 27 | P141: =Dplav!H113 -> 0 | Q141: =Dšplh!H113 -> 0 | R141: =Dšvih!H113 -> 680.75 | S141: ='Dz mís'!H113 -> 553.0207743 | T141: =Drepre!E6 -> 0 | U141: 4902.148924 | W141: 3
B142: ='D60'!B114 -> HAUZEROVÁ | C142: ='D60'!C114 -> Tereza | D142: ='D60'!D114 -> 6.A | E142: ='D60'!E114 -> 9.96 | F142: ='D60'!H114 -> 759.854769 | G142: ='D300'!H114 -> 547.7220354 | H142: ='D800'!H114 -> 515.4708949 | I142: =Ddál!H114 -> 711.251 | J142: =Dvýš!H114 -> 642 | K142: =Dmíč!H114 -> 257.8 | L142: =Dkou!H114 -> 319.1111111 | M142: =Dčlu!H114 -> 555.6288402 | N142: =Dls!H114 -> 291.91 | O142: =Dodbíj!H114 -> 21 | P142: =Dplav!H114 -> 0 | Q142: =Dšplh!H114 -> 0 | R142: =Dšvih!H114 -> 587 | S142: ='Dz mís'!H114 -> 680.0406043 | T142: =Drepre!E7 -> 0 | U142: 5888.789255 | W142: 2
B143: ='D60'!B115 -> JOSKOVÁ | C143: ='D60'!C115 -> Ellen | D143: ='D60'!D115 -> 6.A | E143: ='D60'!E115 -> 9.4 | F143: ='D60'!H115 -> 808.6316451 | G143: ='D300'!H115 -> 691.8310546 | H143: ='D800'!H115 -> 607.4443911 | I143: =Ddál!H115 -> 620.823 | J143: =Dvýš!H115 -> 609.5 | K143: =Dmíč!H115 -> 294.2 | L143: =Dkou!H115 -> 450.6666667 | M143: =Dčlu!H115 -> 592.4416663 | N143: =Dls!H115 -> 389.14 | O143: =Dodbíj!H115 -> 9 | P143: =Dplav!H115 -> 0 | Q143: =Dšplh!H115 -> 0 | R143: =Dšvih!H115 -> 587 | S143: ='Dz mís'!H115 -> 670.631728 | T143: =Drepre!E8 -> 75 | U143: 6406.310152 | W143: 2
B144: ='D60'!B116 -> KUŽELOVÁ | C144: ='D60'!C116 -> Amálie | D144: ='D60'!D116 -> 6.A | E144: ='D60'!E116 -> 12.23 | F144: ='D60'!H116 -> 607.8863977 | G144: ='D300'!H116 -> 387.7156773 | H144: ='D800'!H116 -> 0 | I144: =Ddál!H116 -> 476.486 | J144: =Dvýš!H116 -> 0 | K144: =Dmíč!H116 -> 0 | L144: =Dkou!H116 -> 0 | M144: =Dčlu!H116 -> 459.8530448 | N144: =Dls!H116 -> 361.36 | O144: =Dodbíj!H116 -> 60 | P144: =Dplav!H116 -> 0 | Q144: =Dšplh!H116 -> 0 | R144: =Dšvih!H116 -> 443.25 | S144: ='Dz mís'!H116 -> 0 | T144: =Drepre!E9 -> 0 | U144: 2796.55112 | W144: 7
B145: ='D60'!B117 -> RYŠAVÁ | C145: ='D60'!C117 -> Amálie | D145: ='D60'!D117 -> 6.A | E145: ='D60'!E117 -> 10.73 | F145: ='D60'!H117 -> 701.0997715 | G145: ='D300'!H117 -> 415.9521818 | H145: ='D800'!H117 -> 556.587187 | I145: =Ddál!H117 -> 620.823 | J145: =Dvýš!H117 -> 0 | K145: =Dmíč!H117 -> 348.8 | L145: =Dkou!H117 -> 440 | M145: =Dčlu!H117 -> 549.6669938 | N145: =Dls!H117 -> 97.45 | O145: =Dodbíj!H117 -> 75 | P145: =Dplav!H117 -> 0 | Q145: =Dšplh!H117 -> 0 | R145: =Dšvih!H117 -> 918.25 | S145: ='Dz mís'!H117 -> 0 | T145: =Drepre!E10 -> 0 | U145: 4723.629134 | W145: 4 | X145: =SUM(W139:W145) -> 20
B146: ='D60'!B118 -> BANGOVÁ | C146: ='D60'!C118 -> Zuzana | D146: ='D60'!D118 -> 6.B | E146: ='D60'!E118 -> 11.08 | F146: ='D60'!H118 -> 677.0925605 | G146: ='D300'!H118 -> 346.0970787 | H146: ='D800'!H118 -> 438.2973788 | I146: =Ddál!H118 -> 568.653 | J146: =Dvýš!H118 -> 609.5 | K146: =Dmíč!H118 -> 312.4 | L146: =Dkou!H118 -> 330.6666667 | M146: =Dčlu!H118 -> 0 | N146: =Dls!H118 -> 0 | O146: =Dodbíj!H118 -> 0 | P146: =Dplav!H118 -> 0 | Q146: =Dšplh!H118 -> 0 | R146: =Dšvih!H118 -> 574.5 | S146: ='Dz mís'!H118 -> 501.2719547 | T146: =Drepre!E11 -> 0 | U146: 4358.478639 | W146: 5
B147: ='D60'!B119 -> HOLUBOVÁ | C147: ='D60'!C119 -> Denisa | D147: ='D60'!D119 -> 6.B | E147: ='D60'!E119 -> 12 | F147: ='D60'!H119 -> 620.6664691 | G147: ='D300'!H119 -> 397.8011511 | H147: ='D800'!H119 -> 449.7033541 | I147: =Ddál!H119 -> 563.436 | J147: =Dvýš!H119 -> 642 | K147: =Dmíč!H119 -> 330.6 | L147: =Dkou!H119 -> 488.8888889 | M147: =Dčlu!H119 -> 570.3282168 | N147: =Dls!H119 -> 278.02 | O147: =Dodbíj!H119 -> 0 | P147: =Dplav!H119 -> 0 | Q147: =Dšplh!H119 -> 0 | R147: =Dšvih!H119 -> 580.75 | S147: ='Dz mís'!H119 -> 505.9763928 | T147: =Drepre!E12 -> 0 | U147: 5428.170473 | W147: 3
B148: ='D60'!B120 -> HURKALO | C148: ='D60'!C120 -> Karolina | D148: ='D60'!D120 -> 6.B | E148: ='D60'!E120 -> 15.65 | F148: ='D60'!H120 -> 462.1733457 | G148: ='D300'!H120 -> 259.3769651 | H148: ='D800'!H120 -> 0 | I148: =Ddál!H120 -> 0 | J148: =Dvýš!H120 -> 0 | K148: =Dmíč!H120 -> 185 | L148: =Dkou!H120 -> 0 | M148: =Dčlu!H120 -> 0 | N148: =Dls!H120 -> 0 | O148: =Dodbíj!H120 -> 0 | P148: =Dplav!H120 -> 0 | Q148: =Dšplh!H120 -> 0 | R148: =Dšvih!H120 -> 418.25 | S148: ='Dz mís'!H120 -> 0 | T148: =Drepre!E13 -> 0 | U148: 1324.800311 | W148: 10
B149: ='D60'!B121 -> HUTNIK-MAMONOVA | C149: ='D60'!C121 -> Nana | D149: ='D60'!D121 -> 6.B | E149: ='D60'!E121 -> 14 | F149: ='D60'!H121 -> 523.585554 | G149: ='D300'!H121 -> 0 | H149: ='D800'!H121 -> 0 | I149: =Ddál!H121 -> 0 | J149: =Dvýš!H121 -> 0 | K149: =Dmíč!H121 -> 94 | L149: =Dkou!H121 -> 0 | M149: =Dčlu!H121 -> 560.7654789 | N149: =Dls!H121 -> 0 | O149: =Dodbíj!H121 -> 0 | P149: =Dplav!H121 -> 0 | Q149: =Dšplh!H121 -> 0 | R149: =Dšvih!H121 -> 80.75 | S149: ='Dz mís'!H121 -> 0 | T149: =Drepre!E14 -> 0 | U149: 1259.101033 | W149: 10
B150: ='D60'!B122 -> MARINOVA | C150: ='D60'!C122 -> Darja | D150: ='D60'!D122 -> 6.B | E150: ='D60'!E122 -> 12 | F150: ='D60'!H122 -> 620.6664691 | G150: ='D300'!H122 -> 495.9952152 | H150: ='D800'!H122 -> 0 | I150: =Ddál!H122 -> 0 | J150: =Dvýš!H122 -> 0 | K150: =Dmíč!H122 -> 0 | L150: =Dkou!H122 -> 0 | M150: =Dčlu!H122 -> 0 | N150: =Dls!H122 -> 430.81 | O150: =Dodbíj!H122 -> 0 | P150: =Dplav!H122 -> 0 | Q150: =Dšplh!H122 -> 0 | R150: =Dšvih!H122 -> 418.25 | S150: ='Dz mís'!H122 -> 0 | T150: =Drepre!E15 -> 0 | U150: 1965.721684 | W150: 10
B151: ='D60'!B123 -> NYKLÍČKOVÁ | C151: ='D60'!C123 -> Klára | D151: ='D60'!D123 -> 6.B | E151: ='D60'!E123 -> 10.58 | F151: ='D60'!H123 -> 711.8748146 | G151: ='D300'!H123 -> 600.9131975 | H151: ='D800'!H123 -> 634.1330447 | I151: =Ddál!H123 -> 568.653 | J151: =Dvýš!H123 -> 544.5 | K151: =Dmíč!H123 -> 357.9 | L151: =Dkou!H123 -> 336 | M151: =Dčlu!H123 -> 651.4482226 | N151: =Dls!H123 -> 430.81 | O151: =Dodbíj!H123 -> 24 | P151: =Dplav!H123 -> 0 | Q151: =Dšplh!H123 -> 0 | R151: =Dšvih!H123 -> 980.75 | S151: ='Dz mís'!H123 -> 703.5627951 | T151: =Drepre!E16 -> 0 | U151: 6544.545075 | W151: 2
B152: ='D60'!B124 -> PANCHAYEVA | C152: ='D60'!C124 -> Sofiia | D152: ='D60'!D124 -> 6.B | E152: ='D60'!E124 -> 12 | F152: ='D60'!H124 -> 620.6664691 | G152: ='D300'!H124 -> 383.2646417 | H152: ='D800'!H124 -> 480.2063702 | I152: =Ddál!H124 -> 0 | J152: =Dvýš!H124 -> 0 | K152: =Dmíč!H124 -> 112.2 | L152: =Dkou!H124 -> 0 | M152: =Dčlu!H124 -> 584.7304397 | N152: =Dls!H124 -> 375.25 | O152: =Dodbíj!H124 -> 0 | P152: =Dplav!H124 -> 0 | Q152: =Dšplh!H124 -> 0 | R152: =Dšvih!H124 -> 0 | S152: ='Dz mís'!H124 -> 0 | T152: =Drepre!E17 -> 0 | U152: 2556.317921 | W152: 8
B153: ='D60'!B125 -> PIČMANOVÁ | C153: ='D60'!C125 -> Klára | D153: ='D60'!D125 -> 6.B | E153: ='D60'!E125 -> 11.14 | F153: ='D60'!H125 -> 673.1285076 | G153: ='D300'!H125 -> 378.088352 | H153: ='D800'!H125 -> 0 | I153: =Ddál!H125 -> 565.175 | J153: =Dvýš!H125 -> 0 | K153: =Dmíč!H125 -> 0 | L153: =Dkou!H125 -> 0 | M153: =Dčlu!H125 -> 530.3194903 | N153: =Dls!H125 -> 0 | O153: =Dodbíj!H125 -> 0 | P153: =Dplav!H125 -> 0 | Q153: =Dšplh!H125 -> 0 | R153: =Dšvih!H125 -> 0 | S153: ='Dz mís'!H125 -> 0 | T153: =Drepre!E18 -> 0 | U153: 2146.71135 | W153: 10
B154: ='D60'!B126 -> ŠIMŮNKOVÁ | C154: ='D60'!C126 -> Anežka | D154: ='D60'!D126 -> 6.B | E154: ='D60'!E126 -> 10.36 | F154: ='D60'!H126 -> 728.2426182 | G154: ='D300'!H126 -> 443.9458945 | H154: ='D800'!H126 -> 446.059527 | I154: =Ddál!H126 -> 636.474 | J154: =Dvýš!H126 -> 642 | K154: =Dmíč!H126 -> 0 | L154: =Dkou!H126 -> 369.7777778 | M154: =Dčlu!H126 -> 536.7755103 | N154: =Dls!H126 -> 430.81 | O154: =Dodbíj!H126 -> 15 | P154: =Dplav!H126 -> 0 | Q154: =Dšplh!H126 -> 0 | R154: =Dšvih!H126 -> 712 | S154: ='Dz mís'!H126 -> 632.9962229 | T154: =Drepre!E19 -> 0 | U154: 5594.081551 | W154: 3
B155: ='D60'!B127 -> TRPIŠOVSKÁ | C155: ='D60'!C127 -> Nela | D155: ='D60'!D127 -> 6.B | E155: ='D60'!E127 -> 10.18 | F155: ='D60'!H127 -> 742.1606595 | G155: ='D300'!H127 -> 469.9456121 | H155: ='D800'!H127 -> 461.3702127 | I155: =Ddál!H127 -> 638.213 | J155: =Dvýš!H127 -> 642 | K155: =Dmíč!H127 -> 376.1 | L155: =Dkou!H127 -> 377.7777778 | M155: =Dčlu!H127 -> 631.0151961 | N155: =Dls!H127 -> 514.15 | O155: =Dodbíj!H127 -> 18 | P155: =Dplav!H127 -> 0 | Q155: =Dšplh!H127 -> 0 | R155: =Dšvih!H127 -> 830.75 | S155: ='Dz mís'!H127 -> 670.631728 | T155: =Drepre!E20 -> 25 | U155: 6397.114186 | W155: 2 | X155: =SUM(W146:W155) -> 63
B156: ='D60'!B128 -> HEJRALOVÁ | C156: ='D60'!C128 -> Natálie | D156: ='D60'!D128 -> 7.A | E156: ='D60'!E128 -> 9.86 | F156: ='D60'!H128 -> 768.1585693 | G156: ='D300'!H128 -> 697.5577254 | H156: ='D800'!H128 -> 685.2026154 | I156: =Ddál!H128 -> 721.685 | J156: =Dvýš!H128 -> 739.5 | K156: =Dmíč!H128 -> 412.5 | L156: =Dkou!H128 -> 564.4444444 | M156: =Dčlu!H128 -> 671.1624509 | N156: =Dls!H128 -> 597.49 | O156: =Dodbíj!H128 -> 39 | P156: =Dplav!H128 -> 507.964804 | Q156: =Dšplh!H128 -> 0 | R156: =Dšvih!H128 -> 655.75 | S156: ='Dz mís'!H128 -> 675.3361662 | T156: =Drepre!E21 -> 75 | U156: 7810.751776 | W156: 1
B157: ='D60'!B129 -> KERLE | C157: ='D60'!C129 -> Nikita | D157: ='D60'!D129 -> 7.A | E157: ='D60'!E129 -> 9.82 | F157: ='D60'!H129 -> 771.527443 | G157: ='D300'!H129 -> 720.8786948 | H157: ='D800'!H129 -> 736.1788084 | I157: =Ddál!H129 -> 824.286 | J157: =Dvýš!H129 -> 674.5 | K157: =Dmíč!H129 -> 458 | L157: =Dkou!H129 -> 486.2222222 | M157: =Dčlu!H129 -> 678.4234692 | N157: =Dls!H129 -> 722.5 | O157: =Dodbíj!H129 -> 42 | P157: =Dplav!H129 -> 0 | Q157: =Dšplh!H129 -> 490.173332 | R157: =Dšvih!H129 -> 674.5 | S157: ='Dz mís'!H129 -> 694.1539188 | T157: =Drepre!E22 -> 225 | U157: 8198.343888 | W157: 1
B158: ='D60'!B130 -> MUNZAROVÁ | C158: ='D60'!C130 -> Aneta | D158: ='D60'!D130 -> 7.A | E158: ='D60'!E130 -> 0 | F158: ='D60'!H130 -> 0 | G158: ='D300'!H130 -> 0 | H158: ='D800'!H130 -> 0 | I158: =Ddál!H130 -> 0 | J158: =Dvýš!H130 -> 0 | K158: =Dmíč!H130 -> 221.4 | L158: =Dkou!H130 -> 0 | M158: =Dčlu!H130 -> 540.2769089 | N158: =Dls!H130 -> 458.59 | O158: =Dodbíj!H130 -> 15 | P158: =Dplav!H130 -> 0 | Q158: =Dšplh!H130 -> 0 | R158: =Dšvih!H130 -> 0 | S158: ='Dz mís'!H130 -> 501.2719547 | T158: =Drepre!E23 -> 0 | U158: 1736.538864 | W158: 9
B159: ='D60'!B131 -> PACLÍKOVÁ | C159: ='D60'!C131 -> Markéta | D159: ='D60'!D131 -> 7.A | E159: ='D60'!E131 -> 9.4 | F159: ='D60'!H131 -> 808.6316451 | G159: ='D300'!H131 -> 713.8872825 | H159: ='D800'!H131 -> 712.5475324 | I159: =Ddál!H131 -> 747.77 | J159: =Dvýš!H131 -> 804.5 | K159: =Dmíč!H131 -> 594.136 | L159: =Dkou!H131 -> 520.8888889 | M159: =Dčlu!H131 -> 682.4452332 | N159: =Dls!H131 -> 708.61 | O159: =Dodbíj!H131 -> 360.8 | P159: =Dplav!H131 -> 521.6866883 | Q159: =Dšplh!H131 -> 460.3115901 | R159: =Dšvih!H131 -> 674.5 | S159: ='Dz mís'!H131 -> 778.8338055 | T159: =Drepre!E24 -> 175 | U159: 9264.548666 | W159: 0
B160: ='D60'!B132 -> PLŮCHOVÁ | C160: ='D60'!C132 -> Michaela | D160: ='D60'!D132 -> 7.A | E160: ='D60'!E132 -> 9.4 | F160: ='D60'!H132 -> 808.6316451 | G160: ='D300'!H132 -> 733.6647619 | H160: ='D800'!H132 -> 713.008353 | I160: =Ddál!H132 -> 770.377 | J160: =Dvýš!H132 -> 804.5 | K160: =Dmíč!H132 -> 439.8 | L160: =Dkou!H132 -> 633.7777778 | M160: =Dčlu!H132 -> 644.7063505 | N160: =Dls!H132 -> 500.26 | O160: =Dodbíj!H132 -> 42 | P160: =Dplav!H132 -> 0 | Q160: =Dšplh!H132 -> 394.3513385 | R160: =Dšvih!H132 -> 674.5 | S160: ='Dz mís'!H132 -> 661.2228517 | T160: =Drepre!E25 -> 225 | U160: 8045.800079 | W160: 1
B161: ='D60'!B133 -> ŠERCLOVÁ | C161: ='D60'!C133 -> Nikola | D161: ='D60'!D133 -> 7.A | E161: ='D60'!E133 -> 0 | F161: ='D60'!H133 -> 0 | G161: ='D300'!H133 -> 543.1794779 | H161: ='D800'!H133 -> 602.7276026 | I161: =Ddál!H133 -> 0 | J161: =Dvýš!H133 -> 609.5 | K161: =Dmíč!H133 -> 403.4 | L161: =Dkou!H133 -> 424 | M161: =Dčlu!H133 -> 580.190727 | N161: =Dls!H133 -> 444.7 | O161: =Dodbíj!H133 -> 30 | P161: =Dplav!H133 -> 0 | Q161: =Dšplh!H133 -> 0 | R161: =Dšvih!H133 -> 493.25 | S161: ='Dz mís'!H133 -> 670.631728 | T161: =Drepre!E26 -> 25 | U161: 4826.579536 | W161: 4
B162: ='D60'!B134 -> VÁCLAVÍKOVÁ | C162: ='D60'!C134 -> Alena | D162: ='D60'!D134 -> 7.A | E162: ='D60'!E134 -> 10.04 | F162: ='D60'!H134 -> 753.3308272 | G162: ='D300'!H134 -> 697.4019997 | H162: ='D800'!H134 -> 645.031267 | I162: =Ddál!H134 -> 671.254 | J162: =Dvýš!H134 -> 609.5 | K162: =Dmíč!H134 -> 385.2 | L162: =Dkou!H134 -> 297.7777778 | M162: =Dčlu!H134 -> 675.7664479 | N162: =Dls!H134 -> 528.04 | O162: =Dodbíj!H134 -> 42 | P162: =Dplav!H134 -> 0 | Q162: =Dšplh!H134 -> 0 | R162: =Dšvih!H134 -> 0 | S162: ='Dz mís'!H134 -> 698.8583569 | T162: =Drepre!E27 -> 25 | U162: 6029.160676 | W162: 3 | X162: =SUM(W156:W162) -> 19
B163: ='D60'!B135 -> DUCHÁČKOVÁ | C163: ='D60'!C135 -> Tereza | D163: ='D60'!D135 -> 7.B | E163: ='D60'!E135 -> 11.99 | F163: ='D60'!H135 -> 621.2332467 | G163: ='D300'!H135 -> 383.9348105 | H163: ='D800'!H135 -> 364.4468941 | I163: =Ddál!H135 -> 0 | J163: =Dvýš!H135 -> 577 | K163: =Dmíč!H135 -> 257.8 | L163: =Dkou!H135 -> 334.2222222 | M163: =Dčlu!H135 -> 549.6669938 | N163: =Dls!H135 -> 458.59 | O163: =Dodbíj!H135 -> 30 | P163: =Dplav!H135 -> 0 | Q163: =Dšplh!H135 -> 0 | R163: =Dšvih!H135 -> 255.75 | S163: ='Dz mís'!H135 -> 411.8876298 | T163: =Drepre!E28 -> 0 | U163: 4244.531797 | W163: 3
B164: ='D60'!B136 -> FLAŠKOVÁ | C164: ='D60'!C136 -> Anna Sabriel | D164: ='D60'!D136 -> 7.B | E164: ='D60'!E136 -> 11.25 | F164: ='D60'!H136 -> 665.9708961 | G164: ='D300'!H136 -> 0 | H164: ='D800'!H136 -> 0 | I164: =Ddál!H136 -> 678.21 | J164: =Dvýš!H136 -> 609.5 | K164: =Dmíč!H136 -> 430.7 | L164: =Dkou!H136 -> 364.4444444 | M164: =Dčlu!H136 -> 543.8197136 | N164: =Dls!H136 -> 444.7 | O164: =Dodbíj!H136 -> 21 | P164: =Dplav!H136 -> 0 | Q164: =Dšplh!H136 -> 0 | R164: =Dšvih!H136 -> 255.75 | S164: ='Dz mís'!H136 -> 515.3852691 | T164: =Drepre!E29 -> 0 | U164: 4529.480323 | W164: 4
B165: ='D60'!B137 -> HAASOVÁ | C165: ='D60'!C137 -> Julie | D165: ='D60'!D137 -> 7.B | E165: ='D60'!E137 -> 10.03 | F165: ='D60'!H137 -> 754.1406285 | G165: ='D300'!H137 -> 0 | H165: ='D800'!H137 -> 0 | I165: =Ddál!H137 -> 742.553 | J165: =Dvýš!H137 -> 0 | K165: =Dmíč!H137 -> 330.6 | L165: =Dkou!H137 -> 0 | M165: =Dčlu!H137 -> 0 | N165: =Dls!H137 -> 0 | O165: =Dodbíj!H137 -> 0 | P165: =Dplav!H137 -> 0 | Q165: =Dšplh!H137 -> 0 | R165: =Dšvih!H137 -> 0 | S165: ='Dz mís'!H137 -> 0 | T165: =Drepre!E30 -> 50 | U165: 1877.293629 | W165: 11
B166: ='D60'!B138 -> HEGROVÁ | C166: ='D60'!C138 -> Štěpánka | D166: ='D60'!D138 -> 7.B | E166: ='D60'!E138 -> 10.65 | F166: ='D60'!H138 -> 706.8086895 | G166: ='D300'!H138 -> 570.698816 | H166: ='D800'!H138 -> 443.5650879 | I166: =Ddál!H138 -> 659.081 | J166: =Dvýš!H138 -> 0 | K166: =Dmíč!H138 -> 321.5 | L166: =Dkou!H138 -> 352 | M166: =Dčlu!H138 -> 0 | N166: =Dls!H138 -> 0 | O166: =Dodbíj!H138 -> 18 | P166: =Dplav!H138 -> 0 | Q166: =Dšplh!H138 -> 0 | R166: =Dšvih!H138 -> 249.5 | S166: ='Dz mís'!H138 -> 0 | T166: =Drepre!E31 -> 0 | U166: 3321.153593 | W166: 6
B167: ='D60'!B139 -> HOBLOVÁ | C167: ='D60'!C139 -> Barbora | D167: ='D60'!D139 -> 7.B | E167: ='D60'!E139 -> 9.71 | F167: ='D60'!H139 -> 780.9349623 | G167: ='D300'!H139 -> 697.4019997 | H167: ='D800'!H139 -> 0 | I167: =Ddál!H139 -> 652.125 | J167: =Dvýš!H139 -> 609.5 | K167: =Dmíč!H139 -> 376.1 | L167: =Dkou!H139 -> 424.8888889 | M167: =Dčlu!H139 -> 578.1935687 | N167: =Dls!H139 -> 319.69 | O167: =Dodbíj!H139 -> 30 | P167: =Dplav!H139 -> 0 | Q167: =Dšplh!H139 -> 520.1728925 | R167: =Dšvih!H139 -> 562 | S167: ='Dz mís'!H139 -> 623.5873466 | T167: =Drepre!E32 -> 0 | U167: 6174.594659 | W167: 2
B168: ='D60'!B140 -> HORÁČKOVÁ | C168: ='D60'!C140 -> Valérie | D168: ='D60'!D140 -> 7.B | E168: ='D60'!E140 -> 8.88 | F168: ='D60'!H140 -> 859.433044 | G168: ='D300'!H140 -> 754.6543323 | H168: ='D800'!H140 -> 722.9320855 | I168: =Ddál!H140 -> 754.726 | J168: =Dvýš!H140 -> 674.5 | K168: =Dmíč!H140 -> 367 | L168: =Dkou!H140 -> 466.6666667 | M168: =Dčlu!H140 -> 679.7592 | N168: =Dls!H140 -> 528.04 | O168: =Dodbíj!H140 -> 36 | P168: =Dplav!H140 -> 652.4509634 | Q168: =Dšplh!H140 -> 0 | R168: =Dšvih!H140 -> 387 | S168: ='Dz mís'!H140 -> 741.1983003 | T168: =Drepre!E33 -> 125 | U168: 7749.360592 | W168: 1
B169: ='D60'!B141 -> JIRANOVÁ | C169: ='D60'!C141 -> Anežka | D169: ='D60'!D141 -> 7.B | E169: ='D60'!E141 -> 12.5 | F169: ='D60'!H141 -> 593.4838128 | G169: ='D300'!H141 -> 418.9445801 | H169: ='D800'!H141 -> 410.2646102 | I169: =Ddál!H141 -> 0 | J169: =Dvýš!H141 -> 0 | K169: =Dmíč!H141 -> 367 | L169: =Dkou!H141 -> 434.6666667 | M169: =Dčlu!H141 -> 547.8557827 | N169: =Dls!H141 -> 403.03 | O169: =Dodbíj!H141 -> 27 | P169: =Dplav!H141 -> 0 | Q169: =Dšplh!H141 -> 0 | R169: =Dšvih!H141 -> 243.25 | S169: ='Dz mís'!H141 -> 402.4787535 | T169: =Drepre!E34 -> 25 | U169: 3872.974206 | W169: 4
B170: ='D60'!B142 -> KRČÍKOVÁ | C170: ='D60'!C142 -> Beatrix | D170: ='D60'!D142 -> 7.B | E170: ='D60'!E142 -> 9.35 | F170: ='D60'!H142 -> 813.2708514 | G170: ='D300'!H142 -> 671.9735498 | H170: ='D800'!H142 -> 663.4196264 | I170: =Ddál!H142 -> 792.984 | J170: =Dvýš!H142 -> 804.5 | K170: =Dmíč!H142 -> 582.488 | L170: =Dkou!H142 -> 614.2222222 | M170: =Dčlu!H142 -> 657.6902978 | N170: =Dls!H142 -> 708.61 | O170: =Dodbíj!H142 -> 42 | P170: =Dplav!H142 -> 0 | Q170: =Dšplh!H142 -> 487.3390749 | R170: =Dšvih!H142 -> 437 | S170: ='Dz mís'!H142 -> 741.1983003 | T170: =Drepre!E35 -> 225 | U170: 8241.695923 | W170: 1
B171: ='D60'!B143 -> KUBÁTOVÁ | C171: ='D60'!C143 -> Veronika | D171: ='D60'!D143 -> 7.B | E171: ='D60'!E143 -> 11.9 | F171: ='D60'!H143 -> 626.3771111 | G171: ='D300'!H143 -> 406.6357892 | H171: ='D800'!H143 -> 382.998003 | I171: =Ddál!H143 -> 0 | J171: =Dvýš!H143 -> 0 | K171: =Dmíč!H143 -> 203.2 | L171: =Dkou!H143 -> 266.6666667 | M171: =Dčlu!H143 -> 572.7651965 | N171: =Dls!H143 -> 291.91 | O171: =Dodbíj!H143 -> 30 | P171: =Dplav!H143 -> 0 | Q171: =Dšplh!H143 -> 0 | R171: =Dšvih!H143 -> 130.75 | S171: ='Dz mís'!H143 -> 567.1340888 | T171: =Drepre!E36 -> 0 | U171: =SUM(F171:T171) -> 3478.436855 | W171: =FREQUENCY(F171:S171,0) -> 4
B172: ='D60'!B144 -> LENČEŠOVÁ | C172: ='D60'!C144 -> Silvie | D172: ='D60'!D144 -> 7.B | E172: ='D60'!E144 -> 11.46 | F172: ='D60'!H144 -> 652.6879227 | G172: ='D300'!H144 -> 623.6946342 | H172: ='D800'!H144 -> 627.5097845 | I172: =Ddál!H144 -> 652.125 | J172: =Dvýš!H144 -> 577 | K172: =Dmíč!H144 -> 458 | L172: =Dkou!H144 -> 337.7777778 | M172: =Dčlu!H144 -> 571.7881429 | N172: =Dls!H144 -> 389.14 | O172: =Dodbíj!H144 -> 42 | P172: =Dplav!H144 -> 0 | Q172: =Dšplh!H144 -> 0 | R172: =Dšvih!H144 -> 512 | S172: ='Dz mís'!H144 -> 576.5429651 | T172: =Drepre!E37 -> 0 | U172: 6020.266227 | W172: 2
B173: ='D60'!B145 -> LUKEŠOVÁ | C173: ='D60'!C145 -> Lucie | D173: ='D60'!D145 -> 7.B | E173: ='D60'!E145 -> 11.25 | F173: ='D60'!H145 -> 665.9708961 | G173: ='D300'!H145 -> 597.9358831 | H173: ='D800'!H145 -> 513.3644745 | I173: =Ddál!H145 -> 619.084 | J173: =Dvýš!H145 -> 0 | K173: =Dmíč!H145 -> 348.8 | L173: =Dkou!H145 -> 324.4444444 | M173: =Dčlu!H145 -> 0 | N173: =Dls!H145 -> 0 | O173: =Dodbíj!H145 -> 30 | P173: =Dplav!H145 -> 0 | Q173: =Dšplh!H145 -> 0 | R173: =Dšvih!H145 -> 493.25 | S173: ='Dz mís'!H145 -> 0 | T173: =Drepre!E38 -> 0 | U173: 3592.849698 | W173: 6
B174: ='D60'!B146 -> MATERNOVÁ | C174: ='D60'!C146 -> Lenka | D174: ='D60'!D146 -> 7.B | E174: ='D60'!E146 -> 9.42 | F174: ='D60'!H146 -> 806.7897522 | G174: ='D300'!H146 -> 737.7217531 | H174: ='D800'!H146 -> 702.9035172 | I174: =Ddál!H146 -> 0 | J174: =Dvýš!H146 -> 674.5 | K174: =Dmíč!H146 -> 266.9 | L174: =Dkou!H146 -> 328 | M174: =Dčlu!H146 -> 658.9519004 | N174: =Dls!H146 -> 583.6 | O174: =Dodbíj!H146 -> 42 | P174: =Dplav!H146 -> 0 | Q174: =Dšplh!H146 -> 796.7621573 | R174: =Dšvih!H146 -> 443.25 | S174: ='Dz mís'!H146 -> 694.1539188 | T174: =Drepre!E39 -> 50 | U174: 6785.532999 | W174: 2
B175: ='D60'!B147 -> TÓTHOVÁ | C175: ='D60'!C147 -> Viktorie | D175: ='D60'!D147 -> 7.B | E175: ='D60'!E147 -> 10.46 | F175: ='D60'!H147 -> 720.7173548 | G175: ='D300'!H147 -> 636.1107654 | H175: ='D800'!H147 -> 640.9081979 | I175: =Ddál!H147 -> 0 | J175: =Dvýš!H147 -> 642 | K175: =Dmíč!H147 -> 403.4 | L175: =Dkou!H147 -> 467.5555556 | M175: =Dčlu!H147 -> 592.962323 | N175: =Dls!H147 -> 514.15 | O175: =Dodbíj!H147 -> 27 | P175: =Dplav!H147 -> 0 | Q175: =Dšplh!H147 -> 0 | R175: =Dšvih!H147 -> 368.25 | S175: ='Dz mís'!H147 -> 736.4938621 | T175: =Drepre!E40 -> 0 | U175: 5749.548059 | W175: 3 | X175: =SUM(W163:W175) -> 49
B176: ='D60'!B148 -> DUONG | C176: ='D60'!C148 -> Ngoc Linh | D176: ='D60'!D148 -> 8.A | E176: ='D60'!E148 -> 9.93 | F176: ='D60'!H148 -> 762.3283482 | G176: ='D300'!H148 -> 0 | H176: ='D800'!H148 -> 0 | I176: =Ddál!H148 -> 758.204 | J176: =Dvýš!H148 -> 707 | K176: =Dmíč!H148 -> 630.9 | L176: =Dkou!H148 -> 718.2222222 | M176: =Dčlu!H148 -> 0 | N176: =Dls!H148 -> 0 | O176: =Dodbíj!H148 -> 0 | P176: =Dplav!H148 -> 0 | Q176: =Dšplh!H148 -> 0 | R176: =Dšvih!H148 -> 0 | S176: ='Dz mís'!H148 -> 0 | T176: =Drepre!E41 -> 125 | U176: 3701.65457 | W176: 9
B177: ='D60'!B149 -> GINGALOVÁ | C177: ='D60'!C149 -> Linda | D177: ='D60'!D149 -> 8.A | E177: ='D60'!E149 -> 9.5 | F177: ='D60'!H149 -> 799.4997337 | G177: ='D300'!H149 -> 720.0603372 | H177: ='D800'!H149 -> 590.58243 | I177: =Ddál!H149 -> 759.943 | J177: =Dvýš!H149 -> 811 | K177: =Dmíč!H149 -> 558.1 | L177: =Dkou!H149 -> 538.6666667 | M177: =Dčlu!H149 -> 0 | N177: =Dls!H149 -> 514.15 | O177: =Dodbíj!H149 -> 60 | P177: =Dplav!H149 -> 0 | Q177: =Dšplh!H149 -> 0 | R177: =Dšvih!H149 -> 0 | S177: ='Dz mís'!H149 -> 778.8338055 | T177: =Drepre!E42 -> 75 | U177: 6205.835973 | W177: 4
B178: ='D60'!B150 -> HOFMANOVÁ | C178: ='D60'!C150 -> Nicol | D178: ='D60'!D150 -> 8.A | E178: ='D60'!E150 -> 10.83 | F178: ='D60'!H150 -> 694.0822303 | G178: ='D300'!H150 -> 0 | H178: ='D800'!H150 -> 0 | I178: =Ddál!H150 -> 0 | J178: =Dvýš!H150 -> 0 | K178: =Dmíč!H150 -> 0 | L178: =Dkou!H150 -> 0 | M178: =Dčlu!H150 -> 0 | N178: =Dls!H150 -> 458.59 | O178: =Dodbíj!H150 -> 0 | P178: =Dplav!H150 -> 0 | Q178: =Dšplh!H150 -> 0 | R178: =Dšvih!H150 -> 468.25 | S178: ='Dz mís'!H150 -> 482.4542021 | T178: =Drepre!E43 -> 0 | U178: 2103.376432 | W178: 10
B179: ='D60'!B151 -> HOLEŠOVSKÁ | C179: ='D60'!C151 -> Aneta | D179: ='D60'!D151 -> 8.A | E179: ='D60'!E151 -> 10.26 | F179: ='D60'!H151 -> 735.914573 | G179: ='D300'!H151 -> 538.0537913 | H179: ='D800'!H151 -> 0 | I179: =Ddál!H151 -> 0 | J179: =Dvýš!H151 -> 0 | K179: =Dmíč!H151 -> 439.8 | L179: =Dkou!H151 -> 0 | M179: =Dčlu!H151 -> 590.36733 | N179: =Dls!H151 -> 0 | O179: =Dodbíj!H151 -> 0 | P179: =Dplav!H151 -> 0 | Q179: =Dšplh!H151 -> 0 | R179: =Dšvih!H151 -> 612 | S179: ='Dz mís'!H151 -> 0 | T179: =Drepre!E44 -> 25 | U179: 2941.135694 | W179: 9
B180: ='D60'!B152 -> HOLUBCOVÁ | C180: ='D60'!C152 -> Alena | D180: ='D60'!D152 -> 8.A | E180: ='D60'!E152 -> 9.08 | F180: ='D60'!H152 -> 839.2054454 | G180: ='D300'!H152 -> 792.0960564 | H180: ='D800'!H152 -> 656.5001622 | I180: =Ddál!H152 -> 765.16 | J180: =Dvýš!H152 -> 674.5 | K180: =Dmíč!H152 -> 685.5 | L180: =Dkou!H152 -> 754.6666667 | M180: =Dčlu!H152 -> 712.6040244 | N180: =Dls!H152 -> 778.06 | O180: =Dodbíj!H152 -> 93 | P180: =Dplav!H152 -> 456.3765283 | Q180: =Dšplh!H152 -> 0 | R180: =Dšvih!H152 -> 549.5 | S180: ='Dz mís'!H152 -> 811.7648725 | T180: =Drepre!E45 -> 200 | U180: 8768.933756 | W180: 1
B181: ='D60'!B153 -> KOHOUTOVÁ | C181: ='D60'!C153 -> Anna | D181: ='D60'!D153 -> 8.A | E181: ='D60'!E153 -> 11.35 | F181: ='D60'!H153 -> 659.5843689 | G181: ='D300'!H153 -> 517.4223176 | H181: ='D800'!H153 -> 598.9472461 | I181: =Ddál!H153 -> 0 | J181: =Dvýš!H153 -> 609.5 | K181: =Dmíč!H153 -> 321.5 | L181: =Dkou!H153 -> 537.7777778 | M181: =Dčlu!H153 -> 509.7748798 | N181: =Dls!H153 -> 375.25 | O181: =Dodbíj!H153 -> 42 | P181: =Dplav!H153 -> 0 | Q181: =Dšplh!H153 -> 0 | R181: =Dšvih!H153 -> 618.25 | S181: ='Dz mís'!H153 -> 473.0453258 | T181: =Drepre!E46 -> 0 | U181: 5263.051916 | W181: 3
B182: ='D60'!B154 -> KRAUSOVÁ | C182: ='D60'!C154 -> Anežka | D182: ='D60'!D154 -> 8.A | E182: ='D60'!E154 -> 10.36 | F182: ='D60'!H154 -> 728.2426182 | G182: ='D300'!H154 -> 583.0119281 | H182: ='D800'!H154 -> 537.4770283 | I182: =Ddál!H154 -> 0 | J182: =Dvýš!H154 -> 674.5 | K182: =Dmíč!H154 -> 494.4 | L182: =Dkou!H154 -> 568.8888889 | M182: =Dčlu!H154 -> 613.9380888 | N182: =Dls!H154 -> 569.71 | O182: =Dodbíj!H154 -> 27 | P182: =Dplav!H154 -> 0 | Q182: =Dšplh!H154 -> 0 | R182: =Dšvih!H154 -> 599.5 | S182: ='Dz mís'!H154 -> 661.2228517 | T182: =Drepre!E47 -> 25 | U182: 6082.891404 | W182: 3
B183: ='D60'!B155 -> KUŽELOVÁ | C183: ='D60'!C155 -> Apoléna | D183: ='D60'!D155 -> 8.A | E183: ='D60'!E155 -> 10.4 | F183: ='D60'!H155 -> 725.2151469 | G183: ='D300'!H155 -> 0 | H183: ='D800'!H155 -> 398.8721691 | I183: =Ddál!H155 -> 0 | J183: =Dvýš!H155 -> 0 | K183: =Dmíč!H155 -> 421.6 | L183: =Dkou!H155 -> 0 | M183: =Dčlu!H155 -> 621.8009706 | N183: =Dls!H155 -> 458.59 | O183: =Dodbíj!H155 -> 24 | P183: =Dplav!H155 -> 0 | Q183: =Dšplh!H155 -> 0 | R183: =Dšvih!H155 -> 574.5 | S183: ='Dz mís'!H155 -> 0 | T183: =Drepre!E48 -> 0 | U183: 3224.578287 | W183: 7
B184: ='D60'!B156 -> MORÁVKOVÁ | C184: ='D60'!C156 -> Lucie | D184: ='D60'!D156 -> 8.A | E184: ='D60'!E156 -> 11.78 | F184: ='D60'!H156 -> 633.357862 | G184: ='D300'!H156 -> 507.5247862 | H184: ='D800'!H156 -> 394.7147808 | I184: =Ddál!H156 -> 0 | J184: =Dvýš!H156 -> 0 | K184: =Dmíč!H156 -> 312.4 | L184: =Dkou!H156 -> 546.6666667 | M184: =Dčlu!H156 -> 575.7146056 | N184: =Dls!H156 -> 333.58 | O184: =Dodbíj!H156 -> 42 | P184: =Dplav!H156 -> 0 | Q184: =Dšplh!H156 -> 0 | R184: =Dšvih!H156 -> 430.75 | S184: ='Dz mís'!H156 -> 0 | T184: =Drepre!E49 -> 0 | U184: 3776.708701 | W184: 5
B185: ='D60'!B157 -> SKLENÁROVÁ | C185: ='D60'!C157 -> Eliška | D185: ='D60'!D157 -> 8.A | E185: ='D60'!E157 -> 0 | F185: ='D60'!H157 -> 0 | G185: ='D300'!H157 -> 0 | H185: ='D800'!H157 -> 0 | I185: =Ddál!H157 -> 0 | J185: =Dvýš!H157 -> 707 | K185: =Dmíč!H157 -> 448.9 | L185: =Dkou!H157 -> 0 | M185: =Dčlu!H157 -> 0 | N185: =Dls!H157 -> 625.27 | O185: =Dodbíj!H157 -> 0 | P185: =Dplav!H157 -> 0 | Q185: =Dšplh!H157 -> 0 | R185: =Dšvih!H157 -> 499.5 | S185: ='Dz mís'!H157 -> 614.1784703 | T185: =Drepre!E50 -> 0 | U185: 2894.84847 | W185: 9
B186: ='D60'!B158 -> ŠEJNOVÁ | C186: ='D60'!C158 -> Karolína | D186: ='D60'!D158 -> 8.A | E186: ='D60'!E158 -> 10.62 | F186: ='D60'!H158 -> 708.9717082 | G186: ='D300'!H158 -> 571.2765321 | H186: ='D800'!H158 -> 526.0102146 | I186: =Ddál!H158 -> 0 | J186: =Dvýš!H158 -> 0 | K186: =Dmíč!H158 -> 330.6 | L186: =Dkou!H158 -> 0 | M186: =Dčlu!H158 -> 577.6962279 | N186: =Dls!H158 -> 430.81 | O186: =Dodbíj!H158 -> 42 | P186: =Dplav!H158 -> 0 | Q186: =Dšplh!H158 -> 0 | R186: =Dšvih!H158 -> 230.75 | S186: ='Dz mís'!H158 -> 670.631728 | T186: =Drepre!E51 -> 0 | U186: 4088.746411 | W186: 5
B187: ='D60'!B159 -> ŠTOLFOVÁ | C187: ='D60'!C159 -> Tereza | D187: ='D60'!D159 -> 8.A | E187: ='D60'!E159 -> 10.11 | F187: ='D60'!H159 -> 747.7070731 | G187: ='D300'!H159 -> 607.5659874 | H187: ='D800'!H159 -> 549.760404 | I187: =Ddál!H159 -> 0 | J187: =Dvýš!H159 -> 609.5 | K187: =Dmíč!H159 -> 0 | L187: =Dkou!H159 -> 0 | M187: =Dčlu!H159 -> 0 | N187: =Dls!H159 -> 569.71 | O187: =Dodbíj!H159 -> 0 | P187: =Dplav!H159 -> 0 | Q187: =Dšplh!H159 -> 0 | R187: =Dšvih!H159 -> 230.75 | S187: ='Dz mís'!H159 -> 538.9074599 | T187: =Drepre!E52 -> 0 | U187: 3853.900924 | W187: 7
B188: ='D60'!B160 -> ŠUBÍKOVÁ | C188: ='D60'!C160 -> Klára | D188: ='D60'!D160 -> 8.A | E188: ='D60'!E160 -> 9.9 | F188: ='D60'!H160 -> 764.8169188 | G188: ='D300'!H160 -> 686.9359073 | H188: ='D800'!H160 -> 610.0839843 | I188: =Ddál!H160 -> 768.638 | J188: =Dvýš!H160 -> 739.5 | K188: =Dmíč!H160 -> 421.6 | L188: =Dkou!H160 -> 578.6666667 | M188: =Dčlu!H160 -> 676.4289063 | N188: =Dls!H160 -> 639.16 | O188: =Dodbíj!H160 -> 93 | P188: =Dplav!H160 -> 0 | Q188: =Dšplh!H160 -> 470.0063094 | R188: =Dšvih!H160 -> 705.75 | S188: ='Dz mís'!H160 -> 750.6071766 | T188: =Drepre!E53 -> 75 | U188: 7980.193869 | W188: 1
B189: ='D60'!B161 -> ŠULKOVSKÁ | C189: ='D60'!C161 -> Klára | D189: ='D60'!D161 -> 8.A | E189: ='D60'!E161 -> 0 | F189: ='D60'!H161 -> 0 | G189: ='D300'!H161 -> 0 | H189: ='D800'!H161 -> 0 | I189: =Ddál!H161 -> 0 | J189: =Dvýš!H161 -> 0 | K189: =Dmíč!H161 -> 0 | L189: =Dkou!H161 -> 0 | M189: =Dčlu!H161 -> 0 | N189: =Dls!H161 -> 528.04 | O189: =Dodbíj!H161 -> 0 | P189: =Dplav!H161 -> 0 | Q189: =Dšplh!H161 -> 524.0113781 | R189: =Dšvih!H161 -> 274.5 | S189: ='Dz mís'!H161 -> 0 | T189: =Drepre!E54 -> 25 | U189: 1351.551378 | W189: 11
B190: ='D60'!B162 -> TULÁČKOVÁ | C190: ='D60'!C162 -> Natálie | D190: ='D60'!D162 -> 8.A | E190: ='D60'!E162 -> 10.54 | F190: ='D60'!H162 -> 714.799956 | G190: ='D300'!H162 -> 620.4185028 | H190: ='D800'!H162 -> 549.7059011 | I190: =Ddál!H162 -> 791.245 | J190: =Dvýš!H162 -> 0 | K190: =Dmíč!H162 -> 430.7 | L190: =Dkou!H162 -> 448.8888889 | M190: =Dčlu!H162 -> 622.9392664 | N190: =Dls!H162 -> 0 | O190: =Dodbíj!H162 -> 0 | P190: =Dplav!H162 -> 0 | Q190: =Dšplh!H162 -> 0 | R190: =Dšvih!H162 -> 0 | S190: ='Dz mís'!H162 -> 0 | T190: =Drepre!E55 -> 0 | U190: 4178.697515 | W190: 7
B191: ='D60'!B163 -> VOJTÍŠKOVÁ | C191: ='D60'!C163 -> Ella | D191: ='D60'!D163 -> 8.A | E191: ='D60'!E163 -> 9.32 | F191: ='D60'!H163 -> 816.0782681 | G191: ='D300'!H163 -> 767.4832099 | H191: ='D800'!H163 -> 745.8890321 | I191: =Ddál!H163 -> 759.943 | J191: =Dvýš!H163 -> 882.5 | K191: =Dmíč!H163 -> 676.4 | L191: =Dkou!H163 -> 682.6666667 | M191: =Dčlu!H163 -> 712.6040244 | N191: =Dls!H163 -> 583.6 | O191: =Dodbíj!H163 -> 165 | P191: =Dplav!H163 -> 0 | Q191: =Dšplh!H163 -> 408.6199884 | R191: =Dšvih!H163 -> 612 | S191: ='Dz mís'!H163 -> 774.1293673 | T191: =Drepre!E56 -> 75 | U191: 8661.913557 | W191: 1 | X191: =SUM(W176:W191) -> 92
B192: ='D60'!B164 -> DRUGÁČOVÁ | C192: ='D60'!C164 -> Kristinka | D192: ='D60'!D164 -> 8.B | E192: ='D60'!E164 -> 0 | F192: ='D60'!H164 -> 0 | G192: ='D300'!H164 -> 0 | H192: ='D800'!H164 -> 0 | I192: =Ddál!H164 -> 0 | J192: =Dvýš!H164 -> 0 | K192: =Dmíč!H164 -> 0 | L192: =Dkou!H164 -> 0 | M192: =Dčlu!H164 -> 0 | N192: =Dls!H164 -> 0 | O192: =Dodbíj!H164 -> 0 | P192: =Dplav!H164 -> 0 | Q192: =Dšplh!H164 -> 0 | R192: =Dšvih!H164 -> 874.5 | S192: ='Dz mís'!H164 -> 0 | T192: =Drepre!E57 -> 0 | U192: 874.5 | W192: 13
B193: ='D60'!B165 -> FAJSTAVROVÁ | C193: ='D60'!C165 -> Karolína | D193: ='D60'!D165 -> 8.B | E193: ='D60'!E165 -> 8.76 | F193: ='D60'!H165 -> 872.0129479 | G193: ='D300'!H165 -> 786.0621837 | H193: ='D800'!H165 -> 854.0153218 | I193: =Ddál!H165 -> 779.072 | J193: =Dvýš!H165 -> 642 | K193: =Dmíč!H165 -> 458 | L193: =Dkou!H165 -> 704 | M193: =Dčlu!H165 -> 693.3875973 | N193: =Dls!H165 -> 430.81 | O193: =Dodbíj!H165 -> 60 | P193: =Dplav!H165 -> 0 | Q193: =Dšplh!H165 -> 0 | R193: =Dšvih!H165 -> 537 | S193: ='Dz mís'!H165 -> 745.9027384 | T193: =Drepre!E58 -> 350 | U193: 7912.262789 | W193: 2
B194: ='D60'!B166 -> FAJSTAVROVÁ | C194: ='D60'!C166 -> Magdaléna | D194: ='D60'!D166 -> 8.B | E194: ='D60'!E166 -> 9.05 | F194: ='D60'!H166 -> 842.1825903 | G194: ='D300'!H166 -> 856.2625472 | H194: ='D800'!H166 -> 914.0657673 | I194: =Ddál!H166 -> 730.38 | J194: =Dvýš!H166 -> 609.5 | K194: =Dmíč!H166 -> 630.9 | L194: =Dkou!H166 -> 511.1111111 | M194: =Dčlu!H166 -> 732.8279147 | N194: =Dls!H166 -> 541.93 | O194: =Dodbíj!H166 -> 27 | P194: =Dplav!H166 -> 0 | Q194: =Dšplh!H166 -> 412.3189779 | R194: =Dšvih!H166 -> 743.25 | S194: ='Dz mís'!H166 -> 788.2426818 | T194: =Drepre!E59 -> 250 | U194: 8589.97159 | W194: 1
B195: ='D60'!B167 -> JINDROVÁ | C195: ='D60'!C167 -> Barbora | D195: ='D60'!D167 -> 8.B | E195: ='D60'!E167 -> 10.54 | F195: ='D60'!H167 -> 714.799956 | G195: ='D300'!H167 -> 0 | H195: ='D800'!H167 -> 604.8872609 | I195: =Ddál!H167 -> 740.814 | J195: =Dvýš!H167 -> 739.5 | K195: =Dmíč!H167 -> 303.3 | L195: =Dkou!H167 -> 342.2222222 | M195: =Dčlu!H167 -> 603.0153936 | N195: =Dls!H167 -> 444.7 | O195: =Dodbíj!H167 -> 30 | P195: =Dplav!H167 -> 0 | Q195: =Dšplh!H167 -> 451.697354 | R195: =Dšvih!H167 -> 543.25 | S195: ='Dz mís'!H167 -> 0 | T195: =Drepre!E60 -> 25 | U195: 5543.186187 | W195: 3
B196: ='D60'!B168 -> MAŘASOVÁ | C196: ='D60'!C168 -> Vendula | D196: ='D60'!D168 -> 8.B | E196: ='D60'!E168 -> 10.44 | F196: ='D60'!H168 -> 722.2108745 | G196: ='D300'!H168 -> 657.2148561 | H196: ='D800'!H168 -> 526.2641377 | I196: =Ddál!H168 -> 620.823 | J196: =Dvýš!H168 -> 707 | K196: =Dmíč!H168 -> 367 | L196: =Dkou!H168 -> 484.4444444 | M196: =Dčlu!H168 -> 584.2228448 | N196: =Dls!H168 -> 472.48 | O196: =Dodbíj!H168 -> 51 | P196: =Dplav!H168 -> 0 | Q196: =Dšplh!H168 -> 0 | R196: =Dšvih!H168 -> 493.25 | S196: ='Dz mís'!H168 -> 0 | T196: =Drepre!E61 -> 25 | U196: 5710.910158 | W196: 3
B197: ='D60'!B169 -> PETŘÍČKOVÁ | C197: ='D60'!C169 -> Natálie | D197: ='D60'!D169 -> 8.B | E197: ='D60'!E169 -> 9.08 | F197: ='D60'!H169 -> 839.2054454 | G197: ='D300'!H169 -> 709.2308286 | H197: ='D800'!H169 -> 611.4433024 | I197: =Ddál!H169 -> 808.635 | J197: =Dvýš!H169 -> 0 | K197: =Dmíč!H169 -> 485.3 | L197: =Dkou!H169 -> 502.2222222 | M197: =Dčlu!H169 -> 692.0021691 | N197: =Dls!H169 -> 0 | O197: =Dodbíj!H169 -> 0 | P197: =Dplav!H169 -> 0 | Q197: =Dšplh!H169 -> 0 | R197: =Dšvih!H169 -> 0 | S197: ='Dz mís'!H169 -> 821.1737488 | T197: =Drepre!E62 -> 75 | U197: 5544.212716 | W197: 6
B198: ='D60'!B170 -> PETŘÍKOVÁ | C198: ='D60'!C170 -> Adéla | D198: ='D60'!D170 -> 8.B | E198: ='D60'!E170 -> 10.43 | F198: ='D60'!H170 -> 722.9597823 | G198: ='D300'!H170 -> 676.1127364 | H198: ='D800'!H170 -> 625.9898335 | I198: =Ddál!H170 -> 0 | J198: =Dvýš!H170 -> 577 | K198: =Dmíč!H170 -> 303.3 | L198: =Dkou!H170 -> 0 | M198: =Dčlu!H170 -> 549.2131781 | N198: =Dls!H170 -> 444.7 | O198: =Dodbíj!H170 -> 18 | P198: =Dplav!H170 -> 0 | Q198: =Dšplh!H170 -> 0 | R198: =Dšvih!H170 -> 262 | S198: ='Dz mís'!H170 -> 388.3654391 | T198: =Drepre!E63 -> 0 | U198: 4567.640969 | W198: 4
B199: ='D60'!B171 -> REGÁLOVÁ | C199: ='D60'!C171 -> Karolína | D199: ='D60'!D171 -> 8.B | E199: ='D60'!E171 -> 10.12 | F199: ='D60'!H171 -> 746.9100306 | G199: ='D300'!H171 -> 517.4223176 | H199: ='D800'!H171 -> 501.8086081 | I199: =Ddál!H171 -> 0 | J199: =Dvýš!H171 -> 0 | K199: =Dmíč!H171 -> 530.8 | L199: =Dkou!H171 -> 475.5555556 | M199: =Dčlu!H171 -> 631.5993748 | N199: =Dls!H171 -> 541.93 | O199: =Dodbíj!H171 -> 93 | P199: =Dplav!H171 -> 0 | Q199: =Dšplh!H171 -> 0 | R199: =Dšvih!H171 -> 0 | S199: ='Dz mís'!H171 -> 0 | T199: =Drepre!E64 -> 25 | U199: 4064.025887 | W199: 6
B200: ='D60'!B172 -> RIEGROVÁ | C200: ='D60'!C172 -> Magdaléna | D200: ='D60'!D172 -> 8.B | E200: ='D60'!E172 -> 10.49 | F200: ='D60'!H172 -> 718.4877534 | G200: ='D300'!H172 -> 0 | H200: ='D800'!H172 -> 547.7496001 | I200: =Ddál!H172 -> 0 | J200: =Dvýš!H172 -> 642 | K200: =Dmíč!H172 -> 321.5 | L200: =Dkou!H172 -> 0 | M200: =Dčlu!H172 -> 598.2150407 | N200: =Dls!H172 -> 0 | O200: =Dodbíj!H172 -> 18 | P200: =Dplav!H172 -> 0 | Q200: =Dšplh!H172 -> 504.7496346 | R200: =Dšvih!H172 -> 0 | S200: ='Dz mís'!H172 -> 604.769594 | T200: =Drepre!E65 -> 0 | U200: 3955.471623 | W200: 6
B201: ='D60'!B173 -> RYBENSKÁ | C201: ='D60'!C173 -> Sabina | D201: ='D60'!D173 -> 8.B | E201: ='D60'!E173 -> 10.17 | F201: ='D60'!H173 -> 742.9483297 | G201: ='D300'!H173 -> 620.4185028 | H201: ='D800'!H173 -> 597.0716581 | I201: =Ddál!H173 -> 0 | J201: =Dvýš!H173 -> 0 | K201: =Dmíč!H173 -> 294.2 | L201: =Dkou!H173 -> 360 | M201: =Dčlu!H173 -> 658.3205443 | N201: =Dls!H173 -> 458.59 | O201: =Dodbíj!H173 -> 24 | P201: =Dplav!H173 -> 0 | Q201: =Dšplh!H173 -> 0 | R201: =Dšvih!H173 -> 374.5 | S201: ='Dz mís'!H173 -> 0 | T201: =Drepre!E66 -> 0 | U201: 4130.049035 | W201: 5
B202: ='D60'!B174 -> STEINEROVÁ | C202: ='D60'!C174 -> Barbora | D202: ='D60'!D174 -> 8.B | E202: ='D60'!E174 -> 9.51 | F202: ='D60'!H174 -> 798.5971053 | G202: ='D300'!H174 -> 749.2333892 | H202: ='D800'!H174 -> 593.4110166 | I202: =Ddál!H174 -> 846.893 | J202: =Dvýš!H174 -> 772 | K202: =Dmíč!H174 -> 612.7 | L202: =Dkou!H174 -> 440 | M202: =Dčlu!H174 -> 693.3875973 | N202: =Dls!H174 -> 458.59 | O202: =Dodbíj!H174 -> 33 | P202: =Dplav!H174 -> 0 | Q202: =Dšplh!H174 -> 541.8736741 | R202: =Dšvih!H174 -> 530.75 | S202: ='Dz mís'!H174 -> 905.8536355 | T202: =Drepre!E67 -> 0 | U202: 7976.289418 | W202: 1
B203: ='D60'!B175 -> ŠERCLOVÁ | C203: ='D60'!C175 -> Andrea | D203: ='D60'!D175 -> 8.B | E203: ='D60'!E175 -> 0 | F203: ='D60'!H175 -> 0 | G203: ='D300'!H175 -> 488.5111077 | H203: ='D800'!H175 -> 0 | I203: =Ddál!H175 -> 0 | J203: =Dvýš!H175 -> 0 | K203: =Dmíč!H175 -> 0 | L203: =Dkou!H175 -> 0 | M203: =Dčlu!H175 -> 0 | N203: =Dls!H175 -> 375.25 | O203: =Dodbíj!H175 -> 0 | P203: =Dplav!H175 -> 0 | Q203: =Dšplh!H175 -> 0 | R203: =Dšvih!H175 -> 187 | S203: ='Dz mís'!H175 -> 411.8876298 | T203: =Drepre!E68 -> 0 | U203: =SUM(F203:T203) -> 1462.648737 | W203: =FREQUENCY(F203:S203,0) -> 10
B204: ='D60'!B176 -> TOMEŠOVÁ | C204: ='D60'!C176 -> Martina | D204: ='D60'!D176 -> 8.B | E204: ='D60'!E176 -> 9.73 | F204: ='D60'!H176 -> 779.2086829 | G204: ='D300'!H176 -> 724.4965513 | H204: ='D800'!H176 -> 594.2763038 | I204: =Ddál!H176 -> 786.028 | J204: =Dvýš!H176 -> 0 | K204: =Dmíč!H176 -> 494.4 | L204: =Dkou!H176 -> 0 | M204: =Dčlu!H176 -> 679.0907302 | N204: =Dls!H176 -> 514.15 | O204: =Dodbíj!H176 -> 15 | P204: =Dplav!H176 -> 0 | Q204: =Dšplh!H176 -> 0 | R204: =Dšvih!H176 -> 387 | S204: ='Dz mís'!H176 -> 774.1293673 | T204: =Drepre!E69 -> 0 | U204: 5747.779636 | W204: 4
B205: ='D60'!B177 -> VOHNOUTOVÁ | C205: ='D60'!C177 -> Aneta | D205: ='D60'!D177 -> 8.B | E205: ='D60'!E177 -> 8.94 | F205: ='D60'!H177 -> 853.2697355 | G205: ='D300'!H177 -> 752.8989932 | H205: ='D800'!H177 -> 711.4185606 | I205: =Ddál!H177 -> 812.113 | J205: =Dvýš!H177 -> 876 | K205: =Dmíč!H177 -> 626.896 | L205: =Dkou!H177 -> 676.4444444 | M205: =Dčlu!H177 -> 710.4205226 | N205: =Dls!H177 -> 597.49 | O205: =Dodbíj!H177 -> 123 | P205: =Dplav!H177 -> 622.1919106 | Q205: =Dšplh!H177 -> 494.7178551 | R205: =Dšvih!H177 -> 468.25 | S205: ='Dz mís'!H177 -> 830.5826251 | T205: =Drepre!E70 -> 100 | U205: 9255.693647 | W205: 0 | X205: =SUM(W192:W205) -> 64
B206: ='D60'!B178 -> HAVLÍKOVÁ | C206: ='D60'!C178 -> Michaela | D206: ='D60'!D178 -> 9.A | E206: ='D60'!E178 -> 10.1 | F206: ='D60'!H178 -> 748.5056939 | G206: ='D300'!H178 -> 595.5942083 | H206: ='D800'!H178 -> 0 | I206: =Ddál!H178 -> 695.6 | J206: =Dvýš!H178 -> 609.5 | K206: =Dmíč!H178 -> 339.7 | L206: =Dkou!H178 -> 336 | M206: =Dčlu!H178 -> 650.2128345 | N206: =Dls!H178 -> 375.25 | O206: =Dodbíj!H178 -> 0 | P206: =Dplav!H178 -> 0 | Q206: =Dšplh!H178 -> 436.9049338 | R206: =Dšvih!H178 -> 455.75 | S206: ='Dz mís'!H178 -> 632.9962229 | T206: =Drepre!E71 -> 0 | U206: 5876.013893 | W206: 3
B207: ='D60'!B179 -> HOLUBCOVÁ | C207: ='D60'!C179 -> Sára | D207: ='D60'!D179 -> 9.A | E207: ='D60'!E179 -> 9.23 | F207: ='D60'!H179 -> 824.6100166 | G207: ='D300'!H179 -> 0 | H207: ='D800'!H179 -> 0 | I207: =Ddál!H179 -> 0 | J207: =Dvýš!H179 -> 0 | K207: =Dmíč!H179 -> 0 | L207: =Dkou!H179 -> 0 | M207: =Dčlu!H179 -> 676.4289063 | N207: =Dls!H179 -> 541.93 | O207: =Dodbíj!H179 -> 129 | P207: =Dplav!H179 -> 0 | Q207: =Dšplh!H179 -> 475.6464195 | R207: =Dšvih!H179 -> 630.75 | S207: ='Dz mís'!H179 -> 722.3805477 | T207: =Drepre!E72 -> 200 | U207: 4200.74589 | W207: 7
B208: ='D60'!B180 -> HONCŮ | C208: ='D60'!C180 -> Tereza | D208: ='D60'!D180 -> 9.A | E208: ='D60'!E180 -> 10.54 | F208: ='D60'!H180 -> 714.799956 | G208: ='D300'!H180 -> 0 | H208: ='D800'!H180 -> 0 | I208: =Ddál!H180 -> 0 | J208: =Dvýš!H180 -> 707 | K208: =Dmíč!H180 -> 458 | L208: =Dkou!H180 -> 0 | M208: =Dčlu!H180 -> 662.1254275 | N208: =Dls!H180 -> 583.6 | O208: =Dodbíj!H180 -> 51 | P208: =Dplav!H180 -> 0 | Q208: =Dšplh!H180 -> 0 | R208: =Dšvih!H180 -> 524.5 | S208: ='Dz mís'!H180 -> 0 | T208: =Drepre!E73 -> 0 | U208: 3701.025384 | W208: 7
B209: ='D60'!B181 -> HORÁČKOVÁ | C209: ='D60'!C181 -> Kateřina | D209: ='D60'!D181 -> 9.A | E209: ='D60'!E181 -> 9.26 | F209: ='D60'!H181 -> 821.7476733 | G209: ='D300'!H181 -> 668.0184464 | H209: ='D800'!H181 -> 686.3015886 | I209: =Ddál!H181 -> 799.94 | J209: =Dvýš!H181 -> 804.5 | K209: =Dmíč!H181 -> 476.2 | L209: =Dkou!H181 -> 669.3333333 | M209: =Dčlu!H181 -> 696.8736378 | N209: =Dls!H181 -> 653.05 | O209: =Dodbíj!H181 -> 81 | P209: =Dplav!H181 -> 546.4438498 | Q209: =Dšplh!H181 -> 504.4496287 | R209: =Dšvih!H181 -> 562 | S209: ='Dz mís'!H181 -> 858.809254 | T209: =Drepre!E74 -> 225 | U209: 9053.667412 | W209: 0
B210: ='D60'!B182 -> JOUDALOVÁ | C210: ='D60'!C182 -> Daniela | D210: ='D60'!D182 -> 9.A | E210: ='D60'!E182 -> 0 | F210: ='D60'!H182 -> 0 | G210: ='D300'!H182 -> 0 | H210: ='D800'!H182 -> 0 | I210: =Ddál!H182 -> 0 | J210: =Dvýš!H182 -> 0 | K210: =Dmíč!H182 -> 0 | L210: =Dkou!H182 -> 0 | M210: =Dčlu!H182 -> 0 | N210: =Dls!H182 -> 0 | O210: =Dodbíj!H182 -> 0 | P210: =Dplav!H182 -> 0 | Q210: =Dšplh!H182 -> 0 | R210: =Dšvih!H182 -> 0 | S210: ='Dz mís'!H182 -> 0 | T210: =Drepre!E75 -> 0 | U210: 0 | W210: 14
B211: ='D60'!B183 -> KLÍMOVÁ | C211: ='D60'!C183 -> Anna | D211: ='D60'!D183 -> 9.A | E211: ='D60'!E183 -> 9.77 | F211: ='D60'!H183 -> 775.7773273 | G211: ='D300'!H183 -> 0 | H211: ='D800'!H183 -> 0 | I211: =Ddál!H183 -> 686.905 | J211: =Dvýš!H183 -> 674.5 | K211: =Dmíč!H183 -> 439.8 | L211: =Dkou!H183 -> 0 | M211: =Dčlu!H183 -> 0 | N211: =Dls!H183 -> 0 | O211: =Dodbíj!H183 -> 81 | P211: =Dplav!H183 -> 0 | Q211: =Dšplh!H183 -> 0 | R211: =Dšvih!H183 -> 0 | S211: ='Dz mís'!H183 -> 778.8338055 | T211: =Drepre!E76 -> 0 | U211: 3436.816133 | W211: 8
B212: ='D60'!B184 -> KOHOUTOVÁ | C212: ='D60'!C184 -> Veronika | D212: ='D60'!D184 -> 9.A | E212: ='D60'!E184 -> 9.4 | F212: ='D60'!H184 -> 808.6316451 | G212: ='D300'!H184 -> 678.1968507 | H212: ='D800'!H184 -> 588.5363619 | I212: =Ddál!H184 -> 740.814 | J212: =Dvýš!H184 -> 674.5 | K212: =Dmíč!H184 -> 530.8 | L212: =Dkou!H184 -> 555.5555556 | M212: =Dčlu!H184 -> 657.6902978 | N212: =Dls!H184 -> 583.6 | O212: =Dodbíj!H184 -> 129 | P212: =Dplav!H184 -> 0 | Q212: =Dšplh!H184 -> 468.755716 | R212: =Dšvih!H184 -> 1087 | S212: ='Dz mís'!H184 -> 703.5627951 | T212: =Drepre!E77 -> 200 | U212: 8406.643222 | W212: 1
B213: ='D60'!B185 -> KOVÁŘOVÁ | C213: ='D60'!C185 -> Viktorie | D213: ='D60'!D185 -> 9.A | E213: ='D60'!E185 -> 9.75 | F213: ='D60'!H185 -> 777.4894858 | G213: ='D300'!H185 -> 720.7149087 | H213: ='D800'!H185 -> 0 | I213: =Ddál!H185 -> 0 | J213: =Dvýš!H185 -> 0 | K213: =Dmíč!H185 -> 549 | L213: =Dkou!H185 -> 509.3333333 | M213: =Dčlu!H185 -> 669.2069266 | N213: =Dls!H185 -> 0 | O213: =Dodbíj!H185 -> 36 | P213: =Dplav!H185 -> 0 | Q213: =Dšplh!H185 -> 0 | R213: =Dšvih!H185 -> 0 | S213: ='Dz mís'!H185 -> 760.0160529 | T213: =Drepre!E78 -> 25 | U213: 4046.760707 | W213: 7
B214: ='D60'!B186 -> KYNČLOVÁ | C214: ='D60'!C186 -> Anna | D214: ='D60'!D186 -> 9.A | E214: ='D60'!E186 -> 9.04 | F214: ='D60'!H186 -> 843.179363 | G214: ='D300'!H186 -> 791.906397 | H214: ='D800'!H186 -> 988.3762529 | I214: =Ddál!H186 -> 786.028 | J214: =Dvýš!H186 -> 915 | K214: =Dmíč!H186 -> 485.3 | L214: =Dkou!H186 -> 440 | M214: =Dčlu!H186 -> 722.2108745 | N214: =Dls!H186 -> 694.72 | O214: =Dodbíj!H186 -> 51 | P214: =Dplav!H186 -> 550.8558675 | Q214: =Dšplh!H186 -> 584.2101152 | R214: =Dšvih!H186 -> 668.25 | S214: ='Dz mís'!H186 -> 821.1737488 | T214: =Drepre!E79 -> 250 | U214: 9592.210619 | W214: 0
B215: ='D60'!B187 -> MATOUŠOVÁ | C215: ='D60'!C187 -> Tereza | D215: ='D60'!D187 -> 9.A | E215: ='D60'!E187 -> 10.24 | F215: ='D60'!H187 -> 737.466945 | G215: ='D300'!H187 -> 0 | H215: ='D800'!H187 -> 0 | I215: =Ddál!H187 -> 0 | J215: =Dvýš!H187 -> 0 | K215: =Dmíč!H187 -> 458 | L215: =Dkou!H187 -> 0 | M215: =Dčlu!H187 -> 647.1430823 | N215: =Dls!H187 -> 625.27 | O215: =Dodbíj!H187 -> 0 | P215: =Dplav!H187 -> 0 | Q215: =Dšplh!H187 -> 0 | R215: =Dšvih!H187 -> 112 | S215: ='Dz mís'!H187 -> 0 | T215: =Drepre!E80 -> 25 | U215: 2604.880027 | W215: 9
B216: ='D60'!B188 -> MAZÁNKOVÁ | C216: ='D60'!C188 -> Zuzana | D216: ='D60'!D188 -> 9.A | E216: ='D60'!E188 -> 10.1 | F216: ='D60'!H188 -> 748.5056939 | G216: ='D300'!H188 -> 623.5630957 | H216: ='D800'!H188 -> 0 | I216: =Ddál!H188 -> 0 | J216: =Dvýš!H188 -> 609.5 | K216: =Dmíč!H188 -> 294.2 | L216: =Dkou!H188 -> 466.6666667 | M216: =Dčlu!H188 -> 650.829991 | N216: =Dls!H188 -> 486.37 | O216: =Dodbíj!H188 -> 0 | P216: =Dplav!H188 -> 0 | Q216: =Dšplh!H188 -> 0 | R216: =Dšvih!H188 -> 149.5 | S216: ='Dz mís'!H188 -> 698.8583569 | T216: =Drepre!E81 -> 0 | U216: 4727.993804 | W216: 5
B217: ='D60'!B189 -> MORKESOVÁ | C217: ='D60'!C189 -> Sabrina | D217: ='D60'!D189 -> 9.A | E217: ='D60'!E189 -> 9.15 | F217: ='D60'!H189 -> 832.3346938 | G217: ='D300'!H189 -> 663.5206783 | H217: ='D800'!H189 -> 700.6998528 | I217: =Ddál!H189 -> 827.764 | J217: =Dvýš!H189 -> 739.5 | K217: =Dmíč!H189 -> 834.012 | L217: =Dkou!H189 -> 684.4444444 | M217: =Dčlu!H189 -> 730.5286082 | N217: =Dls!H189 -> 639.16 | O217: =Dodbíj!H189 -> 138 | P217: =Dplav!H189 -> 0 | Q217: =Dšplh!H189 -> 485.0797469 | R217: =Dšvih!H189 -> 687 | S217: ='Dz mís'!H189 -> 811.7648725 | T217: =Drepre!E82 -> 250 | U217: 9023.808897 | W217: 1
B218: ='D60'!B190 -> POHOŘALÁ | C218: ='D60'!C190 -> Alžběta | D218: ='D60'!D190 -> 9.A | E218: ='D60'!E190 -> 9.54 | F218: ='D60'!H190 -> 795.9005737 | G218: ='D300'!H190 -> 765.3215417 | H218: ='D800'!H190 -> 0 | I218: =Ddál!H190 -> 686.905 | J218: =Dvýš!H190 -> 0 | K218: =Dmíč!H190 -> 403.4 | L218: =Dkou!H190 -> 457.7777778 | M218: =Dčlu!H190 -> 0 | N218: =Dls!H190 -> 0 | O218: =Dodbíj!H190 -> 0 | P218: =Dplav!H190 -> 0 | Q218: =Dšplh!H190 -> 0 | R218: =Dšvih!H190 -> 0 | S218: ='Dz mís'!H190 -> 811.7648725 | T218: =Drepre!E83 -> 150 | U218: 4071.069766 | W218: 8
B219: ='D60'!B191 -> SCHOLZOVÁ | C219: ='D60'!C191 -> Laura | D219: ='D60'!D191 -> 9.A | E219: ='D60'!E191 -> 0 | F219: ='D60'!H191 -> 0 | G219: ='D300'!H191 -> 0 | H219: ='D800'!H191 -> 0 | I219: =Ddál!H191 -> 0 | J219: =Dvýš!H191 -> 0 | K219: =Dmíč!H191 -> 0 | L219: =Dkou!H191 -> 0 | M219: =Dčlu!H191 -> 0 | N219: =Dls!H191 -> 0 | O219: =Dodbíj!H191 -> 36 | P219: =Dplav!H191 -> 0 | Q219: =Dšplh!H191 -> 0 | R219: =Dšvih!H191 -> 0 | S219: ='Dz mís'!H191 -> 0 | T219: =Drepre!E84 -> 0 | U219: 36 | W219: 13
B220: ='D60'!B192 -> VÁCLAVÍKOVÁ | C220: ='D60'!C192 -> Valerie | D220: ='D60'!D192 -> 9.A | E220: ='D60'!E192 -> 9.68 | F220: ='D60'!H192 -> 783.5377564 | G220: ='D300'!H192 -> 734.675767 | H220: ='D800'!H192 -> 677.3611427 | I220: =Ddál!H192 -> 742.553 | J220: =Dvýš!H192 -> 0 | K220: =Dmíč!H192 -> 0 | L220: =Dkou!H192 -> 609.7777778 | M220: =Dčlu!H192 -> 668.5574111 | N220: =Dls!H192 -> 597.49 | O220: =Dodbíj!H192 -> 138 | P220: =Dplav!H192 -> 0 | Q220: =Dšplh!H192 -> 0 | R220: =Dšvih!H192 -> 712 | S220: ='Dz mís'!H192 -> 769.4249292 | T220: =Drepre!E85 -> 200 | U220: 6633.377784 | W220: 4
B221: ='D60'!B193 -> ZAPADLOVÁ | C221: ='D60'!C193 -> Emma | D221: ='D60'!D193 -> 9.A | E221: ='D60'!E193 -> 9.04 | F221: ='D60'!H193 -> 843.179363 | G221: ='D300'!H193 -> 798.9717017 | H221: ='D800'!H193 -> 703.5587018 | I221: =Ddál!H193 -> 0 | J221: =Dvýš!H193 -> 804.5 | K221: =Dmíč!H193 -> 776.5 | L221: =Dkou!H193 -> 397.3333333 | M221: =Dčlu!H193 -> 689.2465651 | N221: =Dls!H193 -> 0 | O221: =Dodbíj!H193 -> 66 | P221: =Dplav!H193 -> 0 | Q221: =Dšplh!H193 -> 0 | R221: =Dšvih!H193 -> 0 | S221: ='Dz mís'!H193 -> 821.1737488 | T221: =Drepre!E86 -> 250 | U221: 6150.463414 | W221: 5
B222: ='D60'!B194 -> ŽIŠKOVÁ | C222: ='D60'!C194 -> Mia | D222: ='D60'!D194 -> 9.A | E222: ='D60'!E194 -> 0 | F222: ='D60'!H194 -> 0 | G222: ='D300'!H194 -> 0 | H222: ='D800'!H194 -> 0 | I222: =Ddál!H194 -> 0 | J222: =Dvýš!H194 -> 0 | K222: =Dmíč!H194 -> 0 | L222: =Dkou!H194 -> 0 | M222: =Dčlu!H194 -> 0 | N222: =Dls!H194 -> 0 | O222: =Dodbíj!H194 -> 66 | P222: =Dplav!H194 -> 0 | Q222: =Dšplh!H194 -> 0 | R222: =Dšvih!H194 -> 0 | S222: ='Dz mís'!H194 -> 0 | T222: =Drepre!E87 -> 25 | U222: 91 | W222: 13 | X222: =SUM(W206:W222) -> 105
B223: ='D60'!B195 -> FARSKÁ | C223: ='D60'!C195 -> Tereza | D223: ='D60'!D195 -> 9.B | E223: ='D60'!E195 -> 11.42 | F223: ='D60'!H195 -> 655.1803496 | G223: ='D300'!H195 -> 0 | H223: ='D800'!H195 -> 0 | I223: =Ddál!H195 -> 0 | J223: =Dvýš!H195 -> 0 | K223: =Dmíč!H195 -> 330.6 | L223: =Dkou!H195 -> 0 | M223: =Dčlu!H195 -> 0 | N223: =Dls!H195 -> 0 | O223: =Dodbíj!H195 -> 0 | P223: =Dplav!H195 -> 0 | Q223: =Dšplh!H195 -> 0 | R223: =Dšvih!H195 -> 0 | S223: ='Dz mís'!H195 -> 0 | T223: =Drepre!E88 -> 0 | U223: 985.7803496 | W223: 12
B224: ='D60'!B196 -> FEIXOVÁ | C224: ='D60'!C196 -> Rozálie | D224: ='D60'!D196 -> 9.B | E224: ='D60'!E196 -> 0 | F224: ='D60'!H196 -> 0 | G224: ='D300'!H196 -> 0 | H224: ='D800'!H196 -> 0 | I224: =Ddál!H196 -> 0 | J224: =Dvýš!H196 -> 0 | K224: =Dmíč!H196 -> 276 | L224: =Dkou!H196 -> 0 | M224: =Dčlu!H196 -> 0 | N224: =Dls!H196 -> 0 | O224: =Dodbíj!H196 -> 0 | P224: =Dplav!H196 -> 0 | Q224: =Dšplh!H196 -> 0 | R224: =Dšvih!H196 -> 0 | S224: ='Dz mís'!H196 -> 0 | T224: =Drepre!E89 -> 0 | U224: 276 | W224: 13
B225: ='D60'!B197 -> FIŠEROVÁ | C225: ='D60'!C197 -> Michaela | D225: ='D60'!D197 -> 9.B | E225: ='D60'!E197 -> 10.45 | F225: ='D60'!H197 -> 721.4634001 | G225: ='D300'!H197 -> 0 | H225: ='D800'!H197 -> 0 | I225: =Ddál!H197 -> 0 | J225: =Dvýš!H197 -> 0 | K225: =Dmíč!H197 -> 348.8 | L225: =Dkou!H197 -> 626.6666667 | M225: =Dčlu!H197 -> 0 | N225: =Dls!H197 -> 0 | O225: =Dodbíj!H197 -> 0 | P225: =Dplav!H197 -> 0 | Q225: =Dšplh!H197 -> 0 | R225: =Dšvih!H197 -> 0 | S225: ='Dz mís'!H197 -> 0 | T225: =Drepre!E90 -> 25 | U225: 1721.930067 | W225: 11
B226: ='D60'!B198 -> HAVLÍČKOVÁ | C226: ='D60'!C198 -> Kristýna | D226: ='D60'!D198 -> 9.B | E226: ='D60'!E198 -> 0 | F226: ='D60'!H198 -> 0 | G226: ='D300'!H198 -> 0 | H226: ='D800'!H198 -> 0 | I226: =Ddál!H198 -> 0 | J226: =Dvýš!H198 -> 0 | K226: =Dmíč!H198 -> 303.3 | L226: =Dkou!H198 -> 600 | M226: =Dčlu!H198 -> 0 | N226: =Dls!H198 -> 0 | O226: =Dodbíj!H198 -> 0 | P226: =Dplav!H198 -> 0 | Q226: =Dšplh!H198 -> 0 | R226: =Dšvih!H198 -> 0 | S226: ='Dz mís'!H198 -> 0 | T226: =Drepre!E91 -> 0 | U226: 903.3 | W226: 12
B227: ='D60'!B199 -> KADAVÁ | C227: ='D60'!C199 -> Nikola | D227: ='D60'!D199 -> 9.B | E227: ='D60'!E199 -> 12.18 | F227: ='D60'!H199 -> 610.6236158 | G227: ='D300'!H199 -> 0 | H227: ='D800'!H199 -> 0 | I227: =Ddál!H199 -> 0 | J227: =Dvýš!H199 -> 0 | K227: =Dmíč!H199 -> 257.8 | L227: =Dkou!H199 -> 457.7777778 | M227: =Dčlu!H199 -> 0 | N227: =Dls!H199 -> 0 | O227: =Dodbíj!H199 -> 0 | P227: =Dplav!H199 -> 0 | Q227: =Dšplh!H199 -> 0 | R227: =Dšvih!H199 -> 0 | S227: ='Dz mís'!H199 -> 0 | T227: =Drepre!E92 -> 0 | U227: 1326.201394 | W227: 11
B228: ='D60'!B200 -> KŘIVINKOVÁ | C228: ='D60'!C200 -> Alžběta | D228: ='D60'!D200 -> 9.B | E228: ='D60'!E200 -> 10 | F228: ='D60'!H200 -> 756.5797502 | G228: ='D300'!H200 -> 0 | H228: ='D800'!H200 -> 0 | I228: =Ddál!H200 -> 0 | J228: =Dvýš!H200 -> 0 | K228: =Dmíč!H200 -> 458 | L228: =Dkou!H200 -> 635.5555556 | M228: =Dčlu!H200 -> 0 | N228: =Dls!H200 -> 0 | O228: =Dodbíj!H200 -> 0 | P228: =Dplav!H200 -> 0 | Q228: =Dšplh!H200 -> 0 | R228: =Dšvih!H200 -> 0 | S228: ='Dz mís'!H200 -> 0 | T228: =Drepre!E93 -> 0 | U228: 1850.135306 | W228: 11
B229: ='D60'!B201 -> LEŠÁKOVÁ | C229: ='D60'!C201 -> Lenka | D229: ='D60'!D201 -> 9.B | E229: ='D60'!E201 -> 10.39 | F229: ='D60'!H201 -> 725.9698293 | G229: ='D300'!H201 -> 0 | H229: ='D800'!H201 -> 0 | I229: =Ddál!H201 -> 0 | J229: =Dvýš!H201 -> 0 | K229: =Dmíč!H201 -> 221.4 | L229: =Dkou!H201 -> 502.2222222 | M229: =Dčlu!H201 -> 0 | N229: =Dls!H201 -> 0 | O229: =Dodbíj!H201 -> 0 | P229: =Dplav!H201 -> 0 | Q229: =Dšplh!H201 -> 0 | R229: =Dšvih!H201 -> 0 | S229: ='Dz mís'!H201 -> 0 | T229: =Drepre!E94 -> 0 | U229: 1449.592052 | W229: 11
B230: ='D60'!B202 -> NYKLÍČKOVÁ | C230: ='D60'!C202 -> Adéla | D230: ='D60'!D202 -> 9.B | E230: ='D60'!E202 -> 9.84 | F230: ='D60'!H202 -> 769.8395825 | G230: ='D300'!H202 -> 0 | H230: ='D800'!H202 -> 0 | I230: =Ddál!H202 -> 0 | J230: =Dvýš!H202 -> 0 | K230: =Dmíč!H202 -> 430.7 | L230: =Dkou!H202 -> 600 | M230: =Dčlu!H202 -> 0 | N230: =Dls!H202 -> 0 | O230: =Dodbíj!H202 -> 0 | P230: =Dplav!H202 -> 0 | Q230: =Dšplh!H202 -> 0 | R230: =Dšvih!H202 -> 0 | S230: ='Dz mís'!H202 -> 0 | T230: =Drepre!E95 -> 25 | U230: 1825.539583 | W230: 11
B231: ='D60'!B203 -> PLŮCHOVÁ | C231: ='D60'!C203 -> Petra | D231: ='D60'!D203 -> 9.B | E231: ='D60'!E203 -> 10.38 | F231: ='D60'!H203 -> 726.7259659 | G231: ='D300'!H203 -> 0 | H231: ='D800'!H203 -> 0 | I231: =Ddál!H203 -> 0 | J231: =Dvýš!H203 -> 0 | K231: =Dmíč!H203 -> 439.8 | L231: =Dkou!H203 -> 626.6666667 | M231: =Dčlu!H203 -> 0 | N231: =Dls!H203 -> 0 | O231: =Dodbíj!H203 -> 0 | P231: =Dplav!H203 -> 0 | Q231: =Dšplh!H203 -> 0 | R231: =Dšvih!H203 -> 0 | S231: ='Dz mís'!H203 -> 0 | T231: =Drepre!E96 -> 25 | U231: 1818.192633 | W231: 11
... 6 more rows

Sheet D60
B1: VÝKONY 2022 - 2023 | G1: 60 M | K1: stav k | L1: =TODAY() -> 45103
H2: BODY | J2: 21 - 22 | K2: 20 - 21 | L2: 19 - 20
A3: 1. | B3: =B111 -> FARSKÁ | C3: =C111 -> Anna | D3: 6.A | E3: 9.98 | G3: Jilemnice 29.05.23 | H3: 758.213978 | J3: 0 | K3: 0 | L3: 0
A4: 2. | B4: =B112 -> FARSKÁ | C4: Eliška | D4: 6.A | E4: 9.45 | G4: Jilemnice 29.05.23 | H4: 804.0415309 | J4: 0 | K4: 0 | L4: 0
A5: 3. | B5: =B113 -> FEDORKOVÁ | C5: Denisa | D5: 6.A | E5: 11.32 | G5: Jilemnice 29.05.23 | H5: 661.4884793 | J5: 0 | K5: 0 | L5: 0
A6: 4. | B6: =B114 -> HAUZEROVÁ | C6: Tereza | D6: 6.A | E6: 9.96 | G6: Jilemnice 29.05.23 | H6: 759.854769 | J6: 0 | K6: 0 | L6: 0
A7: 5. | B7: =B115 -> JOSKOVÁ | C7: Ellen | D7: 6.A | E7: 9.4 | G7: Jilemnice 29.05.23 | H7: 808.6316451 | J7: 0 | K7: 0 | L7: 0
A8: 6. | B8: =B116 -> KUŽELOVÁ | C8: Amálie | D8: 6.A | E8: 12.23 | G8: Jilemnice 29.05.23 | H8: 607.8863977 | J8: 0 | K8: 0 | L8: 0
A9: 7. | B9: =B117 -> RYŠAVÁ | C9: Amálie | D9: 6.A | E9: 10.73 | G9: Jilemnice 29.05.23 | H9: 701.0997715 | J9: 0 | K9: 0 | L9: 0
A10: 8. | B10: =B118 -> BANGOVÁ | C10: Zuzana | D10: 6.B | E10: 11.08 | G10: Jilemnice 08.09.22 | H10: 677.0925605 | J10: 0 | K10: 0 | L10: 0
A11: 9. | B11: =B119 -> HOLUBOVÁ | C11: Denisa | D11: 6.B | E11: 12 | G11: Jilemnice 08.09.22 | H11: 620.6664691 | J11: 0 | K11: 0 | L11: 0
A12: 10. | B12: =B120 -> HURKALO | C12: Karolina | D12: 6.B | E12: 15.65 | G12: Jilemnice 08.09.22 | H12: 462.1733457 | J12: 0 | K12: 0 | L12: 0
A13: 11. | B13: =B121 -> HUTNIK-MAMONOVA | C13: Nana | D13: 6.B | E13: 14 | G13: Jilemnice 08.09.22 | H13: 523.585554 | J13: 0 | K13: 0 | L13: 0
A14: 12. | B14: =B122 -> MARINOVA | C14: Darja | D14: 6.B | E14: 12 | G14: Jilemnice 08.09.22 | H14: 620.6664691 | J14: 0 | K14: 0 | L14: 0
A15: 13. | B15: =B123 -> NYKLÍČKOVÁ | C15: Klára | D15: 6.B | E15: 10.58 | G15: Jilemnice 29.05.23 | H15: 711.8748146 | J15: 0 | K15: 0 | L15: 0
A16: 14. | B16: =B124 -> PANCHAYEVA | C16: Sofiia | D16: 6.B | E16: 12 | G16: Jilemnice 08.09.22 | H16: 620.6664691 | J16: 0 | K16: 0 | L16: 0
A17: 15. | B17: =B125 -> PIČMANOVÁ | C17: Klára | D17: 6.B | E17: 11.14 | G17: Jilemnice 29.05.23 | H17: 673.1285076 | J17: 0 | K17: 0 | L17: 0
A18: 16. | B18: =B126 -> ŠIMŮNKOVÁ | C18: Anežka | D18: 6.B | E18: 10.36 | G18: Jilemnice 29.05.23 | H18: 728.2426182 | J18: 0 | K18: 0 | L18: 0
A19: 17. | B19: =B127 -> TRPIŠOVSKÁ | C19: Nela | D19: 6.B | E19: 10.18 | G19: Jilemnice 29.05.23 | H19: 742.1606595 | J19: 0 | K19: 0 | L19: 0
A20: 18. | B20: =B128 -> HEJRALOVÁ | C20: Natálie | D20: 7.A | E20: 9.86 | G20: Jilemnice 12.06.23 | H20: 768.1585693 | J20: 9.9 | K20: 0 | L20: 0
A21: 19. | B21: =B129 -> KERLE | C21: Nikita | D21: 7.A | E21: 9.82 | G21: Jilemnice 14.09.22 | H21: 771.527443 | J21: 10.06 | K21: 0 | L21: 0
A22: 20. | B22: =B130 -> MUNZAROVÁ | C22: Aneta | D22: 7.A | E22: 0 | G22: 0 | H22: 0 | J22: 0 | K22: 0 | L22: 0
A23: 21. | B23: =B131 -> PACLÍKOVÁ | C23: Markéta | D23: 7.A | E23: 9.4 | G23: Jilemnice 12.06.23 | H23: 808.6316451 | J23: 9.85 | K23: 0 | L23: 0
A24: 22. | B24: =B132 -> PLŮCHOVÁ | C24: Michaela | D24: 7.A | E24: 9.4 | G24: Jilemnice 12.06.23 | H24: 808.6316451 | J24: 9.85 | K24: 0 | L24: 0
A25: 23. | B25: =B133 -> ŠERCLOVÁ | C25: Nikola | D25: 7.A | E25: 0 | G25: 0 | H25: 0 | J25: 12.1 | K25: 0 | L25: 0
A26: 24. | B26: =B134 -> VÁCLAVÍKOVÁ | C26: Alena | D26: 7.A | E26: 10.04 | G26: Jilemnice 12.06.23 | H26: 753.3308272 | J26: 10.3 | K26: 0 | L26: 0
A27: 25. | B27: =B135 -> DUCHÁČKOVÁ | C27: Tereza | D27: 7.B | E27: 11.99 | G27: Jilemnice 14.09.22 | H27: 621.2332467 | J27: 11.67 | K27: 0 | L27: 0
A28: 26. | B28: =B136 -> FLAŠKOVÁ | C28: Anna Sabriel | D28: 7.B | E28: 11.25 | G28: Jilemnice 14.09.22 | H28: 665.9708961 | J28: 11.35 | K28: 0 | L28: 0
A29: 27. | B29: =B137 -> HAASOVÁ | C29: Julie | D29: 7.B | E29: 10.03 | G29: Turnov 13.09.22 | H29: 754.1406285 | J29: 9.91 | K29: 0 | L29: 0
A30: 28. | B30: =B138 -> HEGROVÁ | C30: Štěpánka | D30: 7.B | E30: 10.65 | G30: Jilemnice 07.05.23 | H30: 706.8086895 | J30: 0 | K30: 0 | L30: 0
A31: 29. | B31: =B139 -> HOBLOVÁ | C31: Barbora | D31: 7.B | E31: 9.71 | G31: Jilemnice 12.06.23 | H31: 780.9349623 | J31: 10.12 | K31: 0 | L31: 0
A32: 30. | B32: =B140 -> HORÁČKOVÁ | C32: Valérie | D32: 7.B | E32: 8.88 | G32: Jilemnice 19.06.23 | H32: 859.433044 | J32: 10.09 | K32: 0 | L32: 0
A33: 31. | B33: =B141 -> JIRANOVÁ | C33: Anežka | D33: 7.B | E33: 12.5 | G33: Jilemnice 14.09.22 | H33: 593.4838128 | J33: 13.54 | K33: 0 | L33: 0
A34: 32. | B34: =B142 -> KRČÍKOVÁ | C34: Beatrix | D34: 7.B | E34: 9.35 | G34: Jilemnice 12.06.23 | H34: 813.2708514 | J34: 10.42 | K34: 0 | L34: 0
A35: 33. | B35: =B143 -> KUBÁTOVÁ | C35: Veronika | D35: 7.B | E35: 11.9 | G35: Jilemnice 07.05.23 | H35: 626.3771111 | J35: 12.29 | K35: 0 | L35: 0
A36: 34. | B36: =B144 -> LENČEŠOVÁ | C36: Silvie | D36: 7.B | E36: 11.46 | G36: Jilemnice 14.09.22 | H36: 652.6879227 | J36: 11.56 | K36: 0 | L36: 0
A37: 35. | B37: =B145 -> LUKEŠOVÁ | C37: Lucie | D37: 7.B | E37: 11.25 | G37: Jilemnice 07.05.23 | H37: 665.9708961 | J37: 0 | K37: 0 | L37: 0
A38: 36. | B38: =B146 -> MATERNOVÁ | C38: Lenka | D38: 7.B | E38: 9.42 | G38: Jilemnice 14.09.22 | H38: 806.7897522 | J38: 9.14 | K38: 0 | L38: 0
A39: 37. | B39: =B147 -> TÓTHOVÁ | C39: Viktorie | D39: 7.B | E39: 10.46 | G39: Jilemnice 07.05.23 | H39: 720.7173548 | J39: 11.26 | K39: 0 | L39: 0
A40: 38. | B40: =B148 -> DUONG | C40: Ngoc Linh | D40: 8.A | E40: 9.93 | G40: Jilemnice 07.06.23 | H40: 762.3283482 | J40: 11.4 | K40: 11.58 | L40: 0
A41: 39. | B41: =B149 -> GINGALOVÁ | C41: Linda | D41: 8.A | E41: 9.5 | G41: Jilemnice 16.09.22 | H41: 799.4997337 | J41: 9.56 | K41: 0 | L41: 0
A42: 40. | B42: =B150 -> HOFMANOVÁ | C42: Nicol | D42: 8.A | E42: 10.83 | G42: Jilemnice 28.04.23 | H42: 694.0822303 | J42: 10.92 | K42: 11.92 | L42: 0
A43: 41. | B43: =B151 -> HOLEŠOVSKÁ | C43: Aneta | D43: 8.A | E43: 10.26 | G43: Jilemnice 28.04.23 | H43: 735.914573 | J43: 10.51 | K43: 10.99 | L43: 0
A44: 42. | B44: =B152 -> HOLUBCOVÁ | C44: Alena | D44: 8.A | E44: 9.08 | G44: Jilemnice 07.06.23 | H44: 839.2054454 | J44: 9.52 | K44: 0 | L44: 0
A45: 43. | B45: =B153 -> KOHOUTOVÁ | C45: Anna | D45: 8.A | E45: 11.35 | G45: Jilemnice 28.04.23 | H45: 659.5843689 | J45: 11.42 | K45: 13.25 | L45: 0
A46: 44. | B46: =B154 -> KRAUSOVÁ | C46: Anežka | D46: 8.A | E46: 10.36 | G46: Jilemnice 28.04.23 | H46: 728.2426182 | J46: 11.38 | K46: 11.74 | L46: 0
A47: 45. | B47: =B155 -> KUŽELOVÁ | C47: Apoléna | D47: 8.A | E47: 10.4 | G47: Jilemnice 28.04.23 | H47: 725.2151469 | J47: 10.24 | K47: 10.86 | L47: 0
A48: 46. | B48: =B156 -> MORÁVKOVÁ | C48: Lucie | D48: 8.A | E48: 11.78 | G48: Jilemnice 28.04.23 | H48: 633.357862 | J48: 11.75 | K48: 11.58 | L48: 0
A49: 47. | B49: =B157 -> SKLENÁROVÁ | C49: Eliška | D49: 8.A | E49: 0 | G49: 0 | H49: 0 | J49: 0 | K49: 0 | L49: 0
A50: 48. | B50: =B158 -> ŠEJNOVÁ | C50: Karolína | D50: 8.A | E50: 10.62 | G50: Jilemnice 28.04.23 | H50: 708.9717082 | J50: 0 | K50: 0 | L50: 0
A51: 49. | B51: =B159 -> ŠTOLFOVÁ | C51: Tereza | D51: 8.A | E51: 10.11 | G51: Jilemnice 28.04.23 | H51: 747.7070731 | J51: 10.77 | K51: 10.82 | L51: 0
A52: 50. | B52: =B160 -> ŠUBÍKOVÁ | C52: Klára | D52: 8.A | E52: 9.9 | G52: Jilemnice 07.06.23 | H52: 764.8169188 | J52: 10.5 | K52: 0 | L52: 0
A53: 51. | B53: =B161 -> ŠULKOVSKÁ | C53: Klára | D53: 8.A | E53: 0 | G53: 0 | H53: 0 | J53: 11.49 | K53: 0 | L53: 0
A54: 52. | B54: =B162 -> TULÁČKOVÁ | C54: Natálie | D54: 8.A | E54: 10.54 | G54: Jilemnice 16.09.22 | H54: 714.799956 | J54: 10.4 | K54: 11.52 | L54: 0
A55: 53. | B55: =B163 -> VOJTÍŠKOVÁ | C55: Ella | D55: 8.A | E55: 9.32 | G55: Jilemnice 16.09.22 | H55: 816.0782681 | J55: 9.52 | K55: 10.61 | L55: 0
A56: 54. | B56: =B164 -> DRUGÁČOVÁ | C56: Kristinka | D56: 8.B | E56: 0 | G56: 0 | H56: 0 | J56: 0 | K56: 0 | L56: 0
A57: 55. | B57: =B165 -> FAJSTAVROVÁ | C57: Karolína | D57: 8.B | E57: 8.76 | G57: Turnov 16.05.23 | H57: 872.0129479 | J57: 9.02 | K57: 10.61 | L57: 0
A58: 56. | B58: =B166 -> FAJSTAVROVÁ | C58: Magdaléna | D58: 8.B | E58: 9.05 | G58: Jilemnice 28.04.23 | H58: 842.1825903 | J58: 9.68 | K58: 10.25 | L58: 0
A59: 57. | B59: =B167 -> JINDROVÁ | C59: Barbora | D59: 8.B | E59: 10.54 | G59: Jilemnice 28.04.23 | H59: 714.799956 | J59: 10.8 | K59: 12.1 | L59: 0
A60: 58. | B60: =B168 -> MAŘASOVÁ | C60: Vendula | D60: 8.B | E60: 10.44 | G60: Jilemnice 28.04.23 | H60: 722.2108745 | J60: 10.78 | K60: 0 | L60: 0
A61: 59. | B61: =B169 -> PETŘÍČKOVÁ | C61: Natálie | D61: 8.B | E61: 9.08 | G61: Jilemnice 28.04.23 | H61: 839.2054454 | J61: 8.9 | K61: 10.78 | L61: 0
A62: 60. | B62: =B170 -> PETŘÍKOVÁ | C62: Adéla | D62: 8.B | E62: 10.43 | G62: Jilemnice 28.04.23 | H62: 722.9597823 | J62: 10.97 | K62: 12.38 | L62: 0
A63: 61. | B63: =B171 -> REGÁLOVÁ | C63: Karolína | D63: 8.B | E63: 10.12 | G63: Jilemnice 28.04.23 | H63: 746.9100306 | J63: 10.52 | K63: 11.39 | L63: 0
A64: 62. | B64: =B172 -> RIEGROVÁ | C64: Magdaléna | D64: 8.B | E64: 10.49 | G64: Jilemnice 28.04.23 | H64: 718.4877534 | J64: 0 | K64: 0 | L64: 0
A65: 63. | B65: =B173 -> RYBENSKÁ | C65: Sabina | D65: 8.B | E65: 10.17 | G65: Jilemnice 16.09.22 | H65: 742.9483297 | J65: 10.38 | K65: 11.01 | L65: 0
A66: 64. | B66: =B174 -> STEINEROVÁ | C66: Barbora | D66: 8.B | E66: 9.51 | G66: Jilemnice 16.09.22 | H66: 798.5971053 | J66: 9.98 | K66: 11.26 | L66: 0
A67: 65. | B67: =B175 -> ŠERCLOVÁ | C67: Andrea | D67: 8.B | E67: 0 | G67: 0 | H67: 0 | J67: 0 | K67: 0 | L67: 0
A68: 66. | B68: =B176 -> TOMEŠOVÁ | C68: Martina | D68: 8.B | E68: 9.73 | G68: Jilemnice 16.09.22 | H68: 779.2086829 | J68: 9.98 | K68: 11.59 | L68: 0
A69: 67. | B69: =B177 -> VOHNOUTOVÁ | C69: Aneta | D69: 8.B | E69: 8.94 | G69: Jilemnice 16.09.22 | H69: 853.2697355 | J69: 9.17 | K69: 10.21 | L69: 0
A70: 68. | B70: =B178 -> HAVLÍKOVÁ | C70: Michaela | D70: 9.A | E70: 10.1 | G70: Jilemnice 14.09.22 | H70: 748.5056939 | J70: 9.94 | K70: 11.75 | L70: 12.24
A71: 69. | B71: =B179 -> HOLUBCOVÁ | C71: Sára | D71: 9.A | E71: 9.23 | G71: Jilemnice 14.09.22 | H71: 824.6100166 | J71: 9.02 | K71: 9.58 | L71: 9.96
A72: 70. | B72: =B180 -> HONCŮ | C72: Tereza | D72: 9.A | E72: 10.54 | G72: Jilemnice 14.09.22 | H72: 714.799956 | J72: 10.2 | K72: 11.17 | L72: 0
A73: 71. | B73: =B181 -> HORÁČKOVÁ | C73: Kateřina | D73: 9.A | E73: 9.26 | G73: Jilemnice 03.05.23 | H73: 821.7476733 | J73: 9.82 | K73: 9.59 | L73: 9.91
A74: 72. | B74: =B182 -> JOUDALOVÁ | C74: Daniela | D74: 9.A | E74: 0 | G74: 0 | H74: 0 | J74: 0 | K74: 0 | L74: 13.96
A75: 73. | B75: =B183 -> KLÍMOVÁ | C75: Anna | D75: 9.A | E75: 9.77 | G75: Jilemnice 14.09.22 | H75: 775.7773273 | J75: 10.9 | K75: 10.81 | L75: 11.09
A76: 74. | B76: =B184 -> KOHOUTOVÁ | C76: Veronika | D76: 9.A | E76: 9.4 | G76: Jilemnice 14.09.22 | H76: 808.6316451 | J76: 9.39 | K76: 0 | L76: 9.96
A77: 75. | B77: =B185 -> KOVÁŘOVÁ | C77: Viktorie | D77: 9.A | E77: 9.75 | G77: Jilemnice 14.09.22 | H77: 777.4894858 | J77: 10.28 | K77: 10.62 | L77: 11.22
A78: 76. | B78: =B186 -> KYNČLOVÁ | C78: Anna | D78: 9.A | E78: 9.04 | G78: Jilemnice 14.09.22 | H78: 843.179363 | J78: 9.39 | K78: 9.5 | L78: 10.51
A79: 77. | B79: =B187 -> MATOUŠOVÁ | C79: Tereza | D79: 9.A | E79: 10.24 | G79: Jilemnice 14.09.22 | H79: 737.466945 | J79: 10.51 | K79: 10.81 | L79: 11.37
A80: 78. | B80: =B188 -> MAZÁNKOVÁ | C80: Zuzana | D80: 9.A | E80: 10.1 | G80: Jilemnice 14.09.22 | H80: 748.5056939 | J80: 10.66 | K80: 10.26 | L80: 11.5
A81: 79. | B81: =B189 -> MORKESOVÁ | C81: Sabrina | D81: 9.A | E81: 9.15 | G81: Jilemnice 14.09.22 | H81: 832.3346938 | J81: 8.78 | K81: 0 | L81: 9.39
A82: 80. | B82: =B190 -> POHOŘALÁ | C82: Alžběta | D82: 9.A | E82: 9.54 | G82: Jilemnice 14.09.22 | H82: 795.9005737 | J82: 9.66 | K82: 9.5 | L82: 10.59
A83: 81. | B83: =B191 -> SCHOLZOVÁ | C83: Laura | D83: 9.A | E83: 0 | G83: 0 | H83: 0 | J83: 10.56 | K83: 11.29 | L83: 0
A84: 82. | B84: =B192 -> VÁCLAVÍKOVÁ | C84: Valerie | D84: 9.A | E84: 9.68 | G84: Jilemnice 03.05.23 | H84: 783.5377564 | J84: 9.92 | K84: 9.42 | L84: 10.34
A85: 83. | B85: =B193 -> ZAPADLOVÁ | C85: Emma | D85: 9.A | E85: 9.04 | G85: Jilemnice 03.05.23 | H85: 843.179363 | J85: 8.71 | K85: 9.52 | L85: 0
A86: 84. | B86: =B194 -> ŽIŠKOVÁ | C86: Mia | D86: 9.A | E86: 0 | G86: 0 | H86: 0 | J86: 0 | K86: 9.58 | L86: 10.58
A87: 85. | B87: =B195 -> FARSKÁ | C87: Tereza | D87: 9.B | E87: 11.42 | G87: Jilemnice 14.09.22 | H87: 655.1803496 | J87: 10.91 | K87: 11.55 | L87: 11.73
A88: 86. | B88: =B196 -> FEIXOVÁ | C88: Rozálie | D88: 9.B | E88: 0 | G88: 0 | H88: 0 | J88: 11.85 | K88: 11.58 | L88: 12.86
A89: 87. | B89: =B197 -> FIŠEROVÁ | C89: Michaela | D89: 9.B | E89: 10.45 | G89: Jilemnice 14.09.22 | H89: 721.4634001 | J89: 11.45 | K89: 10.9 | L89: 11.71
A90: 88. | B90: =B198 -> HAVLÍČKOVÁ | C90: Kristýna | D90: 9.B | E90: 0 | G90: 0 | H90: 0 | J90: 12.55 | K90: 12.36 | L90: 12.86
A91: 89. | B91: =B199 -> KADAVÁ | C91: Nikola | D91: 9.B | E91: 12.18 | G91: Jilemnice 14.09.22 | H91: 610.6236158 | J91: 12.62 | K91: 0 | L91: 12.41
A92: 90. | B92: =B200 -> KŘIVINKOVÁ | C92: Alžběta | D92: 9.B | E92: 10 | G92: Jilemnice 14.09.22 | H92: 756.5797502 | J92: 10.99 | K92: 11.01 | L92: 0
A93: 91. | B93: =B201 -> LEŠÁKOVÁ | C93: Lenka | D93: 9.B | E93: 10.39 | G93: Jilemnice 14.09.22 | H93: 725.9698293 | J93: 13 | K93: 12.4 | L93: 12.92
A94: 92. | B94: =B202 -> NYKLÍČKOVÁ | C94: Adéla | D94: 9.B | E94: 9.84 | G94: Jilemnice 03.05.23 | H94: 769.8395825 | J94: 9.68 | K94: 10.11 | L94: 10
A95: 93. | B95: =B203 -> PLŮCHOVÁ | C95: Petra | D95: 9.B | E95: 10.38 | G95: Turnov 11.05.23 | H95: 726.7259659 | J95: 10.54 | K95: 11.01 | L95: 11.32
A96: 94. | B96: =B204 -> PODZIMKOVÁ | C96: Eliška | D96: 9.B | E96: 11.59 | G96: Jilemnice 03.05.23 | H96: 644.7063505 | J96: 10.8 | K96: 12.35 | L96: 12.09
A97: 95. | B97: =B205 -> RUTKAYOVÁ | C97: Klára | D97: 9.B | E97: 11.06 | G97: Jilemnice 03.05.23 | H97: 678.4234692 | J97: 13 | K97: 0 | L97: 0
A98: 96. | B98: =B206 -> SEIDLOVÁ | C98: Zuzana | D98: 9.B | E98: 10.36 | G98: Jilemnice 14.09.22 | H98: 728.2426182 | J98: 10.88 | K98: 12.14 | L98: 0
A99: 97. | B99: =B207 -> TOMÁŠOVÁ | C99: Sára | D99: 9.B | E99: 12.4 | G99: Jilemnice 14.09.22 | H99: 598.7449721 | J99: 0 | K99: 12.51 | L99: 12.51
A100: 98. | B100: =B208 -> VANCLOVÁ | C100: Barbora | D100: 9.B | E100: 10.28 | G100: Jilemnice 03.05.23 | H100: 734.3682412 | J100: 10.68 | K100: 9.97 | L100: 0
A101: 99. | B101: =B209 -> VOTOČKOVÁ | C101: Veronika | D101: 9.B | E101: 12.62 | G101: Jilemnice 14.09.22 | H101: 587.2804808 | J101: 13.34 | K101: 12.55 | L101: 13.86
B111: FARSKÁ | C111: Anna | D111: 6.A | E111: 9.98 | G111: Jilemnice 29.05.23 | H111: =IF(E111=0,0,IF(E111>0,((1000 - 321 / E111 + 340 / E111*2 - 16600 / E111*3 + 32190000000 / E111*4)/15000000-62)*0.95)) -> 758.213978
B112: FARSKÁ | C112: Eliška | D112: 6.A | E112: 9.45 | G112: Jilemnice 29.05.23 | H112: 804.0415309
B113: FEDORKOVÁ | C113: Denisa | D113: 6.A | E113: 11.32 | G113: Jilemnice 29.05.23 | H113: 661.4884793
B114: HAUZEROVÁ | C114: Tereza | D114: 6.A | E114: 9.96 | G114: Jilemnice 29.05.23 | H114: 759.854769
B115: JOSKOVÁ | C115: Ellen | D115: 6.A | E115: 9.4 | G115: Jilemnice 29.05.23 | H115: 808.6316451
B116: KUŽELOVÁ | C116: Amálie | D116: 6.A | E116: 12.23 | G116: Jilemnice 29.05.23 | H116: 607.8863977
B117: RYŠAVÁ | C117: Amálie | D117: 6.A | E117: 10.73 | G117: Jilemnice 29.05.23 | H117: 701.0997715
B118: BANGOVÁ | C118: Zuzana | D118: 6.B | E118: 11.08 | G118: Jilemnice 08.09.22 | H118: 677.0925605
B119: HOLUBOVÁ | C119: Denisa | D119: 6.B | E119: 12 | G119: Jilemnice 08.09.22 | H119: 620.6664691
B120: HURKALO | C120: Karolina | D120: 6.B | E120: 15.65 | G120: Jilemnice 08.09.22 | H120: 462.1733457
B121: HUTNIK-MAMONOVA | C121: Nana | D121: 6.B | E121: 14 | G121: Jilemnice 08.09.22 | H121: 523.585554
B122: MARINOVA | C122: Darja | D122: 6.B | E122: 12 | G122: Jilemnice 08.09.22 | H122: 620.6664691
B123: NYKLÍČKOVÁ | C123: Klára | D123: 6.B | E123: 10.58 | G123: Jilemnice 29.05.23 | H123: 711.8748146
B124: PANCHAYEVA | C124: Sofiia | D124: 6.B | E124: 12 | G124: Jilemnice 08.09.22 | H124: 620.6664691
B125: PIČMANOVÁ | C125: Klára | D125: 6.B | E125: 11.14 | G125: Jilemnice 29.05.23 | H125: 673.1285076
B126: ŠIMŮNKOVÁ | C126: Anežka | D126: 6.B | E126: 10.36 | G126: Jilemnice 29.05.23 | H126: 728.2426182
B127: TRPIŠOVSKÁ | C127: Nela | D127: 6.B | E127: 10.18 | G127: Jilemnice 29.05.23 | H127: 742.1606595
B128: HEJRALOVÁ | C128: Natálie | D128: 7.A | E128: 9.86 | G128: Jilemnice 12.06.23 | H128: 768.1585693 | J128: 9.9
B129: KERLE | C129: Nikita | D129: 7.A | E129: 9.82 | G129: Jilemnice 14.09.22 | H129: 771.527443 | J129: 10.06
B130: MUNZAROVÁ | C130: Aneta | D130: 7.A | H130: 0
B131: PACLÍKOVÁ | C131: Markéta | D131: 7.A | E131: 9.4 | G131: Jilemnice 12.06.23 | H131: 808.6316451 | J131: 9.85
B132: PLŮCHOVÁ | C132: Michaela | D132: 7.A | E132: 9.4 | G132: Jilemnice 12.06.23 | H132: 808.6316451 | J132: 9.85
B133: ŠERCLOVÁ | C133: Nikola | D133: 7.A | H133: 0 | J133: 12.1
B134: VÁCLAVÍKOVÁ | C134: Alena | D134: 7.A | E134: 10.04 | G134: Jilemnice 12.06.23 | H134: 753.3308272 | J134: 10.3
B135: DUCHÁČKOVÁ | C135: Tereza | D135: 7.B | E135: 11.99 | G135: Jilemnice 14.09.22 | H135: 621.2332467 | J135: 11.67
B136: FLAŠKOVÁ | C136: Anna Sabriel | D136: 7.B | E136: 11.25 | G136: Jilemnice 14.09.22 | H136: 665.9708961 | J136: 11.35
B137: HAASOVÁ | C137: Julie | D137: 7.B | E137: 10.03 | G137: Turnov 13.09.22 | H137: 754.1406285 | J137: 9.91
B138: HEGROVÁ | C138: Štěpánka | D138: 7.B | E138: 10.65 | G138: Jilemnice 07.05.23 | H138: 706.8086895
B139: HOBLOVÁ | C139: Barbora | D139: 7.B | E139: 9.71 | G139: Jilemnice 12.06.23 | H139: 780.9349623 | J139: 10.12
B140: HORÁČKOVÁ | C140: Valérie | D140: 7.B | E140: 8.88 | G140: Jilemnice 19.06.23 | H140: 859.433044 | J140: 10.09
B141: JIRANOVÁ | C141: Anežka | D141: 7.B | E141: 12.5 | G141: Jilemnice 14.09.22 | H141: 593.4838128 | J141: 13.54
B142: KRČÍKOVÁ | C142: Beatrix | D142: 7.B | E142: 9.35 | G142: Jilemnice 12.06.23 | H142: 813.2708514 | J142: 10.42
B143: KUBÁTOVÁ | C143: Veronika | D143: 7.B | E143: 11.9 | G143: Jilemnice 07.05.23 | H143: =IF(E143=0,0,IF(E143>0,((1000 - 321 / E143 + 340 / E143*2 - 16600 / E143*3 + 32190000000 / E143*4)/15000000-62)*0.95)) -> 626.3771111 | J143: 12.29
B144: LENČEŠOVÁ | C144: Silvie | D144: 7.B | E144: 11.46 | G144: Jilemnice 14.09.22 | H144: 652.6879227 | J144: 11.56
B145: LUKEŠOVÁ | C145: Lucie | D145: 7.B | E145: 11.25 | G145: Jilemnice 07.05.23 | H145: 665.9708961
B146: MATERNOVÁ | C146: Lenka | D146: 7.B | E146: 9.42 | G146: Jilemnice 14.09.22 | H146: 806.7897522 | J146: 9.14
B147: TÓTHOVÁ | C147: Viktorie | D147: 7.B | E147: 10.46 | G147: Jilemnice 07.05.23 | H147: 720.7173548 | J147: 11.26
B148: DUONG | C148: Ngoc Linh | D148: 8.A | E148: 9.93 | G148: Jilemnice 07.06.23 | H148: 762.3283482 | J148: 11.4 | K148: 11.58
B149: GINGALOVÁ | C149: Linda | D149: 8.A | E149: 9.5 | G149: Jilemnice 16.09.22 | H149: 799.4997337 | J149: 9.56
B150: HOFMANOVÁ | C150: Nicol | D150: 8.A | E150: 10.83 | G150: Jilemnice 28.04.23 | H150: 694.0822303 | J150: 10.92 | K150: 11.92
B151: HOLEŠOVSKÁ | C151: Aneta | D151: 8.A | E151: 10.26 | G151: Jilemnice 28.04.23 | H151: 735.914573 | J151: 10.51 | K151: 10.99
B152: HOLUBCOVÁ | C152: Alena | D152: 8.A | E152: 9.08 | G152: Jilemnice 07.06.23 | H152: 839.2054454 | J152: 9.52
B153: KOHOUTOVÁ | C153: Anna | D153: 8.A | E153: 11.35 | G153: Jilemnice 28.04.23 | H153: 659.5843689 | J153: 11.42 | K153: 13.25
B154: KRAUSOVÁ | C154: Anežka | D154: 8.A | E154: 10.36 | G154: Jilemnice 28.04.23 | H154: 728.2426182 | J154: 11.38 | K154: 11.74
B155: KUŽELOVÁ | C155: Apoléna | D155: 8.A | E155: 10.4 | G155: Jilemnice 28.04.23 | H155: 725.2151469 | J155: 10.24 | K155: 10.86
B156: MORÁVKOVÁ | C156: Lucie | D156: 8.A | E156: 11.78 | G156: Jilemnice 28.04.23 | H156: 633.357862 | J156: 11.75 | K156: 11.58
B157: SKLENÁROVÁ | C157: Eliška | D157: 8.A | H157: 0
B158: ŠEJNOVÁ | C158: Karolína | D158: 8.A | E158: 10.62 | G158: Jilemnice 28.04.23 | H158: 708.9717082
B159: ŠTOLFOVÁ | C159: Tereza | D159: 8.A | E159: 10.11 | G159: Jilemnice 28.04.23 | H159: 747.7070731 | J159: 10.77 | K159: 10.82
B160: ŠUBÍKOVÁ | C160: Klára | D160: 8.A | E160: 9.9 | G160: Jilemnice 07.06.23 | H160: 764.8169188 | J160: 10.5
B161: ŠULKOVSKÁ | C161: Klára | D161: 8.A | H161: 0 | J161: 11.49
B162: TULÁČKOVÁ | C162: Natálie | D162: 8.A | E162: 10.54 | G162: Jilemnice 16.09.22 | H162: 714.799956 | J162: 10.4 | K162: 11.52
B163: VOJTÍŠKOVÁ | C163: Ella | D163: 8.A | E163: 9.32 | G163: Jilemnice 16.09.22 | H163: 816.0782681 | J163: 9.52 | K163: 10.61
B164: DRUGÁČOVÁ | C164: Kristinka | D164: 8.B | H164: 0
B165: FAJSTAVROVÁ | C165: Karolína | D165: 8.B | E165: 8.76 | G165: Turnov 16.05.23 | H165: 872.0129479 | J165: 9.02 | K165: 10.61
B166: FAJSTAVROVÁ | C166: Magdaléna | D166: 8.B | E166: 9.05 | G166: Jilemnice 28.04.23 | H166: 842.1825903 | J166: 9.68 | K166: 10.25
B167: JINDROVÁ | C167: Barbora | D167: 8.B | E167: 10.54 | G167: Jilemnice 28.04.23 | H167: 714.799956 | J167: 10.8 | K167: 12.1
B168: MAŘASOVÁ | C168: Vendula | D168: 8.B | E168: 10.44 | G168: Jilemnice 28.04.23 | H168: 722.2108745 | J168: 10.78
B169: PETŘÍČKOVÁ | C169: Natálie | D169: 8.B | E169: 9.08 | G169: Jilemnice 28.04.23 | H169: 839.2054454 | J169: 8.9 | K169: 10.78
B170: PETŘÍKOVÁ | C170: Adéla | D170: 8.B | E170: 10.43 | G170: Jilemnice 28.04.23 | H170: 722.9597823 | J170: 10.97 | K170: 12.38
B171: REGÁLOVÁ | C171: Karolína | D171: 8.B | E171: 10.12 | G171: Jilemnice 28.04.23 | H171: 746.9100306 | J171: 10.52 | K171: 11.39
B172: RIEGROVÁ | C172: Magdaléna | D172: 8.B | E172: 10.49 | G172: Jilemnice 28.04.23 | H172: 718.4877534
B173: RYBENSKÁ | C173: Sabina | D173: 8.B | E173: 10.17 | G173: Jilemnice 16.09.22 | H173: 742.9483297 | J173: 10.38 | K173: 11.01
B174: STEINEROVÁ | C174: Barbora | D174: 8.B | E174: 9.51 | G174: Jilemnice 16.09.22 | H174: 798.5971053 | J174: 9.98 | K174: 11.26
B175: ŠERCLOVÁ | C175: Andrea | D175: 8.B | H175: =IF(E175=0,0,IF(E175>0,((1000 - 321 / E175 + 340 / E175*2 - 16600 / E175*3 + 32190000000 / E175*4)/15000000-62)*0.95)) -> 0
B176: TOMEŠOVÁ | C176: Martina | D176: 8.B | E176: 9.73 | G176: Jilemnice 16.09.22 | H176: 779.2086829 | J176: 9.98 | K176: 11.59
B177: VOHNOUTOVÁ | C177: Aneta | D177: 8.B | E177: 8.94 | G177: Jilemnice 16.09.22 | H177: 853.2697355 | J177: 9.17 | K177: 10.21
B178: HAVLÍKOVÁ | C178: Michaela | D178: 9.A | E178: 10.1 | G178: Jilemnice 14.09.22 | H178: 748.5056939 | J178: 9.94 | K178: 11.75 | L178: 12.24
B179: HOLUBCOVÁ | C179: Sára | D179: 9.A | E179: 9.23 | G179: Jilemnice 14.09.22 | H179: 824.6100166 | J179: 9.02 | K179: 9.58 | L179: 9.96
B180: HONCŮ | C180: Tereza | D180: 9.A | E180: 10.54 | G180: Jilemnice 14.09.22 | H180: 714.799956 | J180: 10.2 | K180: 11.17
B181: HORÁČKOVÁ | C181: Kateřina | D181: 9.A | E181: 9.26 | G181: Jilemnice 03.05.23 | H181: 821.7476733 | J181: 9.82 | K181: 9.59 | L181: 9.91
B182: JOUDALOVÁ | C182: Daniela | D182: 9.A | H182: 0 | L182: 13.96
B183: KLÍMOVÁ | C183: Anna | D183: 9.A | E183: 9.77 | G183: Jilemnice 14.09.22 | H183: 775.7773273 | J183: 10.9 | K183: 10.81 | L183: 11.09
B184: KOHOUTOVÁ | C184: Veronika | D184: 9.A | E184: 9.4 | G184: Jilemnice 14.09.22 | H184: 808.6316451 | J184: 9.39 | L184: 9.96
B185: KOVÁŘOVÁ | C185: Viktorie | D185: 9.A | E185: 9.75 | G185: Jilemnice 14.09.22 | H185: 777.4894858 | J185: 10.28 | K185: 10.62 | L185: 11.22
B186: KYNČLOVÁ | C186: Anna | D186: 9.A | E186: 9.04 | G186: Jilemnice 14.09.22 | H186: 843.179363 | J186: 9.39 | K186: 9.5 | L186: 10.51
B187: MATOUŠOVÁ | C187: Tereza | D187: 9.A | E187: 10.24 | G187: Jilemnice 14.09.22 | H187: 737.466945 | J187: 10.51 | K187: 10.81 | L187: 11.37
B188: MAZÁNKOVÁ | C188: Zuzana | D188: 9.A | E188: 10.1 | G188: Jilemnice 14.09.22 | H188: 748.5056939 | J188: 10.66 | K188: 10.26 | L188: 11.5
B189: MORKESOVÁ | C189: Sabrina | D189: 9.A | E189: 9.15 | G189: Jilemnice 14.09.22 | H189: 832.3346938 | J189: 8.78 | L189: 9.39
B190: POHOŘALÁ | C190: Alžběta | D190: 9.A | E190: 9.54 | G190: Jilemnice 14.09.22 | H190: 795.9005737 | J190: 9.66 | K190: 9.5 | L190: 10.59
B191: SCHOLZOVÁ | C191: Laura | D191: 9.A | H191: 0 | J191: 10.56 | K191: 11.29
B192: VÁCLAVÍKOVÁ | C192: Valerie | D192: 9.A | E192: 9.68 | G192: Jilemnice 03.05.23 | H192: 783.5377564 | J192: 9.92 | K192: 9.42 | L192: 10.34
B193: ZAPADLOVÁ | C193: Emma | D193: 9.A | E193: 9.04 | G193: Jilemnice 03.05.23 | H193: 843.179363 | J193: 8.71 | K193: 9.52
B194: ŽIŠKOVÁ | C194: Mia | D194: 9.A | H194: 0 | K194: 9.58 | L194: 10.58
B195: FARSKÁ | C195: Tereza | D195: 9.B | E195: 11.42 | G195: Jilemnice 14.09.22 | H195: 655.1803496 | J195: 10.91 | K195: 11.55 | L195: 11.73
B196: FEIXOVÁ | C196: Rozálie | D196: 9.B | H196: 0 | J196: 11.85 | K196: 11.58 | L196: 12.86
B197: FIŠEROVÁ | C197: Michaela | D197: 9.B | E197: 10.45 | G197: Jilemnice 14.09.22 | H197: 721.4634001 | J197: 11.45 | K197: 10.9 | L197: 11.71
B198: HAVLÍČKOVÁ | C198: Kristýna | D198: 9.B | H198: 0 | J198: 12.55 | K198: 12.36 | L198: 12.86
B199: KADAVÁ | C199: Nikola | D199: 9.B | E199: 12.18 | G199: Jilemnice 14.09.22 | H199: 610.6236158 | J199: 12.62 | L199: 12.41
B200: KŘIVINKOVÁ | C200: Alžběta | D200: 9.B | E200: 10 | G200: Jilemnice 14.09.22 | H200: 756.5797502 | J200: 10.99 | K200: 11.01
B201: LEŠÁKOVÁ | C201: Lenka | D201: 9.B | E201: 10.39 | G201: Jilemnice 14.09.22 | H201: 725.9698293 | J201: 13 | K201: 12.4 | L201: 12.92
B202: NYKLÍČKOVÁ | C202: Adéla | D202: 9.B | E202: 9.84 | G202: Jilemnice 03.05.23 | H202: 769.8395825 | J202: 9.68 | K202: 10.11 | L202: 10
B203: PLŮCHOVÁ | C203: Petra | D203: 9.B | E203: 10.38 | G203: Turnov 11.05.23 | H203: 726.7259659 | J203: 10.54 | K203: 11.01 | L203: 11.32
B204: PODZIMKOVÁ | C204: Eliška | D204: 9.B | E204: 11.59 | G204: Jilemnice 03.05.23 | H204: 644.7063505 | J204: 10.8 | K204: 12.35 | L204: 12.09
B205: RUTKAYOVÁ | C205: Klára | D205: 9.B | E205: 11.06 | G205: Jilemnice 03.05.23 | H205: 678.4234692 | J205: 13
B206: SEIDLOVÁ | C206: Zuzana | D206: 9.B | E206: 10.36 | G206: Jilemnice 14.09.22 | H206: 728.2426182 | J206: 10.88 | K206: 12.14
B207: TOMÁŠOVÁ | C207: Sára | D207: 9.B | E207: 12.4 | G207: Jilemnice 14.09.22 | H207: 598.7449721 | K207: 12.51 | L207: 12.51
B208: VANCLOVÁ | C208: Barbora | D208: 9.B | E208: 10.28 | G208: Jilemnice 03.05.23 | H208: 734.3682412 | J208: 10.68 | K208: 9.97
B209: VOTOČKOVÁ | C209: Veronika | D209: 9.B | E209: 12.62 | G209: Jilemnice 14.09.22 | H209: 587.2804808 | J209: 13.34 | K209: 12.55 | L209: 13.86

Sheet D300
B1: VÝKONY 2022 - 2023 | G1: 300 M | K1: stav k | L1: =TODAY() -> 2023-06-26
H2: BODY | J2: 21 - 22 | K2: 20 - 21 | L2: 19 - 20
A3: 1. | B3: =B111 -> FARSKÁ | C3: =C111 -> Anna | D3: 6.A | E3: 00:01:03.860 | G3: Jilemnice 31.10.22 | H3: 622.2499762 | J3: 00:00:00 | K3: 00:00:00 | L3: 00:00:00
A4: 2. | B4: =B112 -> FARSKÁ | C4: Eliška | D4: 6.A | E4: 00:01:12.610 | G4: =G112 -> Jilemnice 31.10.22 | H4: 521.3562489 | J4: =J112 -> 00:00:00 | K4: 00:00:00 | L4: 00:00:00
A5: 3. | B5: =B113 -> FEDORKOVÁ | C5: Denisa | D5: 6.A | E5: 00:01:28.130 | G5: =G113 -> Jilemnice 31.10.22 | H5: 391.6822289 | J5: =J113 -> 00:00:00 | K5: 00:00:00 | L5: 00:00:00
A6: 4. | B6: =B114 -> HAUZEROVÁ | C6: Tereza | D6: 6.A | E6: 00:01:10.100 | G6: =G114 -> Jilemnice 31.10.22 | H6: 547.7220354 | J6: =J114 -> 00:00:00 | K6: 00:00:00 | L6: 00:00:00
A7: 5. | B7: =B115 -> JOSKOVÁ | C7: Ellen | D7: 6.A | E7: 00:00:58.960 | G7: =G115 -> Jilemnice 31.10.22 | H7: 691.8310546 | J7: =J115 -> 00:00:00 | K7: 00:00:00 | L7: 00:00:00
A8: 6. | B8: =B116 -> KUŽELOVÁ | C8: Amálie | D8: 6.A | E8: 00:01:28.710 | G8: =G116 -> Jilemnice 31.10.22 | H8: 387.7156773 | J8: =J116 -> 00:00:00 | K8: 00:00:00 | L8: 00:00:00
A9: 7. | B9: =B117 -> RYŠAVÁ | C9: Amálie | D9: 6.A | E9: 00:01:24.740 | G9: =G117 -> Jilemnice 31.10.22 | H9: 415.9521818 | J9: =J117 -> 00:00:00 | K9: 00:00:00 | L9: 00:00:00
A10: 8. | B10: =B118 -> BANGOVÁ | C10: Zuzana | D10: 6.B | E10: 00:01:35.290 | G10: =G118 -> Jilemnice 31.10.22 | H10: 346.0970787 | J10: =J118 -> 00:00:00 | K10: 00:00:00 | L10: 00:00:00
A11: 9. | B11: =B119 -> HOLUBOVÁ | C11: Denisa | D11: 6.B | E11: 00:01:27.250 | G11: =G119 -> Jilemnice 31.10.22 | H11: 397.8011511 | J11: =J119 -> 00:00:00 | K11: 00:00:00 | L11: 00:00:00
A12: 10. | B12: =B120 -> HURKALO | C12: Karolina | D12: 6.B | E12: 00:01:52.710 | G12: =G120 -> Jilemnice 31.10.22 | H12: 259.3769651 | J12: =J120 -> 00:00:00 | K12: 00:00:00 | L12: 00:00:00
A13: 11. | B13: =B121 -> HUTNIK-MAMONOVA | C13: Nana | D13: 6.B | E13: 00:00:00 | G13: =G121 -> 0 | H13: 0 | J13: =J121 -> 00:00:00 | K13: 00:00:00 | L13: 00:00:00
A14: 12. | B14: =B122 -> MARINOVA | C14: Darja | D14: 6.B | E14: 00:01:15.200 | G14: =G122 -> Jilemnice 31.10.22 | H14: 495.9952152 | J14: =J122 -> 00:00:00 | K14: 00:00:00 | L14: 00:00:00
A15: 13. | B15: =B123 -> NYKLÍČKOVÁ | C15: Klára | D15: 6.B | E15: 00:01:05.530 | G15: =G123 -> Jilemnice 31.10.22 | H15: 600.9131975 | J15: =J123 -> 00:00:00 | K15: 00:00:00 | L15: 00:00:00
A16: 14. | B16: =B124 -> PANCHAYEVA | C16: Sofiia | D16: 6.B | E16: 00:01:29.370 | G16: =G124 -> Jilemnice 31.10.22 | H16: 383.2646417 | J16: =J124 -> 00:00:00 | K16: 00:00:00 | L16: 00:00:00
A17: 15. | B17: =B125 -> PIČMANOVÁ | C17: Klára | D17: 6.B | E17: 00:01:30.150 | G17: =G125 -> Jilemnice 31.10.22 | H17: 378.088352 | J17: =J125 -> 00:00:00 | K17: 00:00:00 | L17: 00:00:00
A18: 16. | B18: =B126 -> ŠIMŮNKOVÁ | C18: Anežka | D18: 6.B | E18: 00:01:21.140 | G18: =G126 -> Jilemnice 31.10.22 | H18: 443.9458945 | J18: =J126 -> 00:00:00 | K18: 00:00:00 | L18: 00:00:00
A19: 17. | B19: =B127 -> TRPIŠOVSKÁ | C19: Nela | D19: 6.B | E19: 00:01:18.060 | G19: =G127 -> Jilemnice 31.10.22 | H19: 469.9456121 | J19: =J127 -> 00:00:00 | K19: 00:00:00 | L19: 00:00:00
A20: 18. | B20: =B128 -> HEJRALOVÁ | C20: Natálie | D20: 7.A | E20: 00:00:58.590 | G20: =G128 -> Jilemnice 31.05.23 | H20: 697.5577254 | J20: =J128 -> 00:00:55.050 | K20: 00:00:00 | L20: 00:00:00
A21: 19. | B21: =B129 -> KERLE | C21: Nikita | D21: 7.A | E21: 00:00:57.130 | G21: =G129 -> Jilemnice 31.05.23 | H21: 720.8786948 | J21: =J129 -> 00:00:54.390 | K21: 00:00:00 | L21: 00:00:00
A22: 20. | B22: =B130 -> MUNZAROVÁ | C22: Aneta | D22: 7.A | E22: 00:00:00 | G22: =G130 -> 0 | H22: 0 | J22: =J130 -> 00:00:00 | K22: 00:00:00 | L22: 00:00:00
A23: 21. | B23: =B131 -> PACLÍKOVÁ | C23: Markéta | D23: 7.A | E23: 00:00:57.560 | G23: =G131 -> Jilemnice 31.05.23 | H23: 713.8872825 | J23: =J131 -> 00:01:00.360 | K23: 00:00:00 | L23: 00:00:00
A24: 22. | B24: =B132 -> PLŮCHOVÁ | C24: Michaela | D24: 7.A | E24: 00:00:56.360 | G24: =G132 -> Jilemnice 31.05.23 | H24: 733.6647619 | J24: =J132 -> 00:01:00.380 | K24: 00:00:00 | L24: 00:00:00
A25: 23. | B25: =B133 -> ŠERCLOVÁ | C25: Nikola | D25: 7.A | E25: 00:01:10.520 | G25: =G133 -> Jilemnice 31.05.23 | H25: 543.1794779 | J25: =J133 -> 00:01:19.980 | K25: 00:00:00 | L25: 00:00:00
A26: 24. | B26: =B134 -> VÁCLAVÍKOVÁ | C26: Alena | D26: 7.A | E26: 00:00:58.600 | G26: =G134 -> Jilemnice 31.05.23 | H26: 697.4019997 | J26: =J134 -> 00:01:04.060 | K26: 00:00:00 | L26: 00:00:00
A27: 25. | B27: =B135 -> DUCHÁČKOVÁ | C27: Tereza | D27: 7.B | E27: 00:01:29.270 | G27: =G135 -> Jilemnice 24.10.22 | H27: 383.9348105 | J27: =J135 -> 00:01:12.790 | K27: 00:00:00 | L27: 00:00:00
A28: 26. | B28: =B136 -> FLAŠKOVÁ | C28: Anna Sabriel | D28: 7.B | E28: 00:00:00 | G28: =G136 -> 0 | H28: 0 | J28: =J136 -> 00:01:10.930 | K28: 00:00:00 | L28: 00:00:00
A29: 27. | B29: =B137 -> HAASOVÁ | C29: Julie | D29: 7.B | E29: 00:00:00 | G29: =G137 -> 0 | H29: 0 | J29: =J137 -> 00:01:00.470 | K29: 00:00:00 | L29: 00:00:00
A30: 28. | B30: =B138 -> HEGROVÁ | C30: Štěpánka | D30: 7.B | E30: 00:01:08.050 | G30: =G138 -> Jilemnice 31.05.23 | H30: 570.698816 | J30: =J138 -> 00:00:00 | K30: 00:00:00 | L30: 00:00:00
A31: 29. | B31: =B139 -> HOBLOVÁ | C31: Barbora | D31: 7.B | E31: 00:00:58.600 | G31: =G139 -> Jilemnice 31.05.23 | H31: 697.4019997 | J31: =J139 -> 00:01:02.520 | K31: 00:00:00 | L31: 00:00:00
A32: 30. | B32: =B140 -> HORÁČKOVÁ | C32: Valérie | D32: 7.B | E32: 00:00:55.140 | G32: =G140 -> Jilemnice 31.05.23 | H32: 754.6543323 | J32: =J140 -> 00:00:58.030 | K32: 00:00:00 | L32: 00:00:00
A33: 31. | B33: =B141 -> JIRANOVÁ | C33: Anežka | D33: 7.B | E33: 00:01:24.340 | G33: =G141 -> Jilemnice 31.05.23 | H33: 418.9445801 | J33: =J141 -> 00:00:00 | K33: 00:00:00 | L33: 00:00:00
A34: 32. | B34: =B142 -> KRČÍKOVÁ | C34: Beatrix | D34: 7.B | E34: 00:01:00.280 | G34: =G142 -> Jilemnice 31.05.23 | H34: 671.9735498 | J34: =J142 -> 00:01:04.060 | K34: 00:00:00 | L34: 00:00:00
A35: 33. | B35: =B143 -> KUBÁTOVÁ | C35: Veronika | D35: 7.B | E35: 00:01:26.010 | G35: =G143 -> Jilemnice 24.10.22 | H35: 406.6357892 | J35: =J143 -> 00:01:16.940 | K35: 00:00:00 | L35: 00:00:00
A36: 34. | B36: =B144 -> LENČEŠOVÁ | C36: Silvie | D36: 7.B | E36: 00:01:03.750 | G36: =G144 -> Jilemnice 31.05.23 | H36: 623.6946342 | J36: =J144 -> 00:01:07.700 | K36: 00:00:00 | L36: 00:00:00
A37: 35. | B37: =B145 -> LUKEŠOVÁ | C37: Lucie | D37: 7.B | E37: 00:01:05.770 | G37: =G145 -> Jilemnice 31.05.23 | H37: 597.9358831 | J37: =J145 -> 00:00:00 | K37: 00:00:00 | L37: 00:00:00
A38: 36. | B38: =B146 -> MATERNOVÁ | C38: Lenka | D38: 7.B | E38: 00:00:56.120 | G38: =G146 -> Jilemnice 31.05.23 | H38: 737.7217531 | J38: =J146 -> 00:00:53.800 | K38: 00:00:00 | L38: 00:00:00
A39: 37. | B39: =B147 -> TÓTHOVÁ | C39: Viktorie | D39: 7.B | E39: 00:01:02.820 | G39: =G147 -> Jilemnice 31.05.23 | H39: 636.1107654 | J39: =J147 -> 00:01:07.190 | K39: 00:00:00 | L39: 00:00:00
A40: 38. | B40: =B148 -> DUONG | C40: Ngoc Linh | D40: 8.A | E40: 00:00:00 | G40: =G148 -> 0 | H40: 0 | J40: =J148 -> 00:01:20.200 | K40: 00:00:00 | L40: 00:00:00
A41: 39. | B41: =B149 -> GINGALOVÁ | C41: Linda | D41: 8.A | E41: 00:00:57.180 | G41: =G149 -> Jilemnice 05.06.23 | H41: 720.0603372 | J41: =J149 -> 00:00:00 | K41: 00:00:00 | L41: 00:00:00
A42: 40. | B42: =B150 -> HOFMANOVÁ | C42: Nicol | D42: 8.A | E42: 00:00:00 | G42: =G150 -> 0 | H42: 0 | J42: =J150 -> 00:00:00 | K42: 00:01:15.700 | L42: 00:00:00
A43: 41. | B43: =B151 -> HOLEŠOVSKÁ | C43: Aneta | D43: 8.A | E43: 00:01:11 | G43: =G151 -> Jilemnice 17.10.22 | H43: 538.0537913 | J43: =J151 -> 00:00:00 | K43: 00:00:00 | L43: 00:00:00
A44: 42. | B44: =B152 -> HOLUBCOVÁ | C44: Alena | D44: 8.A | E44: 00:00:53.090 | G44: =G152 -> Jilemnice 05.06.23 | H44: 792.0960564 | J44: =J152 -> 00:01:06.230 | K44: 00:00:59.270 | L44: 00:00:00
A45: 43. | B45: =B153 -> KOHOUTOVÁ | C45: Anna | D45: 8.A | E45: 00:01:13 | G45: =G153 -> Jilemnice 17.10.22 | H45: 517.4223176 | J45: =J153 -> 00:01:15.470 | K45: 00:01:24.100 | L45: 00:00:00
A46: 44. | B46: =B154 -> KRAUSOVÁ | C46: Anežka | D46: 8.A | E46: 00:01:07 | G46: =G154 -> Jilemnice 17.10.22 | H46: 583.0119281 | J46: =J154 -> 00:01:10.810 | K46: 00:01:04.100 | L46: 00:00:00
A47: 45. | B47: =B155 -> KUŽELOVÁ | C47: Apoléna | D47: 8.A | E47: 00:00:00 | G47: =G155 -> 0 | H47: 0 | J47: =J155 -> 00:00:00 | K47: 00:00:00 | L47: 00:00:00
A48: 46. | B48: =B156 -> MORÁVKOVÁ | C48: Lucie | D48: 8.A | E48: 00:01:14 | G48: =G156 -> Jilemnice 17.10.22 | H48: 507.5247862 | J48: =J156 -> 00:00:00 | K48: 00:00:00 | L48: 00:00:00
A49: 47. | B49: =B157 -> SKLENÁROVÁ | C49: Eliška | D49: 8.A | E49: 00:00:00 | G49: =G157 -> 0 | H49: 0 | J49: =J157 -> 00:00:00 | K49: 00:01:17.530 | L49: 00:00:00
A50: 48. | B50: =B158 -> ŠEJNOVÁ | C50: Karolína | D50: 8.A | E50: 00:01:08 | G50: =G158 -> Jilemnice 17.10.22 | H50: 571.2765321 | J50: =J158 -> 00:01:08.750 | K50: 00:00:00 | L50: 00:00:00
A51: 49. | B51: =B159 -> ŠTOLFOVÁ | C51: Tereza | D51: 8.A | E51: 00:01:05 | G51: =G159 -> Jilemnice 17.10.22 | H51: 607.5659874 | J51: =J159 -> 00:01:05.420 | K51: 00:01:04.880 | L51: 00:00:00
A52: 50. | B52: =B160 -> ŠUBÍKOVÁ | C52: Klára | D52: 8.A | E52: 00:00:59.280 | G52: =G160 -> Jilemnice 05.06.23 | H52: 686.9359073 | J52: =J160 -> 00:01:03.080 | K52: 00:01:06.100 | L52: 00:00:00
A53: 51. | B53: =B161 -> ŠULKOVSKÁ | C53: Klára | D53: 8.A | E53: 00:00:00 | G53: =G161 -> 0 | H53: 0 | J53: =J161 -> 00:01:16.660 | K53: 00:00:00 | L53: 00:00:00
A54: 52. | B54: =B162 -> TULÁČKOVÁ | C54: Natálie | D54: 8.A | E54: 00:01:04 | G54: =G162 -> Jilemnice 17.10.22 | H54: 620.4185028 | J54: =J162 -> 00:00:00 | K54: 00:00:00 | L54: 00:00:00
A55: 53. | B55: =B163 -> VOJTÍŠKOVÁ | C55: Ella | D55: 8.A | E55: 00:00:54.420 | G55: =G163 -> Jilemnice 05.06.23 | H55: 767.4832099 | J55: =J163 -> 00:00:00 | K55: 00:00:00 | L55: 00:00:00
A56: 54. | B56: =B164 -> DRUGÁČOVÁ | C56: Kristinka | D56: 8.B | E56: 00:00:00 | G56: =G164 -> 0 | H56: 0 | J56: =J164 -> 00:00:00 | K56: 00:01:03.360 | L56: 00:00:00
A57: 55. | B57: =B165 -> FAJSTAVROVÁ | C57: Karolína | D57: 8.B | E57: 00:00:53.410 | G57: =G165 -> Jilemnice 17.10.22 | H57: 786.0621837 | J57: =J165 -> 00:00:00 | K57: 00:00:00 | L57: 00:00:00
A58: 56. | B58: =B166 -> FAJSTAVROVÁ | C58: Magdaléna | D58: 8.B | E58: 00:00:49.910 | G58: =G166 -> Jilemnice 05.06.23 | H58: 856.2625472 | J58: =J166 -> 00:00:00 | K58: 00:00:00 | L58: 00:00:00
A59: 57. | B59: =B167 -> JINDROVÁ | C59: Barbora | D59: 8.B | E59: 00:00:00 | G59: =G167 -> 0 | H59: 0 | J59: =J167 -> 00:00:00 | K59: 00:00:00 | L59: 00:00:00
A60: 58. | B60: =B168 -> MAŘASOVÁ | C60: Vendula | D60: 8.B | E60: 00:01:01.300 | G60: =G168 -> Jilemnice 17.10.22 | H60: 657.2148561 | J60: =J168 -> 00:00:00 | K60: 00:00:00 | L60: 00:00:00
A61: 59. | B61: =B169 -> PETŘÍČKOVÁ | C61: Natálie | D61: 8.B | E61: 00:00:57.850 | G61: =G169 -> Jilemnice 05.06.23 | H61: 709.2308286 | J61: =J169 -> 00:00:55.240 | K61: 00:00:00 | L61: 00:00:00
A62: 60. | B62: =B170 -> PETŘÍKOVÁ | C62: Adéla | D62: 8.B | E62: 00:01:00 | G62: =G170 -> Jilemnice 17.10.22 | H62: 676.1127364 | J62: =J170 -> 00:01:01.950 | K62: 00:01:10.660 | L62: 00:00:00
A63: 61. | B63: =B171 -> REGÁLOVÁ | C63: Karolína | D63: 8.B | E63: 00:01:13 | G63: =G171 -> Jilemnice 17.10.22 | H63: 517.4223176 | J63: =J171 -> 00:00:00 | K63: 00:00:00 | L63: 00:00:00
A64: 62. | B64: =B172 -> RIEGROVÁ | C64: Magdaléna | D64: 8.B | E64: 00:00:00 | G64: =G172 -> 0 | H64: 0 | J64: =J172 -> 00:00:00 | K64: 00:01:13.300 | L64: 00:00:00
A65: 63. | B65: =B173 -> RYBENSKÁ | C65: Sabina | D65: 8.B | E65: 00:01:04 | G65: =G173 -> Jilemnice 17.10.22 | H65: 620.4185028 | J65: =J173 -> 00:00:00 | K65: 00:00:00 | L65: 00:00:00
A66: 64. | B66: =B174 -> STEINEROVÁ | C66: Barbora | D66: 8.B | E66: 00:00:55.450 | G66: =G174 -> Jilemnice 05.06.23 | H66: 749.2333892 | J66: =J174 -> 00:01:07.540 | K66: 00:00:00 | L66: 00:00:00
A67: 65. | B67: =B175 -> ŠERCLOVÁ | C67: Andrea | D67: 8.B | E67: 00:01:16 | G67: =G175 -> Jilemnice 17.10.22 | H67: 488.5111077 | J67: =J175 -> 00:00:00 | K67: 00:00:00 | L67: 00:00:00
A68: 66. | B68: =B176 -> TOMEŠOVÁ | C68: Barbora | D68: 8.B | E68: 00:00:56.910 | G68: =G176 -> Jilemnice 05.06.23 | H68: 724.4965513 | J68: =J176 -> 00:00:00 | K68: 00:00:00 | L68: 00:00:00
A69: 67. | B69: =B177 -> VOHNOUTOVÁ | C69: Aneta | D69: 8.B | E69: 00:00:55.240 | G69: =G177 -> Jilemnice 05.06.23 | H69: 752.8989932 | J69: =J177 -> 00:00:00 | K69: 00:00:00 | L69: 00:00:00
A70: 68. | B70: =B178 -> HAVLÍKOVÁ | C70: Michaela | D70: 9.A | E70: 00:01:05.960 | G70: =G178 -> Jilemnice 12.05.23 | H70: 595.5942083 | J70: =J178 -> 00:01:09.740 | K70: 00:00:00 | L70: 00:01:18.970
A71: 69. | B71: =B179 -> HOLUBCOVÁ | C71: Sára | D71: 9.A | E71: 00:00:00 | G71: =G179 -> 0 | H71: 0 | J71: =J179 -> 00:00:57.550 | K71: 00:00:00 | L71: 00:00:58.890
A72: 70. | B72: =B180 -> HONCŮ | C72: Tereza | D72: 9.A | E72: 00:00:00 | G72: =G180 -> 0 | H72: 0 | J72: =J180 -> 00:01:04.060 | K72: 00:00:00 | L72: 00:01:07.580
A73: 71. | B73: =B181 -> HORÁČKOVÁ | C73: Kateřina | D73: 9.A | E73: 00:01:00.550 | G73: =G181 -> Jilemnice 15.06.23 | H73: 668.0184464 | J73: =J181 -> 00:00:56.460 | K73: 00:00:00 | L73: 00:01:02.240
A74: 72. | B74: =B182 -> JOUDALOVÁ | C74: Daniela | D74: 9.A | E74: 00:00:00 | G74: =G182 -> 0 | H74: 0 | J74: =J182 -> 00:00:00 | K74: 00:00:00 | L74: 00:01:29.440
A75: 73. | B75: =B183 -> KLÍMOVÁ | C75: Anna | D75: 9.A | E75: 00:00:00 | G75: =G183 -> 0 | H75: 0 | J75: =J183 -> 00:01:02.190 | K75: 00:00:00 | L75: 00:01:03.720
A76: 74. | B76: =B184 -> KOHOUTOVÁ | C76: Veronika | D76: 9.A | E76: 00:00:59.860 | G76: =G184 -> Jilemnice 12.05.23 | H76: 678.1968507 | J76: =J184 -> 00:00:57.510 | K76: 00:00:00 | L76: 00:00:59.130
A77: 75. | B77: =B185 -> KOVÁŘOVÁ | C77: Viktorie | D77: 9.A | E77: 00:00:57.140 | G77: =G185 -> Jilemnice 12.05.23 | H77: 720.7149087 | J77: =J185 -> 00:00:59.520 | K77: 00:00:00 | L77: 00:01:04.860
A78: 76. | B78: =B186 -> KYNČLOVÁ | C78: Anna | D78: 9.A | E78: 00:00:53.100 | G78: =G186 -> Jilemnice 12.05.23 | H78: 791.906397 | J78: =J186 -> 00:00:48.500 | K78: 00:00:00 | L78: 00:00:59.780
A79: 77. | B79: =B187 -> MATOUŠOVÁ | C79: Tereza | D79: 9.A | E79: 00:00:00 | G79: =G187 -> 0 | H79: 0 | J79: =J187 -> 00:01:07.350 | K79: 00:00:00 | L79: 00:01:10.610
A80: 78. | B80: =B188 -> MAZÁNKOVÁ | C80: Zuzana | D80: 9.A | E80: 00:01:03.760 | G80: =G188 -> Jilemnice 12.05.23 | H80: 623.5630957 | J80: =J188 -> 00:01:03.030 | K80: 00:00:00 | L80: 00:01:04.850
A81: 79. | B81: =B189 -> MORKESOVÁ | C81: Sabrina | D81: 9.A | E81: 00:01:00.860 | G81: =G189 -> Jilemnice 15.06.23 | H81: 663.5206783 | J81: =J189 -> 00:00:57.420 | K81: 00:00:00 | L81: 00:01:00.680
A82: 80. | B82: =B190 -> POHOŘALÁ | C82: Alžběta | D82: 9.A | E82: 00:00:54.540 | G82: =G190 -> Jilemnice 12.05.23 | H82: 765.3215417 | J82: =J190 -> 00:00:56.850 | K82: 00:00:00 | L82: 00:01:05.990
A83: 81. | B83: =B191 -> SCHOLZOVÁ | C83: Laura | D83: 9.A | E83: 00:00:00 | G83: =G191 -> 0 | H83: 0 | J83: =J191 -> 00:00:00 | K83: 00:00:00 | L83: 00:01:14.770
A84: 82. | B84: =B192 -> VÁCLAVÍKOVÁ | C84: Valerie | D84: 9.A | E84: 00:00:56.300 | G84: =G192 -> Jilemnice 15.06.23 | H84: 734.675767 | J84: =J192 -> 00:00:54.530 | K84: 00:00:00 | L84: 00:01:03.520
A85: 83. | B85: =B193 -> ZAPADLOVÁ | C85: Emma | D85: 9.A | E85: 00:00:52.730 | G85: =G193 -> Jilemnice 15.06.23 | H85: 798.9717017 | J85: =J193 -> 00:00:56.120 | K85: 00:00:00 | L85: 00:01:04.690
A86: 84. | B86: =B194 -> ŽIŠKOVÁ | C86: Mia | D86: 9.A | E86: 00:00:00 | G86: =G194 -> 0 | H86: 0 | J86: =J194 -> 00:00:00 | K86: 00:00:00 | L86: 00:01:06.460
A87: 85. | B87: =B195 -> FARSKÁ | C87: Tereza | D87: 9.B | E87: 00:00:00 | G87: =G195 -> 0 | H87: 0 | J87: =J195 -> 00:00:00 | K87: 00:00:00 | L87: 00:01:14.230
A88: 86. | B88: =B196 -> FEIXOVÁ | C88: Rozálie | D88: 9.B | E88: 00:00:00 | G88: =G196 -> 0 | H88: 0 | J88: =J196 -> 00:00:00 | K88: 00:00:00 | L88: 00:01:28.320
A89: 87. | B89: =B197 -> FIŠEROVÁ | C89: Michaela | D89: 9.B | E89: 00:00:00 | G89: =G197 -> 0 | H89: 0 | J89: =J197 -> 00:01:24.900 | K89: 00:00:00 | L89: 00:01:19.320
A90: 88. | B90: =B198 -> HAVLÍČKOVÁ | C90: Kristýna | D90: 9.B | E90: 00:00:00 | G90: =G198 -> 0 | H90: 0 | J90: =J198 -> 00:01:16.300 | K90: 00:00:00 | L90: 00:00:00
A91: 89. | B91: =B199 -> KADAVÁ | C91: Nikola | D91: 9.B | E91: 00:00:00 | G91: =G199 -> 0 | H91: 0 | J91: =J199 -> 00:01:19 | K91: 00:00:00 | L91: 00:01:29.980
A92: 90. | B92: =B200 -> KŘIVINKOVÁ | C92: Alžběta | D92: 9.B | E92: 00:00:00 | G92: =G200 -> 0 | H92: 0 | J92: =J200 -> 00:00:00 | K92: 00:00:00 | L92: 00:01:12.620
A93: 91. | B93: =B201 -> LEŠÁKOVÁ | C93: Lenka | D93: 9.B | E93: 00:00:00 | G93: =G201 -> 0 | H93: 0 | J93: =J201 -> 00:01:15.300 | K93: 00:00:00 | L93: 00:01:32.350
A94: 92. | B94: =B202 -> NYKLÍČKOVÁ | C94: Adéla | D94: 9.B | E94: 00:00:00 | G94: =G202 -> 0 | H94: 0 | J94: =J202 -> 00:00:56.010 | K94: 00:00:00 | L94: 00:01:09.160
A95: 93. | B95: =B203 -> PLŮCHOVÁ | C95: Petra | D95: 9.B | E95: 00:00:00 | G95: =G203 -> 0 | H95: 0 | J95: =J203 -> 00:01:05.200 | K95: 00:00:00 | L95: 00:01:10.250
A96: 94. | B96: =B204 -> PODZIMKOVÁ | C96: Eliška | D96: 9.B | E96: 00:00:00 | G96: =G204 -> 0 | H96: 0 | J96: =J204 -> 00:01:24.900 | K96: 00:00:00 | L96: 00:01:21.100
A97: 95. | B97: =B205 -> RUTKAYOVÁ | C97: Klára | D97: 9.B | E97: 00:00:00 | G97: =G205 -> 0 | H97: 0 | J97: =J205 -> 00:00:00 | K97: 00:00:00 | L97: 00:01:19.660
A98: 96. | B98: =B206 -> SEIDLOVÁ | C98: Zuzana | D98: 9.B | E98: 00:00:00 | G98: =G206 -> 0 | H98: 0 | J98: =J206 -> 00:01:04 | K98: 00:00:00 | L98: 00:01:25.020
A99: 97. | B99: =B207 -> TOMÁŠOVÁ | C99: Sára | D99: 9.B | E99: 00:00:00 | G99: =G207 -> 0 | H99: 0 | J99: =J207 -> 00:01:23.900 | K99: 00:00:00 | L99: 00:00:00
A100: 98. | B100: =B208 -> VANCLOVÁ | C100: Barbora | D100: 9.B | E100: 00:00:00 | G100: =G208 -> 0 | H100: 0 | J100: =J208 -> 00:01:03.900 | K100: 00:00:00 | L100: 00:01:16.110
A101: 99. | B101: =B209 -> VOTOČKOVÁ | C101: Veronika | D101: 9.B | E101: 00:00:00 | G101: =G209 -> 0 | H101: 0 | J101: =J209 -> 00:00:00 | K101: 00:00:00 | L101: 00:01:36.510
B111: FARSKÁ | C111: Anna | D111: 6.A | E111: 00:01:03.860 | G111: Jilemnice 31.10.22 | H111: =IF(E111=0,0,IF(E111>0,(1000000000 - 313216 / E111 + 34538300 / E111*2 - 1698600000 / E111*3 + 32198000000 / E111*4)/200000000000-215)) -> 622.2499762
B112: FARSKÁ | C112: Eliška | D112: 6.A | E112: 00:01:12.610 | G112: Jilemnice 31.10.22 | H112: 521.3562489
B113: FEDORKOVÁ | C113: Denisa | D113: 6.A | E113: 00:01:28.130 | G113: Jilemnice 31.10.22 | H113: 391.6822289
B114: HAUZEROVÁ | C114: Tereza | D114: 6.A | E114: 00:01:10.100 | G114: Jilemnice 31.10.22 | H114: 547.7220354
B115: JOSKOVÁ | C115: Ellen | D115: 6.A | E115: 00:00:58.960 | G115: Jilemnice 31.10.22 | H115: 691.8310546
B116: KUŽELOVÁ | C116: Amálie | D116: 6.A | E116: 00:01:28.710 | G116: Jilemnice 31.10.22 | H116: 387.7156773
B117: RYŠAVÁ | C117: Amálie | D117: 6.A | E117: 00:01:24.740 | G117: Jilemnice 31.10.22 | H117: 415.9521818
B118: BANGOVÁ | C118: Zuzana | D118: 6.B | E118: 00:01:35.290 | G118: Jilemnice 31.10.22 | H118: 346.0970787
B119: HOLUBOVÁ | C119: Denisa | D119: 6.B | E119: 00:01:27.250 | G119: Jilemnice 31.10.22 | H119: 397.8011511
B120: HURKALO | C120: Karolina | D120: 6.B | E120: 00:01:52.710 | G120: Jilemnice 31.10.22 | H120: 259.3769651
B121: HUTNIK-MAMONOVA | C121: Nana | D121: 6.B | H121: 0
B122: MARINOVA | C122: Darja | D122: 6.B | E122: 00:01:15.200 | G122: Jilemnice 31.10.22 | H122: 495.9952152
B123: NYKLÍČKOVÁ | C123: Klára | D123: 6.B | E123: 00:01:05.530 | G123: Jilemnice 31.10.22 | H123: 600.9131975
B124: PANCHAYEVA | C124: Sofiia | D124: 6.B | E124: 00:01:29.370 | G124: Jilemnice 31.10.22 | H124: 383.2646417
B125: PIČMANOVÁ | C125: Klára | D125: 6.B | E125: 00:01:30.150 | G125: Jilemnice 31.10.22 | H125: 378.088352
B126: ŠIMŮNKOVÁ | C126: Anežka | D126: 6.B | E126: 00:01:21.140 | G126: Jilemnice 31.10.22 | H126: 443.9458945
B127: TRPIŠOVSKÁ | C127: Nela | D127: 6.B | E127: 00:01:18.060 | G127: Jilemnice 31.10.22 | H127: 469.9456121
B128: HEJRALOVÁ | C128: Natálie | D128: 7.A | E128: 00:00:58.590 | G128: Jilemnice 31.05.23 | H128: 697.5577254 | J128: 00:00:55.050
B129: KERLE | C129: Nikita | D129: 7.A | E129: 00:00:57.130 | G129: Jilemnice 31.05.23 | H129: 720.8786948 | J129: 00:00:54.390
B130: MUNZAROVÁ | C130: Aneta | D130: 7.A | H130: 0
B131: PACLÍKOVÁ | C131: Markéta | D131: 7.A | E131: 00:00:57.560 | G131: Jilemnice 31.05.23 | H131: 713.8872825 | J131: 00:01:00.360
B132: PLŮCHOVÁ | C132: Michaela | D132: 7.A | E132: 00:00:56.360 | G132: Jilemnice 31.05.23 | H132: 733.6647619 | J132: 00:01:00.380
B133: ŠERCLOVÁ | C133: Nikola | D133: 7.A | E133: 00:01:10.520 | G133: Jilemnice 31.05.23 | H133: 543.1794779 | J133: 00:01:19.980
B134: VÁCLAVÍKOVÁ | C134: Alena | D134: 7.A | E134: 00:00:58.600 | G134: Jilemnice 31.05.23 | H134: 697.4019997 | J134: 00:01:04.060
B135: DUCHÁČKOVÁ | C135: Tereza | D135: 7.B | E135: 00:01:29.270 | G135: Jilemnice 24.10.22 | H135: 383.9348105 | J135: 00:01:12.790
B136: FLAŠKOVÁ | C136: Anna Sabriel | D136: 7.B | H136: 0 | J136: 00:01:10.930
B137: HAASOVÁ | C137: Julie | D137: 7.B | H137: 0 | J137: 00:01:00.470
B138: HEGROVÁ | C138: Štěpánka | D138: 7.B | E138: 00:01:08.050 | G138: Jilemnice 31.05.23 | H138: 570.698816
B139: HOBLOVÁ | C139: Barbora | D139: 7.B | E139: 00:00:58.600 | G139: Jilemnice 31.05.23 | H139: 697.4019997 | J139: 00:01:02.520
B140: HORÁČKOVÁ | C140: Valérie | D140: 7.B | E140: 00:00:55.140 | G140: Jilemnice 31.05.23 | H140: 754.6543323 | J140: 00:00:58.030
B141: JIRANOVÁ | C141: Anežka | D141: 7.B | E141: 00:01:24.340 | G141: Jilemnice 31.05.23 | H141: 418.9445801
B142: KRČÍKOVÁ | C142: Beatrix | D142: 7.B | E142: 00:01:00.280 | G142: Jilemnice 31.05.23 | H142: 671.9735498 | J142: 00:01:04.060
B143: KUBÁTOVÁ | C143: Veronika | D143: 7.B | E143: 00:01:26.010 | G143: Jilemnice 24.10.22 | H143: =IF(E143=0,0,IF(E143>0,(1000000000 - 313216 / E143 + 34538300 / E143*2 - 1698600000 / E143*3 + 32198000000 / E143*4)/200000000000-215)) -> 406.6357892 | J143: 00:01:16.940
B144: LENČEŠOVÁ | C144: Silvie | D144: 7.B | E144: 00:01:03.750 | G144: Jilemnice 31.05.23 | H144: 623.6946342 | J144: 00:01:07.700
B145: LUKEŠOVÁ | C145: Lucie | D145: 7.B | E145: 00:01:05.770 | G145: Jilemnice 31.05.23 | H145: 597.9358831
B146: MATERNOVÁ | C146: Lenka | D146: 7.B | E146: 00:00:56.120 | G146: Jilemnice 31.05.23 | H146: 737.7217531 | J146: 00:00:53.800
B147: TÓTHOVÁ | C147: Viktorie | D147: 7.B | E147: 00:01:02.820 | G147: Jilemnice 31.05.23 | H147: 636.1107654 | J147: 00:01:07.190
B148: DUONG | C148: Ngoc Linh | D148: 8.A | H148: 0 | J148: 00:01:20.200
B149: GINGALOVÁ | C149: Linda | D149: 8.A | E149: 00:00:57.180 | G149: Jilemnice 05.06.23 | H149: 720.0603372
B150: HOFMANOVÁ | C150: Nicol | D150: 8.A | H150: 0 | K150: 00:01:15.700
B151: HOLEŠOVSKÁ | C151: Aneta | D151: 8.A | E151: 00:01:11 | G151: Jilemnice 17.10.22 | H151: 538.0537913
B152: HOLUBCOVÁ | C152: Alena | D152: 8.A | E152: 00:00:53.090 | G152: Jilemnice 05.06.23 | H152: 792.0960564 | J152: 00:01:06.230 | K152: 00:00:59.270
B153: KOHOUTOVÁ | C153: Anna | D153: 8.A | E153: 00:01:13 | G153: Jilemnice 17.10.22 | H153: 517.4223176 | J153: 00:01:15.470 | K153: 00:01:24.100
B154: KRAUSOVÁ | C154: Anežka | D154: 8.A | E154: 00:01:07 | G154: Jilemnice 17.10.22 | H154: 583.0119281 | J154: 00:01:10.810 | K154: 00:01:04.100
B155: KUŽELOVÁ | C155: Apoléna | D155: 8.A | H155: 0
B156: MORÁVKOVÁ | C156: Lucie | D156: 8.A | E156: 00:01:14 | G156: Jilemnice 17.10.22 | H156: 507.5247862
B157: SKLENÁROVÁ | C157: Eliška | D157: 8.A | H157: 0 | K157: 00:01:17.530
B158: ŠEJNOVÁ | C158: Karolína | D158: 8.A | E158: 00:01:08 | G158: Jilemnice 17.10.22 | H158: 571.2765321 | J158: 00:01:08.750
B159: ŠTOLFOVÁ | C159: Tereza | D159: 8.A | E159: 00:01:05 | G159: Jilemnice 17.10.22 | H159: 607.5659874 | J159: 00:01:05.420 | K159: 00:01:04.880
B160: ŠUBÍKOVÁ | C160: Klára | D160: 8.A | E160: 00:00:59.280 | G160: Jilemnice 05.06.23 | H160: 686.9359073 | J160: 00:01:03.080 | K160: 00:01:06.100
B161: ŠULKOVSKÁ | C161: Klára | D161: 8.A | H161: 0 | J161: 00:01:16.660
B162: TULÁČKOVÁ | C162: Natálie | D162: 8.A | E162: 00:01:04 | G162: Jilemnice 17.10.22 | H162: 620.4185028
B163: VOJTÍŠKOVÁ | C163: Ella | D163: 8.A | E163: 00:00:54.420 | G163: Jilemnice 05.06.23 | H163: 767.4832099
B164: DRUGÁČOVÁ | C164: Kristinka | D164: 8.B | H164: 0 | K164: 00:01:03.360
B165: FAJSTAVROVÁ | C165: Karolína | D165: 8.B | E165: 00:00:53.410 | G165: Jilemnice 17.10.22 | H165: 786.0621837
B166: FAJSTAVROVÁ | C166: Magdaléna | D166: 8.B | E166: 00:00:49.910 | G166: Jilemnice 05.06.23 | H166: 856.2625472
B167: JINDROVÁ | C167: Barbora | D167: 8.B | H167: 0
B168: MAŘASOVÁ | C168: Vendula | D168: 8.B | E168: 00:01:01.300 | G168: Jilemnice 17.10.22 | H168: 657.2148561
B169: PETŘÍČKOVÁ | C169: Natálie | D169: 8.B | E169: 00:00:57.850 | G169: Jilemnice 05.06.23 | H169: 709.2308286 | J169: 00:00:55.240
B170: PETŘÍKOVÁ | C170: Adéla | D170: 8.B | E170: 00:01:00 | G170: Jilemnice 17.10.22 | H170: 676.1127364 | J170: 00:01:01.950 | K170: 00:01:10.660
B171: REGÁLOVÁ | C171: Karolína | D171: 8.B | E171: 00:01:13 | G171: Jilemnice 17.10.22 | H171: 517.4223176
B172: RIEGROVÁ | C172: Magdaléna | D172: 8.B | H172: 0 | K172: 00:01:13.300
B173: RYBENSKÁ | C173: Sabina | D173: 8.B | E173: 00:01:04 | G173: Jilemnice 17.10.22 | H173: 620.4185028
B174: STEINEROVÁ | C174: Barbora | D174: 8.B | E174: 00:00:55.450 | G174: Jilemnice 05.06.23 | H174: 749.2333892 | J174: 00:01:07.540
B175: ŠERCLOVÁ | C175: Andrea | D175: 8.B | E175: 00:01:16 | G175: Jilemnice 17.10.22 | H175: =IF(E175=0,0,IF(E175>0,(1000000000 - 313216 / E175 + 34538300 / E175*2 - 1698600000 / E175*3 + 32198000000 / E175*4)/200000000000-215)) -> 488.5111077
B176: TOMEŠOVÁ | C176: Barbora | D176: 8.B | E176: 00:00:56.910 | G176: Jilemnice 05.06.23 | H176: 724.4965513
B177: VOHNOUTOVÁ | C177: Aneta | D177: 8.B | E177: 00:00:55.240 | G177: Jilemnice 05.06.23 | H177: 752.8989932
B178: HAVLÍKOVÁ | C178: Michaela | D178: 9.A | E178: 00:01:05.960 | G178: Jilemnice 12.05.23 | H178: 595.5942083 | J178: 00:01:09.740 | L178: 00:01:18.970
B179: HOLUBCOVÁ | C179: Sára | D179: 9.A | H179: 0 | J179: 00:00:57.550 | L179: 00:00:58.890
B180: HONCŮ | C180: Tereza | D180: 9.A | H180: 0 | J180: 00:01:04.060 | L180: 00:01:07.580
B181: HORÁČKOVÁ | C181: Kateřina | D181: 9.A | E181: 00:01:00.550 | G181: Jilemnice 15.06.23 | H181: 668.0184464 | J181: 00:00:56.460 | L181: 00:01:02.240
B182: JOUDALOVÁ | C182: Daniela | D182: 9.A | H182: 0 | L182: 00:01:29.440
B183: KLÍMOVÁ | C183: Anna | D183: 9.A | H183: 0 | J183: 00:01:02.190 | L183: 00:01:03.720
B184: KOHOUTOVÁ | C184: Veronika | D184: 9.A | E184: 00:00:59.860 | G184: Jilemnice 12.05.23 | H184: 678.1968507 | J184: 00:00:57.510 | L184: 00:00:59.130
B185: KOVÁŘOVÁ | C185: Viktorie | D185: 9.A | E185: 00:00:57.140 | G185: Jilemnice 12.05.23 | H185: 720.7149087 | J185: 00:00:59.520 | L185: 00:01:04.860
B186: KYNČLOVÁ | C186: Anna | D186: 9.A | E186: 00:00:53.100 | G186: Jilemnice 12.05.23 | H186: 791.906397 | J186: 00:00:48.500 | L186: 00:00:59.780
B187: MATOUŠOVÁ | C187: Tereza | D187: 9.A | H187: 0 | J187: 00:01:07.350 | L187: 00:01:10.610
B188: MAZÁNKOVÁ | C188: Zuzana | D188: 9.A | E188: 00:01:03.760 | G188: Jilemnice 12.05.23 | H188: 623.5630957 | J188: 00:01:03.030 | L188: 00:01:04.850
B189: MORKESOVÁ | C189: Sabrina | D189: 9.A | E189: 00:01:00.860 | G189: Jilemnice 15.06.23 | H189: 663.5206783 | J189: 00:00:57.420 | L189: 00:01:00.680
B190: POHOŘALÁ | C190: Alžběta | D190: 9.A | E190: 00:00:54.540 | G190: Jilemnice 12.05.23 | H190: 765.3215417 | J190: 00:00:56.850 | L190: 00:01:05.990
B191: SCHOLZOVÁ | C191: Laura | D191: 9.A | H191: 0 | L191: 00:01:14.770
B192: VÁCLAVÍKOVÁ | C192: Valerie | D192: 9.A | E192: 00:00:56.300 | G192: Jilemnice 15.06.23 | H192: 734.675767 | J192: 00:00:54.530 | L192: 00:01:03.520
B193: ZAPADLOVÁ | C193: Emma | D193: 9.A | E193: 00:00:52.730 | G193: Jilemnice 15.06.23 | H193: 798.9717017 | J193: 00:00:56.120 | L193: 00:01:04.690
B194: ŽIŠKOVÁ | C194: Mia | D194: 9.A | H194: 0 | L194: 00:01:06.460
B195: FARSKÁ | C195: Tereza | D195: 9.B | H195: 0 | L195: 00:01:14.230
B196: FEIXOVÁ | C196: Rozálie | D196: 9.B | H196: 0 | L196: 00:01:28.320
B197: FIŠEROVÁ | C197: Michaela | D197: 9.B | H197: 0 | J197: 00:01:24.900 | L197: 00:01:19.320
B198: HAVLÍČKOVÁ | C198: Kristýna | D198: 9.B | H198: 0 | J198: 00:01:16.300
B199: KADAVÁ | C199: Nikola | D199: 9.B | H199: 0 | J199: 00:01:19 | L199: 00:01:29.980
B200: KŘIVINKOVÁ | C200: Alžběta | D200: 9.B | H200: 0 | L200: 00:01:12.620
B201: LEŠÁKOVÁ | C201: Lenka | D201: 9.B | H201: 0 | J201: 00:01:15.300 | L201: 00:01:32.350
B202: NYKLÍČKOVÁ | C202: Adéla | D202: 9.B | H202: 0 | J202: 00:00:56.010 | L202: 00:01:09.160
B203: PLŮCHOVÁ | C203: Petra | D203: 9.B | H203: 0 | J203: 00:01:05.200 | L203: 00:01:10.250
B204: PODZIMKOVÁ | C204: Eliška | D204: 9.B | H204: 0 | J204: 00:01:24.900 | L204: 00:01:21.100
B205: RUTKAYOVÁ | C205: Klára | D205: 9.B | H205: 0 | L205: 00:01:19.660
B206: SEIDLOVÁ | C206: Zuzana | D206: 9.B | H206: 0 | J206: 00:01:04 | L206: 00:01:25.020
B207: TOMÁŠOVÁ | C207: Sára | D207: 9.B | H207: 0 | J207: 00:01:23.900
B208: VANCLOVÁ | C208: Barbora | D208: 9.B | H208: 0 | J208: 00:01:03.900 | L208: 00:01:16.110
B209: VOTOČKOVÁ | C209: Veronika | D209: 9.B | H209: 0 | L209: 00:01:36.510

Sheet D800
B1: VÝKONY 2022 - 2023 | G1: 800 M | K1: stav k | L1: =TODAY() -> 2023-06-26
H2: BODY | J2: 21 - 22 | K2: 20 - 21 | L2: 19 - 20
A3: 1. | B3: =B111 -> FARSKÁ | C3: =C111 -> Anna | D3: 6.A | E3: 00:04:38.880 | G3: Jilemnice 05.06.23 | H3: 477.9526677 | J3: 00:00:00 | K3: 00:00:00 | L3: 00:00:00
A4: 2. | B4: =B112 -> FARSKÁ | C4: Eliška | D4: 6.A | E4: 00:03:49.690 | G4: =G112 -> Jilemnice 05.06.23 | H4: 608.1507247 | J4: =J112 -> 00:00:00 | K4: 00:00:00 | L4: 00:00:00
A5: 3. | B5: =B113 -> FEDORKOVÁ | C5: Denisa | D5: 6.A | E5: 00:00:00 | G5: =G113 -> 0 | H5: 0 | J5: =J113 -> 00:00:00 | K5: 00:00:00 | L5: 00:00:00
A6: 4. | B6: =B114 -> HAUZEROVÁ | C6: Tereza | D6: 6.A | E6: 00:04:22.670 | G6: =G114 -> Jilemnice 05.06.23 | H6: 515.4708949 | J6: =J114 -> 00:00:00 | K6: 00:00:00 | L6: 00:00:00
A7: 5. | B7: =B115 -> JOSKOVÁ | C7: Ellen | D7: 6.A | E7: 00:03:49.910 | G7: =G115 -> Jilemnice 05.06.23 | H7: 607.4443911 | J7: =J115 -> 00:00:00 | K7: 00:00:00 | L7: 00:00:00
A8: 6. | B8: =B116 -> KUŽELOVÁ | C8: Amálie | D8: 6.A | E8: 00:00:00 | G8: =G116 -> 0 | H8: 0 | J8: =J116 -> 00:00:00 | K8: 00:00:00 | L8: 00:00:00
A9: 7. | B9: =B117 -> RYŠAVÁ | C9: Amálie | D9: 6.A | E9: 00:04:06.940 | G9: =G117 -> Jilemnice 05.06.23 | H9: 556.587187 | J9: =J117 -> 00:00:00 | K9: 00:00:00 | L9: 00:00:00
A10: 8. | B10: =B118 -> BANGOVÁ | C10: Zuzana | D10: 6.B | E10: 00:04:58.340 | G10: =G118 -> Jilemnice 05.06.23 | H10: 438.2973788 | J10: =J118 -> 00:00:00 | K10: 00:00:00 | L10: 00:00:00
A11: 9. | B11: =B119 -> HOLUBOVÁ | C11: Denisa | D11: 6.B | E11: 00:04:52.470 | G11: =G119 -> Jilemnice 05.06.23 | H11: 449.7033541 | J11: =J119 -> 00:00:00 | K11: 00:00:00 | L11: 00:00:00
A12: 10. | B12: =B120 -> HURKALO | C12: Karolina | D12: 6.B | E12: 00:00:00 | G12: =G120 -> 0 | H12: 0 | J12: =J120 -> 00:00:00 | K12: 00:00:00 | L12: 00:00:00
A13: 11. | B13: =B121 -> HUTNIK-MAMONOVA | C13: Nana | D13: 6.B | E13: 00:00:00 | G13: =G121 -> 0 | H13: 0 | J13: =J121 -> 00:00:00 | K13: 00:00:00 | L13: 00:00:00
A14: 12. | B14: =B122 -> MARINOVA | C14: Darja | D14: 6.B | E14: 00:00:00 | G14: =G122 -> 0 | H14: 0 | J14: =J122 -> 00:00:00 | K14: 00:00:00 | L14: 00:00:00
A15: 13. | B15: =B123 -> NYKLÍČKOVÁ | C15: Klára | D15: 6.B | E15: 00:03:41.880 | G15: =G123 -> Jilemnice 05.06.23 | H15: 634.1330447 | J15: =J123 -> 00:00:00 | K15: 00:00:00 | L15: 00:00:00
A16: 14. | B16: =B124 -> PANCHAYEVA | C16: Sofiia | D16: 6.B | E16: 00:04:37.850 | G16: =G124 -> Jilemnice 05.06.23 | H16: 480.2063702 | J16: =J124 -> 00:00:00 | K16: 00:00:00 | L16: 00:00:00
A17: 15. | B17: =B125 -> PIČMANOVÁ | C17: Klára | D17: 6.B | E17: 00:00:00 | G17: =G125 -> 0 | H17: 0 | J17: =J125 -> 00:00:00 | K17: 00:00:00 | L17: 00:00:00
A18: 16. | B18: =B126 -> ŠIMŮNKOVÁ | C18: Anežka | D18: 6.B | E18: 00:04:54.320 | G18: =G126 -> Jilemnice 05.06.23 | H18: 446.059527 | J18: =J126 -> 00:00:00 | K18: 00:00:00 | L18: 00:00:00
A19: 17. | B19: =B127 -> TRPIŠOVSKÁ | C19: Nela | D19: 6.B | E19: 00:04:46.700 | G19: =G127 -> Jilemnice 05.06.23 | H19: 461.3702127 | J19: =J127 -> 00:00:00 | K19: 00:00:00 | L19: 00:00:00
A20: 18. | B20: =B128 -> HEJRALOVÁ | C20: Natálie | D20: 7.A | E20: 00:03:27.980 | G20: =G128 -> Jilemnice 07.06.23 | H20: 685.2026154 | J20: =J128 -> 00:03:31.050 | K20: 00:00:00 | L20: 00:00:00
A21: 19. | B21: =B129 -> KERLE | C21: Nikita | D21: 7.A | E21: 00:03:15.740 | G21: =G129 -> Jilemnice 07.06.23 | H21: 736.1788084 | J21: =J129 -> 00:03:11.490 | K21: 00:00:00 | L21: 00:00:00
A22: 20. | B22: =B130 -> MUNZAROVÁ | C22: Aneta | D22: 7.A | E22: 00:00:00 | G22: =G130 -> 0 | H22: 0 | J22: =J130 -> 00:00:00 | K22: 00:00:00 | L22: 00:00:00
A23: 21. | B23: =B131 -> PACLÍKOVÁ | C23: Markéta | D23: 7.A | E23: 00:03:21.230 | G23: =G131 -> Jilemnice 07.06.23 | H23: 712.5475324 | J23: =J131 -> 00:03:40.990 | K23: 00:00:00 | L23: 00:00:00
A24: 22. | B24: =B132 -> PLŮCHOVÁ | C24: Michaela | D24: 7.A | E24: 00:03:21.120 | G24: =G132 -> Jilemnice 07.06.23 | H24: 713.008353 | J24: =J132 -> 00:00:00 | K24: 00:00:00 | L24: 00:00:00
A25: 23. | B25: =B133 -> ŠERCLOVÁ | C25: Nikola | D25: 7.A | E25: 00:03:51.390 | G25: =G133 -> Jilemnice 07.06.23 | H25: 602.7276026 | J25: =J133 -> 00:04:19.510 | K25: 00:00:00 | L25: 00:00:00
A26: 24. | B26: =B134 -> VÁCLAVÍKOVÁ | C26: Alena | D26: 7.A | E26: 00:03:38.760 | G26: =G134 -> Jilemnice 07.06.23 | H26: 645.031267 | J26: =J134 -> 00:03:41 | K26: 00:00:00 | L26: 00:00:00
A27: 25. | B27: =B135 -> DUCHÁČKOVÁ | C27: Tereza | D27: 7.B | E27: 00:05:42.900 | G27: =G135 -> Jilemnice 07.06.23 | H27: 364.4468941 | J27: =J135 -> 00:00:00 | K27: 00:00:00 | L27: 00:00:00
A28: 26. | B28: =B136 -> FLAŠKOVÁ | C28: Anna Sabriel | D28: 7.B | E28: 00:00:00 | G28: =G136 -> 0 | H28: 0 | J28: =J136 -> 00:00:00 | K28: 00:00:00 | L28: 00:00:00
A29: 27. | B29: =B137 -> HAASOVÁ | C29: Julie | D29: 7.B | E29: 00:00:00 | G29: =G137 -> 0 | H29: 0 | J29: =J137 -> 00:03:42.600 | K29: 00:00:00 | L29: 00:00:00
A30: 28. | B30: =B138 -> HEGROVÁ | C30: Štěpánka | D30: 7.B | E30: 00:04:55.600 | G30: =G138 -> Jilemnice 07.06.23 | H30: 443.5650879 | J30: =J138 -> 00:00:00 | K30: 00:00:00 | L30: 00:00:00
A31: 29. | B31: =B139 -> HOBLOVÁ | C31: Barbora | D31: 7.B | E31: 00:00:00 | G31: =G139 -> 0 | H31: 0 | J31: =J139 -> 00:03:50.020 | K31: 00:00:00 | L31: 00:00:00
A32: 30. | B32: =B140 -> HORÁČKOVÁ | C32: Valérie | D32: 7.B | E32: 00:03:18.780 | G32: =G140 -> Jilemnice 07.06.23 | H32: 722.9320855 | J32: =J140 -> 00:03:52.200 | K32: 00:00:00 | L32: 00:00:00
A33: 31. | B33: =B141 -> JIRANOVÁ | C33: Anežka | D33: 7.B | E33: 00:05:13.820 | G33: =G141 -> Jilemnice 07.06.23 | H33: 410.2646102 | J33: =J141 -> 00:05:28.300 | K33: 00:00:00 | L33: 00:00:00
A34: 32. | B34: =B142 -> KRČÍKOVÁ | C34: Beatrix | D34: 7.B | E34: 00:03:33.690 | G34: =G142 -> Jilemnice 14.06.23 | H34: 663.4196264 | J34: =J142 -> 00:04:05.040 | K34: 00:00:00 | L34: 00:00:00
A35: 33. | B35: =B143 -> KUBÁTOVÁ | C35: Veronika | D35: 7.B | E35: 00:05:30.500 | G35: =G143 -> Jilemnice 07.06.23 | H35: 382.998003 | J35: =J143 -> 00:00:00 | K35: 00:00:00 | L35: 00:00:00
A36: 34. | B36: =B144 -> LENČEŠOVÁ | C36: Silvie | D36: 7.B | E36: 00:03:43.820 | G36: =G144 -> Jilemnice 07.06.23 | H36: 627.5097845 | J36: =J144 -> 00:03:54.470 | K36: 00:00:00 | L36: 00:00:00
A37: 35. | B37: =B145 -> LUKEŠOVÁ | C37: Lucie | D37: 7.B | E37: 00:04:23.530 | G37: =G145 -> Jilemnice 07.06.23 | H37: 513.3644745 | J37: =J145 -> 00:00:00 | K37: 00:00:00 | L37: 00:00:00
A38: 36. | B38: =B146 -> MATERNOVÁ | C38: Lenka | D38: 7.B | E38: 00:03:23.560 | G38: =G146 -> Jilemnice 07.06.23 | H38: 702.9035172 | J38: =J146 -> 00:03:35.860 | K38: 00:00:00 | L38: 00:00:00
A39: 37. | B39: =B147 -> TÓTHOVÁ | C39: Viktorie | D39: 7.B | E39: 00:03:39.930 | G39: =G147 -> Jilemnice 07.06.23 | H39: 640.9081979 | J39: =J147 -> 00:04:27.230 | K39: 00:00:00 | L39: 00:00:00
A40: 38. | B40: =B148 -> DUONG | C40: Ngoc Linh | D40: 8.A | E40: 00:00:00 | G40: =G148 -> 0 | H40: 0 | J40: =J148 -> 00:05:08.840 | K40: 00:00:00 | L40: 00:00:00
A41: 39. | B41: =B149 -> GINGALOVÁ | C41: Linda | D41: 8.A | E41: 00:03:55.290 | G41: =G149 -> Jilemnice 24.10.22 | H41: 590.58243 | J41: =J149 -> 00:05:08.800 | K41: 00:00:00 | L41: 00:00:00
A42: 40. | B42: =B150 -> HOFMANOVÁ | C42: Nicol | D42: 8.A | E42: 00:00:00 | G42: =G150 -> 0 | H42: 0 | J42: =J150 -> 00:00:00 | K42: 00:00:00 | L42: 00:00:00
A43: 41. | B43: =B151 -> HOLEŠOVSKÁ | C43: Aneta | D43: 8.A | E43: 00:00:00 | G43: =G151 -> 0 | H43: 0 | J43: =J151 -> 00:04:49.500 | K43: 00:06:54 | L43: 00:00:00
A44: 42. | B44: =B152 -> HOLUBCOVÁ | C44: Alena | D44: 8.A | E44: 00:03:35.570 | G44: =G152 -> Jilemnice 26.10.22 | H44: 656.5001622 | J44: =J152 -> 00:04:04.630 | K44: 00:00:00 | L44: 00:00:00
A45: 43. | B45: =B153 -> KOHOUTOVÁ | C45: Anna | D45: 8.A | E45: 00:03:52.590 | G45: =G153 -> Jilemnice 26.10.22 | H45: 598.9472461 | J45: =J153 -> 00:04:17.170 | K45: 00:00:00 | L45: 00:00:00
A46: 44. | B46: =B154 -> KRAUSOVÁ | C46: Anežka | D46: 8.A | E46: 00:04:14.010 | G46: =G154 -> Jilemnice 26.10.22 | H46: 537.4770283 | J46: =J154 -> 00:00:00 | K46: 00:00:00 | L46: 00:00:00
A47: 45. | B47: =B155 -> KUŽELOVÁ | C47: Apoléna | D47: 8.A | E47: 00:05:20.580 | G47: =G155 -> Jilemnice 24.10.22 | H47: 398.8721691 | J47: =J155 -> 00:04:34.300 | K47: 00:04:22 | L47: 00:00:00
A48: 46. | B48: =B156 -> MORÁVKOVÁ | C48: Lucie | D48: 8.A | E48: 00:05:23.120 | G48: =G156 -> Jilemnice 24.10.22 | H48: 394.7147808 | J48: =J156 -> 00:04:49.900 | K48: 00:04:54 | L48: 00:00:00
A49: 47. | B49: =B157 -> SKLENÁROVÁ | C49: Eliška | D49: 8.A | E49: 00:00:00 | G49: =G157 -> 0 | H49: 0 | J49: =J157 -> 00:00:00 | K49: 00:00:00 | L49: 00:00:00
A50: 48. | B50: =B158 -> ŠEJNOVÁ | C50: Karolína | D50: 8.A | E50: 00:04:18.450 | G50: =G158 -> Jilemnice 26.10.22 | H50: 526.0102146 | J50: =J158 -> 00:05:05.610 | K50: 00:00:00 | L50: 00:00:00
A51: 49. | B51: =B159 -> ŠTOLFOVÁ | C51: Tereza | D51: 8.A | E51: 00:04:09.420 | G51: =G159 -> Jilemnice 26.10.22 | H51: 549.760404 | J51: =J159 -> 00:00:00 | K51: 00:00:00 | L51: 00:00:00
A52: 50. | B52: =B160 -> ŠUBÍKOVÁ | C52: Klára | D52: 8.A | E52: 00:03:49.090 | G52: =G160 -> Jilemnice 26.10.22 | H52: 610.0839843 | J52: =J160 -> 00:04:05.760 | K52: 00:00:00 | L52: 00:00:00
A53: 51. | B53: =B161 -> ŠULKOVSKÁ | C53: Klára | D53: 8.A | E53: 00:00:00 | G53: =G161 -> 0 | H53: 0 | J53: =J161 -> 00:00:00 | K53: 00:00:00 | L53: 00:00:00
A54: 52. | B54: =B162 -> TULÁČKOVÁ | C54: Natálie | D54: 8.A | E54: 00:04:09.440 | G54: =G162 -> Jilemnice 24.10.22 | H54: 549.7059011 | J54: =J162 -> 00:04:18.400 | K54: 00:04:48 | L54: 00:00:00
A55: 53. | B55: =B163 -> VOJTÍŠKOVÁ | C55: Ella | D55: 8.A | E55: 00:03:13.570 | G55: =G163 -> Turnov 16.05.23 | H55: 745.8890321 | J55: =J163 -> 00:04:44.200 | K55: 00:00:00 | L55: 00:00:00
A56: 54. | B56: =B164 -> DRUGÁČOVÁ | C56: Kristinka | D56: 8.B | E56: 00:00:00 | G56: =G164 -> 0 | H56: 0 | J56: =J164 -> 00:00:00 | K56: 00:00:00 | L56: 00:00:00
A57: 55. | B57: =B165 -> FAJSTAVROVÁ | C57: Karolína | D57: 8.B | E57: 00:02:52.300 | G57: =G165 -> Turnov 13.09.22 | H57: 854.0153218 | J57: =J165 -> 00:03:22.300 | K57: 00:03:11 | L57: 00:00:00
A58: 56. | B58: =B166 -> FAJSTAVROVÁ | C58: Magdaléna | D58: 8.B | E58: 00:02:42.390 | G58: =G166 -> Turnov 16.05.23 | H58: 914.0657673 | J58: =J166 -> 00:03:07.700 | K58: 00:03:02 | L58: 00:00:00
A59: 57. | B59: =B167 -> JINDROVÁ | C59: Barbora | D59: 8.B | E59: 00:03:50.710 | G59: =G167 -> Jilemnice 24.10.22 | H59: 604.8872609 | J59: =J167 -> 00:04:03.100 | K59: 00:04:04 | L59: 00:00:00
A60: 58. | B60: =B168 -> MAŘASOVÁ | C60: Vendula | D60: 8.B | E60: 00:04:18.350 | G60: =G168 -> Jilemnice 24.10.22 | H60: 526.2641377 | J60: =J168 -> 00:03:51.100 | K60: 00:04:11 | L60: 00:00:00
A61: 59. | B61: =B169 -> PETŘÍČKOVÁ | C61: Natálie | D61: 8.B | E61: 00:03:48.670 | G61: =G169 -> Jilemnice 24.10.22 | H61: 611.4433024 | J61: =J169 -> 00:03:45.600 | K61: 00:00:00 | L61: 00:00:00
A62: 60. | B62: =B170 -> PETŘÍKOVÁ | C62: Adéla | D62: 8.B | E62: 00:03:44.270 | G62: =G170 -> Jilemnice 26.10.22 | H62: 625.9898335 | J62: =J170 -> 00:00:00 | K62: 00:00:00 | L62: 00:00:00
A63: 61. | B63: =B171 -> REGÁLOVÁ | C63: Karolína | D63: 8.B | E63: 00:04:28.350 | G63: =G171 -> Jilemnice 24.10.22 | H63: 501.8086081 | J63: =J171 -> 00:04:46.600 | K63: 00:04:17 | L63: 00:00:00
A64: 62. | B64: =B172 -> RIEGROVÁ | C64: Magdaléna | D64: 8.B | E64: 00:04:10.160 | G64: =G172 -> Jilemnice 26.10.22 | H64: 547.7496001 | J64: =J172 -> 00:00:00 | K64: 00:00:00 | L64: 00:00:00
A65: 63. | B65: =B173 -> RYBENSKÁ | C65: Sabina | D65: 8.B | E65: 00:03:53.190 | G65: =G173 -> Jilemnice 24.10.22 | H65: 597.0716581 | J65: =J173 -> 00:04:13.300 | K65: 00:04:17 | L65: 00:00:00
A66: 64. | B66: =B174 -> STEINEROVÁ | C66: Barbora | D66: 8.B | E66: 00:03:54.370 | G66: =G174 -> Jilemnice 24.10.22 | H66: 593.4110166 | J66: =J174 -> 00:04:01.500 | K66: 00:04:18 | L66: 00:00:00
A67: 65. | B67: =B175 -> ŠERCLOVÁ | C67: Andrea | D67: 8.B | E67: 00:00:00 | G67: =G175 -> 0 | H67: 0 | J67: =J175 -> 00:00:00 | K67: 00:00:00 | L67: 00:00:00
A68: 66. | B68: =B176 -> TOMEŠOVÁ | C68: Barbora | D68: 8.B | E68: 00:03:54.090 | G68: =G176 -> Jilemnice 24.10.22 | H68: 594.2763038 | J68: =J176 -> 00:03:45.400 | K68: 00:04:20 | L68: 00:00:00
A69: 67. | B69: =B177 -> VOHNOUTOVÁ | C69: Aneta | D69: 8.B | E69: 00:03:21.500 | G69: =G177 -> Turnov 16.05.23 | H69: 711.4185606 | J69: =J177 -> 00:03:36.100 | K69: 00:03:36 | L69: 00:00:00
A70: 68. | B70: =B178 -> HAVLÍKOVÁ | C70: Michaela | D70: 9.A | E70: 00:00:00 | G70: =G178 -> 0 | H70: 0 | J70: =J178 -> 00:03:55.850 | K70: 00:00:00 | L70: 00:04:12.990
A71: 69. | B71: =B179 -> HOLUBCOVÁ | C71: Sára | D71: 9.A | E71: 00:00:00 | G71: =G179 -> 0 | H71: 0 | J71: =J179 -> 00:03:45.200 | K71: 00:00:00 | L71: 00:03:44.190
A72: 70. | B72: =B180 -> HONCŮ | C72: Tereza | D72: 9.A | E72: 00:00:00 | G72: =G180 -> 0 | H72: 0 | J72: =J180 -> 00:00:00 | K72: 00:00:00 | L72: 00:04:00.600
A73: 71. | B73: =B181 -> HORÁČKOVÁ | C73: Kateřina | D73: 9.A | E73: 00:03:27.700 | G73: =G181 -> Turnov 11.05.23 | H73: 686.3015886 | J73: =J181 -> 00:03:33.880 | K73: 00:00:00 | L73: 00:03:39.880
A74: 72. | B74: =B182 -> JOUDALOVÁ | C74: Daniela | D74: 9.A | E74: 00:00:00 | G74: =G182 -> 0 | H74: 0 | J74: =J182 -> 00:00:00 | K74: 00:00:00 | L74: 00:00:00
A75: 73. | B75: =B183 -> KLÍMOVÁ | C75: Anna | D75: 9.A | E75: 00:00:00 | G75: =G183 -> 0 | H75: 0 | J75: =J183 -> 00:03:51.570 | K75: 00:00:00 | L75: 00:03:43.750
A76: 74. | B76: =B184 -> KOHOUTOVÁ | C76: Veronika | D76: 9.A | E76: 00:03:55.960 | G76: =G184 -> Jilemnice 21.06.23 | H76: 588.5363619 | J76: =J184 -> 00:03:45.400 | K76: 00:00:00 | L76: 00:03:21.790
A77: 75. | B77: =B185 -> KOVÁŘOVÁ | C77: Viktorie | D77: 9.A | E77: 00:00:00 | G77: =G185 -> 0 | H77: 0 | J77: =J185 -> 00:03:21.100 | K77: 00:00:00 | L77: 00:03:46.100
A78: 76. | B78: =B186 -> KYNČLOVÁ | C78: Anna | D78: 9.A | E78: 00:02:31.600 | G78: =G186 -> Turnov 11.05.23 | H78: 988.3762529 | J78: =J186 -> 00:02:39 | K78: 00:00:00 | L78: 00:03:11.460
A79: 77. | B79: =B187 -> MATOUŠOVÁ | C79: Tereza | D79: 9.A | E79: 00:00:00 | G79: =G187 -> 0 | H79: 0 | J79: =J187 -> 00:04:23.190 | K79: 00:00:00 | L79: 00:04:28.960
A80: 78. | B80: =B188 -> MAZÁNKOVÁ | C80: Zuzana | D80: 9.A | E80: 00:00:00 | G80: =G188 -> 0 | H80: 0 | J80: =J188 -> 00:03:41.410 | K80: 00:00:00 | L80: 00:04:00.600
A81: 79. | B81: =B189 -> MORKESOVÁ | C81: Sabrina | D81: 9.A | E81: 00:03:24.100 | G81: =G189 -> Turnov 13.09.22 | H81: 700.6998528 | J81: =J189 -> 00:03:39.565 | K81: 00:00:00 | L81: 00:03:22.340
A82: 80. | B82: =B190 -> POHOŘALÁ | C82: Alžběta | D82: 9.A | E82: 00:00:00 | G82: =G190 -> 0 | H82: 0 | J82: =J190 -> 00:03:32.800 | K82: 00:00:00 | L82: 00:04:00.600
A83: 81. | B83: =B191 -> SCHOLZOVÁ | C83: Laura | D83: 9.A | E83: 00:00:00 | G83: =G191 -> 0 | H83: 0 | J83: =J191 -> 00:00:00 | K83: 00:00:00 | L83: 00:04:18.780
A84: 82. | B84: =B192 -> VÁCLAVÍKOVÁ | C84: Valerie | D84: 9.A | E84: 00:03:30 | G84: =G192 -> Turnov 13.09.22 | H84: 677.3611427 | J84: =J192 -> 00:03:29.010 | K84: 00:00:00 | L84: 00:03:49.500
A85: 83. | B85: =B193 -> ZAPADLOVÁ | C85: Emma | D85: 9.A | E85: 00:03:23.400 | G85: =G193 -> Turnov 13.09.22 | H85: 703.5587018 | J85: =J193 -> 00:00:00 | K85: 00:00:00 | L85: 00:03:24.360
A86: 84. | B86: =B194 -> ŽIŠKOVÁ | C86: Mia | D86: 9.A | E86: 00:00:00 | G86: =G194 -> 0 | H86: 0 | J86: =J194 -> 00:00:00 | K86: 00:00:00 | L86: 00:04:11.900
A87: 85. | B87: =B195 -> FARSKÁ | C87: Tereza | D87: 9.B | E87: 00:00:00 | G87: =G195 -> 0 | H87: 0 | J87: =J195 -> 00:00:00 | K87: 00:00:00 | L87: 00:00:00
A88: 86. | B88: =B196 -> FEIXOVÁ | C88: Rozálie | D88: 9.B | E88: 00:00:00 | G88: =G196 -> 0 | H88: 0 | J88: =J196 -> 00:05:19.700 | K88: 00:00:00 | L88: 00:00:00
A89: 87. | B89: =B197 -> FIŠEROVÁ | C89: Michaela | D89: 9.B | E89: 00:00:00 | G89: =G197 -> 0 | H89: 0 | J89: =J197 -> 00:04:32.900 | K89: 00:00:00 | L89: 00:00:00
A90: 88. | B90: =B198 -> HAVLÍČKOVÁ | C90: Kristýna | D90: 9.B | E90: 00:00:00 | G90: =G198 -> 0 | H90: 0 | J90: =J198 -> 00:05:08.700 | K90: 00:00:00 | L90: 00:00:00
A91: 89. | B91: =B199 -> KADAVÁ | C91: Nikola | D91: 9.B | E91: 00:00:00 | G91: =G199 -> 0 | H91: 0 | J91: =J199 -> 00:05:15.500 | K91: 00:00:00 | L91: 00:00:00
A92: 90. | B92: =B200 -> KŘIVINKOVÁ | C92: Alžběta | D92: 9.B | E92: 00:00:00 | G92: =G200 -> 0 | H92: 0 | J92: =J200 -> 00:04:34.100 | K92: 00:00:00 | L92: 00:00:00
A93: 91. | B93: =B201 -> LEŠÁKOVÁ | C93: Lenka | D93: 9.B | E93: 00:00:00 | G93: =G201 -> 0 | H93: 0 | J93: =J201 -> 00:04:43.300 | K93: 00:00:00 | L93: 00:00:00
A94: 92. | B94: =B202 -> NYKLÍČKOVÁ | C94: Adéla | D94: 9.B | E94: 00:00:00 | G94: =G202 -> 0 | H94: 0 | J94: =J202 -> 00:03:11.700 | K94: 00:00:00 | L94: 00:00:00
A95: 93. | B95: =B203 -> PLŮCHOVÁ | C95: Petra | D95: 9.B | E95: 00:00:00 | G95: =G203 -> 0 | H95: 0 | J95: =J203 -> 00:04:01.700 | K95: 00:00:00 | L95: 00:00:00
A96: 94. | B96: =B204 -> PODZIMKOVÁ | C96: Eliška | D96: 9.B | E96: 00:00:00 | G96: =G204 -> 0 | H96: 0 | J96: =J204 -> 00:04:50.900 | K96: 00:00:00 | L96: 00:00:00
A97: 95. | B97: =B205 -> RUTKAYOVÁ | C97: Klára | D97: 9.B | E97: 00:00:00 | G97: =G205 -> 0 | H97: 0 | J97: =J205 -> 00:04:48.100 | K97: 00:00:00 | L97: 00:00:00
A98: 96. | B98: =B206 -> SEIDLOVÁ | C98: Zuzana | D98: 9.B | E98: 00:00:00 | G98: =G206 -> 0 | H98: 0 | J98: =J206 -> 00:04:29 | K98: 00:00:00 | L98: 00:00:00
A99: 97. | B99: =B207 -> TOMÁŠOVÁ | C99: Sára | D99: 9.B | E99: 00:00:00 | G99: =G207 -> 0 | H99: 0 | J99: =J207 -> 00:00:00 | K99: 00:00:00 | L99: 00:00:00
A100: 98. | B100: =B208 -> VANCLOVÁ | C100: Barbora | D100: 9.B | E100: 00:00:00 | G100: =G208 -> 0 | H100: 0 | J100: =J208 -> 00:04:29.100 | K100: 00:00:00 | L100: 00:00:00
A101: 99. | B101: =B209 -> VOTOČKOVÁ | C101: Veronika | D101: 9.B | E101: 00:00:00 | G101: =G209 -> 0 | H101: 0 | J101: =J209 -> 00:05:08.500 | K101: 00:00:00 | L101: 00:00:00
B111: FARSKÁ | C111: Anna | D111: 6.A | E111: 00:04:38.880 | G111: Jilemnice 05.06.23 | H111: =IF(E111=0,0,IF(E111>0,(100 - 313216 / E111 + 3453830 / E111*2 - 169860000 / E111*3 + 321980000/ E111*4)/400000000-130)) -> 477.9526677
B112: FARSKÁ | C112: Eliška | D112: 6.A | E112: 00:03:49.690 | G112: Jilemnice 05.06.23 | H112: 608.1507247
B113: FEDORKOVÁ | C113: Denisa | D113: 6.A | H113: 0
B114: HAUZEROVÁ | C114: Tereza | D114: 6.A | E114: 00:04:22.670 | G114: Jilemnice 05.06.23 | H114: 515.4708949
B115: JOSKOVÁ | C115: Ellen | D115: 6.A | E115: 00:03:49.910 | G115: Jilemnice 05.06.23 | H115: 607.4443911
B116: KUŽELOVÁ | C116: Amálie | D116: 6.A | H116: 0
B117: RYŠAVÁ | C117: Amálie | D117: 6.A | E117: 00:04:06.940 | G117: Jilemnice 05.06.23 | H117: 556.587187
B118: BANGOVÁ | C118: Zuzana | D118: 6.B | E118: 00:04:58.340 | G118: Jilemnice 05.06.23 | H118: 438.2973788
B119: HOLUBOVÁ | C119: Denisa | D119: 6.B | E119: 00:04:52.470 | G119: Jilemnice 05.06.23 | H119: 449.7033541
B120: HURKALO | C120: Karolina | D120: 6.B | H120: 0
B121: HUTNIK-MAMONOVA | C121: Nana | D121: 6.B | H121: 0
B122: MARINOVA | C122: Darja | D122: 6.B | H122: 0
B123: NYKLÍČKOVÁ | C123: Klára | D123: 6.B | E123: 00:03:41.880 | G123: Jilemnice 05.06.23 | H123: 634.1330447
B124: PANCHAYEVA | C124: Sofiia | D124: 6.B | E124: 00:04:37.850 | G124: Jilemnice 05.06.23 | H124: 480.2063702
B125: PIČMANOVÁ | C125: Klára | D125: 6.B | H125: 0
B126: ŠIMŮNKOVÁ | C126: Anežka | D126: 6.B | E126: 00:04:54.320 | G126: Jilemnice 05.06.23 | H126: 446.059527
B127: TRPIŠOVSKÁ | C127: Nela | D127: 6.B | E127: 00:04:46.700 | G127: Jilemnice 05.06.23 | H127: 461.3702127
B128: HEJRALOVÁ | C128: Natálie | D128: 7.A | E128: 00:03:27.980 | G128: Jilemnice 07.06.23 | H128: 685.2026154 | J128: 00:03:31.050
B129: KERLE | C129: Nikita | D129: 7.A | E129: 00:03:15.740 | G129: Jilemnice 07.06.23 | H129: 736.1788084 | J129: 00:03:11.490
B130: MUNZAROVÁ | C130: Aneta | D130: 7.A | H130: 0
B131: PACLÍKOVÁ | C131: Markéta | D131: 7.A | E131: 00:03:21.230 | G131: Jilemnice 07.06.23 | H131: 712.5475324 | J131: 00:03:40.990
B132: PLŮCHOVÁ | C132: Michaela | D132: 7.A | E132: 00:03:21.120 | G132: Jilemnice 07.06.23 | H132: 713.008353
B133: ŠERCLOVÁ | C133: Nikola | D133: 7.A | E133: 00:03:51.390 | G133: Jilemnice 07.06.23 | H133: 602.7276026 | J133: 00:04:19.510
B134: VÁCLAVÍKOVÁ | C134: Alena | D134: 7.A | E134: 00:03:38.760 | G134: Jilemnice 07.06.23 | H134: 645.031267 | J134: 00:03:41
B135: DUCHÁČKOVÁ | C135: Tereza | D135: 7.B | E135: 00:05:42.900 | G135: Jilemnice 07.06.23 | H135: 364.4468941
B136: FLAŠKOVÁ | C136: Anna Sabriel | D136: 7.B | H136: 0
B137: HAASOVÁ | C137: Julie | D137: 7.B | H137: 0 | J137: 00:03:42.600
B138: HEGROVÁ | C138: Štěpánka | D138: 7.B | E138: 00:04:55.600 | G138: Jilemnice 07.06.23 | H138: 443.5650879
B139: HOBLOVÁ | C139: Barbora | D139: 7.B | H139: 0 | J139: 00:03:50.020
B140: HORÁČKOVÁ | C140: Valérie | D140: 7.B | E140: 00:03:18.780 | G140: Jilemnice 07.06.23 | H140: 722.9320855 | J140: 00:03:52.200
B141: JIRANOVÁ | C141: Anežka | D141: 7.B | E141: 00:05:13.820 | G141: Jilemnice 07.06.23 | H141: 410.2646102 | J141: 00:05:28.300
B142: KRČÍKOVÁ | C142: Beatrix | D142: 7.B | E142: 00:03:33.690 | G142: Jilemnice 14.06.23 | H142: 663.4196264 | J142: 00:04:05.040
B143: KUBÁTOVÁ | C143: Veronika | D143: 7.B | E143: 00:05:30.500 | G143: Jilemnice 07.06.23 | H143: =IF(E143=0,0,IF(E143>0,(100 - 313216 / E143 + 3453830 / E143*2 - 169860000 / E143*3 + 321980000/ E143*4)/400000000-130)) -> 382.998003
B144: LENČEŠOVÁ | C144: Silvie | D144: 7.B | E144: 00:03:43.820 | G144: Jilemnice 07.06.23 | H144: 627.5097845 | J144: 00:03:54.470
B145: LUKEŠOVÁ | C145: Lucie | D145: 7.B | E145: 00:04:23.530 | G145: Jilemnice 07.06.23 | H145: 513.3644745
B146: MATERNOVÁ | C146: Lenka | D146: 7.B | E146: 00:03:23.560 | G146: Jilemnice 07.06.23 | H146: 702.9035172 | J146: 00:03:35.860
B147: TÓTHOVÁ | C147: Viktorie | D147: 7.B | E147: 00:03:39.930 | G147: Jilemnice 07.06.23 | H147: 640.9081979 | J147: 00:04:27.230
B148: DUONG | C148: Ngoc Linh | D148: 8.A | H148: 0 | J148: 00:05:08.840
B149: GINGALOVÁ | C149: Linda | D149: 8.A | E149: 00:03:55.290 | G149: Jilemnice 24.10.22 | H149: 590.58243 | J149: 00:05:08.800
B150: HOFMANOVÁ | C150: Nicol | D150: 8.A | H150: 0
B151: HOLEŠOVSKÁ | C151: Aneta | D151: 8.A | H151: 0 | J151: 00:04:49.500 | K151: 00:06:54
B152: HOLUBCOVÁ | C152: Alena | D152: 8.A | E152: 00:03:35.570 | G152: Jilemnice 26.10.22 | H152: 656.5001622 | J152: 00:04:04.630
B153: KOHOUTOVÁ | C153: Anna | D153: 8.A | E153: 00:03:52.590 | G153: Jilemnice 26.10.22 | H153: 598.9472461 | J153: 00:04:17.170
B154: KRAUSOVÁ | C154: Anežka | D154: 8.A | E154: 00:04:14.010 | G154: Jilemnice 26.10.22 | H154: 537.4770283
B155: KUŽELOVÁ | C155: Apoléna | D155: 8.A | E155: 00:05:20.580 | G155: Jilemnice 24.10.22 | H155: 398.8721691 | J155: 00:04:34.300 | K155: 00:04:22
B156: MORÁVKOVÁ | C156: Lucie | D156: 8.A | E156: 00:05:23.120 | G156: Jilemnice 24.10.22 | H156: 394.7147808 | J156: 00:04:49.900 | K156: 00:04:54
B157: SKLENÁROVÁ | C157: Eliška | D157: 8.A | H157: 0
B158: ŠEJNOVÁ | C158: Karolína | D158: 8.A | E158: 00:04:18.450 | G158: Jilemnice 26.10.22 | H158: 526.0102146 | J158: 00:05:05.610
B159: ŠTOLFOVÁ | C159: Tereza | D159: 8.A | E159: 00:04:09.420 | G159: Jilemnice 26.10.22 | H159: 549.760404
B160: ŠUBÍKOVÁ | C160: Klára | D160: 8.A | E160: 00:03:49.090 | G160: Jilemnice 26.10.22 | H160: 610.0839843 | J160: 00:04:05.760
B161: ŠULKOVSKÁ | C161: Klára | D161: 8.A | H161: 0
B162: TULÁČKOVÁ | C162: Natálie | D162: 8.A | E162: 00:04:09.440 | G162: Jilemnice 24.10.22 | H162: 549.7059011 | J162: 00:04:18.400 | K162: 00:04:48
B163: VOJTÍŠKOVÁ | C163: Ella | D163: 8.A | E163: 00:03:13.570 | G163: Turnov 16.05.23 | H163: 745.8890321 | J163: 00:04:44.200
B164: DRUGÁČOVÁ | C164: Kristinka | D164: 8.B | H164: 0
B165: FAJSTAVROVÁ | C165: Karolína | D165: 8.B | E165: 00:02:52.300 | G165: Turnov 13.09.22 | H165: 854.0153218 | J165: 00:03:22.300 | K165: 00:03:11
B166: FAJSTAVROVÁ | C166: Magdaléna | D166: 8.B | E166: 00:02:42.390 | G166: Turnov 16.05.23 | H166: 914.0657673 | J166: 00:03:07.700 | K166: 00:03:02
B167: JINDROVÁ | C167: Barbora | D167: 8.B | E167: 00:03:50.710 | G167: Jilemnice 24.10.22 | H167: 604.8872609 | J167: 00:04:03.100 | K167: 00:04:04
B168: MAŘASOVÁ | C168: Vendula | D168: 8.B | E168: 00:04:18.350 | G168: Jilemnice 24.10.22 | H168: 526.2641377 | J168: 00:03:51.100 | K168: 00:04:11
B169: PETŘÍČKOVÁ | C169: Natálie | D169: 8.B | E169: 00:03:48.670 | G169: Jilemnice 24.10.22 | H169: 611.4433024 | J169: 00:03:45.600
B170: PETŘÍKOVÁ | C170: Adéla | D170: 8.B | E170: 00:03:44.270 | G170: Jilemnice 26.10.22 | H170: 625.9898335
B171: REGÁLOVÁ | C171: Karolína | D171: 8.B | E171: 00:04:28.350 | G171: Jilemnice 24.10.22 | H171: 501.8086081 | J171: 00:04:46.600 | K171: 00:04:17
B172: RIEGROVÁ | C172: Magdaléna | D172: 8.B | E172: 00:04:10.160 | G172: Jilemnice 26.10.22 | H172: 547.7496001
B173: RYBENSKÁ | C173: Sabina | D173: 8.B | E173: 00:03:53.190 | G173: Jilemnice 24.10.22 | H173: 597.0716581 | J173: 00:04:13.300 | K173: 00:04:17
B174: STEINEROVÁ | C174: Barbora | D174: 8.B | E174: 00:03:54.370 | G174: Jilemnice 24.10.22 | H174: 593.4110166 | J174: 00:04:01.500 | K174: 00:04:18
B175: ŠERCLOVÁ | C175: Andrea | D175: 8.B | H175: =IF(E175=0,0,IF(E175>0,(100 - 313216 / E175 + 3453830 / E175*2 - 169860000 / E175*3 + 321980000/ E175*4)/400000000-130)) -> 0
B176: TOMEŠOVÁ | C176: Barbora | D176: 8.B | E176: 00:03:54.090 | G176: Jilemnice 24.10.22 | H176: 594.2763038 | J176: 00:03:45.400 | K176: 00:04:20
B177: VOHNOUTOVÁ | C177: Aneta | D177: 8.B | E177: 00:03:21.500 | G177: Turnov 16.05.23 | H177: 711.4185606 | J177: 00:03:36.100 | K177: 00:03:36
B178: HAVLÍKOVÁ | C178: Michaela | D178: 9.A | H178: 0 | J178: 00:03:55.850 | L178: 00:04:12.990
B179: HOLUBCOVÁ | C179: Sára | D179: 9.A | H179: 0 | J179: 00:03:45.200 | L179: 00:03:44.190
B180: HONCŮ | C180: Tereza | D180: 9.A | H180: 0 | L180: 00:04:00.600
B181: HORÁČKOVÁ | C181: Kateřina | D181: 9.A | E181: 00:03:27.700 | G181: Turnov 11.05.23 | H181: 686.3015886 | J181: 00:03:33.880 | L181: 00:03:39.880
B182: JOUDALOVÁ | C182: Daniela | D182: 9.A | H182: 0
B183: KLÍMOVÁ | C183: Anna | D183: 9.A | H183: 0 | J183: 00:03:51.570 | L183: 00:03:43.750
B184: KOHOUTOVÁ | C184: Veronika | D184: 9.A | E184: 00:03:55.960 | G184: Jilemnice 21.06.23 | H184: 588.5363619 | J184: 00:03:45.400 | L184: 00:03:21.790
B185: KOVÁŘOVÁ | C185: Viktorie | D185: 9.A | H185: 0 | J185: 00:03:21.100 | L185: 00:03:46.100
B186: KYNČLOVÁ | C186: Anna | D186: 9.A | E186: 00:02:31.600 | G186: Turnov 11.05.23 | H186: 988.3762529 | J186: 00:02:39 | L186: 00:03:11.460
B187: MATOUŠOVÁ | C187: Tereza | D187: 9.A | H187: 0 | J187: 00:04:23.190 | L187: 00:04:28.960
B188: MAZÁNKOVÁ | C188: Zuzana | D188: 9.A | H188: 0 | J188: 00:03:41.410 | L188: 00:04:00.600
B189: MORKESOVÁ | C189: Sabrina | D189: 9.A | E189: 00:03:24.100 | G189: Turnov 13.09.22 | H189: 700.6998528 | J189: 00:03:39.565 | L189: 00:03:22.340
B190: POHOŘALÁ | C190: Alžběta | D190: 9.A | H190: 0 | J190: 00:03:32.800 | L190: 00:04:00.600
B191: SCHOLZOVÁ | C191: Laura | D191: 9.A | H191: 0 | L191: 00:04:18.780
B192: VÁCLAVÍKOVÁ | C192: Valerie | D192: 9.A | E192: 00:03:30 | G192: Turnov 13.09.22 | H192: 677.3611427 | J192: 00:03:29.010 | L192: 00:03:49.500
B193: ZAPADLOVÁ | C193: Emma | D193: 9.A | E193: 00:03:23.400 | G193: Turnov 13.09.22 | H193: 703.5587018 | L193: 00:03:24.360
B194: ŽIŠKOVÁ | C194: Mia | D194: 9.A | H194: 0 | L194: 00:04:11.900
B195: FARSKÁ | C195: Tereza | D195: 9.B | H195: 0
B196: FEIXOVÁ | C196: Rozálie | D196: 9.B | H196: 0 | J196: 00:05:19.700
B197: FIŠEROVÁ | C197: Michaela | D197: 9.B | H197: 0 | J197: 00:04:32.900
B198: HAVLÍČKOVÁ | C198: Kristýna | D198: 9.B | H198: 0 | J198: 00:05:08.700
B199: KADAVÁ | C199: Nikola | D199: 9.B | H199: 0 | J199: 00:05:15.500
B200: KŘIVINKOVÁ | C200: Alžběta | D200: 9.B | H200: 0 | J200: 00:04:34.100
B201: LEŠÁKOVÁ | C201: Lenka | D201: 9.B | H201: 0 | J201: 00:04:43.300
B202: NYKLÍČKOVÁ | C202: Adéla | D202: 9.B | H202: 0 | J202: 00:03:11.700
B203: PLŮCHOVÁ | C203: Petra | D203: 9.B | H203: 0 | J203: 00:04:01.700
B204: PODZIMKOVÁ | C204: Eliška | D204: 9.B | H204: 0 | J204: 00:04:50.900
B205: RUTKAYOVÁ | C205: Klára | D205: 9.B | H205: 0 | J205: 00:04:48.100
B206: SEIDLOVÁ | C206: Zuzana | D206: 9.B | H206: 0 | J206: 00:04:29
B207: TOMÁŠOVÁ | C207: Sára | D207: 9.B | H207: 0
B208: VANCLOVÁ | C208: Barbora | D208: 9.B | H208: 0 | J208: 00:04:29.100
B209: VOTOČKOVÁ | C209: Veronika | D209: 9.B | H209: 0 | J209: 00:05:08.500

Sheet Ddál
B1: VÝKONY 2022 - 2023 | G1: DÁLKA | K1: stav k | L1: =TODAY() -> 2023-06-26
H2: BODY | J2: 21 - 22 | K2: 20 - 21 | L2: 19 - 20
A3: 1. | B3: =B111 -> FARSKÁ | C3: =C111 -> Anna | D3: 6.A | E3: 348 | G3: =G111 -> Jilemnice 16.06.23 | H3: 735.597 | J3: 0 | K3: 0 | L3: 0
A4: 2. | B4: =B112 -> FARSKÁ | C4: Eliška | D4: 6.A | E4: 382 | G4: =G112 -> Jilemnice 16.06.23 | H4: =H112 -> 794.723 | J4: =J112 -> 0 | K4: 0 | L4: 0
A5: 3. | B5: =B113 -> FEDORKOVÁ | C5: Denisa | D5: 6.A | E5: 250 | G5: Jilemnice 11.05.23 | H5: =H113 -> 565.175 | J5: =J113 -> 0 | K5: 0 | L5: 0
A6: 4. | B6: =B114 -> HAUZEROVÁ | C6: Tereza | D6: 6.A | E6: 334 | G6: Jilemnice 05.06.23 | H6: =H114 -> 711.251 | J6: =J114 -> 0 | K6: 0 | L6: 0
A7: 5. | B7: =B115 -> JOSKOVÁ | C7: Ellen | D7: 6.A | E7: 282 | G7: Jilemnice 11.05.23 | H7: =H115 -> 620.823 | J7: =J115 -> 0 | K7: 0 | L7: 0
A8: 6. | B8: =B116 -> KUŽELOVÁ | C8: Amálie | D8: 6.A | E8: 199 | G8: Jilemnice 11.05.23 | H8: =H116 -> 476.486 | J8: =J116 -> 0 | K8: 0 | L8: 0
A9: 7. | B9: =B117 -> RYŠAVÁ | C9: Amálie | D9: 6.A | E9: 282 | G9: Jilemnice 16.06.23 | H9: =H117 -> 620.823 | J9: =J117 -> 0 | K9: 0 | L9: 0
A10: 8. | B10: =B118 -> BANGOVÁ | C10: Zuzana | D10: 6.B | E10: 252 | G10: Jilemnice 11.05.23 | H10: =H118 -> 568.653 | J10: =J118 -> 0 | K10: 0 | L10: 0
A11: 9. | B11: =B119 -> HOLUBOVÁ | C11: Denisa | D11: 6.B | E11: 249 | G11: Jilemnice 11.05.23 | H11: =H119 -> 563.436 | J11: =J119 -> 0 | K11: 0 | L11: 0
A12: 10. | B12: =B120 -> HURKALO | C12: Karolina | D12: 6.B | E12: 0 | G12: 0 | H12: =H120 -> 0 | J12: =J120 -> 0 | K12: 0 | L12: 0
A13: 11. | B13: =B121 -> HUTNIK-MAMONOVA | C13: Nana | D13: 6.B | E13: 0 | G13: 0 | H13: =H121 -> 0 | J13: =J121 -> 0 | K13: 0 | L13: 0
A14: 12. | B14: =B122 -> MARINOVA | C14: Darja | D14: 6.B | E14: 0 | G14: 0 | H14: =H122 -> 0 | J14: =J122 -> 0 | K14: 0 | L14: 0
A15: 13. | B15: =B123 -> NYKLÍČKOVÁ | C15: Klára | D15: 6.B | E15: 252 | G15: Jilemnice 11.05.23 | H15: =H123 -> 568.653 | J15: =J123 -> 0 | K15: 0 | L15: 0
A16: 14. | B16: =B124 -> PANCHAYEVA | C16: Sofiia | D16: 6.B | E16: 0 | G16: 0 | H16: =H124 -> 0 | J16: =J124 -> 0 | K16: 0 | L16: 0
A17: 15. | B17: =B125 -> PIČMANOVÁ | C17: Klára | D17: 6.B | E17: 250 | G17: Jilemnice 11.05.23 | H17: =H125 -> 565.175 | J17: =J125 -> 0 | K17: 0 | L17: 0
A18: 16. | B18: =B126 -> ŠIMŮNKOVÁ | C18: Anežka | D18: 6.B | E18: 291 | G18: Jilemnice 11.05.23 | H18: =H126 -> 636.474 | J18: =J126 -> 0 | K18: 0 | L18: 0
A19: 17. | B19: =B127 -> TRPIŠOVSKÁ | C19: Nela | D19: 6.B | E19: 292 | G19: Jilemnice 11.05.23 | H19: =H127 -> 638.213 | J19: =J127 -> 0 | K19: 0 | L19: 0
A20: 18. | B20: =B128 -> HEJRALOVÁ | C20: Natálie | D20: 7.A | E20: 340 | G20: Jilemnice 29.05.23 | H20: =H128 -> 721.685 | J20: =J128 -> 344 | K20: 0 | L20: 0
A21: 19. | B21: =B129 -> KERLE | C21: Nikita | D21: 7.A | E21: 399 | G21: Turnov 16.05.23 | H21: =H129 -> 824.286 | J21: =J129 -> 377 | K21: 0 | L21: 0
A22: 20. | B22: =B130 -> MUNZAROVÁ | C22: Aneta | D22: 7.A | E22: 0 | G22: 0 | H22: =H130 -> 0 | J22: =J130 -> 0 | K22: 0 | L22: 0
A23: 21. | B23: =B131 -> PACLÍKOVÁ | C23: Markéta | D23: 7.A | E23: 355 | G23: Jilemnice 29.05.23 | H23: =H131 -> 747.77 | J23: =J131 -> 335 | K23: 0 | L23: 0
A24: 22. | B24: =B132 -> PLŮCHOVÁ | C24: Michaela | D24: 7.A | E24: 368 | G24: Jilemnice 29.05.23 | H24: =H132 -> 770.377 | J24: =J132 -> 318 | K24: 0 | L24: 0
A25: 23. | B25: =B133 -> ŠERCLOVÁ | C25: Nikola | D25: 7.A | E25: 0 | G25: 0 | H25: =H133 -> 0 | J25: =J133 -> 273 | K25: 0 | L25: 0
A26: 24. | B26: =B134 -> VÁCLAVÍKOVÁ | C26: Alena | D26: 7.A | E26: 311 | G26: Jilemnice 29.05.23 | H26: =H134 -> 671.254 | J26: =J134 -> 309 | K26: 0 | L26: 0
A27: 25. | B27: =B135 -> DUCHÁČKOVÁ | C27: Tereza | D27: 7.B | E27: 0 | G27: 0 | H27: =H135 -> 0 | J27: =J135 -> 296 | K27: 0 | L27: 0
A28: 26. | B28: =B136 -> FLAŠKOVÁ | C28: Anna Sabriel | D28: 7.B | E28: 315 | G28: Jilemnice 29.05.23 | H28: =H136 -> 678.21 | J28: =J136 -> 306 | K28: 0 | L28: 0
A29: 27. | B29: =B137 -> HAASOVÁ | C29: Julie | D29: 7.B | E29: 352 | G29: Turnov 13.09.22 | H29: =H137 -> 742.553 | J29: =J137 -> 365 | K29: 0 | L29: 0
A30: 28. | B30: =B138 -> HEGROVÁ | C30: Štěpánka | D30: 7.B | E30: 304 | G30: Jilemnice 29.05.23 | H30: =H138 -> 659.081 | J30: =J138 -> 0 | K30: 0 | L30: 0
A31: 29. | B31: =B139 -> HOBLOVÁ | C31: Barbora | D31: 7.B | E31: 300 | G31: Jilemnice 29.05.23 | H31: =H139 -> 652.125 | J31: =J139 -> 281 | K31: 0 | L31: 0
A32: 30. | B32: =B140 -> HORÁČKOVÁ | C32: Valérie | D32: 7.B | E32: 359 | G32: Jilemnice 29.05.23 | H32: =H140 -> 754.726 | J32: =J140 -> 307 | K32: 0 | L32: 0
A33: 31. | B33: =B141 -> JIRANOVÁ | C33: Anežka | D33: 7.B | E33: 0 | G33: 0 | H33: =H141 -> 0 | J33: =J141 -> 253 | K33: 0 | L33: 0
A34: 32. | B34: =B142 -> KRČÍKOVÁ | C34: Beatrix | D34: 7.B | E34: 381 | G34: Jilemnice 29.05.23 | H34: =H142 -> 792.984 | J34: =J142 -> 349 | K34: 0 | L34: 0
A35: 33. | B35: =B143 -> KUBÁTOVÁ | C35: Veronika | D35: 7.B | E35: 0 | G35: 0 | H35: =H143 -> 0 | J35: =J143 -> 220 | K35: 0 | L35: 0
A36: 34. | B36: =B144 -> LENČEŠOVÁ | C36: Silvie | D36: 7.B | E36: 300 | G36: Jilemnice 29.05.23 | H36: =H144 -> 652.125 | J36: =J144 -> 281 | K36: 0 | L36: 0
A37: 35. | B37: =B145 -> LUKEŠOVÁ | C37: Lucie | D37: 7.B | E37: 281 | G37: Jilemnice 29.05.23 | H37: =H145 -> 619.084 | J37: =J145 -> 0 | K37: 0 | L37: 0
A38: 36. | B38: =B146 -> MATERNOVÁ | C38: Lenka | D38: 7.B | E38: 0 | G38: 0 | H38: =H146 -> 0 | J38: =J146 -> 286 | K38: 0 | L38: 0
A39: 37. | B39: =B147 -> TÓTHOVÁ | C39: Viktorie | D39: 7.B | E39: 0 | G39: 0 | H39: =H147 -> 0 | J39: =J147 -> 310 | K39: 0 | L39: 0
A40: 38. | B40: =B148 -> DUONG | C40: Ngoc Linh | D40: 8.A | E40: 361 | G40: Jilemnice 29.05.23 | H40: =H148 -> 758.204 | J40: =J148 -> 270 | K40: 253 | L40: 0
A41: 39. | B41: =B149 -> GINGALOVÁ | C41: Linda | D41: 8.A | E41: 362 | G41: Jilemnice 29.05.23 | H41: =H149 -> 759.943 | J41: =J149 -> 347 | K41: 0 | L41: 0
A42: 40. | B42: =B150 -> HOFMANOVÁ | C42: Nicol | D42: 8.A | E42: 0 | G42: 0 | H42: =H150 -> 0 | J42: =J150 -> 280 | K42: 297 | L42: 0
A43: 41. | B43: =B151 -> HOLEŠOVSKÁ | C43: Aneta | D43: 8.A | E43: 0 | G43: 0 | H43: =H151 -> 0 | J43: =J151 -> 316 | K43: 283 | L43: 0
A44: 42. | B44: =B152 -> HOLUBCOVÁ | C44: Alena | D44: 8.A | E44: 365 | G44: Jilemnice 29.05.23 | H44: =H152 -> 765.16 | J44: =J152 -> 315 | K44: 290 | L44: 0
A45: 43. | B45: =B153 -> KOHOUTOVÁ | C45: Anna | D45: 8.A | E45: 0 | G45: 0 | H45: =H153 -> 0 | J45: =J153 -> 258 | K45: 227 | L45: 0
A46: 44. | B46: =B154 -> KRAUSOVÁ | C46: Anežka | D46: 8.A | E46: 0 | G46: 0 | H46: =H154 -> 0 | J46: =J154 -> 338 | K46: 0 | L46: 0
A47: 45. | B47: =B155 -> KUŽELOVÁ | C47: Apoléna | D47: 8.A | E47: 0 | G47: 0 | H47: =H155 -> 0 | J47: =J155 -> 305 | K47: 274 | L47: 0
A48: 46. | B48: =B156 -> MORÁVKOVÁ | C48: Lucie | D48: 8.A | E48: 0 | G48: 0 | H48: =H156 -> 0 | J48: =J156 -> 0 | K48: 220 | L48: 0
A49: 47. | B49: =B157 -> SKLENÁROVÁ | C49: Eliška | D49: 8.A | E49: 0 | G49: 0 | H49: =H157 -> 0 | J49: =J157 -> 269 | K49: 0 | L49: 0
A50: 48. | B50: =B158 -> ŠEJNOVÁ | C50: Karolína | D50: 8.A | E50: 0 | G50: 0 | H50: =H158 -> 0 | J50: =J158 -> 300 | K50: 0 | L50: 0
A51: 49. | B51: =B159 -> ŠTOLFOVÁ | C51: Tereza | D51: 8.A | E51: 0 | G51: 0 | H51: =H159 -> 0 | J51: =J159 -> 310 | K51: 0 | L51: 0
A52: 50. | B52: =B160 -> ŠUBÍKOVÁ | C52: Klára | D52: 8.A | E52: 367 | G52: Jilemnice 05.06.23 | H52: =H160 -> 768.638 | J52: =J160 -> 333 | K52: 310 | L52: 0
A53: 51. | B53: =B161 -> ŠULKOVSKÁ | C53: Klára | D53: 8.A | E53: 0 | G53: 0 | H53: =H161 -> 0 | J53: =J161 -> 298 | K53: 0 | L53: 0
A54: 52. | B54: =B162 -> TULÁČKOVÁ | C54: Natálie | D54: 8.A | E54: 380 | G54: Jilemnice 05.09.22 | H54: =H162 -> 791.245 | J54: =J162 -> 312 | K54: 257 | L54: 0
A55: 53. | B55: =B163 -> VOJTÍŠKOVÁ | C55: Ella | D55: 8.A | E55: 362 | G55: Jilemnice 29.05.23 | H55: =H163 -> 759.943 | J55: =J163 -> 376 | K55: 304 | L55: 0
A56: 54. | B56: =B164 -> DRUGÁČOVÁ | C56: Kristinka | D56: 8.B | E56: 0 | G56: 0 | H56: =H164 -> 0 | J56: =J164 -> 355 | K56: 307 | L56: 0
A57: 55. | B57: =B165 -> FAJSTAVROVÁ | C57: Karolína | D57: 8.B | E57: 373 | G57: Turnov 13.09.22 | H57: =H165 -> 779.072 | J57: =J165 -> 327 | K57: 290 | L57: 0
A58: 56. | B58: =B166 -> FAJSTAVROVÁ | C58: Magdaléna | D58: 8.B | E58: 345 | G58: Jilemnice 29.05.23 | H58: =H166 -> 730.38 | J58: =J166 -> 321 | K58: 0 | L58: 0
A59: 57. | B59: =B167 -> JINDROVÁ | C59: Barbora | D59: 8.B | E59: 351 | G59: 0 | H59: =H167 -> 740.814 | J59: =J167 -> 319 | K59: 295 | L59: 0
A60: 58. | B60: =B168 -> MAŘASOVÁ | C60: Vendula | D60: 8.B | E60: 282 | G60: Jilemnice 05.09.22 | H60: =H168 -> 620.823 | J60: =J168 -> 310 | K60: 240 | L60: 0
A61: 59. | B61: =B169 -> PETŘÍČKOVÁ | C61: Natálie | D61: 8.B | E61: 390 | G61: Turnov 16.05.23 | H61: =H169 -> 808.635 | J61: =J169 -> 387 | K61: 313 | L61: 0
A62: 60. | B62: =B170 -> PETŘÍKOVÁ | C62: Adéla | D62: 8.B | E62: 0 | G62: 0 | H62: =H170 -> 0 | J62: =J170 -> 274 | K62: 192 | L62: 0
A63: 61. | B63: =B171 -> REGÁLOVÁ | C63: Karolína | D63: 8.B | E63: 0 | G63: 0 | H63: =H171 -> 0 | J63: =J171 -> 310 | K63: 291 | L63: 0
A64: 62. | B64: =B172 -> RIEGROVÁ | C64: Magdaléna | D64: 8.B | E64: 0 | G64: 0 | H64: =H172 -> 0 | J64: =J172 -> 287 | K64: 0 | L64: 0
A65: 63. | B65: =B173 -> RYBENSKÁ | C65: Sabina | D65: 8.B | E65: 0 | G65: 0 | H65: =H173 -> 0 | J65: =J173 -> 0 | K65: 260 | L65: 0
A66: 64. | B66: =B174 -> STEINEROVÁ | C66: Barbora | D66: 8.B | E66: 412 | G66: Jilemnice 29.05.23 | H66: =H174 -> 846.893 | J66: =J174 -> 374 | K66: 288 | L66: 0
A67: 65. | B67: =B175 -> ŠERCLOVÁ | C67: Andrea | D67: 8.B | E67: 0 | G67: 0 | H67: =H175 -> 0 | J67: =J175 -> 0 | K67: 0 | L67: 0
A68: 66. | B68: =B176 -> TOMEŠOVÁ | C68: Barbora | D68: 8.B | E68: 377 | G68: =G176 -> Jilemnice 29.05.23 | H68: =H176 -> 786.028 | J68: =J176 -> 0 | K68: 218 | L68: 0
A69: 67. | B69: =B177 -> VOHNOUTOVÁ | C69: Aneta | D69: 8.B | E69: 392 | G69: Jilemnice 12.06.23 | H69: =H177 -> 812.113 | J69: =J177 -> 365 | K69: 0 | L69: 0
A70: 68. | B70: =B178 -> HAVLÍKOVÁ | C70: Michaela | D70: 9.A | E70: 325 | G70: Jilemnice 05.05.23 | H70: =H178 -> 695.6 | J70: =J178 -> 320 | K70: 290 | L70: 237
A71: 69. | B71: =B179 -> HOLUBCOVÁ | C71: Sára | D71: 9.A | E71: 0 | G71: 0 | H71: =H179 -> 0 | J71: =J179 -> 365 | K71: 361 | L71: 327
A72: 70. | B72: =B180 -> HONCŮ | C72: Tereza | D72: 9.A | E72: 0 | G72: 0 | H72: =H180 -> 0 | J72: =J180 -> 335 | K72: 341 | L72: 280
A73: 71. | B73: =B181 -> HORÁČKOVÁ | C73: Kateřina | D73: 9.A | E73: 385 | G73: Jilemnice 05.05.23 | H73: =H181 -> 799.94 | J73: =J181 -> 0 | K73: 359 | L73: 293
A74: 72. | B74: =B182 -> JOUDALOVÁ | C74: Daniela | D74: 9.A | E74: 0 | G74: 0 | H74: =H182 -> 0 | J74: =J182 -> 0 | K74: 0 | L74: 0
A75: 73. | B75: =B183 -> KLÍMOVÁ | C75: Anna | D75: 9.A | E75: 320 | G75: Jilemnice 05.05.23 | H75: =H183 -> 686.905 | J75: =J183 -> 320 | K75: 0 | L75: 277
A76: 74. | B76: =B184 -> KOHOUTOVÁ | C76: Veronika | D76: 9.A | E76: 351 | G76: Jilemnice 05.05.23 | H76: =H184 -> 740.814 | J76: =J184 -> 362 | K76: 374 | L76: 323
A77: 75. | B77: =B185 -> KOVÁŘOVÁ | C77: Viktorie | D77: 9.A | E77: 0 | G77: 0 | H77: =H185 -> 0 | J77: =J185 -> 365 | K77: 340 | L77: 279
A78: 76. | B78: =B186 -> KYNČLOVÁ | C78: Anna | D78: 9.A | E78: 377 | G78: Jilemnice 12.06.23 | H78: =H186 -> 786.028 | J78: =J186 -> 366 | K78: 366 | L78: 292
A79: 77. | B79: =B187 -> MATOUŠOVÁ | C79: Tereza | D79: 9.A | E79: 0 | G79: 0 | H79: =H187 -> 0 | J79: =J187 -> 330 | K79: 350 | L79: 260
A80: 78. | B80: =B188 -> MAZÁNKOVÁ | C80: Zuzana | D80: 9.A | E80: 0 | G80: 0 | H80: =H188 -> 0 | J80: =J188 -> 305 | K80: 312 | L80: 241
A81: 79. | B81: =B189 -> MORKESOVÁ | C81: Sabrina | D81: 9.A | E81: 401 | G81: Jilemnice 05.05.23 | H81: =H189 -> 827.764 | J81: =J189 -> 380 | K81: 366 | L81: 350
A82: 80. | B82: =B190 -> POHOŘALÁ | C82: Alžběta | D82: 9.A | E82: 320 | G82: Jilemnice 05.05.23 | H82: =H190 -> 686.905 | J82: =J190 -> 367 | K82: 347 | L82: 323
A83: 81. | B83: =B191 -> SCHOLZOVÁ | C83: Laura | D83: 9.A | E83: 0 | G83: 0 | H83: =H191 -> 0 | J83: =J191 -> 0 | K83: 0 | L83: 225
A84: 82. | B84: =B192 -> VÁCLAVÍKOVÁ | C84: Valerie | D84: 9.A | E84: 352 | G84: Jilemnice 05.05.23 | H84: =H192 -> 742.553 | J84: =J192 -> 352 | K84: 352 | L84: 310
A85: 83. | B85: =B193 -> ZAPADLOVÁ | C85: Emma | D85: 9.A | E85: 0 | G85: 0 | H85: =H193 -> 0 | J85: =J193 -> 340 | K85: 344 | L85: 0
A86: 84. | B86: =B194 -> ŽIŠKOVÁ | C86: Mia | D86: 9.A | E86: 0 | G86: 0 | H86: =H194 -> 0 | J86: =J194 -> 0 | K86: 342 | L86: 0
A87: 85. | B87: =B195 -> FARSKÁ | C87: Tereza | D87: 9.B | E87: 0 | G87: 0 | H87: =H195 -> 0 | J87: =J195 -> 230 | K87: 0 | L87: 0
A88: 86. | B88: =B196 -> FEIXOVÁ | C88: Rozálie | D88: 9.B | E88: 0 | G88: 0 | H88: =H196 -> 0 | J88: =J196 -> 0 | K88: 250 | L88: 0
A89: 87. | B89: =B197 -> FIŠEROVÁ | C89: Michaela | D89: 9.B | E89: 0 | G89: 0 | H89: =H197 -> 0 | J89: =J197 -> 0 | K89: 243 | L89: 0
A90: 88. | B90: =B198 -> HAVLÍČKOVÁ | C90: Kristýna | D90: 9.B | E90: 0 | G90: 0 | H90: =H198 -> 0 | J90: =J198 -> 0 | K90: 235 | L90: 0
A91: 89. | B91: =B199 -> KADAVÁ | C91: Nikola | D91: 9.B | E91: 0 | G91: 0 | H91: =H199 -> 0 | J91: =J199 -> 275 | K91: 0 | L91: 0
A92: 90. | B92: =B200 -> KŘIVINKOVÁ | C92: Alžběta | D92: 9.B | E92: 0 | G92: 0 | H92: =H200 -> 0 | J92: =J200 -> 328 | K92: 285 | L92: 0
A93: 91. | B93: =B201 -> LEŠÁKOVÁ | C93: Lenka | D93: 9.B | E93: 0 | G93: 0 | H93: =H201 -> 0 | J93: =J201 -> 296 | K93: 0 | L93: 0
A94: 92. | B94: =B202 -> NYKLÍČKOVÁ | C94: Adéla | D94: 9.B | E94: 0 | G94: 0 | H94: =H202 -> 0 | J94: =J202 -> 360 | K94: 325 | L94: 0
A95: 93. | B95: =B203 -> PLŮCHOVÁ | C95: Petra | D95: 9.B | E95: 0 | G95: 0 | H95: =H203 -> 0 | J95: =J203 -> 289 | K95: 225 | L95: 0
A96: 94. | B96: =B204 -> PODZIMKOVÁ | C96: Eliška | D96: 9.B | E96: 0 | G96: 0 | H96: =H204 -> 0 | J96: =J204 -> 298 | K96: 190 | L96: 0
A97: 95. | B97: =B205 -> RUTKAYOVÁ | C97: Klára | D97: 9.B | E97: 0 | G97: 0 | H97: =H205 -> 0 | J97: =J205 -> 278 | K97: 0 | L97: 0
A98: 96. | B98: =B206 -> SEIDLOVÁ | C98: Zuzana | D98: 9.B | E98: 0 | G98: 0 | H98: =H206 -> 0 | J98: =J206 -> 340 | K98: 284 | L98: 0
A99: 97. | B99: =B207 -> TOMÁŠOVÁ | C99: Sára | D99: 9.B | E99: 0 | G99: 0 | H99: =H207 -> 0 | J99: =J207 -> 291 | K99: 197 | L99: 0
A100: 98. | B100: =B208 -> VANCLOVÁ | C100: Barbora | D100: 9.B | E100: 0 | G100: 0 | H100: =H208 -> 0 | J100: =J208 -> 0 | K100: 278 | L100: 0
A101: 99. | B101: =B209 -> VOTOČKOVÁ | C101: Veronika | D101: 9.B | E101: 0 | G101: 0 | H101: =H209 -> 0 | J101: =J209 -> 284 | K101: 255 | L101: 0
B111: FARSKÁ | C111: Anna | D111: 6.A | E111: 348 | G111: Jilemnice 16.06.23 | H111: =IF(E111=0,0,IF(E111>0,(E111+75)*1.739)) -> 735.597
B112: FARSKÁ | C112: Eliška | D112: 6.A | E112: 382 | G112: Jilemnice 16.06.23 | H112: 794.723
B113: FEDORKOVÁ | C113: Denisa | D113: 6.A | E113: 250 | G113: Jilemnice 11.05.23 | H113: 565.175
B114: HAUZEROVÁ | C114: Tereza | D114: 6.A | E114: 334 | G114: Jilemnice 05.06.23 | H114: 711.251
B115: JOSKOVÁ | C115: Ellen | D115: 6.A | E115: 282 | G115: Jilemnice 11.05.23 | H115: 620.823
B116: KUŽELOVÁ | C116: Amálie | D116: 6.A | E116: 199 | G116: Jilemnice 11.05.23 | H116: 476.486
B117: RYŠAVÁ | C117: Amálie | D117: 6.A | E117: 282 | G117: Jilemnice 16.06.23 | H117: 620.823
B118: BANGOVÁ | C118: Zuzana | D118: 6.B | E118: 252 | G118: Jilemnice 11.05.23 | H118: 568.653
B119: HOLUBOVÁ | C119: Denisa | D119: 6.B | E119: 249 | G119: Jilemnice 11.05.23 | H119: 563.436
B120: HURKALO | C120: Karolina | D120: 6.B | H120: 0
B121: HUTNIK-MAMONOVA | C121: Nana | D121: 6.B | H121: 0
B122: MARINOVA | C122: Darja | D122: 6.B | H122: 0
B123: NYKLÍČKOVÁ | C123: Klára | D123: 6.B | E123: 252 | G123: Jilemnice 11.05.23 | H123: 568.653
B124: PANCHAYEVA | C124: Sofiia | D124: 6.B | H124: 0
B125: PIČMANOVÁ | C125: Klára | D125: 6.B | E125: 250 | G125: Jilemnice 11.05.23 | H125: 565.175
B126: ŠIMŮNKOVÁ | C126: Anežka | D126: 6.B | E126: 291 | G126: Jilemnice 11.05.23 | H126: 636.474
B127: TRPIŠOVSKÁ | C127: Nela | D127: 6.B | E127: 292 | G127: Jilemnice 11.05.23 | H127: 638.213
B128: HEJRALOVÁ | C128: Natálie | D128: 7.A | E128: 340 | G128: Jilemnice 29.05.23 | H128: 721.685 | J128: 344
B129: KERLE | C129: Nikita | D129: 7.A | E129: 399 | G129: Turnov 16.05.23 | H129: 824.286 | J129: 377
B130: MUNZAROVÁ | C130: Aneta | D130: 7.A | H130: 0
B131: PACLÍKOVÁ | C131: Markéta | D131: 7.A | E131: 355 | G131: Jilemnice 29.05.23 | H131: 747.77 | J131: 335
B132: PLŮCHOVÁ | C132: Michaela | D132: 7.A | E132: 368 | G132: Jilemnice 29.05.23 | H132: 770.377 | J132: 318
B133: ŠERCLOVÁ | C133: Nikola | D133: 7.A | H133: 0 | J133: 273
B134: VÁCLAVÍKOVÁ | C134: Alena | D134: 7.A | E134: 311 | G134: Jilemnice 29.05.23 | H134: 671.254 | J134: 309
B135: DUCHÁČKOVÁ | C135: Tereza | D135: 7.B | H135: 0 | J135: 296
B136: FLAŠKOVÁ | C136: Anna Sabriel | D136: 7.B | E136: 315 | G136: Jilemnice 29.05.23 | H136: 678.21 | J136: 306
B137: HAASOVÁ | C137: Julie | D137: 7.B | E137: 352 | G137: Turnov 13.09.22 | H137: 742.553 | J137: 365
B138: HEGROVÁ | C138: Štěpánka | D138: 7.B | E138: 304 | G138: Jilemnice 29.05.23 | H138: 659.081
B139: HOBLOVÁ | C139: Barbora | D139: 7.B | E139: 300 | G139: Jilemnice 29.05.23 | H139: 652.125 | J139: 281
B140: HORÁČKOVÁ | C140: Valérie | D140: 7.B | E140: 359 | G140: Jilemnice 29.05.23 | H140: 754.726 | J140: 307
B141: JIRANOVÁ | C141: Anežka | D141: 7.B | H141: 0 | J141: 253
B142: KRČÍKOVÁ | C142: Beatrix | D142: 7.B | E142: 381 | G142: Jilemnice 29.05.23 | H142: 792.984 | J142: 349
B143: KUBÁTOVÁ | C143: Veronika | D143: 7.B | H143: =IF(E143=0,0,IF(E143>0,(E143+75)*1.739)) -> 0 | J143: 220
B144: LENČEŠOVÁ | C144: Silvie | D144: 7.B | E144: 300 | G144: Jilemnice 29.05.23 | H144: 652.125 | J144: 281
B145: LUKEŠOVÁ | C145: Lucie | D145: 7.B | E145: 281 | G145: Jilemnice 29.05.23 | H145: 619.084
B146: MATERNOVÁ | C146: Lenka | D146: 7.B | H146: 0 | J146: 286
B147: TÓTHOVÁ | C147: Viktorie | D147: 7.B | H147: 0 | J147: 310
B148: DUONG | C148: Ngoc Linh | D148: 8.A | E148: 361 | G148: Jilemnice 29.05.23 | H148: 758.204 | J148: 270 | K148: 253
B149: GINGALOVÁ | C149: Linda | D149: 8.A | E149: 362 | G149: Jilemnice 29.05.23 | H149: 759.943 | J149: 347
B150: HOFMANOVÁ | C150: Nicol | D150: 8.A | H150: 0 | J150: 280 | K150: 297
B151: HOLEŠOVSKÁ | C151: Aneta | D151: 8.A | H151: 0 | J151: 316 | K151: 283
B152: HOLUBCOVÁ | C152: Alena | D152: 8.A | E152: 365 | G152: Jilemnice 29.05.23 | H152: 765.16 | J152: 315 | K152: 290
B153: KOHOUTOVÁ | C153: Anna | D153: 8.A | H153: 0 | J153: 258 | K153: 227
B154: KRAUSOVÁ | C154: Anežka | D154: 8.A | H154: 0 | J154: 338 | K154: =J216 -> 0
B155: KUŽELOVÁ | C155: Apoléna | D155: 8.A | H155: 0 | J155: 305 | K155: 274
B156: MORÁVKOVÁ | C156: Lucie | D156: 8.A | H156: 0 | K156: 220
B157: SKLENÁROVÁ | C157: Eliška | D157: 8.A | H157: 0 | J157: 269 | K157: =J219 -> 0
B158: ŠEJNOVÁ | C158: Karolína | D158: 8.A | H158: 0 | J158: 300
B159: ŠTOLFOVÁ | C159: Tereza | D159: 8.A | H159: 0 | J159: 310 | K159: =J220 -> 0
B160: ŠUBÍKOVÁ | C160: Klára | D160: 8.A | E160: 367 | G160: Jilemnice 05.06.23 | H160: 768.638 | J160: 333 | K160: 310
B161: ŠULKOVSKÁ | C161: Klára | D161: 8.A | H161: 0 | J161: 298
B162: TULÁČKOVÁ | C162: Natálie | D162: 8.A | E162: 380 | G162: Jilemnice 05.09.22 | H162: 791.245 | J162: 312 | K162: 257
B163: VOJTÍŠKOVÁ | C163: Ella | D163: 8.A | E163: 362 | G163: Jilemnice 29.05.23 | H163: 759.943 | J163: 376 | K163: 304
B164: DRUGÁČOVÁ | C164: Kristinka | D164: 8.B | H164: 0 | J164: 355 | K164: 307
B165: FAJSTAVROVÁ | C165: Karolína | D165: 8.B | E165: 373 | G165: Turnov 13.09.22 | H165: 779.072 | J165: 327 | K165: 290
B166: FAJSTAVROVÁ | C166: Magdaléna | D166: 8.B | E166: 345 | G166: Jilemnice 29.05.23 | H166: 730.38 | J166: 321 | K166: =J226 -> 0
B167: JINDROVÁ | C167: Barbora | D167: 8.B | E167: 351 | H167: 740.814 | J167: 319 | K167: 295
B168: MAŘASOVÁ | C168: Vendula | D168: 8.B | E168: 282 | G168: Jilemnice 05.09.22 | H168: 620.823 | J168: 310 | K168: 240
B169: PETŘÍČKOVÁ | C169: Natálie | D169: 8.B | E169: 390 | G169: Turnov 16.05.23 | H169: 808.635 | J169: 387 | K169: 313
B170: PETŘÍKOVÁ | C170: Adéla | D170: 8.B | H170: 0 | J170: 274 | K170: 192
B171: REGÁLOVÁ | C171: Karolína | D171: 8.B | H171: 0 | J171: 310 | K171: 291
B172: RIEGROVÁ | C172: Magdaléna | D172: 8.B | H172: 0 | J172: 287 | K172: =J233 -> 0
B173: RYBENSKÁ | C173: Sabina | D173: 8.B | H173: 0 | K173: 260
B174: STEINEROVÁ | C174: Barbora | D174: 8.B | E174: 412 | G174: Jilemnice 29.05.23 | H174: 846.893 | J174: 374 | K174: 288
B175: ŠERCLOVÁ | C175: Andrea | D175: 8.B
B176: TOMEŠOVÁ | C176: Barbora | D176: 8.B | E176: 377 | G176: Jilemnice 29.05.23 | H176: =IF(E176=0,0,IF(E176>0,(E176+75)*1.739)) -> 786.028 | K176: 218
B177: VOHNOUTOVÁ | C177: Aneta | D177: 8.B | E177: 392 | G177: Jilemnice 12.06.23 | H177: 812.113 | J177: 365 | K177: =J237 -> 0
B178: HAVLÍKOVÁ | C178: Michaela | D178: 9.A | E178: 325 | G178: Jilemnice 05.05.23 | H178: 695.6 | J178: 320 | K178: 290 | L178: 237
B179: HOLUBCOVÁ | C179: Sára | D179: 9.A | H179: 0 | J179: 365 | K179: 361 | L179: 327
B180: HONCŮ | C180: Tereza | D180: 9.A | H180: 0 | J180: 335 | K180: 341 | L180: 280
B181: HORÁČKOVÁ | C181: Kateřina | D181: 9.A | E181: 385 | G181: Jilemnice 05.05.23 | H181: 799.94 | K181: 359 | L181: 293
B182: JOUDALOVÁ | C182: Daniela | D182: 9.A | H182: 0 | K182: =J242 -> 0
B183: KLÍMOVÁ | C183: Anna | D183: 9.A | E183: 320 | G183: Jilemnice 05.05.23 | H183: 686.905 | J183: 320 | K183: =J243 -> 0 | L183: 277
B184: KOHOUTOVÁ | C184: Veronika | D184: 9.A | E184: 351 | G184: Jilemnice 05.05.23 | H184: 740.814 | J184: 362 | K184: 374 | L184: 323
B185: KOVÁŘOVÁ | C185: Viktorie | D185: 9.A | H185: 0 | J185: 365 | K185: 340 | L185: 279
B186: KYNČLOVÁ | C186: Anna | D186: 9.A | E186: 377 | G186: Jilemnice 12.06.23 | H186: 786.028 | J186: 366 | K186: 366 | L186: 292
B187: MATOUŠOVÁ | C187: Tereza | D187: 9.A | H187: 0 | J187: 330 | K187: 350 | L187: 260
B188: MAZÁNKOVÁ | C188: Zuzana | D188: 9.A | H188: 0 | J188: 305 | K188: 312 | L188: 241
B189: MORKESOVÁ | C189: Sabrina | D189: 9.A | E189: 401 | G189: Jilemnice 05.05.23 | H189: 827.764 | J189: 380 | K189: 366 | L189: 350
B190: POHOŘALÁ | C190: Alžběta | D190: 9.A | E190: 320 | G190: Jilemnice 05.05.23 | H190: 686.905 | J190: 367 | K190: 347 | L190: 323
B191: SCHOLZOVÁ | C191: Laura | D191: 9.A | H191: 0 | K191: =J251 -> 0 | L191: 225
B192: VÁCLAVÍKOVÁ | C192: Valerie | D192: 9.A | E192: 352 | G192: Jilemnice 05.05.23 | H192: 742.553 | J192: 352 | K192: 352 | L192: 310
B193: ZAPADLOVÁ | C193: Emma | D193: 9.A | H193: 0 | J193: 340 | K193: 344
B194: ŽIŠKOVÁ | C194: Mia | D194: 9.A | H194: 0 | K194: 342
B195: FARSKÁ | C195: Tereza | D195: 9.B | H195: 0 | J195: 230
B196: FEIXOVÁ | C196: Rozálie | D196: 9.B | H196: 0 | K196: 250
B197: FIŠEROVÁ | C197: Michaela | D197: 9.B | H197: 0 | K197: 243
B198: HAVLÍČKOVÁ | C198: Kristýna | D198: 9.B | H198: 0 | K198: 235
B199: KADAVÁ | C199: Nikola | D199: 9.B | H199: 0 | J199: 275 | K199: =J260 -> 0
B200: KŘIVINKOVÁ | C200: Alžběta | D200: 9.B | H200: 0 | J200: 328 | K200: 285
B201: LEŠÁKOVÁ | C201: Lenka | D201: 9.B | H201: 0 | J201: 296 | K201: =J263 -> 0
B202: NYKLÍČKOVÁ | C202: Adéla | D202: 9.B | H202: 0 | J202: 360 | K202: 325
B203: PLŮCHOVÁ | C203: Petra | D203: 9.B | H203: 0 | J203: 289 | K203: 225
B204: PODZIMKOVÁ | C204: Eliška | D204: 9.B | H204: 0 | J204: 298 | K204: 190
B205: RUTKAYOVÁ | C205: Klára | D205: 9.B | H205: 0 | J205: 278 | K205: =J267 -> 0
B206: SEIDLOVÁ | C206: Zuzana | D206: 9.B | H206: 0 | J206: 340 | K206: 284
B207: TOMÁŠOVÁ | C207: Sára | D207: 9.B | H207: 0 | J207: 291 | K207: 197
B208: VANCLOVÁ | C208: Barbora | D208: 9.B | H208: 0 | K208: 278
B209: VOTOČKOVÁ | C209: Veronika | D209: 9.B | H209: 0 | J209: 284 | K209: 255

Sheet Dvýš
B1: VÝKONY 2022 - 2023 | G1: VÝŠKA | K1: stav k | L1: =TODAY() -> 2023-06-26
H2: BODY | J2: 21 - 22 | K2: 20 - 21 | L2: 19 - 20
A3: 1. | B3: =B111 -> FARSKÁ | C3: =C111 -> Anna | D3: =D111 -> 6.A | E3: =E111 -> 100 | G3: =G111 -> Jilemnice 19.06.23 | H3: =H111 -> 642 | J3: =J111 -> 0 | K3: =K111 -> 0 | L3: =L111 -> 0
A4: 2. | B4: =B112 -> FARSKÁ | C4: Eliška | D4: 6.A | E4: 100 | G4: =G112 -> Jilemnice 19.06.23 | H4: 642 | J4: =J112 -> 0 | K4: 0 | L4: 0
A5: 3. | B5: =B113 -> FEDORKOVÁ | C5: Denisa | D5: 6.A | E5: 95 | G5: =G113 -> Jilemnice 19.06.23 | H5: 609.5 | J5: =J113 -> 0 | K5: 0 | L5: 0
A6: 4. | B6: =B114 -> HAUZEROVÁ | C6: Tereza | D6: 6.A | E6: 100 | G6: =G114 -> Jilemnice 19.06.23 | H6: 642 | J6: =J114 -> 0 | K6: 0 | L6: 0
A7: 5. | B7: =B115 -> JOSKOVÁ | C7: Ellen | D7: 6.A | E7: 95 | G7: =G115 -> Jilemnice 19.06.23 | H7: 609.5 | J7: =J115 -> 0 | K7: 0 | L7: 0
A8: 6. | B8: =B116 -> KUŽELOVÁ | C8: Amálie | D8: 6.A | E8: 0 | G8: =G116 -> 0 | H8: 0 | J8: =J116 -> 0 | K8: 0 | L8: 0
A9: 7. | B9: =B117 -> RYŠAVÁ | C9: Amálie | D9: 6.A | E9: 0 | G9: =G117 -> 0 | H9: 0 | J9: =J117 -> 0 | K9: 0 | L9: 0
A10: 8. | B10: =B118 -> BANGOVÁ | C10: Zuzana | D10: 6.B | E10: 95 | G10: =G118 -> Jilemnice 19.06.23 | H10: 609.5 | J10: =J118 -> 0 | K10: 0 | L10: 0
A11: 9. | B11: =B119 -> HOLUBOVÁ | C11: Denisa | D11: 6.B | E11: 100 | G11: =G119 -> Jilemnice 19.06.23 | H11: 642 | J11: =J119 -> 0 | K11: 0 | L11: 0
A12: 10. | B12: =B120 -> HURKALO | C12: Karolina | D12: 6.B | E12: 0 | G12: =G120 -> 0 | H12: 0 | J12: =J120 -> 0 | K12: 0 | L12: 0
A13: 11. | B13: =B121 -> HUTNIK-MAMONOVA | C13: Nana | D13: 6.B | E13: 0 | G13: =G121 -> 0 | H13: 0 | J13: =J121 -> 0 | K13: 0 | L13: 0
A14: 12. | B14: =B122 -> MARINOVA | C14: Darja | D14: 6.B | E14: 0 | G14: =G122 -> 0 | H14: 0 | J14: =J122 -> 0 | K14: 0 | L14: 0
A15: 13. | B15: =B123 -> NYKLÍČKOVÁ | C15: Klára | D15: 6.B | E15: 85 | G15: =G123 -> Jilemnice 19.06.23 | H15: 544.5 | J15: =J123 -> 0 | K15: 0 | L15: 0
A16: 14. | B16: =B124 -> PANCHAYEVA | C16: Sofiia | D16: 6.B | E16: 0 | G16: =G124 -> 0 | H16: 0 | J16: =J124 -> 0 | K16: 0 | L16: 0
A17: 15. | B17: =B125 -> PIČMANOVÁ | C17: Klára | D17: 6.B | E17: 0 | G17: =G125 -> 0 | H17: 0 | J17: =J125 -> 0 | K17: 0 | L17: 0
A18: 16. | B18: =B126 -> ŠIMŮNKOVÁ | C18: Anežka | D18: 6.B | E18: 100 | G18: =G126 -> Jilemnice 19.06.23 | H18: 642 | J18: =J126 -> 0 | K18: 0 | L18: 0
A19: 17. | B19: =B127 -> TRPIŠOVSKÁ | C19: Nela | D19: 6.B | E19: 100 | G19: =G127 -> Jilemnice 19.06.23 | H19: 642 | J19: =J127 -> 0 | K19: 0 | L19: 0
A20: 18. | B20: =B128 -> HEJRALOVÁ | C20: Natálie | D20: 7.A | E20: 115 | G20: =G128 -> Jilemnice 24.10.22 | H20: 739.5 | J20: =J128 -> 115 | K20: 0 | L20: 0
A21: 19. | B21: =B129 -> KERLE | C21: Nikita | D21: 7.A | E21: 105 | G21: =G129 -> Jilemnice 31.10.22 | H21: 674.5 | J21: =J129 -> 115 | K21: 0 | L21: 0
A22: 20. | B22: =B130 -> MUNZAROVÁ | C22: Aneta | D22: 7.A | E22: 0 | G22: =G130 -> 0 | H22: 0 | J22: =J130 -> 0 | K22: 0 | L22: 0
A23: 21. | B23: =B131 -> PACLÍKOVÁ | C23: Markéta | D23: 7.A | E23: 125 | G23: =G131 -> Jilemnice 05.06.23 | H23: 804.5 | J23: =J131 -> 120 | K23: 0 | L23: 0
A24: 22. | B24: =B132 -> PLŮCHOVÁ | C24: Michaela | D24: 7.A | E24: 125 | G24: =G132 -> Turnov 11.05.23 | H24: 804.5 | J24: =J132 -> 110 | K24: 0 | L24: 0
A25: 23. | B25: =B133 -> ŠERCLOVÁ | C25: Nikola | D25: 7.A | E25: 95 | G25: =G133 -> Jilemnice 31.10.22 | H25: 609.5 | J25: =J133 -> 0 | K25: 0 | L25: 0
A26: 24. | B26: =B134 -> VÁCLAVÍKOVÁ | C26: Alena | D26: 7.A | E26: 95 | G26: =G134 -> Jilemnice 31.10.22 | H26: 609.5 | J26: =J134 -> 95 | K26: 0 | L26: 0
A27: 25. | B27: =B135 -> DUCHÁČKOVÁ | C27: Tereza | D27: 7.B | E27: 90 | G27: =G135 -> Jilemnice 31.10.22 | H27: 577 | J27: =J135 -> 85 | K27: 0 | L27: 0
A28: 26. | B28: =B136 -> FLAŠKOVÁ | C28: Anna Sabriel | D28: 7.B | E28: 95 | G28: =G136 -> Jilemnice 31.10.22 | H28: 609.5 | J28: =J136 -> 105 | K28: 0 | L28: 0
A29: 27. | B29: =B137 -> HAASOVÁ | C29: Julie | D29: 7.B | E29: 0 | G29: =G137 -> 0 | H29: 0 | J29: =J137 -> 105 | K29: 0 | L29: 0
A30: 28. | B30: =B138 -> HEGROVÁ | C30: Štěpánka | D30: 7.B | E30: 0 | G30: =G138 -> 0 | H30: 0 | J30: =J138 -> 0 | K30: 0 | L30: 0
A31: 29. | B31: =B139 -> HOBLOVÁ | C31: Barbora | D31: 7.B | E31: 95 | G31: =G139 -> Jilemnice 05.06.23 | H31: 609.5 | J31: =J139 -> 95 | K31: 0 | L31: 0
A32: 30. | B32: =B140 -> HORÁČKOVÁ | C32: Valérie | D32: 7.B | E32: 105 | G32: =G140 -> Jilemnice 31.10.22 | H32: 674.5 | J32: =J140 -> 100 | K32: 0 | L32: 0
A33: 31. | B33: =B141 -> JIRANOVÁ | C33: Anežka | D33: 7.B | E33: 0 | G33: =G141 -> 0 | H33: 0 | J33: =J141 -> 80 | K33: 0 | L33: 0
A34: 32. | B34: =B142 -> KRČÍKOVÁ | C34: Beatrix | D34: 7.B | E34: 125 | G34: =G142 -> Turnov 11.05.23 | H34: 804.5 | J34: =J142 -> 110 | K34: 0 | L34: 0
A35: 33. | B35: =B143 -> KUBÁTOVÁ | C35: Veronika | D35: 7.B | E35: 0 | G35: =G143 -> 0 | H35: 0 | J35: =J143 -> 0 | K35: 0 | L35: 0
A36: 34. | B36: =B144 -> LENČEŠOVÁ | C36: Silvie | D36: 7.B | E36: 90 | G36: =G144 -> Jilemnice 31.10.22 | H36: 577 | J36: =J144 -> 85 | K36: 0 | L36: 0
A37: 35. | B37: =B145 -> LUKEŠOVÁ | C37: Lucie | D37: 7.B | E37: 0 | G37: =G145 -> 0 | H37: 0 | J37: =J145 -> 0 | K37: 0 | L37: 0
A38: 36. | B38: =B146 -> MATERNOVÁ | C38: Lenka | D38: 7.B | E38: 105 | G38: =G146 -> Jilemnice 31.10.22 | H38: 674.5 | J38: =J146 -> 110 | K38: 0 | L38: 0
A39: 37. | B39: =B147 -> TÓTHOVÁ | C39: Viktorie | D39: 7.B | E39: 100 | G39: =G147 -> Jilemnice 31.10.22 | H39: 642 | J39: =J147 -> 100 | K39: 0 | L39: 0
A40: 38. | B40: =B148 -> DUONG | C40: Ngoc Linh | D40: 8.A | E40: 110 | G40: =G148 -> Jilemnice 26.05.23 | H40: 707 | J40: =J148 -> 0 | K40: 0 | L40: 0
A41: 39. | B41: =B149 -> GINGALOVÁ | C41: Linda | D41: 8.A | E41: 126 | G41: =G149 -> Turnov 16.05.23 | H41: 811 | J41: =J149 -> 115 | K41: 0 | L41: 0
A42: 40. | B42: =B150 -> HOFMANOVÁ | C42: Nicol | D42: 8.A | E42: 0 | G42: =G150 -> 0 | H42: 0 | J42: =J150 -> 0 | K42: 0 | L42: 0
A43: 41. | B43: =B151 -> HOLEŠOVSKÁ | C43: Aneta | D43: 8.A | E43: 0 | G43: =G151 -> 0 | H43: 0 | J43: =J151 -> 0 | K43: 0 | L43: 0
A44: 42. | B44: =B152 -> HOLUBCOVÁ | C44: Alena | D44: 8.A | E44: 105 | G44: =G152 -> Jilemnice 31.10.22 | H44: 674.5 | J44: =J152 -> 115 | K44: 0 | L44: 0
A45: 43. | B45: =B153 -> KOHOUTOVÁ | C45: Anna | D45: 8.A | E45: 95 | G45: =G153 -> Jilemnice 31.10.22 | H45: 609.5 | J45: =J153 -> 105 | K45: 0 | L45: 0
A46: 44. | B46: =B154 -> KRAUSOVÁ | C46: Anežka | D46: 8.A | E46: 105 | G46: =G154 -> Jilemnice 31.10.23 | H46: 674.5 | J46: =J154 -> 105 | K46: 0 | L46: 0
A47: 45. | B47: =B155 -> KUŽELOVÁ | C47: Apoléna | D47: 8.A | E47: 0 | G47: =G155 -> 0 | H47: 0 | J47: =J155 -> 105 | K47: 0 | L47: 0
A48: 46. | B48: =B156 -> MORÁVKOVÁ | C48: Lucie | D48: 8.A | E48: 0 | G48: =G156 -> 0 | H48: 0 | J48: =J156 -> 0 | K48: 0 | L48: 0
A49: 47. | B49: =B157 -> SKLENÁROVÁ | C49: Eliška | D49: 8.A | E49: 110 | G49: =G157 -> Jilemnice 24.10.22 | H49: 707 | J49: =J157 -> 105 | K49: 0 | L49: 0
A50: 48. | B50: =B158 -> ŠEJNOVÁ | C50: Karolína | D50: 8.A | E50: 0 | G50: =G158 -> 0 | H50: 0 | J50: =J158 -> 100 | K50: 0 | L50: 0
A51: 49. | B51: =B159 -> ŠTOLFOVÁ | C51: Tereza | D51: 8.A | E51: 95 | G51: =G159 -> Jilemnice 31.10.22 | H51: 609.5 | J51: =J159 -> 110 | K51: 0 | L51: 0
A52: 50. | B52: =B160 -> ŠUBÍKOVÁ | C52: Klára | D52: 8.A | E52: 115 | G52: =G160 -> Jilemnice 24.10.22 | H52: 739.5 | J52: =J160 -> 115 | K52: 0 | L52: 0
A53: 51. | B53: =B161 -> ŠULKOVSKÁ | C53: Klára | D53: 8.A | E53: 0 | G53: =G161 -> 0 | H53: 0 | J53: =J161 -> 0 | K53: 0 | L53: 0
A54: 52. | B54: =B162 -> TULÁČKOVÁ | C54: Natálie | D54: 8.A | E54: 0 | G54: =G162 -> 0 | H54: 0 | J54: =J162 -> 0 | K54: 0 | L54: 0
A55: 53. | B55: =B163 -> VOJTÍŠKOVÁ | C55: Ella | D55: 8.A | E55: 137 | G55: =G163 -> Jilemnice 19.06.23 | H55: 882.5 | J55: =J163 -> 128 | K55: 0 | L55: 0
A56: 54. | B56: =B164 -> DRUGÁČOVÁ | C56: Kristinka | D56: 8.B | E56: 0 | G56: =G164 -> 0 | H56: 0 | J56: =J164 -> 0 | K56: 0 | L56: 0
A57: 55. | B57: =B165 -> FAJSTAVROVÁ | C57: Karolína | D57: 8.B | E57: 100 | G57: =G165 -> Jilemnice 26.05.23 | H57: 642 | J57: =J165 -> 0 | K57: 0 | L57: 0
A58: 56. | B58: =B166 -> FAJSTAVROVÁ | C58: Magdaléna | D58: 8.B | E58: 95 | G58: =G166 -> Jilemnice 05.06.23 | H58: 609.5 | J58: =J166 -> 0 | K58: 0 | L58: 0
A59: 57. | B59: =B167 -> JINDROVÁ | C59: Barbora | D59: 8.B | E59: 115 | G59: =G167 -> Jilemnice 26.05.23 | H59: 739.5 | J59: =J167 -> 0 | K59: 0 | L59: 0
A60: 58. | B60: =B168 -> MAŘASOVÁ | C60: Vendula | D60: 8.B | E60: 110 | G60: =G168 -> Jilemnice 26.05.23 | H60: 707 | J60: =J168 -> 85 | K60: 0 | L60: 0
A61: 59. | B61: =B169 -> PETŘÍČKOVÁ | C61: Natálie | D61: 8.B | E61: 0 | G61: =G169 -> 0 | H61: 0 | J61: =J169 -> 105 | K61: 0 | L61: 0
A62: 60. | B62: =B170 -> PETŘÍKOVÁ | C62: Adéla | D62: 8.B | E62: 90 | G62: =G170 -> Jilemnice 31.10.22 | H62: 577 | J62: =J170 -> 0 | K62: 0 | L62: 0
A63: 61. | B63: =B171 -> REGÁLOVÁ | C63: Karolína | D63: 8.B | E63: 0 | G63: =G171 -> 0 | H63: 0 | J63: =J171 -> 105 | K63: 0 | L63: 0
A64: 62. | B64: =B172 -> RIEGROVÁ | C64: Magdaléna | D64: 8.B | E64: 100 | G64: =G172 -> Jilemnice 31.10.22 | H64: 642 | J64: =J172 -> 0 | K64: 0 | L64: 0
A65: 63. | B65: =B173 -> RYBENSKÁ | C65: Sabina | D65: 8.B | E65: 0 | G65: =G173 -> 0 | H65: 0 | J65: =J173 -> 0 | K65: 0 | L65: 0
A66: 64. | B66: =B174 -> STEINEROVÁ | C66: Barbora | D66: 8.B | E66: 120 | G66: =G174 -> Jilemnice 26.05.23 | H66: 772 | J66: =J174 -> 105 | K66: 0 | L66: 0
A67: 65. | B67: =B175 -> ŠERCLOVÁ | C67: Andrea | D67: 8.B | E67: 0 | G67: =G175 -> 0 | H67: 0 | J67: =J175 -> 0 | K67: 0 | L67: 0
A68: 66. | B68: =B176 -> TOMEŠOVÁ | C68: Barbora | D68: 8.B | E68: 0 | G68: =G176 -> 0 | H68: 0 | J68: =J176 -> 0 | K68: 0 | L68: 0
A69: 67. | B69: =B177 -> VOHNOUTOVÁ | C69: Aneta | D69: 8.B | E69: 136 | G69: =G177 -> Turnov 11.05.23 | H69: 876 | J69: =J177 -> 105 | K69: 0 | L69: 0
A70: 68. | B70: =B178 -> HAVLÍKOVÁ | C70: Michaela | D70: 9.A | E70: 95 | G70: =G178 -> Jilemnice 26.05.23 | H70: 609.5 | J70: =J178 -> 100 | K70: 0 | L70: 0
A71: 69. | B71: =B179 -> HOLUBCOVÁ | C71: Sára | D71: 9.A | E71: 0 | G71: =G179 -> 0 | H71: 0 | J71: =J179 -> 115 | K71: 0 | L71: 0
A72: 70. | B72: =B180 -> HONCŮ | C72: Tereza | D72: 9.A | E72: 110 | G72: =G180 -> Jilemnice 26.05.23 | H72: 707 | J72: =J180 -> 110 | K72: 0 | L72: 0
A73: 71. | B73: =B181 -> HORÁČKOVÁ | C73: Kateřina | D73: 9.A | E73: 125 | G73: =G181 -> Turnov 13.09.22 | H73: 804.5 | J73: =J181 -> 120 | K73: 0 | L73: 0
A74: 72. | B74: =B182 -> JOUDALOVÁ | C74: Daniela | D74: 9.A | E74: 0 | G74: =G182 -> 0 | H74: 0 | J74: =J182 -> 0 | K74: 0 | L74: 0
A75: 73. | B75: =B183 -> KLÍMOVÁ | C75: Anna | D75: 9.A | E75: 105 | G75: =G183 -> Jilemnice 26.05.23 | H75: 674.5 | J75: =J183 -> 110 | K75: 0 | L75: 0
A76: 74. | B76: =B184 -> KOHOUTOVÁ | C76: Veronika | D76: 9.A | E76: 105 | G76: =G184 -> Jilemnice 26.05.23 | H76: 674.5 | J76: =J184 -> 110 | K76: 0 | L76: 0
A77: 75. | B77: =B185 -> KOVÁŘOVÁ | C77: Viktorie | D77: 9.A | E77: 0 | G77: =G185 -> 0 | H77: 0 | J77: =J185 -> 120 | K77: 0 | L77: 0
A78: 76. | B78: =B186 -> KYNČLOVÁ | C78: Anna | D78: 9.A | E78: 142 | G78: =G186 -> Turnov 11.05.23 | H78: 915 | J78: =J186 -> 110 | K78: 0 | L78: 0
A79: 77. | B79: =B187 -> MATOUŠOVÁ | C79: Tereza | D79: 9.A | E79: 0 | G79: =G187 -> 0 | H79: 0 | J79: =J187 -> 125 | K79: 0 | L79: 0
A80: 78. | B80: =B188 -> MAZÁNKOVÁ | C80: Zuzana | D80: 9.A | E80: 95 | G80: =G188 -> Jilemnice 26.05.23 | H80: 609.5 | J80: =J188 -> 0 | K80: 0 | L80: 0
A81: 79. | B81: =B189 -> MORKESOVÁ | C81: Sabrina | D81: 9.A | E81: 115 | G81: =G189 -> Jilemnice 26.05.23 | H81: 739.5 | J81: =J189 -> 125 | K81: 0 | L81: 0
A82: 80. | B82: =B190 -> POHOŘALÁ | C82: Alžběta | D82: 9.A | E82: 0 | G82: =G190 -> 0 | H82: 0 | J82: =J190 -> 115 | K82: 0 | L82: 0
A83: 81. | B83: =B191 -> SCHOLZOVÁ | C83: Laura | D83: 9.A | E83: 0 | G83: =G191 -> 0 | H83: 0 | J83: =J191 -> 0 | K83: 0 | L83: 0
A84: 82. | B84: =B192 -> VÁCLAVÍKOVÁ | C84: Valerie | D84: 9.A | E84: 0 | G84: =G192 -> 0 | H84: 0 | J84: =J192 -> 115 | K84: 0 | L84: 0
A85: 83. | B85: =B193 -> ZAPADLOVÁ | C85: Emma | D85: 9.A | E85: 125 | G85: =G193 -> Turnov 13.09.22 | H85: 804.5 | J85: =J193 -> 120 | K85: 0 | L85: 0
A86: 84. | B86: =B194 -> ŽIŠKOVÁ | C86: Mia | D86: 9.A | E86: 0 | G86: =G194 -> 0 | H86: 0 | J86: =J194 -> 0 | K86: 0 | L86: 0
A87: 85. | B87: =B195 -> FARSKÁ | C87: Tereza | D87: 9.B | E87: 0 | G87: =G195 -> 0 | H87: 0 | J87: =J195 -> 0 | K87: 0 | L87: 0
A88: 86. | B88: =B196 -> FEIXOVÁ | C88: Rozálie | D88: 9.B | E88: 0 | G88: =G196 -> 0 | H88: 0 | J88: =J196 -> 0 | K88: 0 | L88: 0
A89: 87. | B89: =B197 -> FIŠEROVÁ | C89: Michaela | D89: 9.B | E89: 0 | G89: =G197 -> 0 | H89: 0 | J89: =J197 -> 0 | K89: 89 | L89: 0
A90: 88. | B90: =B198 -> HAVLÍČKOVÁ | C90: Kristýna | D90: 9.B | E90: 0 | G90: =G198 -> 0 | H90: 0 | J90: =J198 -> 0 | K90: 0 | L90: 0
A91: 89. | B91: =B199 -> KADAVÁ | C91: Nikola | D91: 9.B | E91: 0 | G91: =G199 -> 0 | H91: 0 | J91: =J199 -> 0 | K91: 0 | L91: 0
A92: 90. | B92: =B200 -> KŘIVINKOVÁ | C92: Alžběta | D92: 9.B | E92: 0 | G92: =G200 -> 0 | H92: 0 | J92: =J200 -> 0 | K92: 0 | L92: 0
A93: 91. | B93: =B201 -> LEŠÁKOVÁ | C93: Lenka | D93: 9.B | E93: 0 | G93: =G201 -> 0 | H93: 0 | J93: =J201 -> 0 | K93: 0 | L93: 0
A94: 92. | B94: =B202 -> NYKLÍČKOVÁ | C94: Adéla | D94: 9.B | E94: 0 | G94: =G202 -> 0 | H94: 0 | J94: =J202 -> 118 | K94: 104 | L94: 0
A95: 93. | B95: =B203 -> PLŮCHOVÁ | C95: Petra | D95: 9.B | E95: 0 | G95: =G203 -> 0 | H95: 0 | J95: =J203 -> 0 | K95: 104 | L95: 0
A96: 94. | B96: =B204 -> PODZIMKOVÁ | C96: Eliška | D96: 9.B | E96: 0 | G96: =G204 -> 0 | H96: 0 | J96: =J204 -> 0 | K96: 93 | L96: 0
A97: 95. | B97: =B205 -> RUTKAYOVÁ | C97: Klára | D97: 9.B | E97: 0 | G97: =G205 -> 0 | H97: 0 | J97: =J205 -> 0 | K97: 0 | L97: 0
A98: 96. | B98: =B206 -> SEIDLOVÁ | C98: Zuzana | D98: 9.B | E98: 0 | G98: =G206 -> 0 | H98: 0 | J98: =J206 -> 0 | K98: 99 | L98: 0
A99: 97. | B99: =B207 -> TOMÁŠOVÁ | C99: Sára | D99: 9.B | E99: 0 | G99: =G207 -> 0 | H99: 0 | J99: =J207 -> 0 | K99: 0 | L99: 0
A100: 98. | B100: =B208 -> VANCLOVÁ | C100: Barbora | D100: 9.B | E100: 0 | G100: =G208 -> 0 | H100: 0 | J100: =J208 -> 0 | K100: 99 | L100: 0
A101: 99. | B101: =B209 -> VOTOČKOVÁ | C101: Veronika | D101: 9.B | E101: 0 | G101: =G209 -> 0 | H101: 0 | J101: =J209 -> 0 | K101: 0 | L101: 0
B111: FARSKÁ | C111: Anna | D111: 6.A | E111: 100 | G111: Jilemnice 19.06.23 | H111: =IF(E111=0,0,(IF(E111>0,E111*5*1.3-8))) -> 642
B112: FARSKÁ | C112: Eliška | D112: 6.A | E112: 100 | G112: Jilemnice 19.06.23 | H112: 642
B113: FEDORKOVÁ | C113: Denisa | D113: 6.A | E113: 95 | G113: Jilemnice 19.06.23 | H113: 609.5
B114: HAUZEROVÁ | C114: Tereza | D114: 6.A | E114: 100 | G114: Jilemnice 19.06.23 | H114: 642
B115: JOSKOVÁ | C115: Ellen | D115: 6.A | E115: 95 | G115: Jilemnice 19.06.23 | H115: 609.5
B116: KUŽELOVÁ | C116: Amálie | D116: 6.A | H116: 0
B117: RYŠAVÁ | C117: Amálie | D117: 6.A | H117: 0
B118: BANGOVÁ | C118: Zuzana | D118: 6.B | E118: 95 | G118: Jilemnice 19.06.23 | H118: 609.5
B119: HOLUBOVÁ | C119: Denisa | D119: 6.B | E119: 100 | G119: Jilemnice 19.06.23 | H119: 642
B120: HURKALO | C120: Karolina | D120: 6.B | H120: 0
B121: HUTNIK-MAMONOVA | C121: Nana | D121: 6.B | H121: 0
B122: MARINOVA | C122: Darja | D122: 6.B | H122: 0
B123: NYKLÍČKOVÁ | C123: Klára | D123: 6.B | E123: 85 | G123: Jilemnice 19.06.23 | H123: 544.5
B124: PANCHAYEVA | C124: Sofiia | D124: 6.B | H124: 0
B125: PIČMANOVÁ | C125: Klára | D125: 6.B | H125: 0
B126: ŠIMŮNKOVÁ | C126: Anežka | D126: 6.B | E126: 100 | G126: Jilemnice 19.06.23 | H126: 642
B127: TRPIŠOVSKÁ | C127: Nela | D127: 6.B | E127: 100 | G127: Jilemnice 19.06.23 | H127: 642
B128: HEJRALOVÁ | C128: Natálie | D128: 7.A | E128: 115 | G128: Jilemnice 24.10.22 | H128: 739.5 | J128: 115
B129: KERLE | C129: Nikita | D129: 7.A | E129: 105 | G129: Jilemnice 31.10.22 | H129: 674.5 | J129: 115
B130: MUNZAROVÁ | C130: Aneta | D130: 7.A | H130: 0
B131: PACLÍKOVÁ | C131: Markéta | D131: 7.A | E131: 125 | G131: Jilemnice 05.06.23 | H131: 804.5 | J131: 120
B132: PLŮCHOVÁ | C132: Michaela | D132: 7.A | E132: 125 | G132: Turnov 11.05.23 | H132: 804.5 | J132: 110
B133: ŠERCLOVÁ | C133: Nikola | D133: 7.A | E133: 95 | G133: Jilemnice 31.10.22 | H133: 609.5
B134: VÁCLAVÍKOVÁ | C134: Alena | D134: 7.A | E134: 95 | G134: Jilemnice 31.10.22 | H134: 609.5 | J134: 95
B135: DUCHÁČKOVÁ | C135: Tereza | D135: 7.B | E135: 90 | G135: Jilemnice 31.10.22 | H135: 577 | J135: 85
B136: FLAŠKOVÁ | C136: Anna Sabriel | D136: 7.B | E136: 95 | G136: Jilemnice 31.10.22 | H136: 609.5 | J136: 105
B137: HAASOVÁ | C137: Julie | D137: 7.B | H137: 0 | J137: 105
B138: HEGROVÁ | C138: Štěpánka | D138: 7.B | H138: 0
B139: HOBLOVÁ | C139: Barbora | D139: 7.B | E139: 95 | G139: Jilemnice 05.06.23 | H139: 609.5 | J139: 95
B140: HORÁČKOVÁ | C140: Valérie | D140: 7.B | E140: 105 | G140: Jilemnice 31.10.22 | H140: 674.5 | J140: 100
B141: JIRANOVÁ | C141: Anežka | D141: 7.B | H141: 0 | J141: 80
B142: KRČÍKOVÁ | C142: Beatrix | D142: 7.B | E142: 125 | G142: Turnov 11.05.23 | H142: 804.5 | J142: 110
B143: KUBÁTOVÁ | C143: Veronika | D143: 7.B | H143: =IF(E143=0,0,(IF(E143>0,E143*5*1.3-8))) -> 0
B144: LENČEŠOVÁ | C144: Silvie | D144: 7.B | E144: 90 | G144: Jilemnice 31.10.22 | H144: 577 | J144: 85
B145: LUKEŠOVÁ | C145: Lucie | D145: 7.B | H145: 0
B146: MATERNOVÁ | C146: Lenka | D146: 7.B | E146: 105 | G146: Jilemnice 31.10.22 | H146: 674.5 | J146: 110
B147: TÓTHOVÁ | C147: Viktorie | D147: 7.B | E147: 100 | G147: Jilemnice 31.10.22 | H147: 642 | J147: 100
B148: DUONG | C148: Ngoc Linh | D148: 8.A | E148: 110 | G148: Jilemnice 26.05.23 | H148: 707
B149: GINGALOVÁ | C149: Linda | D149: 8.A | E149: 126 | G149: Turnov 16.05.23 | H149: 811 | J149: 115
B150: HOFMANOVÁ | C150: Nicol | D150: 8.A | H150: 0
B151: HOLEŠOVSKÁ | C151: Aneta | D151: 8.A | H151: 0
B152: HOLUBCOVÁ | C152: Alena | D152: 8.A | E152: 105 | G152: Jilemnice 31.10.22 | H152: 674.5 | J152: 115
B153: KOHOUTOVÁ | C153: Anna | D153: 8.A | E153: 95 | G153: Jilemnice 31.10.22 | H153: 609.5 | J153: 105
B154: KRAUSOVÁ | C154: Anežka | D154: 8.A | E154: 105 | G154: Jilemnice 31.10.23 | H154: 674.5 | J154: 105
B155: KUŽELOVÁ | C155: Apoléna | D155: 8.A | H155: 0 | J155: 105
B156: MORÁVKOVÁ | C156: Lucie | D156: 8.A | H156: 0
B157: SKLENÁROVÁ | C157: Eliška | D157: 8.A | E157: 110 | G157: Jilemnice 24.10.22 | H157: 707 | J157: 105
B158: ŠEJNOVÁ | C158: Karolína | D158: 8.A | H158: 0 | J158: 100
B159: ŠTOLFOVÁ | C159: Tereza | D159: 8.A | E159: 95 | G159: Jilemnice 31.10.22 | H159: 609.5 | J159: 110
B160: ŠUBÍKOVÁ | C160: Klára | D160: 8.A | E160: 115 | G160: Jilemnice 24.10.22 | H160: 739.5 | J160: 115
B161: ŠULKOVSKÁ | C161: Klára | D161: 8.A | H161: 0
B162: TULÁČKOVÁ | C162: Natálie | D162: 8.A | H162: 0
B163: VOJTÍŠKOVÁ | C163: Ella | D163: 8.A | E163: 137 | G163: Jilemnice 19.06.23 | H163: 882.5 | J163: 128
B164: DRUGÁČOVÁ | C164: Kristinka | D164: 8.B | H164: 0
B165: FAJSTAVROVÁ | C165: Karolína | D165: 8.B | E165: 100 | G165: Jilemnice 26.05.23 | H165: 642
B166: FAJSTAVROVÁ | C166: Magdaléna | D166: 8.B | E166: 95 | G166: Jilemnice 05.06.23 | H166: 609.5
B167: JINDROVÁ | C167: Barbora | D167: 8.B | E167: 115 | G167: Jilemnice 26.05.23 | H167: 739.5
B168: MAŘASOVÁ | C168: Vendula | D168: 8.B | E168: 110 | G168: Jilemnice 26.05.23 | H168: 707 | J168: 85
B169: PETŘÍČKOVÁ | C169: Natálie | D169: 8.B | H169: 0 | J169: 105
B170: PETŘÍKOVÁ | C170: Adéla | D170: 8.B | E170: 90 | G170: Jilemnice 31.10.22 | H170: 577
B171: REGÁLOVÁ | C171: Karolína | D171: 8.B | H171: 0 | J171: 105
B172: RIEGROVÁ | C172: Magdaléna | D172: 8.B | E172: 100 | G172: Jilemnice 31.10.22 | H172: 642
B173: RYBENSKÁ | C173: Sabina | D173: 8.B | H173: 0
B174: STEINEROVÁ | C174: Barbora | D174: 8.B | E174: 120 | G174: Jilemnice 26.05.23 | H174: 772 | J174: 105
B175: ŠERCLOVÁ | C175: Andrea | D175: 8.B | H175: =IF(E175=0,0,(IF(E175>0,E175*5*1.3-8))) -> 0
B176: TOMEŠOVÁ | C176: Barbora | D176: 8.B | H176: 0
B177: VOHNOUTOVÁ | C177: Aneta | D177: 8.B | E177: 136 | G177: Turnov 11.05.23 | H177: 876 | J177: 105
B178: HAVLÍKOVÁ | C178: Michaela | D178: 9.A | E178: 95 | G178: Jilemnice 26.05.23 | H178: 609.5 | J178: 100
B179: HOLUBCOVÁ | C179: Sára | D179: 9.A | H179: 0 | J179: 115
B180: HONCŮ | C180: Tereza | D180: 9.A | E180: 110 | G180: Jilemnice 26.05.23 | H180: 707 | J180: 110
B181: HORÁČKOVÁ | C181: Kateřina | D181: 9.A | E181: 125 | G181: Turnov 13.09.22 | H181: 804.5 | J181: 120
B182: JOUDALOVÁ | C182: Daniela | D182: 9.A | H182: 0
B183: KLÍMOVÁ | C183: Anna | D183: 9.A | E183: 105 | G183: Jilemnice 26.05.23 | H183: 674.5 | J183: 110
B184: KOHOUTOVÁ | C184: Veronika | D184: 9.A | E184: 105 | G184: Jilemnice 26.05.23 | H184: 674.5 | J184: 110
B185: KOVÁŘOVÁ | C185: Viktorie | D185: 9.A | H185: 0 | J185: 120
B186: KYNČLOVÁ | C186: Anna | D186: 9.A | E186: 142 | G186: Turnov 11.05.23 | H186: 915 | J186: 110
B187: MATOUŠOVÁ | C187: Tereza | D187: 9.A | H187: 0 | J187: 125
B188: MAZÁNKOVÁ | C188: Zuzana | D188: 9.A | E188: 95 | G188: Jilemnice 26.05.23 | H188: 609.5
B189: MORKESOVÁ | C189: Sabrina | D189: 9.A | E189: 115 | G189: Jilemnice 26.05.23 | H189: 739.5 | J189: 125
B190: POHOŘALÁ | C190: Alžběta | D190: 9.A | H190: 0 | J190: 115
B191: SCHOLZOVÁ | C191: Laura | D191: 9.A | H191: 0
B192: VÁCLAVÍKOVÁ | C192: Valerie | D192: 9.A | H192: 0 | J192: 115
B193: ZAPADLOVÁ | C193: Emma | D193: 9.A | E193: 125 | G193: Turnov 13.09.22 | H193: 804.5 | J193: 120
B194: ŽIŠKOVÁ | C194: Mia | D194: 9.A | H194: 0
B195: FARSKÁ | C195: Tereza | D195: 9.B | H195: 0
B196: FEIXOVÁ | C196: Rozálie | D196: 9.B | H196: 0
B197: FIŠEROVÁ | C197: Michaela | D197: 9.B | H197: 0 | K197: 89
B198: HAVLÍČKOVÁ | C198: Kristýna | D198: 9.B | H198: 0
B199: KADAVÁ | C199: Nikola | D199: 9.B | H199: 0
B200: KŘIVINKOVÁ | C200: Alžběta | D200: 9.B | H200: 0
B201: LEŠÁKOVÁ | C201: Lenka | D201: 9.B | H201: 0
B202: NYKLÍČKOVÁ | C202: Adéla | D202: 9.B | H202: 0 | J202: 118 | K202: 104
B203: PLŮCHOVÁ | C203: Petra | D203: 9.B | H203: 0 | K203: 104
B204: PODZIMKOVÁ | C204: Eliška | D204: 9.B | H204: 0 | K204: 93
B205: RUTKAYOVÁ | C205: Klára | D205: 9.B | H205: 0
B206: SEIDLOVÁ | C206: Zuzana | D206: 9.B | H206: 0 | K206: 99
B207: TOMÁŠOVÁ | C207: Sára | D207: 9.B | H207: 0
B208: VANCLOVÁ | C208: Barbora | D208: 9.B | H208: 0 | K208: 99
B209: VOTOČKOVÁ | C209: Veronika | D209: 9.B | H209: 0

Sheet Dmíč
B1: VÝKONY 2022 - 2023 | G1: MÍČEK | K1: stav k | L1: =TODAY() -> 45103
H2: BODY | J2: 21 - 22 | K2: 20 - 21 | L2: 19 - 20
A3: 1. | B3: =B111 -> FARSKÁ | C3: =C111 -> Anna | D3: =D111 -> 6.A | E3: =E111 -> 19.5 | G3: =G111 -> Jilemnice 15.09.23 | H3: =H111 -> 357.9 | J3: =J111 -> 0 | K3: =K111 -> 0 | L3: =L111 -> 0
A4: 2. | B4: =B112 -> FARSKÁ | C4: Eliška | D4: 6.A | E4: 20 | G4: =G112 -> Jilemnice 15.09.23 | H4: 367 | J4: =J112 -> 0 | K4: 0 | L4: 0
A5: 3. | B5: =B113 -> FEDORKOVÁ | C5: Denisa | D5: 6.A | E5: 15 | G5: =G113 -> Jilemnice 15.09.23 | H5: 276 | J5: =J113 -> 0 | K5: 0 | L5: 0
A6: 4. | B6: =B114 -> HAUZEROVÁ | C6: Tereza | D6: 6.A | E6: 14 | G6: =G114 -> Jilemnice 15.09.23 | H6: 257.8 | J6: =J114 -> 0 | K6: 0 | L6: 0
A7: 5. | B7: =B115 -> JOSKOVÁ | C7: Ellen | D7: 6.A | E7: 16 | G7: =G115 -> Jilemnice 15.09.23 | H7: 294.2 | J7: =J115 -> 0 | K7: 0 | L7: 0
A8: 6. | B8: =B116 -> KUŽELOVÁ | C8: Amálie | D8: 6.A | E8: 0 | G8: =G116 -> 0 | H8: 0 | J8: =J116 -> 0 | K8: 0 | L8: 0
A9: 7. | B9: =B117 -> RYŠAVÁ | C9: Amálie | D9: 6.A | E9: 19 | G9: =G117 -> Jilemnice 15.09.23 | H9: 348.8 | J9: =J117 -> 0 | K9: 0 | L9: 0
A10: 8. | B10: =B118 -> BANGOVÁ | C10: Zuzana | D10: 6.B | E10: 17 | G10: =G118 -> Jilemnice 15.09.23 | H10: 312.4 | J10: =J118 -> 0 | K10: 0 | L10: 0
A11: 9. | B11: =B119 -> HOLUBOVÁ | C11: Denisa | D11: 6.B | E11: 18 | G11: =G119 -> Jilemnice 15.09.23 | H11: 330.6 | J11: =J119 -> 0 | K11: 0 | L11: 0
A12: 10. | B12: =B120 -> HURKALO | C12: Karolina | D12: 6.B | E12: 10 | G12: =G120 -> Jilemnice 15.09.23 | H12: 185 | J12: =J120 -> 0 | K12: 0 | L12: 0
A13: 11. | B13: =B121 -> HUTNIK-MAMONOVA | C13: Nana | D13: 6.B | E13: 5 | G13: =G121 -> Jilemnice 15.09.23 | H13: 94 | J13: =J121 -> 0 | K13: 0 | L13: 0
A14: 12. | B14: =B122 -> MARINOVA | C14: Darja | D14: 6.B | E14: 0 | G14: =G122 -> 0 | H14: 0 | J14: =J122 -> 0 | K14: 0 | L14: 0
A15: 13. | B15: =B123 -> NYKLÍČKOVÁ | C15: Klára | D15: 6.B | E15: 19.5 | G15: =G123 -> Jilemnice 15.09.23 | H15: 357.9 | J15: =J123 -> 0 | K15: 0 | L15: 0
A16: 14. | B16: =B124 -> PANCHAYEVA | C16: Sofiia | D16: 6.B | E16: 6 | G16: =G124 -> Jilemnice 15.09.23 | H16: 112.2 | J16: =J124 -> 0 | K16: 0 | L16: 0
A17: 15. | B17: =B125 -> PIČMANOVÁ | C17: Klára | D17: 6.B | E17: 0 | G17: =G125 -> 0 | H17: 0 | J17: =J125 -> 0 | K17: 0 | L17: 0
A18: 16. | B18: =B126 -> ŠIMŮNKOVÁ | C18: Anežka | D18: 6.B | E18: 0 | G18: =G126 -> 0 | H18: 0 | J18: =J126 -> 0 | K18: 0 | L18: 0
A19: 17. | B19: =B127 -> TRPIŠOVSKÁ | C19: Nela | D19: 6.B | E19: 20.5 | G19: =G127 -> Jilemnice 15.09.23 | H19: 376.1 | J19: =J127 -> 0 | K19: 0 | L19: 0
A20: 18. | B20: =B128 -> HEJRALOVÁ | C20: Natálie | D20: 7.A | E20: 22.5 | G20: =G128 -> Jilemnice 10.10.22 | H20: 412.5 | J20: =J128 -> 23 | K20: 0 | L20: 0
A21: 19. | B21: =B129 -> KERLE | C21: Nikita | D21: 7.A | E21: 25 | G21: =G129 -> Jilemnice 24.05.23 | H21: 458 | J21: =J129 -> 20.5 | K21: 0 | L21: 0
A22: 20. | B22: =B130 -> MUNZAROVÁ | C22: Aneta | D22: 7.A | E22: 12 | G22: =G130 -> Jilemnice 24.05.23 | H22: 221.4 | J22: =J130 -> 0 | K22: 0 | L22: 0
A23: 21. | B23: =B131 -> PACLÍKOVÁ | C23: Markéta | D23: 7.A | E23: 32.48 | G23: =G131 -> Turnov 11.05.23 | H23: 594.136 | J23: =J131 -> 27 | K23: 0 | L23: 0
A24: 22. | B24: =B132 -> PLŮCHOVÁ | C24: Michaela | D24: 7.A | E24: 24 | G24: =G132 -> Jilemnice 10.10.22 | H24: 439.8 | J24: =J132 -> 19 | K24: 0 | L24: 0
A25: 23. | B25: =B133 -> ŠERCLOVÁ | C25: Nikola | D25: 7.A | E25: 22 | G25: =G133 -> Jilemnice 24.05.23 | H25: 403.4 | J25: =J133 -> 0 | K25: 0 | L25: 0
A26: 24. | B26: =B134 -> VÁCLAVÍKOVÁ | C26: Alena | D26: 7.A | E26: 21 | G26: =G134 -> Jilemnice 24.05.23 | H26: 385.2 | J26: =J134 -> 0 | K26: 0 | L26: 0
A27: 25. | B27: =B135 -> DUCHÁČKOVÁ | C27: Tereza | D27: 7.B | E27: 14 | G27: =G135 -> Jilemnice 10.10.22 | H27: 257.8 | J27: =J135 -> 12.5 | K27: 0 | L27: 0
A28: 26. | B28: =B136 -> FLAŠKOVÁ | C28: Anna Sabriel | D28: 7.B | E28: 23.5 | G28: =G136 -> Jilemnice 10.10.22 | H28: 430.7 | J28: =J136 -> 23 | K28: 0 | L28: 0
A29: 27. | B29: =B137 -> HAASOVÁ | C29: Julie | D29: 7.B | E29: 18 | G29: =G137 -> Turnov 13.09.22 | H29: 330.6 | J29: =J137 -> 23 | K29: 0 | L29: 0
A30: 28. | B30: =B138 -> HEGROVÁ | C30: Štěpánka | D30: 7.B | E30: 17.5 | G30: =G138 -> Jilemnice 24.05.23 | H30: 321.5 | J30: =J138 -> 0 | K30: 0 | L30: 0
A31: 29. | B31: =B139 -> HOBLOVÁ | C31: Barbora | D31: 7.B | E31: 20.5 | G31: =G139 -> Jilemnice 24.05.23 | H31: 376.1 | J31: =J139 -> 20.5 | K31: 0 | L31: 0
A32: 30. | B32: =B140 -> HORÁČKOVÁ | C32: Valérie | D32: 7.B | E32: 20 | G32: =G140 -> Jilemnice 24.05.23 | H32: 367 | J32: =J140 -> 20 | K32: 0 | L32: 0
A33: 31. | B33: =B141 -> JIRANOVÁ | C33: Anežka | D33: 7.B | E33: 20 | G33: =G141 -> Jilemnice 24.05.23 | H33: 367 | J33: =J141 -> 17.5 | K33: 0 | L33: 0
A34: 32. | B34: =B142 -> KRČÍKOVÁ | C34: Beatrix | D34: 7.B | E34: 31.84 | G34: =G142 -> Turnov 16.05.23 | H34: 582.488 | J34: =J142 -> 23.5 | K34: 0 | L34: 0
A35: 33. | B35: =B143 -> KUBÁTOVÁ | C35: Veronika | D35: 7.B | E35: 11 | G35: =G143 -> Jilemnice 24.05.23 | H35: 203.2 | J35: =J143 -> 7 | K35: 0 | L35: 0
A36: 34. | B36: =B144 -> LENČEŠOVÁ | C36: Silvie | D36: 7.B | E36: 25 | G36: =G144 -> Jilemnice 24.05.23 | H36: 458 | J36: =J144 -> 21 | K36: 0 | L36: 0
A37: 35. | B37: =B145 -> LUKEŠOVÁ | C37: Lucie | D37: 7.B | E37: 19 | G37: =G145 -> Jilemnice 24.05.23 | H37: 348.8 | J37: =J145 -> 0 | K37: 0 | L37: 0
A38: 36. | B38: =B146 -> MATERNOVÁ | C38: Lenka | D38: 7.B | E38: 14.5 | G38: =G146 -> Jilemnice 10.10.22 | H38: 266.9 | J38: =J146 -> 15.5 | K38: 0 | L38: 0
A39: 37. | B39: =B147 -> TÓTHOVÁ | C39: Viktorie | D39: 7.B | E39: 22 | G39: =G147 -> Jilemnice 24.05.23 | H39: 403.4 | J39: =J147 -> 22 | K39: 0 | L39: 0
A40: 38. | B40: =B148 -> DUONG | C40: Ngoc Linh | D40: 8.A | E40: 34.5 | G40: =G148 -> Jilemnice 07.06.23 | H40: 630.9 | J40: =J148 -> 14.5 | K40: 17.5 | L40: 0
A41: 39. | B41: =B149 -> GINGALOVÁ | C41: Linda | D41: 8.A | E41: 30.5 | G41: =G149 -> Jilemnice 07.06.23 | H41: 558.1 | J41: =J149 -> 24 | K41: 0 | L41: 0
A42: 40. | B42: =B150 -> HOFMANOVÁ | C42: Nicol | D42: 8.A | E42: 0 | G42: =G150 -> 0 | H42: 0 | J42: =J150 -> 21.5 | K42: 15.5 | L42: 0
A43: 41. | B43: =B151 -> HOLEŠOVSKÁ | C43: Aneta | D43: 8.A | E43: 24 | G43: =G151 -> Jilemnice 07.10.22 | H43: 439.8 | J43: =J151 -> 27.1 | K43: 22.6 | L43: 0
A44: 42. | B44: =B152 -> HOLUBCOVÁ | C44: Alena | D44: 8.A | E44: 37.5 | G44: =G152 -> Jilemnice 07.06.23 | H44: 685.5 | J44: =J152 -> 38.56 | K44: 29 | L44: 0
A45: 43. | B45: =B153 -> KOHOUTOVÁ | C45: Anna | D45: 8.A | E45: 17.5 | G45: =G153 -> Jilemnice 10.10.22 | H45: 321.5 | J45: =J153 -> 16 | K45: 13 | L45: 0
A46: 44. | B46: =B154 -> KRAUSOVÁ | C46: Anežka | D46: 8.A | E46: 27 | G46: =G154 -> Jilemnice 07.06.23 | H46: 494.4 | J46: =J154 -> 17.5 | K46: 0 | L46: 0
A47: 45. | B47: =B155 -> KUŽELOVÁ | C47: Apoléna | D47: 8.A | E47: 23 | G47: =G155 -> Jilemnice 07.10.22 | H47: 421.6 | J47: =J155 -> 22 | K47: 18.4 | L47: 0
A48: 46. | B48: =B156 -> MORÁVKOVÁ | C48: Lucie | D48: 8.A | E48: 17 | G48: =G156 -> Jilemnice 07.10.22 | H48: 312.4 | J48: =J156 -> 18 | K48: 20.9 | L48: 0
A49: 47. | B49: =B157 -> SKLENÁROVÁ | C49: Eliška | D49: 8.A | E49: 24.5 | G49: =G157 -> Jilemnice 10.10.22 | H49: 448.9 | J49: =J157 -> 0 | K49: 0 | L49: 0
A50: 48. | B50: =B158 -> ŠEJNOVÁ | C50: Karolína | D50: 8.A | E50: 18 | G50: =G158 -> Jilemnice 10.10.22 | H50: 330.6 | J50: =J158 -> 16 | K50: 0 | L50: 0
A51: 49. | B51: =B159 -> ŠTOLFOVÁ | C51: Tereza | D51: 8.A | E51: 0 | G51: =G159 -> 0 | H51: 0 | J51: =J159 -> 14.5 | K51: 14 | L51: 0
A52: 50. | B52: =B160 -> ŠUBÍKOVÁ | C52: Klára | D52: 8.A | E52: 23 | G52: =G160 -> Jilemnice 07.06.23 | H52: 421.6 | J52: =J160 -> 22 | K52: 13 | L52: 0
A53: 51. | B53: =B161 -> ŠULKOVSKÁ | C53: Klára | D53: 8.A | E53: 0 | G53: =G161 -> 0 | H53: 0 | J53: =J161 -> 21 | K53: 0 | L53: 0
A54: 52. | B54: =B162 -> TULÁČKOVÁ | C54: Natálie | D54: 8.A | E54: 23.5 | G54: =G162 -> Jilemnice 07.10.22 | H54: 430.7 | J54: =J162 -> 20 | K54: 17.8 | L54: 0
A55: 53. | B55: =B163 -> VOJTÍŠKOVÁ | C55: Ella | D55: 8.A | E55: 37 | G55: =G163 -> Jilemnice 05.06.23 | H55: 676.4 | J55: =J163 -> 0 | K55: 24.6 | L55: 0
A56: 54. | B56: =B164 -> DRUGÁČOVÁ | C56: Kristinka | D56: 8.B | E56: 0 | G56: =G164 -> 0 | H56: 0 | J56: =J164 -> 0 | K56: 16.5 | L56: 0
A57: 55. | B57: =B165 -> FAJSTAVROVÁ | C57: Karolína | D57: 8.B | E57: 25 | G57: =G165 -> Jilemnice 07.10.22 | H57: 458 | J57: =J165 -> 30.5 | K57: 22.4 | L57: 0
A58: 56. | B58: =B166 -> FAJSTAVROVÁ | C58: Magdaléna | D58: 8.B | E58: 34.5 | G58: =G166 -> Jilemnice 07.10.22 | H58: 630.9 | J58: =J166 -> 28.5 | K58: 29 | L58: 0
A59: 57. | B59: =B167 -> JINDROVÁ | C59: Barbora | D59: 8.B | E59: 16.5 | G59: =G167 -> Jilemnice 07.10.22 | H59: 303.3 | J59: =J167 -> 16 | K59: 12 | L59: 0
A60: 58. | B60: =B168 -> MAŘASOVÁ | C60: Vendula | D60: 8.B | E60: 20 | G60: =G168 -> Jilemnice 07.10.22 | H60: 367 | J60: =J168 -> 17.5 | K60: 13 | L60: 0
A61: 59. | B61: =B169 -> PETŘÍČKOVÁ | C61: Natálie | D61: 8.B | E61: 26.5 | G61: =G169 -> Jilemnice 07.10.22 | H61: 485.3 | J61: =J169 -> 23.5 | K61: 21.8 | L61: 0
A62: 60. | B62: =B170 -> PETŘÍKOVÁ | C62: Adéla | D62: 8.B | E62: 16.5 | G62: =G170 -> Jilemnice 10.10.22 | H62: 303.3 | J62: =J170 -> 16 | K62: 11 | L62: 0
A63: 61. | B63: =B171 -> REGÁLOVÁ | C63: Karolína | D63: 8.B | E63: 29 | G63: =G171 -> Jilemnice 07.10.22 | H63: 530.8 | J63: =J171 -> 29 | K63: 23.2 | L63: 0
A64: 62. | B64: =B172 -> RIEGROVÁ | C64: Magdaléna | D64: 8.B | E64: 17.5 | G64: =G172 -> Jilemnice 10.10.22 | H64: 321.5 | J64: =J172 -> 20 | K64: 15.5 | L64: 0
A65: 63. | B65: =B173 -> RYBENSKÁ | C65: Sabina | D65: 8.B | E65: 16 | G65: =G173 -> Jilemnice 07.10.22 | H65: 294.2 | J65: =J173 -> 15.2 | K65: 12.6 | L65: 0
A66: 64. | B66: =B174 -> STEINEROVÁ | C66: Barbora | D66: 8.B | E66: 33.5 | G66: =G174 -> Jilemnice 07.10.22 | H66: 612.7 | J66: =J174 -> 33.36 | K66: 24.4 | L66: 0
A67: 65. | B67: =B175 -> ŠERCLOVÁ | C67: Andrea | D67: 8.B | E67: 0 | G67: =G175 -> 0 | H67: 0 | J67: =J175 -> 0 | K67: 0 | L67: 0
A68: 66. | B68: =B176 -> TOMEŠOVÁ | C68: Barbora | D68: 8.B | E68: 27 | G68: =G176 -> Jilemnice 07.10.22 | H68: 494.4 | J68: =J176 -> 24 | K68: 16.2 | L68: 0
A69: 67. | B69: =B177 -> VOHNOUTOVÁ | C69: Aneta | D69: 8.B | E69: 34.28 | G69: =G177 -> Turnov 11.05.23 | H69: 626.896 | J69: =J177 -> 35.02 | K69: 29 | L69: 0
A70: 68. | B70: =B178 -> HAVLÍKOVÁ | C70: Michaela | D70: 9.A | E70: 18.5 | G70: =G178 -> Jilemnice 24.05.23 | H70: 339.7 | J70: =J178 -> 16 | K70: 0 | L70: 10.5
A71: 69. | B71: =B179 -> HOLUBCOVÁ | C71: Sára | D71: 9.A | E71: 0 | G71: =G179 -> 0 | H71: 0 | J71: =J179 -> 26 | K71: 25 | L71: 0
A72: 70. | B72: =B180 -> HONCŮ | C72: Tereza | D72: 9.A | E72: 25 | G72: =G180 -> Jilemnice 24.05.23 | H72: 458 | J72: =J180 -> 25 | K72: 22 | L72: 18.5
A73: 71. | B73: =B181 -> HORÁČKOVÁ | C73: Kateřina | D73: 9.A | E73: 26 | G73: =G181 -> Jilemnice 24.05.23 | H73: 476.2 | J73: =J181 -> 27 | K73: 22 | L73: 21
A74: 72. | B74: =B182 -> JOUDALOVÁ | C74: Daniela | D74: 9.A | E74: 0 | G74: =G182 -> 0 | H74: 0 | J74: =J182 -> 0 | K74: 0 | L74: 10
A75: 73. | B75: =B183 -> KLÍMOVÁ | C75: Anna | D75: 9.A | E75: 24 | G75: =G183 -> Jilemnice 24.05.23 | H75: 439.8 | J75: =J183 -> 25 | K75: 0 | L75: 17.5
A76: 74. | B76: =B184 -> KOHOUTOVÁ | C76: Veronika | D76: 9.A | E76: 29 | G76: =G184 -> Jilemnice 24.05.23 | H76: 530.8 | J76: =J184 -> 28 | K76: 29.5 | L76: 24
A77: 75. | B77: =B185 -> KOVÁŘOVÁ | C77: Viktorie | D77: 9.A | E77: 30 | G77: =G185 -> Jilemnice 24.05.23 | H77: 549 | J77: =J185 -> 24.5 | K77: 19.5 | L77: 17.5
A78: 76. | B78: =B186 -> KYNČLOVÁ | C78: Anna | D78: 9.A | E78: 26.5 | G78: =G186 -> Jilemnice 24.05.23 | H78: 485.3 | J78: =J186 -> 28 | K78: 27.5 | L78: 21
A79: 77. | B79: =B187 -> MATOUŠOVÁ | C79: Tereza | D79: 9.A | E79: 25 | G79: =G187 -> Jilemnice 24.05.23 | H79: 458 | J79: =J187 -> 23 | K79: 20.5 | L79: 17.5
A80: 78. | B80: =B188 -> MAZÁNKOVÁ | C80: Zuzana | D80: 9.A | E80: 16 | G80: =G188 -> Jilemnice 24.05.23 | H80: 294.2 | J80: =J188 -> 15.5 | K80: 19 | L80: 14.5
A81: 79. | B81: =B189 -> MORKESOVÁ | C81: Sabrina | D81: 9.A | E81: 45.66 | G81: =G189 -> Turnov 11.05.23 | H81: 834.012 | J81: =J189 -> 40 | K81: 42 | L81: 36.5
A82: 80. | B82: =B190 -> POHOŘALÁ | C82: Alžběta | D82: 9.A | E82: 22 | G82: =G190 -> Jilemnice 24.05.23 | H82: 403.4 | J82: =J190 -> 24 | K82: 22.5 | L82: 15.5
A83: 81. | B83: =B191 -> SCHOLZOVÁ | C83: Laura | D83: 9.A | E83: 0 | G83: =G191 -> 0 | H83: 0 | J83: =J191 -> 0 | K83: 0 | L83: 0
A84: 82. | B84: =B192 -> VÁCLAVÍKOVÁ | C84: Valerie | D84: 9.A | E84: 0 | G84: =G192 -> 0 | H84: 0 | J84: =J192 -> 29 | K84: 26.5 | L84: 25.5
A85: 83. | B85: =B193 -> ZAPADLOVÁ | C85: Emma | D85: 9.A | E85: 42.5 | G85: =G193 -> Turnov 13.09.22 | H85: 776.5 | J85: =J193 -> 37.5 | K85: 33.5 | L85: 27.5
A86: 84. | B86: =B194 -> ŽIŠKOVÁ | C86: Mia | D86: 9.A | E86: 0 | G86: =G194 -> 0 | H86: 0 | J86: =J194 -> 24 | K86: 22.5 | L86: 0
A87: 85. | B87: =B195 -> FARSKÁ | C87: Tereza | D87: 9.B | E87: 18 | G87: =G195 -> Jilemnice 07.10.22 | H87: 330.6 | J87: =J195 -> 19 | K87: 0 | L87: 0
A88: 86. | B88: =B196 -> FEIXOVÁ | C88: Rozálie | D88: 9.B | E88: 15 | G88: =G196 -> Jilemnice 07.10.22 | H88: 276 | J88: =J196 -> 13.5 | K88: 0 | L88: 0
A89: 87. | B89: =B197 -> FIŠEROVÁ | C89: Michaela | D89: 9.B | E89: 19 | G89: =G197 -> Jilemnice 07.10.22 | H89: 348.8 | J89: =J197 -> 19.5 | K89: 0 | L89: 0
A90: 88. | B90: =B198 -> HAVLÍČKOVÁ | C90: Kristýna | D90: 9.B | E90: 16.5 | G90: =G198 -> Jilemnice 07.10.22 | H90: 303.3 | J90: =J198 -> 16 | K90: 0 | L90: 0
A91: 89. | B91: =B199 -> KADAVÁ | C91: Nikola | D91: 9.B | E91: 14 | G91: =G199 -> Jilemnice 07.10.22 | H91: 257.8 | J91: =J199 -> 15 | K91: 0 | L91: 0
A92: 90. | B92: =B200 -> KŘIVINKOVÁ | C92: Alžběta | D92: 9.B | E92: 25 | G92: =G200 -> Jilemnice 07.10.22 | H92: 458 | J92: =J200 -> 24 | K92: 0 | L92: 0
A93: 91. | B93: =B201 -> LEŠÁKOVÁ | C93: Lenka | D93: 9.B | E93: 12 | G93: =G201 -> Jilemnice 07.10.22 | H93: 221.4 | J93: =J201 -> 15 | K93: 0 | L93: 0
A94: 92. | B94: =B202 -> NYKLÍČKOVÁ | C94: Adéla | D94: 9.B | E94: 23.5 | G94: =G202 -> Jilemnice 07.10.22 | H94: 430.7 | J94: =J202 -> 23.5 | K94: 0 | L94: 0
A95: 93. | B95: =B203 -> PLŮCHOVÁ | C95: Petra | D95: 9.B | E95: 24 | G95: =G203 -> Jilemnice 07.10.22 | H95: 439.8 | J95: =J203 -> 24 | K95: 0 | L95: 0
A96: 94. | B96: =B204 -> PODZIMKOVÁ | C96: Eliška | D96: 9.B | E96: 27 | G96: =G204 -> Jilemnice 07.10.22 | H96: 494.4 | J96: =J204 -> 26 | K96: 0 | L96: 0
A97: 95. | B97: =B205 -> RUTKAYOVÁ | C97: Klára | D97: 9.B | E97: 17 | G97: =G205 -> Jilemnice 07.10.22 | H97: 312.4 | J97: =J205 -> 15 | K97: 0 | L97: 0
A98: 96. | B98: =B206 -> SEIDLOVÁ | C98: Zuzana | D98: 9.B | E98: 34 | G98: =G206 -> Jilemnice 07.10.22 | H98: 621.8 | J98: =J206 -> 28.8 | K98: 0 | L98: 0
A99: 97. | B99: =B207 -> TOMÁŠOVÁ | C99: Sára | D99: 9.B | E99: 19.5 | G99: =G207 -> Jilemnice 07.10.22 | H99: 357.9 | J99: =J207 -> 18.5 | K99: 0 | L99: 0
A100: 98. | B100: =B208 -> VANCLOVÁ | C100: Barbora | D100: 9.B | E100: 24 | G100: =G208 -> Jilemnice 07.10.22 | H100: 439.8 | J100: =J208 -> 0 | K100: 0 | L100: 0
A101: 99. | B101: =B209 -> VOTOČKOVÁ | C101: Veronika | D101: 9.B | E101: 14 | G101: =G209 -> Jilemnice 07.10.22 | H101: 257.8 | J101: =J209 -> 16 | K101: 0 | L101: 0
B111: FARSKÁ | C111: Anna | D111: 6.A | E111: 19.5 | G111: Jilemnice 15.09.23 | H111: =IF(E111=0,0,IF(E111>0,E111*10*1.82+3)) -> 357.9
B112: FARSKÁ | C112: Eliška | D112: 6.A | E112: 20 | G112: Jilemnice 15.09.23 | H112: 367
B113: FEDORKOVÁ | C113: Denisa | D113: 6.A | E113: 15 | G113: Jilemnice 15.09.23 | H113: 276
B114: HAUZEROVÁ | C114: Tereza | D114: 6.A | E114: 14 | G114: Jilemnice 15.09.23 | H114: 257.8
B115: JOSKOVÁ | C115: Ellen | D115: 6.A | E115: 16 | G115: Jilemnice 15.09.23 | H115: 294.2
B116: KUŽELOVÁ | C116: Amálie | D116: 6.A | H116: 0
B117: RYŠAVÁ | C117: Amálie | D117: 6.A | E117: 19 | G117: Jilemnice 15.09.23 | H117: 348.8
B118: BANGOVÁ | C118: Zuzana | D118: 6.B | E118: 17 | G118: Jilemnice 15.09.23 | H118: 312.4
B119: HOLUBOVÁ | C119: Denisa | D119: 6.B | E119: 18 | G119: Jilemnice 15.09.23 | H119: 330.6
B120: HURKALO | C120: Karolina | D120: 6.B | E120: 10 | G120: Jilemnice 15.09.23 | H120: 185
B121: HUTNIK-MAMONOVA | C121: Nana | D121: 6.B | E121: 5 | G121: Jilemnice 15.09.23 | H121: 94
B122: MARINOVA | C122: Darja | D122: 6.B | H122: 0
B123: NYKLÍČKOVÁ | C123: Klára | D123: 6.B | E123: 19.5 | G123: Jilemnice 15.09.23 | H123: 357.9
B124: PANCHAYEVA | C124: Sofiia | D124: 6.B | E124: 6 | G124: Jilemnice 15.09.23 | H124: 112.2
B125: PIČMANOVÁ | C125: Klára | D125: 6.B | H125: 0
B126: ŠIMŮNKOVÁ | C126: Anežka | D126: 6.B | H126: 0
B127: TRPIŠOVSKÁ | C127: Nela | D127: 6.B | E127: 20.5 | G127: Jilemnice 15.09.23 | H127: 376.1
B128: HEJRALOVÁ | C128: Natálie | D128: 7.A | E128: 22.5 | G128: Jilemnice 10.10.22 | H128: 412.5 | J128: 23
B129: KERLE | C129: Nikita | D129: 7.A | E129: 25 | G129: Jilemnice 24.05.23 | H129: 458 | J129: 20.5
B130: MUNZAROVÁ | C130: Aneta | D130: 7.A | E130: 12 | G130: Jilemnice 24.05.23 | H130: 221.4
B131: PACLÍKOVÁ | C131: Markéta | D131: 7.A | E131: 32.48 | G131: Turnov 11.05.23 | H131: 594.136 | J131: 27
B132: PLŮCHOVÁ | C132: Michaela | D132: 7.A | E132: 24 | G132: Jilemnice 10.10.22 | H132: 439.8 | J132: 19
B133: ŠERCLOVÁ | C133: Nikola | D133: 7.A | E133: 22 | G133: Jilemnice 24.05.23 | H133: 403.4
B134: VÁCLAVÍKOVÁ | C134: Alena | D134: 7.A | E134: 21 | G134: Jilemnice 24.05.23 | H134: 385.2
B135: DUCHÁČKOVÁ | C135: Tereza | D135: 7.B | E135: 14 | G135: Jilemnice 10.10.22 | H135: 257.8 | J135: 12.5
B136: FLAŠKOVÁ | C136: Anna Sabriel | D136: 7.B | E136: 23.5 | G136: Jilemnice 10.10.22 | H136: 430.7 | J136: 23
B137: HAASOVÁ | C137: Julie | D137: 7.B | E137: 18 | G137: Turnov 13.09.22 | H137: 330.6 | J137: 23
B138: HEGROVÁ | C138: Štěpánka | D138: 7.B | E138: 17.5 | G138: Jilemnice 24.05.23 | H138: 321.5
B139: HOBLOVÁ | C139: Barbora | D139: 7.B | E139: 20.5 | G139: Jilemnice 24.05.23 | H139: 376.1 | J139: 20.5
B140: HORÁČKOVÁ | C140: Valérie | D140: 7.B | E140: 20 | G140: Jilemnice 24.05.23 | H140: 367 | J140: 20
B141: JIRANOVÁ | C141: Anežka | D141: 7.B | E141: 20 | G141: Jilemnice 24.05.23 | H141: 367 | J141: 17.5
B142: KRČÍKOVÁ | C142: Beatrix | D142: 7.B | E142: 31.84 | G142: Turnov 16.05.23 | H142: 582.488 | J142: 23.5
B143: KUBÁTOVÁ | C143: Veronika | D143: 7.B | E143: 11 | G143: Jilemnice 24.05.23 | H143: =IF(E143=0,0,IF(E143>0,E143*10*1.82+3)) -> 203.2 | J143: 7
B144: LENČEŠOVÁ | C144: Silvie | D144: 7.B | E144: 25 | G144: Jilemnice 24.05.23 | H144: 458 | J144: 21
B145: LUKEŠOVÁ | C145: Lucie | D145: 7.B | E145: 19 | G145: Jilemnice 24.05.23 | H145: 348.8
B146: MATERNOVÁ | C146: Lenka | D146: 7.B | E146: 14.5 | G146: Jilemnice 10.10.22 | H146: 266.9 | J146: 15.5
B147: TÓTHOVÁ | C147: Viktorie | D147: 7.B | E147: 22 | G147: Jilemnice 24.05.23 | H147: 403.4 | J147: 22
B148: DUONG | C148: Ngoc Linh | D148: 8.A | E148: 34.5 | G148: Jilemnice 07.06.23 | H148: 630.9 | J148: 14.5 | K148: 17.5
B149: GINGALOVÁ | C149: Linda | D149: 8.A | E149: 30.5 | G149: Jilemnice 07.06.23 | H149: 558.1 | J149: 24
B150: HOFMANOVÁ | C150: Nicol | D150: 8.A | H150: 0 | J150: 21.5 | K150: 15.5
B151: HOLEŠOVSKÁ | C151: Aneta | D151: 8.A | E151: 24 | G151: Jilemnice 07.10.22 | H151: 439.8 | J151: 27.1 | K151: 22.6
B152: HOLUBCOVÁ | C152: Alena | D152: 8.A | E152: 37.5 | G152: Jilemnice 07.06.23 | H152: 685.5 | J152: 38.56 | K152: 29
B153: KOHOUTOVÁ | C153: Anna | D153: 8.A | E153: 17.5 | G153: Jilemnice 10.10.22 | H153: 321.5 | J153: 16 | K153: 13
B154: KRAUSOVÁ | C154: Anežka | D154: 8.A | E154: 27 | G154: Jilemnice 07.06.23 | H154: 494.4 | J154: 17.5
B155: KUŽELOVÁ | C155: Apoléna | D155: 8.A | E155: 23 | G155: Jilemnice 07.10.22 | H155: 421.6 | J155: 22 | K155: 18.4
B156: MORÁVKOVÁ | C156: Lucie | D156: 8.A | E156: 17 | G156: Jilemnice 07.10.22 | H156: 312.4 | J156: 18 | K156: 20.9
B157: SKLENÁROVÁ | C157: Eliška | D157: 8.A | E157: 24.5 | G157: Jilemnice 10.10.22 | H157: 448.9
B158: ŠEJNOVÁ | C158: Karolína | D158: 8.A | E158: 18 | G158: Jilemnice 10.10.22 | H158: 330.6 | J158: 16
B159: ŠTOLFOVÁ | C159: Tereza | D159: 8.A | H159: 0 | J159: 14.5 | K159: 14
B160: ŠUBÍKOVÁ | C160: Klára | D160: 8.A | E160: 23 | G160: Jilemnice 07.06.23 | H160: 421.6 | J160: 22 | K160: 13
B161: ŠULKOVSKÁ | C161: Klára | D161: 8.A | H161: 0 | J161: 21
B162: TULÁČKOVÁ | C162: Natálie | D162: 8.A | E162: 23.5 | G162: Jilemnice 07.10.22 | H162: 430.7 | J162: 20 | K162: 17.8
B163: VOJTÍŠKOVÁ | C163: Ella | D163: 8.A | E163: 37 | G163: Jilemnice 05.06.23 | H163: 676.4 | K163: 24.6
B164: DRUGÁČOVÁ | C164: Kristinka | D164: 8.B | H164: 0 | K164: 16.5
B165: FAJSTAVROVÁ | C165: Karolína | D165: 8.B | E165: 25 | G165: Jilemnice 07.10.22 | H165: 458 | J165: 30.5 | K165: 22.4
B166: FAJSTAVROVÁ | C166: Magdaléna | D166: 8.B | E166: 34.5 | G166: Jilemnice 07.10.22 | H166: 630.9 | J166: 28.5 | K166: 29
B167: JINDROVÁ | C167: Barbora | D167: 8.B | E167: 16.5 | G167: Jilemnice 07.10.22 | H167: 303.3 | J167: 16 | K167: 12
B168: MAŘASOVÁ | C168: Vendula | D168: 8.B | E168: 20 | G168: Jilemnice 07.10.22 | H168: 367 | J168: 17.5 | K168: 13
B169: PETŘÍČKOVÁ | C169: Natálie | D169: 8.B | E169: 26.5 | G169: Jilemnice 07.10.22 | H169: 485.3 | J169: 23.5 | K169: 21.8
B170: PETŘÍKOVÁ | C170: Adéla | D170: 8.B | E170: 16.5 | G170: Jilemnice 10.10.22 | H170: 303.3 | J170: 16 | K170: 11
B171: REGÁLOVÁ | C171: Karolína | D171: 8.B | E171: 29 | G171: Jilemnice 07.10.22 | H171: 530.8 | J171: 29 | K171: 23.2
B172: RIEGROVÁ | C172: Magdaléna | D172: 8.B | E172: 17.5 | G172: Jilemnice 10.10.22 | H172: 321.5 | J172: 20 | K172: 15.5
B173: RYBENSKÁ | C173: Sabina | D173: 8.B | E173: 16 | G173: Jilemnice 07.10.22 | H173: 294.2 | J173: 15.2 | K173: 12.6
B174: STEINEROVÁ | C174: Barbora | D174: 8.B | E174: 33.5 | G174: Jilemnice 07.10.22 | H174: 612.7 | J174: 33.36 | K174: 24.4
B175: ŠERCLOVÁ | C175: Andrea | D175: 8.B | H175: =IF(E175=0,0,IF(E175>0,E175*10*1.82+3)) -> 0
B176: TOMEŠOVÁ | C176: Barbora | D176: 8.B | E176: 27 | G176: Jilemnice 07.10.22 | H176: 494.4 | J176: 24 | K176: 16.2
B177: VOHNOUTOVÁ | C177: Aneta | D177: 8.B | E177: 34.28 | G177: Turnov 11.05.23 | H177: 626.896 | J177: 35.02 | K177: 29
B178: HAVLÍKOVÁ | C178: Michaela | D178: 9.A | E178: 18.5 | G178: Jilemnice 24.05.23 | H178: 339.7 | J178: 16 | L178: 10.5
B179: HOLUBCOVÁ | C179: Sára | D179: 9.A | H179: 0 | J179: 26 | K179: 25
B180: HONCŮ | C180: Tereza | D180: 9.A | E180: 25 | G180: Jilemnice 24.05.23 | H180: 458 | J180: 25 | K180: 22 | L180: 18.5
B181: HORÁČKOVÁ | C181: Kateřina | D181: 9.A | E181: 26 | G181: Jilemnice 24.05.23 | H181: 476.2 | J181: 27 | K181: 22 | L181: 21
B182: JOUDALOVÁ | C182: Daniela | D182: 9.A | H182: 0 | L182: 10
B183: KLÍMOVÁ | C183: Anna | D183: 9.A | E183: 24 | G183: Jilemnice 24.05.23 | H183: 439.8 | J183: 25 | L183: 17.5
B184: KOHOUTOVÁ | C184: Veronika | D184: 9.A | E184: 29 | G184: Jilemnice 24.05.23 | H184: 530.8 | J184: 28 | K184: 29.5 | L184: 24
B185: KOVÁŘOVÁ | C185: Viktorie | D185: 9.A | E185: 30 | G185: Jilemnice 24.05.23 | H185: 549 | J185: 24.5 | K185: 19.5 | L185: 17.5
B186: KYNČLOVÁ | C186: Anna | D186: 9.A | E186: 26.5 | G186: Jilemnice 24.05.23 | H186: 485.3 | J186: 28 | K186: 27.5 | L186: 21
B187: MATOUŠOVÁ | C187: Tereza | D187: 9.A | E187: 25 | G187: Jilemnice 24.05.23 | H187: 458 | J187: 23 | K187: 20.5 | L187: 17.5
B188: MAZÁNKOVÁ | C188: Zuzana | D188: 9.A | E188: 16 | G188: Jilemnice 24.05.23 | H188: 294.2 | J188: 15.5 | K188: 19 | L188: 14.5
B189: MORKESOVÁ | C189: Sabrina | D189: 9.A | E189: 45.66 | G189: Turnov 11.05.23 | H189: 834.012 | J189: 40 | K189: 42 | L189: 36.5
B190: POHOŘALÁ | C190: Alžběta | D190: 9.A | E190: 22 | G190: Jilemnice 24.05.23 | H190: 403.4 | J190: 24 | K190: 22.5 | L190: 15.5
B191: SCHOLZOVÁ | C191: Laura | D191: 9.A | H191: 0
B192: VÁCLAVÍKOVÁ | C192: Valerie | D192: 9.A | H192: 0 | J192: 29 | K192: 26.5 | L192: 25.5
B193: ZAPADLOVÁ | C193: Emma | D193: 9.A | E193: 42.5 | G193: Turnov 13.09.22 | H193: 776.5 | J193: 37.5 | K193: 33.5 | L193: 27.5
B194: ŽIŠKOVÁ | C194: Mia | D194: 9.A | H194: 0 | J194: 24 | K194: 22.5
B195: FARSKÁ | C195: Tereza | D195: 9.B | E195: 18 | G195: Jilemnice 07.10.22 | H195: 330.6 | J195: 19
B196: FEIXOVÁ | C196: Rozálie | D196: 9.B | E196: 15 | G196: Jilemnice 07.10.22 | H196: 276 | J196: 13.5
B197: FIŠEROVÁ | C197: Michaela | D197: 9.B | E197: 19 | G197: Jilemnice 07.10.22 | H197: 348.8 | J197: 19.5
B198: HAVLÍČKOVÁ | C198: Kristýna | D198: 9.B | E198: 16.5 | G198: Jilemnice 07.10.22 | H198: 303.3 | J198: 16
B199: KADAVÁ | C199: Nikola | D199: 9.B | E199: 14 | G199: Jilemnice 07.10.22 | H199: 257.8 | J199: 15
B200: KŘIVINKOVÁ | C200: Alžběta | D200: 9.B | E200: 25 | G200: Jilemnice 07.10.22 | H200: 458 | J200: 24
B201: LEŠÁKOVÁ | C201: Lenka | D201: 9.B | E201: 12 | G201: Jilemnice 07.10.22 | H201: 221.4 | J201: 15
B202: NYKLÍČKOVÁ | C202: Adéla | D202: 9.B | E202: 23.5 | G202: Jilemnice 07.10.22 | H202: 430.7 | J202: 23.5
B203: PLŮCHOVÁ | C203: Petra | D203: 9.B | E203: 24 | G203: Jilemnice 07.10.22 | H203: 439.8 | J203: 24
B204: PODZIMKOVÁ | C204: Eliška | D204: 9.B | E204: 27 | G204: Jilemnice 07.10.22 | H204: 494.4 | J204: 26
B205: RUTKAYOVÁ | C205: Klára | D205: 9.B | E205: 17 | G205: Jilemnice 07.10.22 | H205: 312.4 | J205: 15
B206: SEIDLOVÁ | C206: Zuzana | D206: 9.B | E206: 34 | G206: Jilemnice 07.10.22 | H206: 621.8 | J206: 28.8
B207: TOMÁŠOVÁ | C207: Sára | D207: 9.B | E207: 19.5 | G207: Jilemnice 07.10.22 | H207: 357.9 | J207: 18.5
B208: VANCLOVÁ | C208: Barbora | D208: 9.B | E208: 24 | G208: Jilemnice 07.10.22 | H208: 439.8
B209: VOTOČKOVÁ | C209: Veronika | D209: 9.B | E209: 14 | G209: Jilemnice 07.10.22 | H209: 257.8 | J209: 16

Sheet Dkou
B1: VÝKONY 2022 - 2023 | G1: KOULE | K1: stav k | L1: =TODAY() -> 2023-06-26
H2: BODY | J2: 21 - 22 | K2: 20 - 21 | L2: 19 - 20
